Workbook

Sheet Projects
A1: Twin Cities Area Transportation Study (TwinCATS)
A2: Updated 7-17-2017
A3: Required Fields | Z3: Optional Fields | AE3: ='MDOT FTA Detail'!B1 -> E-File v. 5.1 (01.15.15)
A4: Fiscal Year | B4: County | C4: Responsible Agency | D4: Project Name | E4: Limits | F4: Length | G4: Primary Work Type | H4: Project Description | I4: Phase | J4: Advance Construct | K4: Federal Cost ($1000s) | L4: Federal Fund Source | M4: State Cost ($1000s) | N4: State Fund Source | O4: Local Cost ($1000s) | P4: Local Fund Source | Q4: Total Phase Cost ($1000s) | R4: MDOT Job No. | S4: Local ID No. | T4: MPO/ Rural Action Date | U4: Amend-ment Type | V4: Air Quality | W4: Comments | X4: Total Project Cost ($1000s) | Y4: x | Z4: Local Priority | AA4: EJ | AB4: Federal Approval Date | AC4: Capped Federal Cost ($1000s) | AD4: Date Obligated | AE4: Amount Obligated ($1000s) | AF4: Let Date | AG4: MPO
A5: 2017 | B5: Berrien | C5: Berrien County Road Commission | D5: River Road | E5: Over Pipestone Creek | G5: Bridge replacement | H5: Bridge Replacement | I5: CON | K5: 864000 | L5: BRT | M5: 162000 | N5: M | O5: 54000 | P5: CNTY | Q5: 1080000 | R5: 126674 | T5: 2016-06-20 | V5: Exempt | W5: Added to TIP 6/20/16 | X5: 1080000
A6: 2017 | B6: Berrien | C6: Berrien County Road Commission | D6: Upgrading Guardrails on Various Primary Roads | E6: Broadway from Napier Ave to City ofBenton Harbor Limits | F6: 0.53 | G6: Traffic ops/safety | H6: Upgrading Guardrails on Various Primary Roads | I6: CON | K6: 9000 | L6: HSIP | O6: 1000 | P6: CNTY | Q6: =K6+O6 -> 10000 | R6: 130875 | T6: 2017-02-27 | V6: Exempt | W6: Part of a countywide safety grant. Added to the TIP 2/27/17 | X6: 539349 | AB6: 2017-04-28
A7: 2017 | B7: Berrien | C7: Berrien County Road Commission | D7: Hilltop Road | E7: BL-94 to M-63 | F7: 1 | G7: Restore & rehabilitate | H7: Mill and Fill. ADA sidewalk upgrades and construction, depending on budget. Water main replacement. | I7: CON | K7: 564597 | L7: STUL | O7: 125198 | P7: CNTY | Q7: 689795 | R7: 120848 | T7: 2017-03-20 | V7: Exempt | W7: 11/8/16 Administrative Modification: corrected project description, Work Type, and Length. Added to TIP 6/20/16 | X7: 689795 | AB7: 2017-06-19
A8: 2017 | B8: Berrien | C8: Berrien County Road Commission | D8: John Beers Road | E8: 0.32 miles east of Hollywood Road to 0.51 miles West | F8: 0.83 | G8: Resurface | H8: Resurface existing pavement that already has 4 foot wide shoulders | I8: CON | K8: 192163 | L8: STUL | O8: 46600 | P8: CNTY | Q8: =K8+O8 -> 238763 | R8: 120849 | T8: 2016-06-20 | V8: Exempt | W8: Added to TIP 6/20/16 | X8: 238763
A9: 2017 | B9: Berrien | C9: Berrien County Road Commission | D9: Territorial Road Culvert | E9: North Branch Road to Millburg Drive | F9: 0 | G9: Bridge replacement | H9: Culvert Replacement | I9: CON | R9: 131453 | T9: 2016-10-07 | V9: Exempt | W9: RTF Project - Advisory only, does not use STP-Urban funding. approved 10/7/16. Using $720,000 STP-R and $180,000 local funds | AB9: 2017-04-28
A10: 2017 | B10: Berrien | C10: Berrien County Road Commission | D10: Hilltop Road Crossing Surface Replacement | E10: Hilltop Road, Rail Crossing | F10: 0 | G10: Rail | H10: Hilltop Road Rail Crossing | I10: CON | M10: 37463 | N10: MRR | O10: 24976 | P10: PRVT | Q10: =M10+O10 -> 62439 | T10: 2017-02-27 | V10: Exempt | W10: Local match coming from CSX Railway. Added to TIP 2/27/17 | X10: 62439 | AB10: 2017-04-28
A11: 2017 | B11: Berrien | C11: City of Benton Harbor | D11: Colfax South Resurfacing | E11: May to Emery | F11: 0.25 | G11: Resurface | H11: Full mill and fill with Bike Lanes | I11: CON | J11: AC | K11: 87403 | L11: STUL | O11: 140597 | P11: CITY | Q11: 228000 | R11: 130791 | T11: 2017-03-20 | V11: Exempt | W11: Moved to 2017 with an partial AC of0$98,597 to be repaid in 2019. Local match of $42,000 after ACC Added to TIP 6/20/16 | X11: 228000 | AB11: 2017-06-19
A12: 2017 | B12: Berrien | C12: City of St. Joseph | D12: Langley Avenue & Broad Street | E12: Pearl Street to Department of Public Works Entrance | F12: 0.25 | G12: Reconstruct | H12: Full reconstruction of roadway with HMA or concrete pavement including curb and gutter, remove and replace ADA ramps as needed to meet current standards, install new storm sewer and sanitary sewer. Replace sidewalk, driveways and water main as needed. This project is being undertaken as part of the City's ongoing combined sewer overflow (CSO) program and includes inline storage. | I12: CON | J12: AC | R12: 130792 | T12: 2016-11-14 | V12: Exempt | W12: 11/14/16 Removed from TIP. 6/20/16- Added to TIP. Only TIP eligible cost is taken into account here. Total project cost, including sewer and water upgrades is $3,363,000. | AB12: 2017-04-28
A13: 2017 | B13: Berrien | C13: MDOT | D13: M-139 Passing Flare | E13: M-139 between Tanglewood and Anna | F13: 0.71 | G13: Traffic ops/safety | H13: Install passing flares | I13: ROW | K13: 4093 | L13: CM | M13: 907 | N13: M | Q13: 5000 | R13: 127448 | T13: 2016-06-20 | W13: Added to TIP 6/20/16 | X13: 664510
A14: 2017 | B14: Berrien | C14: MDOT | D14: M-139 Passing Flare | E14: on M-139 between Tanglewood and Anna | F14: 0.71 | G14: Traffic ops/safety | H14: Install passing flares | I14: PE | K14: 53096 | L14: CM | M14: 11774 | N14: M | Q14: 64870 | R14: 127448 | T14: 2016-06-20 | W14: Added to TIP 6/20/16 | X14: 664510
A15: 2017 | B15: Berrien | C15: MDOT | D15: I-196 Overlay | E15: I-94 to 0.5 miles South of M-63 (Exit 7) | F15: 8.089 | G15: Restore & rehabilitate | H15: Mill Existing & Multiple Course HMA Overlay | I15: ROW | K15: 22500 | L15: IM | M15: 2500 | N15: M | Q15: 25000 | R15: 118792 | T15: 2016-06-20 | W15: Added to TIP 6/20/16 | X15: 19225000
A16: 2017 | B16: Berrien | C16: MDOT | D16: I-94 Substructure Repair | E16: Over I-94 BL (Lakeshore Dr.) | G16: Bridge restore & rehabilitate | H16: Substructure Repiar | I16: CON | K16: 782574 | L16: IM | M16: 86953 | N16: M | Q16: =K16+M16 -> 869527 | R16: 200006 | T16: 2017-05-15 | V16: exempt | W16: added to TIP 2/27/17 | X16: 938786 | AB16: 2017-06-19
A17: 2017 | B17: Berrien | C17: MDOT | D17: US-31 Longitudinal Joint repair | E17: Temp End Freeway to S JCT I-94 | F17: 1.9 | G17: Resurface | H17: HMA Longitudinal Joint Repair | I17: CON | K17: 234036 | L17: NH | M17: 51897 | N17: M | Q17: 285933 | R17: 128742 | T17: 2016-06-20 | W17: Added to TIP 6/20/16 | X17: 305933
A18: 2017 | B18: Berrien | C18: MDOT | D18: US-31 Concrete Pavement Joint Resealing | E18: M-139 to NapierAvenue | F18: 2.5 | G18: Restore & rehabilitate | H18: Concrere Pavement Joint Resealing CPM | I18: PE | K18: 25521 | L18: NH | M18: 5599 | N18: M | Q18: =K18+M18 -> 31120 | R18: 200628 | T18: 2017-06-19 | U18: Add | V18: Exempt | W18: Added to TIP 6/19/17 | X18: 709821 | AB18: 2017-08-11
A19: 2017 | B19: Berrien | C19: MDOT | D19: US-31 Concrete Pavement Joint Resealing | E19: M-139 to NapierAvenue | F19: 2.5 | G19: Restore & rehabilitate | H19: Concrere Pavement Joint Resealing CPM | I19: CON | K19: 555516 | L19: NH | M19: 123185 | N19: M | Q19: =K19+M19 -> 678701 | R19: 200628 | T19: 2017-06-19 | U19: Add | V19: Exempt | W19: Added to TIP 6/19/17 | X19: 709821 | AB19: 2017-08-11
A20: 2017 | B20: BERRIEN | C20: MDOT | D20: EB I-94 Interchange | E20: From Britain Avenue to I-196 | F20: 3.87 | G20: Reconstruct | H20: Reconstruction of I-94 and partial interchange. | I20: PE | K20: 963579 | L20: NH | M20: 213671 | N20: M | Q20: 1177250 | R20: 130008 | T20: 2017-07-17 | U20: Year | W20: Added to TIP 6/20/16 | X20: 76962750 | AB20: 2017-08-11
A21: 2017 | B21: BERRIEN | C21: MDOT | D21: EB I-94 Interchange | E21: From Britain Avenue to I-196 | F21: 3.87 | G21: Reconstruct | H21: Reconstruction of I-94 and partial interchange. | I21: SUB | K21: 1491922 | L21: NH | M21: 330828 | N21: M | Q21: 1822750 | R21: 130008 | T21: 2017-07-17 | U21: Year | W21: Added to TIP 6/20/16 | X21: 76962750 | AB21: 2017-08-11
A22: 2017 | B22: Berrien | C22: MDOT | D22: M-63 Crack Fill | E22: M-63 from I-94 to Midway | F22: 2.2 | G22: Restore & rehabilitate | H22: Overband Crack Fill | I22: CON | K22: 28412 | L22: ST | M22: 6300 | N22: M | Q22: 34712 | R22: 128736 | T22: 2016-06-20 | V22: Exempt | W22: Added to TIP 6/20/16 Part of a larger project 62.04% rural; 5.56% TwinCATS; 22.00% KATS; 10.41% NATS; total phase cost $511,009 federal ST, $113,315 state M, $624,324 total | X22: 649324
A23: 2017 | B23: Berrien | C23: MDOT | D23: M-63 Overlay | E23: on M-63 from Winchester to I-94 BL | F23: 1.127 | G23: Resurface | H23: Cold Milling and HMA One Course Overlay | I23: CON | K23: 80525 | L23: ST | M23: 17856 | N23: M | Q23: 98381 | R23: 127563 | T23: 2016-06-20 | V23: Exempt | W23: Added to TIP 6/20/16 Part of a larger project with a location outside of the MPO. | X23: 439785
A24: 2017 | B24: Berrien | C24: MDOT | D24: Hilltop Road Rail Flashers | E24: At CSX Transportation, St. Joseph Township | G24: Rail | H24: Upgrade rail crossing singal (flashers) | I24: CON | K24: 45000 | L24: STRH | M24: 5000 | N24: M | Q24: =K24+M24 -> 50000 | R24: 132341 | T24: 2017-04-17 | V24: Exempt | W24: Added to TIP 5/15/17 | X24: 50000 | AB24: 2017-06-19
A25: 2017 | B25: Berrien | C25: MDOT | D25: I-94 Road and Bridge Scoping | E25: 0.5 miles west of I94 BL(exit 23) to the St. Joseph River | F25: 3.5 | G25: Miscellaneous | H25: Scoping for Road and Bridge Work | I25: EPE | M25: 400000 | N25: M | Q25: 400000 | R25: 132824 | T25: 2016-11-08 | V25: Exempt | W25: Administrative Modification Added to TIP 11/8/16 based on a request by Kyle Rudlaf | X25: 400000 | AB25: 2017-04-28
A26: 2017 | B26: Berrien | C26: MDOT | D26: I-94 Substructure Repair | E26: Over I-94 BL (Lakeshore Dr.) | G26: Bridge restore & rehabilitate | H26: Substructure Repiar | I26: SUB | M26: 69259 | N26: M | Q26: =M26 -> 69259 | R26: 200006 | T26: 2017-05-15 | V26: Exempt | W26: added to TIP 2/27/17 | X26: 938786 | AB26: 2017-06-19
A27: 2017 | B27: Berrien | C27: SWMPC | D27: Rideshare | E27: Countywide | G27: Miscellaneous | H27: Rideshare Program | I27: EPE | K27: 12000 | L27: CMG | Q27: 12000 | R27: 124467 | T27: 2016-06-20 | V27: Exempt | W27: Added to TIP 6/20/16 | X27: 12000
A28: 2017 | B28: Berrien | C28: TCATA | D28: Regular Operating Expenses | E28: Benton Harbor, St. Joseph, Benton Township | G28: Transit operations | H28: Regular Operation Expenses | I28: T-Ops | K28: 777380 | L28: 5307 | M28: 658744 | N28: CTF | O28: 406000 | P28: TRAL | Q28: =K28+M28+O28 -> 1842124 | T28: 2017-02-27 | V28: Exempt | W28: 2/27/17 Adding an addition $118,701 in 5307. Added to TIP 6/20/16 | X28: 1960825 | AB28: 2017-04-28
A29: 2017 | B29: Berrien | C29: TCATA | D29: Bus Purchase | E29: Benton Harbor, St. Joseph, Benton Township | G29: Transit vehicle additions/replacements | H29: Purchase Three (3) new buses | I29: T-Cap | K29: 205194 | L29: 5307 | M29: 51300 | N29: CTF | Q29: =K29+M29 -> 256494 | T29: 2016-06-20 | V29: Exempt | W29: Added to TIP 6/20/16 | X29: 256494
A30: 2017 | B30: Berrien | C30: TCATA | D30: Bus Purchase | E30: Benton Harbor, St. Joseph, Benton Township | G30: Transit vehicle additions/replacements | H30: Purchase four (4) new buses | I30: T-Cap | K30: 27145 | L30: 5307 | M30: 6787 | N30: CTF | Q30: =K30+M30 -> 33932 | T30: 2016-11-14 | V30: Exempt | W30: 11/14/16 - Added 5339 funds to the project and reduced the 5307 funding from $43,594 to $27,145. This project uses CMAQ & 5339 funds to make up remaining costs. Added to TIP 6/20/16 | X30: 341962 | AB30: 2017-04-28
A31: 2017 | B31: Berrien | C31: TCATA | D31: Bus Purchase | E31: Benton Harbor, St. Joseph, Benton Township | G31: Transit vehicle additions/replacements | H31: Adding a bus for the JARC line haul | I31: T-Cap | K31: 68398 | L31: 5307 | M31: 17100 | N31: CTF | Q31: =K31+M31 -> 85498 | T31: 2017-02-27 | V31: Exempt | W31: Added to TIP 2/27/17 | X31: 85498 | AB31: 2017-04-28
A32: 2017 | B32: Berrien | C32: TCATA | D32: Phone System | E32: Benton Harbor, St. Joseph, Benton Township | G32: Transit communication equipment | H32: Phone system to manage office and dispatch calls. | I32: T-Cap | K32: 7200 | L32: 5307 | M32: 1800 | N32: CTF | Q32: =K32+M32 -> 9000 | T32: 2017-02-27 | V32: Exempt | X32: 9000 | AB32: 2017-04-28
A33: 2017 | B33: Berrien | C33: TCATA | D33: Mobility Manager | E33: Benton Harbor, St. Joseph, Benton Township | G33: Transit capital | H33: Mobility Manager to coordinate transportation for the disabled passengers | I33: T-Cap | K33: 60000 | L33: 5310 | M33: 15000 | N33: CTF | Q33: 75000 | T33: 2016-06-20 | V33: Exempt | W33: Added to TIP 6/20/16 | X33: 75000
A34: 2017 | B34: Berrien | C34: TCATA | D34: Bus Purchase | E34: Benton Harbor, St. Joseph, Benton Township | G34: Transit vehicle additions/replacements | H34: Purchase four (4) new buses | I34: T-Cap | K34: 16449 | L34: 5339 | M34: 4111 | N34: CTF | Q34: 20560 | T34: 2016-11-14 | W34: Added 11/14/16. These funds are being combined with 5307 & CMAQ funds to purchase 4 buses. | X34: 341962 | AB34: 2017-04-28
A35: 2017 | B35: Berrien | C35: TCATA | D35: Replace One Bus | E35: Benton Harbor, St. Joseph, Benton Township | G35: Transit vehicle additions/replacements | H35: Replace One Bus | I35: T-Cap | K35: 85498 | L35: 5339 | M35: 21375 | N35: CTF | Q35: =K35+M35 -> 106873 | T35: 2017-05-15 | V35: Exempt | W35: 5/15/17: Costs Corrected. Added to TIP 6/20/16 | X35: 106893 | AB35: 2017-06-19
A36: 2017 | B36: Berrien | C36: TCATA | D36: Bus Purchase | E36: Benton Harbor, St. Joseph, Benton Township | G36: Transit vehicle additions/replacements | H36: Purchase four (4) new buses | I36: T-Cap | K36: 230000 | L36: CM | M36: 57500 | N36: CTF | Q36: 287500 | T36: 2016-06-20 | V36: Exempt | W36: Also using 5307 funds to make up remaining cost. Added to TIP 6/20/16 | X36: 341962
A37: 2017 | B37: Berrien | C37: TCATA | D37: JARC | E37: Benton Harbor, St. Joseph, Benton Township | G37: Transit operations | H37: This grant is to provide transportation for low income Benton Harbor residents to I-94 and Red Arrow. This is an area that potentially has 70 employers. | I37: T-Ops | M37: 386040 | N37: CTF | Q37: 386040 | T37: 2016-06-20 | V37: Exempt | W37: Added to TIP 6/20/16 | X37: 386040
A38: 2017 | B38: Berrien | C38: Village of Stevensville | D38: Red Arrow Highway and John Beers Road Intersection Improvements | E38: 400 ft. south of John Beers Rd to 400 ft. North of John Beers Rd. | F38: 0.15 | G38: Restore & rehabilitate | H38: Widening to add a center turn lane. Milling and Resurfacing. ADA sidewall ramps, Traffic Signal modernization. Pavement markings and permanent traffic signs | I38: CON | K38: 355504.5 | L38: HSIP | O38: 39500.5 | P38: VLG | Q38: 395005 | R38: 130877 | T38: 2016-11-14 | W38: 11/14/16. Added to TIP. Uses Highway Safety improvement Program (HSIP) funds | AB38: 2017-04-28
A39: 2018 | B39: Berrien | C39: Berrien County Road Commission | D39: Nickerson Avenue | E39: M-139 to 700 feet East of Woodley | F39: 0.643 | G39: Resurface | H39: Mill and Fill 2 inches | I39: CON | K39: 143000 | L39: STUL | O39: 32000 | P39: CNTY | Q39: 175000 | R39: 130797 | T39: 2016-06-20 | V39: Exempt | W39: Added to TIP 6/20/16 | X39: 175000
A40: 2018 | B40: Berrien | C40: Berrien County Road Commission | D40: Shawnee Road | E40: Jericho Road to Date Road | F40: 0.5 | G40: Reconstruct | H40: Construct 5ft wide shoulders and resurface | I40: CON | K40: 268925 | L40: STUL | O40: 184075 | P40: CNTY | Q40: 453000 | R40: 130793 | T40: 2016-06-20 | V40: Exempt | W40: Added to TIP 6/20/16 | X40: 453000
A41: 2018 | B41: Berrien | C41: Berrien County Road Commission | D41: Red Arrow Highway | E41: Bridgman city limits to 0.8 mi south | F41: 0.8 | G41: Resurface | H41: 3R Project | I41: CON | R41: 129834 | T41: 2016-10-07 | V41: Exempt | W41: RTF Project - Advisory only, does not use STP-Urban funding. Approved 10/7/16. Using $460,099 STP-R and $244,000 State D funds | X41: =Q41 -> 0 | AB41: 2016-10-12 | AG41: 4
A42: 2018 | B42: Berrien | C42: City of Benton Harbor | D42: Traffic Signal Replacement on Pipestone at Jefferson | E42: Pipestone ave and Jefferson st. | G42: Traffic ops/safety | H42: Traffic Signal Replacement on Pipestone at Jefferson to improve traffic light timing along Pipestone | I42: CON | K42: 264254 | L42: CMG | Q42: 264254 | R42: 121016 | T42: 2017-06-19 | U42: Add | V42: Exempt | W42: Origionally approved at the January 2017 Berrien County CMAQ Meeting | AB42: 2017-08-11
A43: 2018 | B43: Berrien | C43: City of St. Joseph | D43: Wallace Avenue | E43: Lakeshore Drive to South State Street | F43: 0.37 | G43: Reconstruct | H43: Full reconstruction of roadway with HMA or concrete pavement including curb and gutter, remove and replace ADA ramps as needed to meet current standards, install new storm sewer and sanitary sewer. Replace sidewalk, driveways as needed. This project is being undertaken as part of the City's ongoing combined sewer overflow (CSO) program and includes water main replacement. | I43: CON | K43: 460000 | L43: STUL | O43: 1000000 | P43: CITY | Q43: =K43+O43 -> 1460000 | R43: 133290 | T43: 2017-06-09 | U43: Scope | V43: Exempt | W43: 6/9/2017 Adminstrive Modification to increase limits. 11/14/16 Added to TIP. This project combines roadwork with Water/Sewer work which is not a eligible STP expense | AB43: 2017-08-11
A44: 2018 | B44: Berrien | C44: City of St. Joseph | D44: Langley Avenue & Broad Street | E44: Pearl Street to Department of Public Works Entrance | F44: 0.25 | G44: Reconstruct | H44: Full reconstruction of roadway with HMA or concrete pavement including curb and gutter, remove and replace ADA ramps as needed to meet current standards, install new storm sewer and sanitary sewer. Replace sidewalk, driveways and water main as needed. This project is being undertaken as part of the City's ongoing combined sewer overflow (CSO) program and includes inline storage. | I44: CON | J44: ACC | R44: 130792 | T44: 2016-11-14 | V44: Exempt | W44: 11/14/16 Removed. Added to TIP 6/20/16- Only TIP eligible cost is taken into account here. Total project cost, including sewer and water upgrades is $3,363,000. | AB44: 2017-04-28
A45: 2018 | B45: Berrien | C45: MDOT | D45: M-63 Bridge Replacement | E45: on M-63 over I-196 | G45: Bridge replacement | H45: Bridge Replacement | I45: CON | K45: 4135701 | L45: BRI | M45: 459522 | N45: M | Q45: 4595223 | R45: 115754 | T45: 2016-06-20 | V45: Exempt | W45: Added to TIP 6/20/16 | X45: 5074725
A46: 2018 | B46: Berrien | C46: MDOT | D46: I-94 WB Overlay | E46: on I-94 from E of I-196 to W of M-140 | F46: 5.6 | G46: Resurface | H46: Repair Existing & Multiple Course HMA Overlay | I46: PE | K46: 195197 | L46: IM | M46: 21689 | N46: M | Q46: 216886 | R46: 128907 | T46: 2016-06-20 | W46: Added to TIP 6/20/16 | X46: 15960000
A47: 2018 | B47: Berrien | C47: MDOT | D47: I-196 Overlay | E47: I-94 to 0.5 miles South of M-63 (Exit 7) | F47: 8.089 | G47: Restore & rehabilitate | H47: Mill Existing & Multiple Course HMA Overlay | I47: CON | K47: 15840000 | L47: IM | M47: 1760000 | N47: M | Q47: 17600000 | R47: 118792 | T47: 2016-06-20 | V47: Exempt | W47: Added to TIP 6/20/16 | X47: 19225000
A48: 2018 | B48: Berrien | C48: MDOT | D48: Napier Avenue Carpool Lot | E48: At Napier Avenue and US-31 | G48: Roadside facility | H48: Carpool Lot Expansion and Resurface | I48: CON | K48: 69573 | L48: ST | M48: 15427 | N48: M | Q48: =K48+M48 -> 85000 | R48: 116509 | T48: 2016-06-20 | W48: Added to TIP 6/20/16 | X48: 106000
A49: 2018 | B49: Berrien | C49: SWMPC | D49: Rideshare | E49: Countywide | G49: Miscellaneous | H49: Rideshare Program | I49: EPE | K49: 12000 | L49: CMG | Q49: 12000 | T49: 2016-06-20 | V49: Exempt | W49: Added to TIP 6/20/16 | X49: 12000
A50: 2018 | B50: Berrien | C50: TCATA | D50: Regular Operating Expenses | E50: Benton Harbor, St. Joseph, Benton Township | G50: Transit operations | H50: Regular Operation Expenses | I50: T-Ops | K50: 813836 | L50: 5307 | M50: 726370 | N50: CTF | O50: 356000 | P50: TRAL | Q50: =K50+M50+O50 -> 1896206 | T50: 2016-06-20 | V50: Exempt | W50: Added to TIP 6/20/16 | X50: 1983316
A51: 2018 | B51: Berrien | C51: TCATA | D51: Mobility Manager | E51: Benton Harbor, St. Joseph, Benton Township | G51: Transit capital | H51: Mobility Manager to coordinate transportation for the disabled passengers | I51: T-Cap | K51: 60000 | L51: 5310 | M51: 15000 | N51: CTF | Q51: 75000 | T51: 2016-06-20 | V51: Exempt | W51: Added to TIP 6/20/16 | X51: 75000
A52: 2018 | B52: Berrien | C52: TCATA | D52: Facilities Improvement | E52: Benton Harbor, St. Joseph, Benton Township | G52: Transit facility | H52: Facilities Improvements | I52: T-Cap | K52: 80000 | L52: 5339 | M52: 20000 | N52: CTF | Q52: 100000 | T52: 2016-06-20 | V52: Exempt | W52: Added to TIP 6/20/16 | X52: 100000
A53: 2018 | B53: Berrien | C53: TCATA | D53: JARC | E53: Benton Harbor, St. Joseph, Benton Township | G53: Transit operations | H53: This grant is to provide transportation for low income Benton Harbor residents to I-94 and Red Arrow. This is an area that potentially has 70 employers. | I53: T-Ops | M53: 397347 | N53: CTF | O53: 33000 | P53: TRAL | Q53: =K53+M53+O53 -> 430347 | T53: 2016-06-20 | V53: Exempt | W53: Added to TIP 6/20/16 | X53: 397347
A54: 2019 | B54: Berrien | C54: Berrien County Road Commission | D54: Napier Avenue | E54: St. Joseph River to 3700 Feet East | F54: 0.87 | G54: Resurface | H54: Mill and Fill ADA ramps as required. | I54: CON | K54: 335000 | L54: STUL | O54: 74000 | P54: CNTY | Q54: 409000 | R54: 130790 | T54: 2016-06-20 | V54: Exempt | W54: Added to TIP 6/20/16 | X54: 429000
A55: 2019 | B55: Berrien | C55: Berrien County Road Commission | D55: John Beers Road | E55: Hollywood Road to Scottsdale Road | F55: 0.51 | G55: Reconstruct | H55: Construct 5ft paved shoulders and resurface | I55: CON | K55: 350000 | L55: STUL | O55: 129000 | P55: CNTY | Q55: 479000 | R55: 130789 | T55: 2016-06-20 | V55: Exempt | W55: Added to TIP 6/20/16 | X55: 479000
A56: 2019 | B56: Berrien | C56: Berrien County Road Commission | D56: Red Arrow Highway | E56: 0.8 miles south of the city limits of Bridgman to 1.6 miles South of the City of Bridgman | F56: 0.8 | G56: Resurface | H56: 3R Project | I56: CON | R56: 129835 | T56: 2016-10-07 | V56: Exempt | W56: RTF Project - Advisory only, does not use STP-Urban funding. Approved 10/7/16. Using $400,762 STP-R funds and $117,363 Sate D funds | X56: =Q56 -> 0 | AB56: 2016-10-12 | AG56: 4
A57: 2019 | B57: Berrien | C57: City of Benton Harbor | D57: Colfax South Resurfacing | E57: May to Emery | F57: 0.25 | G57: Resurface | H57: Full mill and fill with Bike Lanes | I57: CON | J57: ACC | K57: 98597 | L57: STUL | O57: 42000 | P57: CITY | Q57: =K57+O57 -> 140597 | R57: 130791 | T57: 2017-03-20 | V57: Exempt | W57: Repaymnt for an AC in 2017. $42,000 local match after ACC | X57: 228000 | AB57: 2017-06-19
A58: 2019 | B58: BERRIEN | C58: MDOT | D58: I-94 | E58: under Glenlord Road and Cleveland Avenue over I-94 | F58: 0.385 | G58: Restore & rehabilitate | H58: Deep Overlay, Substructure Repair, Beam Repair, | I58: CON | K58: 2727000 | L58: IM | M58: 303000 | N58: M | O58: 0 | Q58: 3030000 | R58: 126888 | T58: 2016-06-20 | W58: Added to TIP 6/20/16 | X58: 3463000
A59: 2019 | B59: BERRIEN | C59: MDOT | D59: EB I-94 | E59: From Britain Avenue to I-196 | F59: 3.87 | G59: New route/structure (capacity increase) | H59: Reconstruction of I-94 and partial interchange. | I59: ROW | K59: 135000 | L59: IM | M59: 15000 | N59: M | O59: 0 | Q59: 150000 | R59: 130008 | T59: 2016-06-20 | W59: Added to TIP 6/20/16 | X59: 76962750
A60: 2019 | B60: BERRIEN | C60: MDOT | D60: I-94 BL | E60: over St. Joseph River in Benton Harbor | F60: 0.179 | G60: Bridge - other | H60: Epoxy overlay, joints, mechanical, electrical | I60: CON | K60: 2232905 | L60: NH | M60: 495139 | N60: M | O60: 0 | Q60: 2728044 | R60: 128063 | T60: 2016-06-20 | W60: Added to TIP 6/20/16 | X60: 3155042
A61: 2019 | B61: BERRIEN | C61: MDOT | D61: M-63 | E61: over St. Joseph River | F61: 0.189 | G61: Bridge - other | H61: Epoxy overlay, scour, mechanical & electrical | I61: CON | K61: 3008373 | L61: NH | M61: 667098 | N61: M | O61: 0 | Q61: 3675471 | R61: 128059 | T61: 2016-06-20 | W61: Added to TIP 6/20/16 | X61: 4250762
A62: 2019 | B62: Berrien | C62: TCATA | D62: Regular Operating Expenses | E62: Benton Harbor, St. Joseph, Benton Township | G62: Transit operations | H62: Regular Operation Expenses | I62: T-Ops | K62: 816249 | L62: 5307 | M62: 691681 | N62: CTF | O62: 406000 | P62: TRAL | Q62: 1913930 | T62: 2016-06-20 | V62: Exempt | W62: Added to TIP 6/20/16 | X62: 1913930
A63: 2019 | B63: Berrien | C63: TCATA | D63: Mobility Manager | E63: Benton Harbor, St. Joseph, Benton Township | G63: Transit capital | H63: Mobility Manager to coordinate transportation for the disabled passengers | I63: T-Cap | K63: 60000 | L63: 5310 | M63: 15000 | N63: CTF | Q63: 75000 | T63: 2016-06-20 | V63: Exempt | W63: Added to TIP 6/20/16 | X63: 75000
A64: 2019 | B64: Berrien | C64: TCATA | D64: Replace One Bus | E64: Benton Harbor, St. Joseph, Benton Township | G64: Transit vehicle additions/replacements | H64: Replace One Bus | I64: T-Cap | K64: 72000 | L64: 5339 | M64: 18000 | N64: CTF | Q64: 90000 | T64: 2016-06-20 | V64: Exempt | W64: Added to TIP 6/20/16 | X64: 90000
A65: 2019 | B65: Berrien | C65: TCATA | D65: JARC | E65: Benton Harbor, St. Joseph, Benton Township | G65: Transit operations | H65: This grant is to provide transportation for low income Benton Harbor residents to I-94 and Red Arrow. This is an area that potentially has 70 employers. | I65: T-Ops | M65: 386040 | N65: CTF | Q65: 386040 | T65: 2016-06-20 | V65: Exempt | W65: Added to TIP 6/20/16 | X65: 386040
A66: 2020 | B66: Berrien | C66: Berrien County Road Commission | D66: Traffic Signal Replacement on Napier Avenue at Leeds Avenue | E66: Intersection of Napier Ave and Leeds Ave. | G66: Traffic ops/safety | H66: Traffic Signal Replacement on Napier Avenue at Leeds Avenue | I66: CON | K66: 240000 | L66: CMG | Q66: 240000 | T66: 2016-06-20 | V66: Exempt | W66: Added to TIP 6/20/16 | X66: 240000
A67: 2020 | B67: Berrien | C67: Berrien County Road Commission | D67: Marquette Woods Road Widened Shoulders- Roosevelt to Cleveland | E67: Roosevelt Road to Cleveland Ave. | F67: 0.492 | G67: Resurface | H67: Resurface, widen shoulders | I67: CON | K67: 400000 | L67: STUL | O67: 100000 | P67: CNTY | Q67: 500000 | R67: 130787 | T67: 2016-06-20 | V67: Exempt | W67: Added to TIP 6/20/16 | X67: 500000
A68: 2020 | B68: Berrien | C68: Berrien County Road Commission | D68: Napier Avenue | E68: I-94 to 4300 Ft West | F68: 0.77 | G68: Resurface | H68: Mill and fill with ADA ramps as required | I68: CON | K68: 471000 | L68: STUL | O68: 104100 | P68: CNTY | Q68: 575100 | R68: 130865 | T68: 6.20/16 | V68: Exempt | W68: Added to TIP 6/20/16 | X68: 575100
A69: 2020 | B69: Berrien | C69: Berrien County Road Commission | D69: Red Arrow Highway | E69: 1.6 miles South of the City limits of Bridgman to 2.4 miles South of Bridgman | F69: 0.8 | G69: Resurface | H69: 3R Project | I69: CON | R69: 129836 | T69: 2016-10-07 | V69: Exempt | W69: RTF Project - Advisory only, does not use STP-Urban funding. Approved 10/7/16. Using $646,233 STP-R funds, $117,363 State D funds and $44,195 Local funds | X69: =Q69 -> 0 | AB69: 2016-10-12 | AG69: 4
A70: 2020 | B70: BERRIEN | C70: MDOT | D70: M-139 | E70: at Tanglewood/Anna and M-43 at 16th Avenue | F70: 0.71 | G70: Traffic ops/safety | H70: Install passing flares | I70: CON | K70: 486712 | L70: CM | M70: 107928 | N70: M | Q70: 594640 | R70: 127448 | T70: 2016-06-20 | W70: Added to TIP 6/20/16 | X70: 664510
A71: 2020 | B71: BERRIEN | C71: MDOT | D71: I-94 WB | E71: From I-196 to 0.7 miles west of M-140 | F71: 5.603 | G71: Resurface | H71: Repair Existing & Multiple Course HMA Overlay | I71: CON | K71: 13167000 | L71: IM | M71: 1463000 | N71: M | Q71: 14630000 | R71: 128907 | T71: 2016-06-20 | W71: Added to TIP 6/20/16 | X71: 15960000
A72: 2020 | B72: Berrien | C72: SWMPC | D72: Rideshare | E72: Countywide | G72: Miscellaneous | H72: Rideshare Program | I72: EPE | K72: 12000 | L72: CMG | Q72: 12000 | T72: 2016-06-20 | V72: Exempt | W72: Added to TIP 6/20/16 | X72: 12000
A73: 2020 | B73: Berrien | C73: TCATA | D73: Regular Operating Expenses | E73: Benton Harbor, St. Joseph, Benton Township | G73: Transit operations | H73: Regular Operation Expenses | I73: T-Ops | K73: 857061 | L73: 5307 | M73: 726265 | N73: CTF | O73: 406000 | P73: TRAL | Q73: 1989326 | T73: 2016-06-20 | V73: Exempt | W73: Added to TIP 6/20/16 | X73: 1989326
A74: 2020 | B74: Berrien | C74: TCATA | D74: Mobility Manager | E74: Benton Harbor, St. Joseph, Benton Township | G74: Transit capital | H74: Mobility Manager to coordinate transportation for the disabled passengers | I74: T-Cap | K74: 60000 | L74: 5310 | M74: 15000 | N74: CTF | Q74: 75000 | T74: 2016-06-20 | V74: Exempt | W74: Added to TIP 6/20/16 | X74: 75000
A75: 2020 | B75: Berrien | C75: TCATA | D75: Replace One Bus | E75: Benton Harbor, St. Joseph, Benton Township | G75: Transit vehicle additions/replacements | H75: Replace One Bus | I75: T-Cap | K75: 74400 | L75: 5339 | M75: 18600 | N75: CTF | Q75: 93000 | T75: 2016-06-20 | V75: Exempt | W75: Added to TIP 6/20/16 | X75: 93000
A76: 2020 | B76: Berrien | C76: TCATA | D76: JARC | E76: Benton Harbor, St. Joseph, Benton Township | G76: Transit operations | H76: This grant is to provide transportation for low income Benton Harbor residents to I-94 and Red Arrow. This is an area that potentially has 70 employers. | I76: T-Ops | M76: 386040 | N76: CTF | Q76: 386040 | T76: 2016-06-20 | V76: Exempt | W76: Added to TIP 6/20/16 | X76: 386040

Sheet FY 2017
B1: FY 2017
A2: Highway Program | B2: Estimated Federal Commitments | C2: Estimated Non-Federal Commitments | D2: Total Proposed Commitments
A3: MDOT AC & M Program | C3: =D3 -> 469259 | D3: =SUM('MDOT FTA Detail'!F135:F169)+'MDOT FTA Detail'!F171 -> 469259
A4: MDOT FA Program | B4: =SUM('MDOT FTA Detail'!D6:D109) -> 4286774 | C4: =D4-B4 -> 856470 | D4: =SUM('MDOT FTA Detail'!F6:F109) -> 5143244
A5: Sub-Total MDOT | B5: =B4 -> 4286774 | C5: =C3+C4 -> 1325729 | D5: =D3+D4 -> 5612503
A6: Local STP | B6: =SUM('Local Detail'!D78,'Local Detail'!D79,'Local Detail'!D82:D97,'Local Detail'!D72:D73,'Local Detail'!D53:D54,'Local Detail'!D24) -> 844163 | C6: =D6-B6 -> 171798 | D6: =SUM('Local Detail'!F78,'Local Detail'!F79,'Local Detail'!F82:F97,'Local Detail'!F72:F73,'Local Detail'!F53:F54,'Local Detail'!F24) -> 1015961
A7: Local Bridge | B7: =SUM('Local Detail'!D6:D9,'Local Detail'!D13:D16,'Local Detail'!D102,'Local Detail'!D11:D11,'Local Detail'!D43) -> 864000 | C7: 216000 | D7: =SUM('Local Detail'!F6:F9,'Local Detail'!F13:F16,'Local Detail'!F102,'Local Detail'!F11:F11,'Local Detail'!F43) -> 1080000
A8: Local CMAQ | B8: =SUM('Local Detail'!D20:D23) -> 242000 | C8: 57500 | D8: =SUM('Local Detail'!F20:F23) -> 299500
A9: Local Safety | B9: =SUM('Local Detail'!D46,'Local Detail'!D48,'Local Detail'!D80:D81) -> 364504.5 | C9: 40500.5 | D9: =SUM('Local Detail'!F46,'Local Detail'!F48,'Local Detail'!F80:F81) -> 405005
A10: Local Equity Bonus (TEDF) | B10: =SUM('Local Detail'!D31:D38) -> 0 | C10: 0 | D10: =SUM('Local Detail'!F31:F38) -> 0
A11: Local Other FHWA | B11: =SUM('Local Detail'!D10,'Local Detail'!D12,'Local Detail'!D17:D19,'Local Detail'!D25:D30,'Local Detail'!D39:D42,'Local Detail'!D44:D45,'Local Detail'!D47,'Local Detail'!D49:D52,'Local Detail'!D55:D71,'Local Detail'!D103:D109,'Local Detail'!D98:D101,'Local Detail'!D74:D77) -> 0 | C11: 0 | D11: =SUM('Local Detail'!F10,'Local Detail'!F12,'Local Detail'!F17:F19,'Local Detail'!F25:F30,'Local Detail'!F39:F42,'Local Detail'!F44:F45,'Local Detail'!F47,'Local Detail'!F49:F52,'Local Detail'!F55:F71,'Local Detail'!F103:F109,'Local Detail'!F98:F101,'Local Detail'!F74:F77) -> 0
A12: Local AC Starts | C12: =D12 -> 140597 | D12: ='Local Detail'!F147 -> 140597
A13: Local Non-Federal | C13: =D13 -> 62439 | D13: =SUM('Local Detail'!F111:F145) -> 62439
A14: Sub-Total Local | B14: =SUM(B6:B11) -> 2314667.5 | C14: =SUM(C6:C13) -> 688834.5 | D14: =SUM(D6:D13) -> 3003502
A15: Total Highway | B15: =B14+B5 -> 6601441.5 | C15: =C14+C5 -> 2014563.5 | D15: =D14+D5 -> 8616005
A18: Transit Fund Source | B18: Estimated Federal Commitments | C18: Estimated Non-Federal Commitments | D18: Total Proposed Commitments
A19: CTF - Comprehensive Transit Fund | B19: ='MDOT FTA Detail'!D110 -> 0 | C19: =IF(B19>0,D19-B19,'MDOT FTA Detail'!E134+'Local Detail'!E110) -> 386040 | D19: ='Local Detail'!F110+'MDOT FTA Detail'!F134+'MDOT FTA Detail'!F110 -> 386040
A20: Section 3038 - Over the Road Bus Program | B20: ='MDOT FTA Detail'!D111 -> 0 | C20: =D20-B20 -> 0 | D20: ='MDOT FTA Detail'!F111 -> 0
A21: Section 3045 - National Fuel Cell Technology Development Program | B21: ='MDOT FTA Detail'!D112 -> 0 | C21: =D21-B21 -> 0 | D21: ='MDOT FTA Detail'!F112 -> 0
A22: Section 5303 - Metropolitan Transportation Planning | B22: ='MDOT FTA Detail'!D113 -> 0 | C22: 0 | D22: ='MDOT FTA Detail'!F113 -> 0
A23: Section 5304 - Statewide Transportation Planning | B23: ='MDOT FTA Detail'!D114 -> 0 | C23: 0 | D23: ='MDOT FTA Detail'!F114 -> 0
A24: Section 5305 - Metropolitan and Statewide Planning | B24: ='MDOT FTA Detail'!D115 -> 0 | C24: 0 | D24: ='MDOT FTA Detail'!F115 -> 0
A25: Section 5307 - UZA Formula | B25: ='MDOT FTA Detail'!D116 -> 1085317 | C25: 1141731 | D25: ='MDOT FTA Detail'!F116 -> 2227048
A26: Section 5308 - Clean Fuels Program | B26: ='MDOT FTA Detail'!D117 -> 0 | C26: 0 | D26: ='MDOT FTA Detail'!F117 -> 0
A27: Section 5309 - Fixed Guideway Capital Investment Grant | B27: ='MDOT FTA Detail'!D118 -> 0 | C27: 0 | D27: ='MDOT FTA Detail'!F118 -> 0
A28: Section 5310 - Enhanced Mobility of Seniors and Individuals with Disabilities | B28: ='MDOT FTA Detail'!D119 -> 60000 | C28: 15000 | D28: ='MDOT FTA Detail'!F119 -> 75000
A29: Section 5311 - Non-UZA | B29: ='MDOT FTA Detail'!D120 -> 0 | C29: 0 | D29: ='MDOT FTA Detail'!F120 -> 0
A30: Section 5312 - Research, Development, Demonstration, and Deployment | B30: ='MDOT FTA Detail'!D121 -> 0 | C30: =D30-B30 -> 0 | D30: ='MDOT FTA Detail'!F121 -> 0
A31: Section 5313 - Transit Cooperative Research Program | B31: ='MDOT FTA Detail'!D122 -> 0 | C31: 0 | D31: ='MDOT FTA Detail'!F122 -> 0
A32: Section 5314 - Technical Assistance and Standards | B32: ='MDOT FTA Detail'!D123 -> 0 | C32: 0 | D32: ='MDOT FTA Detail'!F123 -> 0
A33: Section 5316 - Transit - Section 5316 - Job Access/Reverse Commute | B33: ='MDOT FTA Detail'!D124 -> 0 | C33: 0 | D33: ='MDOT FTA Detail'!F124 -> 0
A34: Section 5317 - Transit - Section 5317 - New Freedom Initiative | B34: ='MDOT FTA Detail'!D125 -> 0 | C34: 0 | D34: ='MDOT FTA Detail'!F125 -> 0
A35: Section 5320 - Alternative Transportation in Parks and Public Lands | B35: ='MDOT FTA Detail'!D126 -> 0 | C35: 0 | D35: ='MDOT FTA Detail'!F126 -> 0
A36: Section 5322 - Human Resources and Training | B36: ='MDOT FTA Detail'!D127 -> 0 | C36: =D36-B36 -> 0 | D36: ='MDOT FTA Detail'!F127 -> 0
A37: Section 5324 - Emergency Relief | B37: ='MDOT FTA Detail'!D128 -> 0 | C37: =D37-B37 -> 0 | D37: ='MDOT FTA Detail'!F128 -> 0
A38: Section 5326 - Asset Management Provisions | B38: ='MDOT FTA Detail'!D129 -> 0 | C38: =D38-B38 -> 0 | D38: ='MDOT FTA Detail'!F129 -> 0
A39: Section 5329 - Safety | B39: ='MDOT FTA Detail'!D130 -> 0 | C39: =D39-B39 -> 0 | D39: ='MDOT FTA Detail'!F130 -> 0
A40: Section 5337 - State of Good Repair Grants | B40: ='MDOT FTA Detail'!D131 -> 0 | C40: =D40-B40 -> 0 | D40: ='MDOT FTA Detail'!F131 -> 0
A41: Section 5339 - Bus and Bus Facilities | B41: ='MDOT FTA Detail'!D132 -> 101947 | C41: 25486 | D41: ='MDOT FTA Detail'!F132 -> 127433
A42: Section 5505 - University Transportation Centers Program | B42: ='MDOT FTA Detail'!D133 -> 0 | C42: 0 | D42: ='MDOT FTA Detail'!F133 -> 0
A43: Total Transit | B43: =SUM(B19:B42) -> 1247264 | C43: =SUM(C19:C42) -> 1568257 | D43: =SUM(D19:D42) -> 2815521
A44: Grand Total | B44: =B43+B15 -> 7848705.5 | C44: =C43+C15 -> 3582820.5 | D44: =D43+D15 -> 11431526

Sheet FY 2018
B1: FY 2018
A2: Highway Program | B2: Estimated Federal Commitments | C2: Estimated Non-Federal Commitments | D2: Total Proposed Commitments
A3: MDOT AC & M Program | C3: =D3 -> 0 | D3: =SUM('MDOT FTA Detail'!I135:I169)+'MDOT FTA Detail'!I171 -> 0
A4: MDOT FA Program | B4: =SUM('MDOT FTA Detail'!G6:G109) -> 20240471 | C4: =D4-B4 -> 2256638 | D4: =SUM('MDOT FTA Detail'!I6:I109) -> 22497109
A5: Sub-Total MDOT | B5: =B4 -> 20240471 | C5: =C3+C4 -> 2256638 | D5: =D3+D4 -> 22497109
A6: Local STP | B6: =SUM('Local Detail'!G78,'Local Detail'!G79,'Local Detail'!G82:G97,'Local Detail'!G72:G73,'Local Detail'!G53:G54,'Local Detail'!G24) -> 871925 | C6: =D6-B6 -> 1216075 | D6: =SUM('Local Detail'!I78,'Local Detail'!I79,'Local Detail'!I82:I97,'Local Detail'!I72:I73,'Local Detail'!I53:I54,'Local Detail'!I24) -> 2088000
A7: Local Bridge | B7: =SUM('Local Detail'!G6:G9,'Local Detail'!G13:G16,'Local Detail'!G102,'Local Detail'!G11:G11,'Local Detail'!G43) -> 0 | C7: 0 | D7: =SUM('Local Detail'!I6:I9,'Local Detail'!I13:I16,'Local Detail'!I102,'Local Detail'!I11:I11,'Local Detail'!I43) -> 0
A8: Local CMAQ | B8: =SUM('Local Detail'!G20:G23) -> 276254 | C8: 0 | D8: =SUM('Local Detail'!I20:I23) -> 276254
A9: Local Safety | B9: =SUM('Local Detail'!G46,'Local Detail'!G48,'Local Detail'!G80:G81) -> 0 | C9: 0 | D9: =SUM('Local Detail'!I46,'Local Detail'!I48,'Local Detail'!I80:I81) -> 0
A10: Local Equity Bonus (TEDF) | B10: =SUM('Local Detail'!G31:G38) -> 0 | C10: 0 | D10: =SUM('Local Detail'!I31:I38) -> 0
A11: Local Other FHWA | B11: =SUM('Local Detail'!G10,'Local Detail'!G12,'Local Detail'!G17:G19,'Local Detail'!G25:G30,'Local Detail'!G39:G42,'Local Detail'!G44:G45,'Local Detail'!G47,'Local Detail'!G49:G52,'Local Detail'!G55:G71,'Local Detail'!G103:G109,'Local Detail'!G98:G101,'Local Detail'!G74:G77) -> 0 | C11: 0 | D11: =SUM('Local Detail'!I10,'Local Detail'!I12,'Local Detail'!I17:I19,'Local Detail'!I25:I30,'Local Detail'!I39:I42,'Local Detail'!I44:I45,'Local Detail'!I47,'Local Detail'!I49:I52,'Local Detail'!I55:I71,'Local Detail'!I103:I109,'Local Detail'!I98:I101,'Local Detail'!I74:I77) -> 0
A12: Local AC Starts | C12: =D12 -> 0 | D12: ='Local Detail'!I147 -> 0
A13: Local Non-Federal | C13: =D13 -> 0 | D13: =SUM('Local Detail'!I111:I145) -> 0
A14: Sub-Total Local | B14: =SUM(B6:B11) -> 1148179 | C14: =SUM(C6:C13) -> 1216075 | D14: =SUM(D6:D13) -> 2364254
A15: Total Highway | B15: =B14+B5 -> 21388650 | C15: =C14+C5 -> 3472713 | D15: =D14+D5 -> 24861363
A18: Transit Fund Source | B18: Estimated Federal Commitments | C18: Estimated Non-Federal Commitments | D18: Total Proposed Commitments
A19: CTF - Comprehensive Transit Fund | B19: ='MDOT FTA Detail'!G110 -> 0 | C19: =IF(B19>0,D19-B19,'MDOT FTA Detail'!H134+'Local Detail'!H110) -> 430347 | D19: ='MDOT FTA Detail'!I110+'MDOT FTA Detail'!I134+'Local Detail'!I110 -> 430347
A20: Section 3038 - Over the Road Bus Program | B20: ='MDOT FTA Detail'!G111 -> 0 | C20: =D20-B20 -> 0 | D20: ='MDOT FTA Detail'!I111 -> 0
A21: Section 3045 - National Fuel Cell Technology Development Program | B21: ='MDOT FTA Detail'!G112 -> 0 | C21: =D21-B21 -> 0 | D21: ='MDOT FTA Detail'!I112 -> 0
A22: Section 5303 - Metropolitan Transportation Planning | B22: ='MDOT FTA Detail'!G113 -> 0 | C22: 0 | D22: ='MDOT FTA Detail'!I113 -> 0
A23: Section 5304 - Statewide Transportation Planning | B23: ='MDOT FTA Detail'!G114 -> 0 | C23: 0 | D23: ='MDOT FTA Detail'!I114 -> 0
A24: Section 5305 - Metropolitan and Statewide Planning | B24: ='MDOT FTA Detail'!G115 -> 0 | C24: 0 | D24: ='MDOT FTA Detail'!I115 -> 0
A25: Section 5307 - UZA Formula | B25: ='MDOT FTA Detail'!G116 -> 813836 | C25: 1082370 | D25: ='MDOT FTA Detail'!I116 -> 1896206
A26: Section 5308 - Clean Fuels Program | B26: ='MDOT FTA Detail'!G117 -> 0 | C26: 0 | D26: ='MDOT FTA Detail'!I117 -> 0
A27: Section 5309 - Fixed Guideway Capital Investment Grant | B27: ='MDOT FTA Detail'!G118 -> 0 | C27: 0 | D27: ='MDOT FTA Detail'!I118 -> 0
A28: Section 5310 - Enhanced Mobility of Seniors and Individuals with Disabilities | B28: ='MDOT FTA Detail'!G119 -> 60000 | C28: 15000 | D28: ='MDOT FTA Detail'!I119 -> 75000
A29: Section 5311 - Non-UZA | B29: ='MDOT FTA Detail'!G120 -> 0 | C29: 0 | D29: ='MDOT FTA Detail'!I120 -> 0
A30: Section 5312 - Research, Development, Demonstration, and Deployment | B30: ='MDOT FTA Detail'!G121 -> 0 | C30: =D30-B30 -> 0 | D30: ='MDOT FTA Detail'!I121 -> 0
A31: Section 5313 - Transit Cooperative Research Program | B31: ='MDOT FTA Detail'!G122 -> 0 | C31: 0 | D31: ='MDOT FTA Detail'!I122 -> 0
A32: Section 5314 - Technical Assistance and Standards | B32: ='MDOT FTA Detail'!G123 -> 0 | C32: 0 | D32: ='MDOT FTA Detail'!I123 -> 0
A33: Section 5316 - Transit - Section 5316 - Job Access/Reverse Commute | B33: ='MDOT FTA Detail'!G124 -> 0 | C33: 0 | D33: ='MDOT FTA Detail'!I124 -> 0
A34: Section 5317 - Transit - Section 5317 - New Freedom Initiative | B34: ='MDOT FTA Detail'!G125 -> 0 | C34: 0 | D34: ='MDOT FTA Detail'!I125 -> 0
A35: Section 5320 - Alternative Transportation in Parks and Public Lands | B35: ='MDOT FTA Detail'!G126 -> 0 | C35: 0 | D35: ='MDOT FTA Detail'!I126 -> 0
A36: Section 5322 - Human Resources and Training | B36: ='MDOT FTA Detail'!G127 -> 0 | C36: =D36-B36 -> 0 | D36: ='MDOT FTA Detail'!I127 -> 0
A37: Section 5324 - Emergency Relief | B37: ='MDOT FTA Detail'!G128 -> 0 | C37: =D37-B37 -> 0 | D37: ='MDOT FTA Detail'!I128 -> 0
A38: Section 5326 - Asset Management Provisions | B38: ='MDOT FTA Detail'!G129 -> 0 | C38: =D38-B38 -> 0 | D38: ='MDOT FTA Detail'!I129 -> 0
A39: Section 5329 - Safety | B39: ='MDOT FTA Detail'!G130 -> 0 | C39: =D39-B39 -> 0 | D39: ='MDOT FTA Detail'!I130 -> 0
A40: Section 5337 - State of Good Repair Grants | B40: ='MDOT FTA Detail'!G131 -> 0 | C40: =D40-B40 -> 0 | D40: ='MDOT FTA Detail'!I131 -> 0
A41: Section 5339 - Bus and Bus Facilities | B41: ='MDOT FTA Detail'!G132 -> 80000 | C41: 20000 | D41: ='MDOT FTA Detail'!I132 -> 100000
A42: Section 5505 - University Transportation Centers Program | B42: ='MDOT FTA Detail'!G133 -> 0 | C42: 0 | D42: ='MDOT FTA Detail'!I133 -> 0
A43: Total Transit | B43: =SUM(B19:B42) -> 953836 | C43: =SUM(C19:C42) -> 1547717 | D43: =SUM(D19:D42) -> 2501553
A44: Grand Total | B44: =B43+B15 -> 22342486 | C44: =C43+C15 -> 5020430 | D44: =D43+D15 -> 27362916

Sheet FY 2019
B1: FY 2019
A2: Highway Program | B2: Estimated Federal Commitments | C2: Estimated Non-Federal Commitments | D2: Total Proposed Commitments
A3: MDOT AC & M Program | C3: =D3 -> 0 | D3: =SUM('MDOT FTA Detail'!L135:L169)+'MDOT FTA Detail'!L171 -> 0
A4: MDOT FA Program | B4: =SUM('MDOT FTA Detail'!J6:J109) -> 8103278 | C4: =D4-B4 -> 1480237 | D4: =SUM('MDOT FTA Detail'!L6:L109) -> 9583515
A5: Sub-Total MDOT | B5: =B4 -> 8103278 | C5: =C3+C4 -> 1480237 | D5: =D3+D4 -> 9583515
A6: Local STP | B6: =SUM('Local Detail'!J78,'Local Detail'!J79,'Local Detail'!J82:J97,'Local Detail'!J72:J73,'Local Detail'!J53:J54,'Local Detail'!J24) -> 783597 | C6: =D6-B6 -> 245000 | D6: =SUM('Local Detail'!L78,'Local Detail'!L79,'Local Detail'!L82:L97,'Local Detail'!L72:L73,'Local Detail'!L53:L54,'Local Detail'!L24) -> 1028597
A7: Local Bridge | B7: =SUM('Local Detail'!J6:J9,'Local Detail'!J13:J16,'Local Detail'!J102,'Local Detail'!J11:J11,'Local Detail'!J43) -> 0 | C7: 0 | D7: =SUM('Local Detail'!L6:L9,'Local Detail'!L13:L16,'Local Detail'!L102,'Local Detail'!L11:L11,'Local Detail'!L43) -> 0
A8: Local CMAQ | B8: =SUM('Local Detail'!J20:J23) -> 0 | C8: 0 | D8: =SUM('Local Detail'!L20:L23) -> 0
A9: Local Safety | B9: =SUM('Local Detail'!J46,'Local Detail'!J48,'Local Detail'!J80:J81) -> 0 | C9: 0 | D9: =SUM('Local Detail'!L46,'Local Detail'!L48,'Local Detail'!L80:L81) -> 0
A10: Local Equity Bonus (TEDF) | B10: =SUM('Local Detail'!J31:J38) -> 0 | C10: 0 | D10: =SUM('Local Detail'!L31:L38) -> 0
A11: Local Other FHWA | B11: =SUM('Local Detail'!J10,'Local Detail'!J12,'Local Detail'!J17:J19,'Local Detail'!J25:J30,'Local Detail'!J39:J42,'Local Detail'!J44:J45,'Local Detail'!J47,'Local Detail'!J49:J52,'Local Detail'!J55:J71,'Local Detail'!J103:J109,'Local Detail'!J98:J101,'Local Detail'!J74:J77) -> 0 | C11: 0 | D11: =SUM('Local Detail'!L10,'Local Detail'!L12,'Local Detail'!L17:L19,'Local Detail'!L25:L30,'Local Detail'!L39:L42,'Local Detail'!L44:L45,'Local Detail'!L47,'Local Detail'!L49:L52,'Local Detail'!L55:L71,'Local Detail'!L103:L109,'Local Detail'!L98:L101,'Local Detail'!L74:L77) -> 0
A12: Local AC Starts | C12: =D12 -> 0 | D12: ='Local Detail'!L147 -> 0
A13: Local Non-Federal | C13: =D13 -> 0 | D13: =SUM('Local Detail'!L111:L145) -> 0
A14: Sub-Total Local | B14: =SUM(B6:B11) -> 783597 | C14: =SUM(C6:C13) -> 245000 | D14: =SUM(D6:D13) -> 1028597
A15: Total Highway | B15: =B14+B5 -> 8886875 | C15: =C14+C5 -> 1725237 | D15: =D14+D5 -> 10612112
A18: Transit Fund Source | B18: Estimated Federal Commitments | C18: Estimated Non-Federal Commitments | D18: Total Proposed Commitments
A19: CTF - Comprehensive Transit Fund | B19: ='MDOT FTA Detail'!J110 -> 0 | C19: =IF(B19>0,D19-B19,'MDOT FTA Detail'!K134+'Local Detail'!K110) -> 386040 | D19: ='MDOT FTA Detail'!L110+'MDOT FTA Detail'!L134+'Local Detail'!L110 -> 386040
A20: Section 3038 - Over the Road Bus Program | B20: ='MDOT FTA Detail'!J111 -> 0 | C20: =D20-B20 -> 0 | D20: ='MDOT FTA Detail'!L111 -> 0
A21: Section 3045 - National Fuel Cell Technology Development Program | B21: ='MDOT FTA Detail'!J112 -> 0 | C21: =D21-B21 -> 0 | D21: ='MDOT FTA Detail'!L112 -> 0
A22: Section 5303 - Metropolitan Transportation Planning | B22: ='MDOT FTA Detail'!J113 -> 0 | C22: 0 | D22: ='MDOT FTA Detail'!L113 -> 0
A23: Section 5304 - Statewide Transportation Planning | B23: ='MDOT FTA Detail'!J114 -> 0 | C23: 0 | D23: ='MDOT FTA Detail'!L114 -> 0
A24: Section 5305 - Metropolitan and Statewide Planning | B24: ='MDOT FTA Detail'!J115 -> 0 | C24: 0 | D24: ='MDOT FTA Detail'!L115 -> 0
A25: Section 5307 - UZA Formula | B25: ='MDOT FTA Detail'!J116 -> 816249 | C25: 1097681 | D25: ='MDOT FTA Detail'!L116 -> 1913930
A26: Section 5308 - Clean Fuels Program | B26: ='MDOT FTA Detail'!J117 -> 0 | C26: 0 | D26: ='MDOT FTA Detail'!L117 -> 0
A27: Section 5309 - Fixed Guideway Capital Investment Grant | B27: ='MDOT FTA Detail'!J118 -> 0 | C27: 0 | D27: ='MDOT FTA Detail'!L118 -> 0
A28: Section 5310 - Enhanced Mobility of Seniors and Individuals with Disabilities | B28: ='MDOT FTA Detail'!J119 -> 60000 | C28: 15000 | D28: ='MDOT FTA Detail'!L119 -> 75000
A29: Section 5311 - Non-UZA | B29: ='MDOT FTA Detail'!J120 -> 0 | C29: 0 | D29: ='MDOT FTA Detail'!L120 -> 0
A30: Section 5312 - Research, Development, Demonstration, and Deployment | B30: ='MDOT FTA Detail'!J121 -> 0 | C30: =D30-B30 -> 0 | D30: ='MDOT FTA Detail'!L121 -> 0
A31: Section 5313 - Transit Cooperative Research Program | B31: ='MDOT FTA Detail'!J122 -> 0 | C31: 0 | D31: ='MDOT FTA Detail'!L122 -> 0
A32: Section 5314 - Technical Assistance and Standards | B32: ='MDOT FTA Detail'!J123 -> 0 | C32: 0 | D32: ='MDOT FTA Detail'!L123 -> 0
A33: Section 5316 - Transit - Section 5316 - Job Access/Reverse Commute | B33: ='MDOT FTA Detail'!J124 -> 0 | C33: 0 | D33: ='MDOT FTA Detail'!L124 -> 0
A34: Section 5317 - Transit - Section 5317 - New Freedom Initiative | B34: ='MDOT FTA Detail'!J125 -> 0 | C34: 0 | D34: ='MDOT FTA Detail'!L125 -> 0
A35: Section 5320 - Alternative Transportation in Parks and Public Lands | B35: ='MDOT FTA Detail'!J126 -> 0 | C35: 0 | D35: ='MDOT FTA Detail'!L126 -> 0
A36: Section 5322 - Human Resources and Training | B36: ='MDOT FTA Detail'!J127 -> 0 | C36: =D36-B36 -> 0 | D36: ='MDOT FTA Detail'!L127 -> 0
A37: Section 5324 - Emergency Relief | B37: ='MDOT FTA Detail'!J128 -> 0 | C37: =D37-B37 -> 0 | D37: ='MDOT FTA Detail'!L128 -> 0
A38: Section 5326 - Asset Management Provisions | B38: ='MDOT FTA Detail'!J129 -> 0 | C38: =D38-B38 -> 0 | D38: ='MDOT FTA Detail'!L129 -> 0
A39: Section 5329 - Safety | B39: ='MDOT FTA Detail'!J130 -> 0 | C39: =D39-B39 -> 0 | D39: ='MDOT FTA Detail'!L130 -> 0
A40: Section 5337 - State of Good Repair Grants | B40: ='MDOT FTA Detail'!J131 -> 0 | C40: =D40-B40 -> 0 | D40: ='MDOT FTA Detail'!L131 -> 0
A41: Section 5339 - Bus and Bus Facilities | B41: ='MDOT FTA Detail'!J132 -> 72000 | C41: 18000 | D41: ='MDOT FTA Detail'!L132 -> 90000
A42: Section 5505 - University Transportation Centers Program | B42: ='MDOT FTA Detail'!J133 -> 0 | C42: 0 | D42: ='MDOT FTA Detail'!L133 -> 0
A43: Total Transit | B43: =SUM(B19:B42) -> 948249 | C43: =SUM(C19:C42) -> 1516721 | D43: =SUM(D19:D42) -> 2464970
A44: Grand Total | B44: =B43+B15 -> 9835124 | C44: =C43+C15 -> 3241958 | D44: =D43+D15 -> 13077082

Sheet FY 2020
B1: FY 2020
A2: Highway Program | B2: Estimated Federal Commitments | C2: Estimated Non-Federal Commitments | D2: Total Proposed Commitments
A3: MDOT AC & M Program | C3: =D3 -> 0 | D3: =SUM('MDOT FTA Detail'!O135:O169)+'MDOT FTA Detail'!O171 -> 0
A4: MDOT FA Program | B4: =SUM('MDOT FTA Detail'!M6:M109) -> 13653712 | C4: =D4-B4 -> 1570928 | D4: =SUM('MDOT FTA Detail'!O6:O109) -> 15224640
A5: Sub-Total MDOT | B5: =B3+B4 -> 13653712 | C5: =D5-B5 -> 1570928 | D5: =D3+D4 -> 15224640
A6: Local STP | B6: =SUM('Local Detail'!M78,'Local Detail'!M79,'Local Detail'!M82:M97,'Local Detail'!M72:M73,'Local Detail'!M53:M54,'Local Detail'!M24) -> 871000 | C6: 204100 | D6: =SUM('Local Detail'!O78,'Local Detail'!O79,'Local Detail'!O82:O97,'Local Detail'!O72:O73,'Local Detail'!O53:O54,'Local Detail'!O24) -> 1075100
A7: Local Bridge | B7: =SUM('Local Detail'!M6:M9,'Local Detail'!M13:M16,'Local Detail'!M102,'Local Detail'!M11:M11,'Local Detail'!M43) -> 0 | C7: 0 | D7: =SUM('Local Detail'!O6:O9,'Local Detail'!O13:O16,'Local Detail'!O102,'Local Detail'!O11:O11,'Local Detail'!O43) -> 0
A8: Local CMAQ | B8: =SUM('Local Detail'!M20:M23) -> 252000 | C8: 0 | D8: =SUM('Local Detail'!O20:O23) -> 252000
A9: Local Safety | B9: =SUM('Local Detail'!M46,'Local Detail'!M48,'Local Detail'!M80:M81) -> 0 | C9: 0 | D9: =SUM('Local Detail'!O46,'Local Detail'!O48,'Local Detail'!O80:O81) -> 0
A10: Local Equity Bonus (TEDF) | B10: =SUM('Local Detail'!M31:M38) -> 0 | C10: 0 | D10: =SUM('Local Detail'!O31:O38) -> 0
A11: Local Other FHWA | B11: =SUM('Local Detail'!M10,'Local Detail'!M12,'Local Detail'!M17:M19,'Local Detail'!M25:M30,'Local Detail'!M39:M42,'Local Detail'!M44:M45,'Local Detail'!M47,'Local Detail'!M49:M52,'Local Detail'!M55:M71,'Local Detail'!M103:M109,'Local Detail'!M98:M101,'Local Detail'!M74:M77) -> 0 | C11: 0 | D11: =SUM('Local Detail'!O10,'Local Detail'!O12,'Local Detail'!O17:O19,'Local Detail'!O25:O30,'Local Detail'!O39:O42,'Local Detail'!O44:O45,'Local Detail'!O47,'Local Detail'!O49:O52,'Local Detail'!O55:O71,'Local Detail'!O103:O109,'Local Detail'!O98:O101,'Local Detail'!O74:O77) -> 0
A12: Local AC Starts | C12: =D12 -> 0 | D12: ='Local Detail'!O147 -> 0
A13: Local Non-Federal | C13: =D13 -> 0 | D13: =SUM('Local Detail'!O111:O145) -> 0
A14: Sub-Total Local | B14: =SUM(B6:B11) -> 1123000 | C14: =SUM(C6:C13) -> 204100 | D14: =SUM(D6:D13) -> 1327100
A15: Total Highway | B15: =B14+B5 -> 14776712 | C15: =C14+C5 -> 1775028 | D15: =D14+D5 -> 16551740
A18: Transit Fund Source | B18: Estimated Federal Commitments | C18: Estimated Non-Federal Commitments | D18: Total Proposed Commitments
A19: CTF - Comprehensive Transit Fund | B19: ='MDOT FTA Detail'!M110 -> 0 | C19: =IF(B19>0,D19-B19,'MDOT FTA Detail'!N134+'Local Detail'!N110) -> 386040 | D19: ='MDOT FTA Detail'!O110+'MDOT FTA Detail'!O134+'Local Detail'!O110 -> 386040
A20: Section 3038 - Over the Road Bus Program | B20: ='MDOT FTA Detail'!M111 -> 0 | C20: =D20-B20 -> 0 | D20: ='MDOT FTA Detail'!O111 -> 0
A21: Section 3045 - National Fuel Cell Technology Development Program | B21: ='MDOT FTA Detail'!M112 -> 0 | C21: =D21-B21 -> 0 | D21: ='MDOT FTA Detail'!O112 -> 0
A22: Section 5303 - Metropolitan Transportation Planning | B22: ='MDOT FTA Detail'!M113 -> 0 | C22: 0 | D22: ='MDOT FTA Detail'!O113 -> 0
A23: Section 5304 - Statewide Transportation Planning | B23: ='MDOT FTA Detail'!M114 -> 0 | C23: 0 | D23: ='MDOT FTA Detail'!O114 -> 0
A24: Section 5305 - Metropolitan and Statewide Planning | B24: ='MDOT FTA Detail'!M115 -> 0 | C24: 0 | D24: ='MDOT FTA Detail'!O115 -> 0
A25: Section 5307 - UZA Formula | B25: ='MDOT FTA Detail'!M116 -> 857061 | C25: 1132265 | D25: ='MDOT FTA Detail'!O116 -> 1989326
A26: Section 5308 - Clean Fuels Program | B26: ='MDOT FTA Detail'!M117 -> 0 | C26: 0 | D26: ='MDOT FTA Detail'!O117 -> 0
A27: Section 5309 - Fixed Guideway Capital Investment Grant | B27: ='MDOT FTA Detail'!M118 -> 0 | C27: 0 | D27: ='MDOT FTA Detail'!O118 -> 0
A28: Section 5310 - Enhanced Mobility of Seniors and Individuals with Disabilities | B28: ='MDOT FTA Detail'!M119 -> 60000 | C28: 15000 | D28: ='MDOT FTA Detail'!O119 -> 75000
A29: Section 5311 - Non-UZA | B29: ='MDOT FTA Detail'!M120 -> 0 | C29: 0 | D29: ='MDOT FTA Detail'!O120 -> 0
A30: Section 5312 - Research, Development, Demonstration, and Deployment | B30: ='MDOT FTA Detail'!M121 -> 0 | C30: =D30-B30 -> 0 | D30: ='MDOT FTA Detail'!O121 -> 0
A31: Section 5313 - Transit Cooperative Research Program | B31: ='MDOT FTA Detail'!M122 -> 0 | C31: 0 | D31: ='MDOT FTA Detail'!O122 -> 0
A32: Section 5314 - Technical Assistance and Standards | B32: ='MDOT FTA Detail'!M123 -> 0 | C32: 0 | D32: ='MDOT FTA Detail'!O123 -> 0
A33: Section 5316 - Transit - Section 5316 - Job Access/Reverse Commute | B33: ='MDOT FTA Detail'!M124 -> 0 | C33: 0 | D33: ='MDOT FTA Detail'!O124 -> 0
A34: Section 5317 - Transit - Section 5317 - New Freedom Initiative | B34: ='MDOT FTA Detail'!M125 -> 0 | C34: 0 | D34: ='MDOT FTA Detail'!O125 -> 0
A35: Section 5320 - Alternative Transportation in Parks and Public Lands | B35: ='MDOT FTA Detail'!M126 -> 0 | C35: 0 | D35: ='MDOT FTA Detail'!O126 -> 0
A36: Section 5322 - Human Resources and Training | B36: ='MDOT FTA Detail'!M127 -> 0 | C36: =D36-B36 -> 0 | D36: ='MDOT FTA Detail'!O127 -> 0
A37: Section 5324 - Emergency Relief | B37: ='MDOT FTA Detail'!M128 -> 0 | C37: =D37-B37 -> 0 | D37: ='MDOT FTA Detail'!O128 -> 0
A38: Section 5326 - Asset Management Provisions | B38: ='MDOT FTA Detail'!M129 -> 0 | C38: =D38-B38 -> 0 | D38: ='MDOT FTA Detail'!O129 -> 0
A39: Section 5329 - Safety | B39: ='MDOT FTA Detail'!M130 -> 0 | C39: =D39-B39 -> 0 | D39: ='MDOT FTA Detail'!O130 -> 0
A40: Section 5337 - State of Good Repair Grants | B40: ='MDOT FTA Detail'!M131 -> 0 | C40: =D40-B40 -> 0 | D40: ='MDOT FTA Detail'!O131 -> 0
A41: Section 5339 - Bus and Bus Facilities | B41: ='MDOT FTA Detail'!M132 -> 74400 | C41: 18600 | D41: ='MDOT FTA Detail'!O132 -> 93000
A42: Section 5505 - University Transportation Centers Program | B42: ='MDOT FTA Detail'!M133 -> 0 | C42: 0 | D42: ='MDOT FTA Detail'!O133 -> 0
A43: Total Transit | B43: =SUM(B19:B42) -> 991461 | C43: =SUM(C19:C42) -> 1551905 | D43: =SUM(D19:D42) -> 2543366
A44: Grand Total | B44: =B43+B15 -> 15768173 | C44: =C43+C15 -> 3326933 | D44: =D43+D15 -> 19095106

Sheet Constraint
A1: 2013-06-03 | B1: 2017 | F1: 2018 | J1: 2019 | N1: 2020
A2: Highway Program | B2: Estimated Federal Revenue | C2: Estimated Non-Federal Revenue | D2: Estimated Total Revenue | E2: Total Proposed Commitments | F2: Estimated Federal Revenue | G2: Estimated Non-Federal Revenue | H2: Estimated Total Revenue | I2: Total Proposed Commitments | J2: Estimated Federal Revenue | K2: Estimated Non-Federal Revenue | L2: Estimated Total Revenue | M2: Total Proposed Commitments | N2: Estimated Federal Revenue | O2: Estimated Non-Federal Revenue | P2: Estimated Total Revenue | Q2: Total Proposed Commitments
A3: MDOT AC & M Program | C3: 469259 | D3: =E3 -> 469259 | E3: ='FY 2017'!D3 -> 469259 | H3: =G3 -> 0 | I3: ='FY 2018'!D3 -> 0 | L3: =K3 -> 0 | M3: ='FY 2019'!D3 -> 0 | P3: =O3 -> 0 | Q3: ='FY 2020'!D3 -> 0
A4: MDOT FA Program | B4: 4286774 | C4: 856470 | D4: =B4+C4 -> 5143244 | E4: ='FY 2017'!D4 -> 5143244 | F4: 20240471 | G4: 2256638 | H4: =F4+G4 -> 22497109 | I4: ='FY 2018'!D4 -> 22497109 | J4: 8103278 | K4: 1480237 | L4: =J4+K4 -> 9583515 | M4: ='FY 2019'!D4 -> 9583515 | N4: 13653712 | O4: 1570928 | P4: =N4+O4 -> 15224640 | Q4: ='FY 2020'!D4 -> 15224640
A5: Sub-Total MDOT | B5: =SUM(B3:B4) -> 4286774 | C5: =SUM(C3:C4) -> 1325729 | D5: =D3+D4 -> 5612503 | E5: ='FY 2017'!D5 -> 5612503 | F5: =SUM(F4) -> 20240471 | G5: =SUM(G3:G4) -> 2256638 | H5: =H3+H4 -> 22497109 | I5: ='FY 2018'!D5 -> 22497109 | J5: =SUM(J4) -> 8103278 | K5: =SUM(K3:K4) -> 1480237 | L5: =L3+L4 -> 9583515 | M5: ='FY 2019'!D5 -> 9583515 | N5: =SUM(N4) -> 13653712 | O5: =SUM(O3:O4) -> 1570928 | P5: =P3+P4 -> 15224640 | Q5: ='FY 2020'!D5 -> 15224640
A6: Local STP | B6: 871925 | C6: =Projects!O7+Projects!O8 -> 171798 | D6: =B6+C6 -> 1043723 | E6: ='FY 2017'!D6 -> 1015961 | F6: 871925 | G6: =216075+1000000 -> 1216075 | H6: =F6+G6 -> 2088000 | I6: ='FY 2018'!D6 -> 2088000 | J6: 871925 | K6: 245000 | L6: =J6+K6 -> 1116925 | M6: ='FY 2019'!D6 -> 1028597 | N6: 871925 | O6: 204100 | P6: =N6+O6 -> 1076025 | Q6: ='FY 2020'!D6 -> 1075100
A7: Local Bridge | B7: 864000 | C7: 216000 | D7: =B7+C7 -> 1080000 | E7: ='FY 2017'!D7 -> 1080000 | H7: =F7+G7 -> 0 | I7: ='FY 2018'!D7 -> 0 | L7: =J7+K7 -> 0 | M7: ='FY 2019'!D7 -> 0 | P7: =N7+O7 -> 0 | Q7: ='FY 2020'!D7 -> 0
A8: Local CMAQ | B8: 242000 | C8: 57500 | D8: =B8+C8 -> 299500 | E8: ='FY 2017'!D8 -> 299500 | F8: 276254 | G8: 0 | H8: 276254 | I8: ='FY 2018'!D8 -> 276254 | L8: 0 | M8: ='FY 2019'!D8 -> 0 | N8: =240000+12000 -> 252000 | P8: 252000 | Q8: ='FY 2020'!D8 -> 252000
A9: Local Safety | B9: 364504.5 | C9: 40500.5 | D9: 405005 | E9: ='FY 2017'!D9 -> 405005 | H9: 0 | I9: ='FY 2018'!D9 -> 0 | L9: 0 | M9: ='FY 2019'!D9 -> 0 | P9: 0 | Q9: ='FY 2020'!D9 -> 0
A10: Local Equity Bonus (TEDF) | D10: 0 | E10: ='FY 2017'!D10 -> 0 | H10: 0 | I10: ='FY 2018'!D10 -> 0 | L10: 0 | M10: ='FY 2019'!D10 -> 0 | P10: 0 | Q10: ='FY 2020'!D10 -> 0
A11: Local Other FHWA | D11: 0 | E11: ='FY 2017'!D11 -> 0 | H11: 0 | I11: ='FY 2018'!D11 -> 0 | L11: 0 | M11: ='FY 2019'!D11 -> 0 | P11: 0 | Q11: ='FY 2020'!D11 -> 0
A12: Local AC Starts | C12: =E12 -> 140597 | D12: =B12+C12 -> 140597 | E12: ='FY 2017'!D12 -> 140597 | H12: 0 | I12: ='FY 2018'!D12 -> 0 | L12: 0 | M12: ='FY 2019'!D12 -> 0 | P12: 0 | Q12: ='FY 2020'!D12 -> 0
A13: Local Non-Federal | C13: =E13 -> 62439 | D13: 62439 | E13: ='FY 2017'!D13 -> 62439 | H13: 0 | I13: ='FY 2018'!D13 -> 0 | L13: 0 | M13: ='FY 2019'!D13 -> 0 | P13: 0 | Q13: ='FY 2020'!D13 -> 0
A14: Sub-Total Local | B14: =SUM(B6:B11) -> 2342429.5 | C14: =SUM(C6:C13) -> 688834.5 | D14: =SUM(D6:D13) -> 3031264 | E14: 3003502 | F14: =SUM(F6:F11) -> 1148179 | G14: =SUM(G6:G13) -> 1216075 | H14: =SUM(H6:H13) -> 2364254 | I14: ='FY 2018'!D14 -> 2364254 | J14: =SUM(J6:J11) -> 871925 | K14: =SUM(K6:K13) -> 245000 | L14: =SUM(L6:L13) -> 1116925 | M14: ='FY 2019'!D14 -> 1028597 | N14: =SUM(N6:N11) -> 1123925 | O14: =SUM(O6:O13) -> 204100 | P14: =SUM(P6:P13) -> 1328025 | Q14: ='FY 2020'!D14 -> 1327100
A15: Total Highway | B15: =B14+B5 -> 6629203.5 | C15: =C14+C5 -> 2014563.5 | D15: 8643767 | E15: 8616005 | F15: =F14+F5 -> 21388650 | G15: =G14+G5 -> 3472713 | H15: =H14+H5 -> 24861363 | I15: ='FY 2018'!D15 -> 24861363 | J15: =J14+J5 -> 8975203 | K15: =K14+K5 -> 1725237 | L15: =L14+L5 -> 10700440 | M15: ='FY 2019'!D15 -> 10612112 | N15: =N14+N5 -> 14777637 | O15: =O14+O5 -> 1775028 | P15: =P14+P5 -> 16552665 | Q15: ='FY 2020'!D15 -> 16551740
A18: Transit Fund Source | B18: Estimated Federal Revenue | C18: Estimated Non-Federal Revenue | D18: Estimated Total Revenue | E18: Total Proposed Commitments | F18: Estimated Federal Revenue | G18: Estimated Non-Federal Revenue | H18: Estimated Total Revenue | I18: Total Proposed Commitments | J18: Estimated Federal Revenue | K18: Estimated Non-Federal Revenue | L18: Estimated Total Revenue | M18: Total Proposed Commitments | N18: Estimated Federal Revenue | O18: Estimated Non-Federal Revenue | P18: Estimated Total Revenue | Q18: Total Proposed Commitments
A19: CTF - Comprehensive Transit Fund | C19: 386040 | D19: =B19+C19 -> 386040 | E19: ='FY 2017'!D19 -> 386040 | G19: =397347+33000 -> 430347 | H19: =F19+G19 -> 430347 | I19: ='FY 2018'!D19 -> 430347 | K19: 386040 | L19: =J19+K19 -> 386040 | M19: ='FY 2019'!D19 -> 386040 | O19: 386040 | P19: =N19+O19 -> 386040 | Q19: ='FY 2020'!D19 -> 386040
A20: Section 3038 - Over the Road Bus Program | D20: =B20+C20 -> 0 | E20: ='FY 2017'!D20 -> 0 | H20: =F20+G20 -> 0 | I20: ='FY 2018'!D20 -> 0 | L20: =J20+K20 -> 0 | M20: ='FY 2019'!D20 -> 0 | P20: =N20+O20 -> 0 | Q20: ='FY 2020'!D20 -> 0
A21: Section 3045 - National Fuel Cell Technology Development Program | D21: =B21+C21 -> 0 | E21: ='FY 2017'!D21 -> 0 | H21: =F21+G21 -> 0 | I21: ='FY 2018'!D21 -> 0 | L21: =J21+K21 -> 0 | M21: ='FY 2019'!D21 -> 0 | P21: =N21+O21 -> 0 | Q21: ='FY 2020'!D21 -> 0
A22: Section 5303 - Metropolitan Transportation Planning | D22: 0 | E22: ='FY 2017'!D22 -> 0 | H22: 0 | I22: ='FY 2018'!D22 -> 0 | L22: 0 | M22: ='FY 2019'!D22 -> 0 | P22: 0 | Q22: ='FY 2020'!D22 -> 0
A23: Section 5304 - Statewide Transportation Planning | D23: 0 | E23: ='FY 2017'!D23 -> 0 | H23: 0 | I23: ='FY 2018'!D23 -> 0 | L23: 0 | M23: ='FY 2019'!D23 -> 0 | P23: 0 | Q23: ='FY 2020'!D23 -> 0
A24: Section 5305 - Metropolitan and Statewide Planning | D24: 0 | E24: ='FY 2017'!D24 -> 0 | H24: 0 | I24: ='FY 2018'!D24 -> 0 | L24: 0 | M24: ='FY 2019'!D24 -> 0 | P24: 0 | Q24: ='FY 2020'!D24 -> 0
A25: Section 5307 - UZA Formula | B25: 880123 | C25: =Projects!M39+Projects!M41+Projects!M31+Projects!M33+Projects!O31 -> 32100 | D25: 1970554 | E25: 1970554 | F25: 813836 | G25: 1082370 | H25: 1896206 | I25: ='FY 2018'!D25 -> 1896206 | J25: 816249 | K25: 1097681 | L25: 1913930 | M25: ='FY 2019'!D25 -> 1913930 | N25: 857061 | O25: 1132265 | P25: 1989326 | Q25: ='FY 2020'!D25 -> 1989326
A26: Section 5308 - Clean Fuels Program | D26: 0 | E26: ='FY 2017'!D26 -> 0 | H26: 0 | I26: ='FY 2018'!D26 -> 0 | L26: 0 | M26: ='FY 2019'!D26 -> 0 | P26: 0 | Q26: ='FY 2020'!D26 -> 0
A27: Section 5309 - Capital Bus and Capital New Starts | D27: 0 | E27: ='FY 2017'!D27 -> 0 | H27: 0 | I27: ='FY 2018'!D27 -> 0 | L27: 0 | M27: ='FY 2019'!D27 -> 0 | P27: 0 | Q27: ='FY 2020'!D27 -> 0
A28: Section 5310 - Elderly & Disabled | B28: 60000 | C28: 15000 | D28: 75000 | E28: ='FY 2017'!D28 -> 75000 | F28: 60000 | G28: 15000 | H28: 75000 | I28: ='FY 2018'!D28 -> 75000 | J28: 60000 | K28: 15000 | L28: 75000 | M28: ='FY 2019'!D28 -> 75000 | N28: 60000 | O28: 15000 | P28: 75000 | Q28: ='FY 2020'!D28 -> 75000
A29: Section 5311 - Non-UZA | D29: 0 | E29: ='FY 2017'!D29 -> 0 | H29: 0 | I29: ='FY 2018'!D29 -> 0 | L29: 0 | M29: ='FY 2019'!D29 -> 0 | P29: 0 | Q29: ='FY 2020'!D29 -> 0
A30: Section 5312 - Research, Development, Demonstration, and Deployment | D30: =B30+C30 -> 0 | E30: ='FY 2017'!D30 -> 0 | H30: =F30+G30 -> 0 | I30: ='FY 2018'!D30 -> 0 | L30: =J30+K30 -> 0 | M30: ='FY 2019'!D30 -> 0 | P30: =N30+O30 -> 0 | Q30: ='FY 2020'!D30 -> 0
A31: Section 5313 - Transit Cooperative Research Program | D31: 0 | E31: ='FY 2017'!D31 -> 0 | H31: 0 | I31: ='FY 2018'!D31 -> 0 | L31: 0 | M31: ='FY 2019'!D31 -> 0 | P31: 0 | Q31: ='FY 2020'!D31 -> 0
A32: Section 5314 - National Research and Technology Program | D32: 0 | E32: ='FY 2017'!D32 -> 0 | H32: 0 | I32: ='FY 2018'!D32 -> 0 | L32: 0 | M32: ='FY 2019'!D32 -> 0 | P32: 0 | Q32: ='FY 2020'!D32 -> 0
A33: Section 5316 - Job Access/Reverse Commute | D33: 0 | E33: ='FY 2017'!D33 -> 0 | H33: 0 | I33: ='FY 2018'!D33 -> 0 | L33: 0 | M33: ='FY 2019'!D33 -> 0 | P33: 0 | Q33: ='FY 2020'!D33 -> 0
A34: Section 5317 - New Freedom Initiative | D34: 0 | E34: ='FY 2017'!D34 -> 0 | H34: 0 | I34: ='FY 2018'!D34 -> 0 | L34: 0 | M34: ='FY 2019'!D34 -> 0 | P34: 0 | Q34: ='FY 2020'!D34 -> 0
A35: Section 5320 - Alternative Transportation in Parks and Public Lands | D35: 0 | E35: ='FY 2017'!D35 -> 0 | H35: 0 | I35: ='FY 2018'!D35 -> 0 | L35: 0 | M35: ='FY 2019'!D35 -> 0 | P35: 0 | Q35: ='FY 2020'!D35 -> 0
A36: Section 5322 - Human Resources and Training | D36: =B36+C36 -> 0 | E36: ='FY 2017'!D36 -> 0 | H36: =F36+G36 -> 0 | I36: ='FY 2018'!D36 -> 0 | L36: =J36+K36 -> 0 | M36: ='FY 2019'!D36 -> 0 | P36: =N36+O36 -> 0 | Q36: ='FY 2020'!D36 -> 0
A37: Section 5324 - Emergency Relief | D37: =B37+C37 -> 0 | E37: ='FY 2017'!D37 -> 0 | H37: =F37+G37 -> 0 | I37: ='FY 2018'!D37 -> 0 | L37: =J37+K37 -> 0 | M37: ='FY 2019'!D37 -> 0 | P37: =N37+O37 -> 0 | Q37: ='FY 2020'!D37 -> 0
A38: Section 5326 - Asset Management Provisions | D38: =B38+C38 -> 0 | E38: ='FY 2017'!D38 -> 0 | H38: =F38+G38 -> 0 | I38: ='FY 2018'!D38 -> 0 | L38: =J38+K38 -> 0 | M38: ='FY 2019'!D38 -> 0 | P38: =N38+O38 -> 0 | Q38: ='FY 2020'!D38 -> 0
A39: Section 5329 - Safety | D39: =B39+C39 -> 0 | E39: ='FY 2017'!D39 -> 0 | H39: =F39+G39 -> 0 | I39: ='FY 2018'!D39 -> 0 | L39: =J39+K39 -> 0 | M39: ='FY 2019'!D39 -> 0 | P39: =N39+O39 -> 0 | Q39: ='FY 2020'!D39 -> 0
A40: Section 5337 - State of Good Repair Grants | D40: =B40+C40 -> 0 | E40: ='FY 2017'!D40 -> 0 | H40: =F40+G40 -> 0 | I40: ='FY 2018'!D40 -> 0 | L40: =J40+K40 -> 0 | M40: ='FY 2019'!D40 -> 0 | P40: =N40+O40 -> 0 | Q40: ='FY 2020'!D40 -> 0
A41: Section 5339 - Bus and Bus Facilities | B41: 101947 | C41: 25486 | D41: 127433 | E41: ='FY 2017'!D41 -> 127433 | F41: 80000 | G41: 20000 | H41: 100000 | I41: ='FY 2018'!D41 -> 100000 | J41: 72000 | K41: 18000 | L41: 90000 | M41: ='FY 2019'!D41 -> 90000 | N41: 74400 | O41: 18600 | P41: 93000 | Q41: ='FY 2020'!D41 -> 93000
A42: Section 5505 - University Transportation Centers Program | D42: 0 | E42: ='FY 2017'!D42 -> 0 | H42: 0 | I42: ='FY 2018'!D42 -> 0 | L42: 0 | M42: ='FY 2019'!D42 -> 0 | P42: 0 | Q42: ='FY 2020'!D42 -> 0
A43: Total Transit | B43: =SUM(B19:B42) -> 1042070 | C43: 458626 | D43: 2559027 | E43: 2559027 | F43: 953836 | G43: 1547717 | H43: 2501553 | I43: ='FY 2018'!D43 -> 2501553 | J43: =SUM(J19:J42) -> 948249 | K43: =SUM(K19:K42) -> 1516721 | L43: =SUM(L19:L42) -> 2464970 | M43: ='FY 2019'!D43 -> 2464970 | N43: =SUM(N19:N42) -> 991461 | O43: =SUM(O19:O42) -> 1551905 | P43: =SUM(P19:P42) -> 2543366 | Q43: ='FY 2020'!D43 -> 2543366
A44: Grand Total | B44: =B43+B15 -> 7671273.5 | C44: =C43+C15 -> 2473189.5 | D44: =D43+D15 -> 11202794 | E44: =E15+E43 -> 11175032 | F44: =F43+F15 -> 22342486 | G44: =G43+G15 -> 5020430 | H44: =H43+H15 -> 27362916 | I44: ='FY 2018'!D44 -> 27362916 | J44: =J43+J15 -> 9923452 | K44: =K43+K15 -> 3241958 | L44: =L43+L15 -> 13165410 | M44: ='FY 2019'!D44 -> 13077082 | N44: =N43+N15 -> 15769098 | O44: =O43+O15 -> 3326933 | P44: =P43+P15 -> 19096031 | Q44: ='FY 2020'!D44 -> 19095106
A46: Federal STBG funding is being programed based on $871,925 per year, for all four years. . TwinCATS did not program funding based on any inflationary values.

Sheet FHWA GPA
A1: GPA Projects
A3: Required Fields | Z3: Optional Fields
A4: Fiscal Year | B4: County | C4: Respon-sible Agency | D4: Project Name | E4: Limits | F4: Length | G4: Primary Work Type | H4: Project Description | I4: Phase | J4: Advance Construct | K4: Federal Cost ($1000s) | L4: Federal Fund Source | M4: State Cost ($1000s) | N4: State Fund Source | O4: Local Cost ($1000s) | P4: Local Fund Source | Q4: Total Cost ($1000s) | R4: MDOT Job No. | S4: Local ID No. | T4: MPO/ Rural Approval Date | U4: Amend-ment Type | V4: Air Quality | W4: Comments | X4: Total Project Cost ($1000s) | Y4: x | Z4: Local Priority | AA4: EJ | AB4: Federal Approval Date | AC4: Capped Federal Cost ($1000s) | AD4: Date Obligated | AE4: Amount Obligated ($1000s) | AF4: Let Date | AG4: GPA

Sheet FTA GPA
A1: GPA Projects
A3: Required Fields | Z3: Optional Fields
A4: Fiscal Year | B4: County | C4: Respon-sible Agency | D4: Project Name | E4: Limits | F4: Length | G4: Primary Work Type | H4: Project Description | I4: Phase | J4: Advance Construct | K4: Federal Cost ($1000s) | L4: Federal Fund Source | M4: State Cost ($1000s) | N4: State Fund Source | O4: Local Cost ($1000s) | P4: Local Fund Source | Q4: Total Cost ($1000s) | R4: MDOT Job No. | S4: Local ID No. | T4: MPO/ Rural Approval Date | U4: Amend-ment Type | V4: Air Quality | W4: Comments | X4: Total Project Cost ($1000s) | Y4: x | Z4: Local Priority | AA4: EJ | AB4: Federal Approval Date | AC4: Capped Federal Cost ($1000s) | AD4: Date Obligated | AE4: Amount Obligated ($1000s) | AF4: Let Date

Sheet FTA Candidate Projects
A1: GPA Projects
A3: Required Fields | Z3: Optional Fields
A4: Fiscal Year | B4: County | C4: Respon-sible Agency | D4: Project Name | E4: Limits | F4: Length | G4: Primary Work Type | H4: Project Description | I4: Phase | J4: Advance Construct | K4: Federal Cost ($1000s) | L4: Federal Fund Source | M4: State Cost ($1000s) | N4: State Fund Source | O4: Local Cost ($1000s) | P4: Local Fund Source | Q4: Total Cost ($1000s) | R4: MDOT Job No. | S4: Local ID No. | T4: MPO/ Rural Approval Date | U4: Amend-ment Type | V4: Air Quality | W4: Comments | X4: Total Project Cost ($1000s) | Y4: x | Z4: Local Priority | AA4: EJ | AB4: Federal Approval Date | AC4: Capped Federal Cost ($1000s) | AD4: Date Obligated | AE4: Amount Obligated ($1000s) | AF4: Let Date

Sheet Illustrative
A1: Illustrative Projects
A3: Required Fields | Z3: Optional Fields
A4: Fiscal Year | B4: County | C4: Respon-sible Agency | D4: Project Name | E4: Limits | F4: Length | G4: Primary Work Type | H4: Project Description | I4: Phase | J4: Advance Construct | K4: Federal Cost ($1000s) | L4: Federal Fund Source | M4: State Cost ($1000s) | N4: State Fund Source | O4: Local Cost ($1000s) | P4: Local Fund Source | Q4: Total Cost ($1000s) | R4: MDOT Job No. | S4: Local ID No. | T4: MPO/ Rural Approval Date | U4: Amend-ment Type | V4: Air Quality | W4: Comments | X4: Total Project Cost ($1000s) | Y4: x | Z4: Local Priority | AA4: EJ | AB4: Federal Approval Date | AC4: Capped Federal Cost ($1000s) | AD4: Date Obligated | AE4: Amount Obligated ($1000s) | AF4: Let Date
A5: Illustrative | B5: BERRIEN | C5: Berrien County Road Commission | D5: Napier Avenue | E5: 4300 ft west of I-94 to M-139 | H5: Mill and Fill. ADA sidewalk upgrades as required. | I5: CON | K5: 160000 | L5: STUL | O5: 35000 | P5: CNTY | Q5: 195000 | X5: 195000
A6: Illustrative | B6: BERRIEN | C6: Berrien County Road Commission | D6: Napier Avenue | E6: 3700 ft. East of St. Joseph River to M-139 | H6: Mill and Fill. ADA sidewalk upgrades as required. | I6: CON | K6: 213000 | L6: STUL | O6: 47000 | P6: CNTY | Q6: 260000 | X6: 260000
A7: Illustrative | B7: BERRIEN | C7: City of St. Joseph | D7: Botham Avenue | E7: South State St to Niles Avenue (M-63) | H7: Full reconstruction of roadway with HMA or concrete pavement including curb and gutter, remove and replace ADA ramps as needed to meet current Standards. Repalce sidewalk, driveways storm sewer and sanitary sewer as needed. Water main to be rremoved and replaced as per 2016 Reliability Study including directional drill of water main or bore and jack under Niles Avenue. | I7: CON | K7: 247000 | L7: STUL | O7: 556000 | P7: CITY | Q7: 803000 | X7: 803000
A8: Illustrative | B8: BERRIEN | C8: Berrien County Road Commission | D8: John Beers Road | E8: Scottdale Road to M-139 | H8: Construct 5 foot wide paved shoulders and resurface. | I8: CON | K8: 409000 | L8: STUL | O8: 91000 | P8: CNTY | Q8: 500000 | X8: 500000
A9: Illustrative | B9: BERRIEN | C9: Berrien County Road Commission | D9: Glenlord Road | E9: Hollywood Road to M-63 | H9: Construct 5 foot wide paved shoulders and resurface. | I9: CON | K9: 303000 | L9: STUL | O9: 67000 | P9: CNTY | Q9: 370000 | X9: 370000
A10: Illustrative | B10: BERRIEN | C10: Berrien County Road Commission | D10: Marquette Woods Road | E10: Cleveland to Washington | H10: Widen shoulders to 6 feet paved, resurface existing HMA surface. Work includes extension of culverts. | I10: CON | K10: 475000 | L10: STUL | O10: 105330 | P10: TWP | Q10: 580330 | X10: 580330
A11: Illustrative | B11: BERRIEN | C11: City of Benton Harbor | D11: Pipestone Road | E11: Catalpa to Empire | H11: Full Mill and fill of roadway with HMA including remove and replace ADA ramps where necessary to comply with current ADA requirements, improvement of crosswalks, addition of bicycle lanes, and storm system improvements. The City intends to complete sanitary sewer and water system improvements concurrently based upon ongoing asset management studies. | I11: CON | K11: 261000 | L11: STUL | O11: 58000 | P11: CITY | Q11: 319000 | X11: 319000
A12: Illustrative | B12: BERRIEN | C12: City of Benton Harbor | D12: Pipestone Road | E12: Vineyard to Catalpa | H12: Full mill and fill of roadway with HMA including remove and replace ADA ramps where necessary to comply with current ADA requirements, improvement of crosswalks, addition of bicycle lanes, and storm system improvements. The City intends to complete sanitary sewer and water system improvements concurrently based upon ongoing asset management studies. | I12: CON | K12: 329000 | L12: STUL | O12: 73000 | P12: CITY | Q12: 402000 | X12: 402000
A13: Illustrative | B13: BERRIEN | C13: City of Benton Harbor | D13: Paw Paw Avenue | E13: Railroad to Frank; Rifford to Territorial | H13: Full Mill and fill of roadway with HMA including remove and replace ADA ramps where necessary to comply with current ADA requirements, improvement of crosswalks, addition of bicycle lanes, and storm system improvements. The City intends to complete sanitary sewer and water system improvements concurrently based upon ongoing asset management studies. | I13: CON | K13: 212000 | L13: STUL | O13: 39000 | P13: CITY | Q13: 251000 | X13: 251000
A14: Illustrative | B14: BERRIEN | C14: Village of Stevensville | D14: Red Arrow Highway | E14: North Village Limits to South Village Limits | H14: Milling 2"-3" of HMA Surface, placing geotextile fabric, place 3" HMA Surface, also expanding shoulder to minimum 6' width along east side of Red Arrow Highway from South Village limit to John Beers Road to facilitate bicycle/pedestrian traffic. Project to benefit efforts being made to extend bid path through Berrien County. | I14: CON | K14: 881288 | L14: STUL | O14: 220322 | P14: VLG | Q14: 1101610 | X14: 1101610
A15: Illustrative | B15: BERRIEN | C15: Berrien County Road Commission | D15: Shawnee Road | E15: Holden Road to Date Road | H15: Construct 5 foot wide paved shoulders and resurface. | I15: CON | K15: 405000 | L15: STUL | O15: 90000 | P15: CNTY | Q15: 495000 | X15: 495000
A16: Illustrative | B16: BERRIEN | C16: City of St. Joseph | D16: Wallace Avenue | E16: Lakeshore Drive (BL-94) to Lakeview Avenue | H16: Full reconstruction of roadway with HMA or concrete pavement including curb and gutter, remove and replace ADA ramps as needed to meet current standards. Add bike lanes or a non-motorized path (replacing sidewalk on one side of the street). Replace all city utilities including storm sewer, sanitary sewer and water main. Replace sidewalk and driveways as needed. The intent is to include replacement of watermain on Stadium Drive (not eligible for TIP funds) and widen sidewalk on east side of Stadium Drive. | I16: CON | K16: 488000 | L16: STUL | O16: 972500 | P16: CITY | Q16: 1460500 | X16: 1460500
A17: Illustrative | B17: BERRIEN | C17: City of Benton Harbor | D17: Pipestone Road | E17: Main to Vineyard | H17: Full mill and fill of roadway with HMA including remove and replace ADA ramps where necessary to comply with current ADA requirements, improvement of crosswalks, addition of bicycle lanes, and storm system improvements. The City intends to complete sanitary sewer and water system improvements concurrently based upon ongoing asset management studies. | I17: CON | K17: 346000 | L17: STUL | O17: 77000 | P17: CITY | Q17: 423000 | X17: 423000
A18: Illustrative | B18: BERRIEN | C18: City of St. Joseph | D18: Langley Avenue | E18: Pearl to Napier | H18: One course mill and resurfacing of Langley Ave. Replace sidewalk in need of repair and sidewalk ramps in order to meet AdA requirements. No utility work planned as part of this project. | I18: CON | K18: 398000 | L18: STUL | O18: 255000 | P18: CITY | Q18: 653000 | X18: 653000
A19: Illustrative | B19: BERRIEN | C19: City of St. Joseph | D19: State St | E19: Water St to Vine St | H19: One course mill and resurfacing of Water Street. Remove and replace adjacent non-motorized path with HMA | I19: CON | K19: 123000 | L19: STUL | O19: 454000 | P19: CITY | Q19: 577000 | X19: 577000
A20: Illustrative | B20: BERRIEN | C20: City of St. Joseph | D20: Upton Drive | E20: Virginia Ct. to N. Upton Dr. includes Marina Dr. Upton to W. Basin Marina. | H20: Full reconstruction of roadway with HMA or Concrete pavement inclduing curb and gutter, removal and replacement of ADA ramps to meet current standards. Add bike lanes, a non-motirzed path (replacing sidewalk on one side of the street or sharrows. Replace all City utilities including storm sewer, sanitary sewer and water main. Replace sidewalk and drive and driveway. | I20: CON | K20: 1000000 | L20: STUL | O20: 3000000 | P20: CITY | Q20: 4000000 | X20: 4000000
A21: Illustrative | B21: BERRIEN | C21: City of Benton Harbor | D21: Union St | E21: May to Donald Adkins | H21: Full mill and fill of roadway with HMA including remove and replace ADA ramps where necessary to comply with Ccurrent ADA requirements, improvements of crosswalks, additonal of icycle lanes, and storm system improvemnets. Th City intends to complete sanitary swere and water system improvements concurrently based upon ongoing asset mgt. studies. | I21: CON | K21: 279000 | L21: STUL | O21: 62000 | P21: CITY | Q21: 341000 | X21: 341000
A22: Illustrative | B22: BERRIEN | C22: City of Benton Harbor | D22: Union St | E22: Pipestone to May | H22: Full mill and fill of radway with HMA including remove and replac ADA ramps where necessary to comply with crrent ADA requirements, improvement of sidewalks | K22: 180000 | L22: STUL | O22: 40000 | P22: CITY | Q22: 220000 | X22: 220000
A23: Illustrative | B23: BERRIEN | C23: City of Benton Harbor | D23: Broadway Avenue | E23: Empire to Emery | H23: Full resurfacing/ mill and fill of roadway with HMA including removal and replacement of ADA ramps where necessary to comply with current ADA requirements, improvement of crosswalks, and storm system improvements. Resurfacing only from Empire to May. Mill and fill from May to Emery. The City intends to complete sanitary sewer and water system improvements concurrently based upon ongoing asset management studies. | K23: 285000 | L23: STUL | O23: 64000 | P23: CITY | Q23: 349000 | X23: 349000
A24: Illustrative | B24: Berrien | C24: City of St. Joseph | D24: Langley Avenue & Broad Street | E24: Pearl Street to Department of Public Works Entrance | F24: 0.25 | G24: Reconstruct | H24: Full reconstruction of roadway with HMA or concrete pavement including curb and gutter, remove and replace ADA ramps as needed to meet current standards, install new storm sewer and sanitary sewer. Replace sidewalk, driveways and water main as needed. This project is being undertaken as part of the City's ongoing combined sewer overflow (CSO) program and includes inline storage. | I24: CON | J24: AC | K24: 460000 | L24: STUL | O24: 210000 | P24: CITY | Q24: 670000 | R24: 130792 | T24: 2016-06-20 | V24: Exempt | W24: Added to TIP 6/20/16- Only TIP eligible cost is taken into account here. Total project cost, including sewer and water upgrades is $3,363,000. | X24: 670000

Sheet NonFHWA_NonFTA
A1: Non FHWA/FTA Projects FY 2014 - 2017 (Optional)
A2: 2013-01-02
A3: Required Fields | Z3: Optional Fields
A4: Fiscal Year | B4: County | C4: Respon-sible Agency | D4: Project Name | E4: Limits | F4: Length | G4: Primary Work Type | H4: Project Description | I4: Phase | J4: Advance Construct | K4: Federal Cost ($1000s) | L4: Federal Fund Source | M4: State Cost ($1000s) | N4: State Fund Source | O4: Local Cost ($1000s) | P4: Local Fund Source | Q4: Total Cost ($1000s) | R4: MDOT Job No. | S4: Local ID No. | T4: MPO/ Rural Approval Date | U4: Amend-ment Type | V4: Air Quality | W4: Comments | X4: Total Project Cost ($1000s) | Y4: x | Z4: Local Priority | AA4: EJ | AB4: Federal Approval Date | AC4: Capped Federal Cost ($1000s) | AD4: Date Obligated | AE4: Amount Obligated ($1000s) | AF4: Let Date

Sheet MDOT FTA Detail
B1: E-File v. 5.1 (01.15.15)
D3: 2017 | G3: 2018 | J3: 2019 | M3: 2020
A4: Fund | B4: Fund Sources | C4: MDOT | D4: Proposed Federal Commitments | E4: Proposed Non-Federal Commitments | F4: Total Proposed Commitments | G4: Proposed Federal Commitments | H4: Proposed Non-Federal Commitments | I4: Total Proposed Commitments | J4: Proposed Federal Commitments | K4: Proposed Non-Federal Commitments | L4: Total Proposed Commitments | M4: Proposed Federal Commitments | N4: Proposed Non-Federal Commitments | O4: Total Proposed Commitments
A6: BHI | B6: Bridge Rehabilitation - Prior 1991 - Interstate | C6: MDOT FA | D6: =SUMPRODUCT((Projects!$A$5:$A$2426='MDOT FTA Detail'!$D$3)*(Projects!$C$5:$C$2426='MDOT FTA Detail'!$C$4)*(Projects!$L$5:$L$2426='MDOT FTA Detail'!$A6)*(Projects!$J$5:$J$2426<>'MDOT FTA Detail'!$A$171)*(Projects!$K$5:K$2426)) -> 0 | E6: =F6-D6 -> 0 | F6: =SUMPRODUCT((Projects!$A$5:$A$2426='MDOT FTA Detail'!$D$3)*(Projects!$C$5:$C$2426='MDOT FTA Detail'!$C$4)*(Projects!$L$5:$L$2426='MDOT FTA Detail'!$A6)*(Projects!$J$5:$J$2426<>'MDOT FTA Detail'!$A$171)*(Projects!$Q$5:Q$2426)) -> 0 | G6: =SUMPRODUCT((Projects!$A$5:$A$2426='MDOT FTA Detail'!$G$3)*(Projects!$C$5:$C$2426='MDOT FTA Detail'!$C$4)*(Projects!$L$5:$L$2426='MDOT FTA Detail'!$A6)*(Projects!$J$5:$J$2426<>'MDOT FTA Detail'!$A$171)*(Projects!$K$5:K$2426)) -> 0 | H6: =I6-G6 -> 0 | I6: =SUMPRODUCT((Projects!$A$5:$A$2426='MDOT FTA Detail'!$G$3)*(Projects!$C$5:$C$2426='MDOT FTA Detail'!$C$4)*(Projects!$L$5:$L$2426='MDOT FTA Detail'!$A6)*(Projects!$J$5:$J$2426<>'MDOT FTA Detail'!$A$171)*(Projects!$Q$5:Q$2426)) -> 0 | J6: =SUMPRODUCT((Projects!$A$5:$A$2426='MDOT FTA Detail'!$J$3)*(Projects!$C$5:$C$2426='MDOT FTA Detail'!$C$4)*(Projects!$L$5:$L$2426='MDOT FTA Detail'!$A6)*(Projects!$J$5:$J$2426<>'MDOT FTA Detail'!$A$171)*(Projects!$K$5:$K$2426)) -> 0 | K6: =L6-J6 -> 0 | L6: =SUMPRODUCT((Projects!$A$5:$A$2426='MDOT FTA Detail'!$J$3)*(Projects!$C$5:$C$2426='MDOT FTA Detail'!$C$4)*(Projects!$L$5:$L$2426='MDOT FTA Detail'!$A6)*(Projects!$J$5:$J$2426<>'MDOT FTA Detail'!$A$171)*(Projects!$Q$5:$Q$2426)) -> 0 | M6: =SUMPRODUCT((Projects!$A$5:$A$2426='MDOT FTA Detail'!$M$3)*(Projects!$C$5:$C$2426='MDOT FTA Detail'!$C$4)*(Projects!$L$5:$L$2426='MDOT FTA Detail'!$A6)*(Projects!$J$5:$J$2426<>'MDOT FTA Detail'!$A$171)*(Projects!$K$5:$K$2426)) -> 0 | N6: =O6-M6 -> 0 | O6: =SUMPRODUCT((Projects!$A$5:$A$2426='MDOT FTA Detail'!$M$3)*(Projects!$C$5:$C$2426='MDOT FTA Detail'!$C$4)*(Projects!$L$5:$L$2426='MDOT FTA Detail'!$A6)*(Projects!$J$5:$J$2426<>'MDOT FTA Detail'!$A$171)*(Projects!$Q$5:$Q$2426)) -> 0
A7: BHN | B7: Bridge Rehabilitation - National Highway System (NHS) | C7: MDOT FA | D7: =SUMPRODUCT((Projects!$A$5:$A$2426='MDOT FTA Detail'!$D$3)*(Projects!$C$5:$C$2426='MDOT FTA Detail'!$C$4)*(Projects!$L$5:$L$2426='MDOT FTA Detail'!$A7)*(Projects!$J$5:$J$2426<>'MDOT FTA Detail'!$A$171)*(Projects!$K$5:K$2426)) -> 0 | E7: 0 | F7: =SUMPRODUCT((Projects!$A$5:$A$2426='MDOT FTA Detail'!$D$3)*(Projects!$C$5:$C$2426='MDOT FTA Detail'!$C$4)*(Projects!$L$5:$L$2426='MDOT FTA Detail'!$A7)*(Projects!$J$5:$J$2426<>'MDOT FTA Detail'!$A$171)*(Projects!$Q$5:Q$2426)) -> 0 | G7: =SUMPRODUCT((Projects!$A$5:$A$2426='MDOT FTA Detail'!$G$3)*(Projects!$C$5:$C$2426='MDOT FTA Detail'!$C$4)*(Projects!$L$5:$L$2426='MDOT FTA Detail'!$A7)*(Projects!$J$5:$J$2426<>'MDOT FTA Detail'!$A$171)*(Projects!$K$5:K$2426)) -> 0 | H7: 0 | I7: =SUMPRODUCT((Projects!$A$5:$A$2426='MDOT FTA Detail'!$G$3)*(Projects!$C$5:$C$2426='MDOT FTA Detail'!$C$4)*(Projects!$L$5:$L$2426='MDOT FTA Detail'!$A7)*(Projects!$J$5:$J$2426<>'MDOT FTA Detail'!$A$171)*(Projects!$Q$5:Q$2426)) -> 0 | J7: =SUMPRODUCT((Projects!$A$5:$A$2426='MDOT FTA Detail'!$J$3)*(Projects!$C$5:$C$2426='MDOT FTA Detail'!$C$4)*(Projects!$L$5:$L$2426='MDOT FTA Detail'!$A7)*(Projects!$J$5:$J$2426<>'MDOT FTA Detail'!$A$171)*(Projects!$K$5:$K$2426)) -> 0 | K7: 0 | L7: =SUMPRODUCT((Projects!$A$5:$A$2426='MDOT FTA Detail'!$J$3)*(Projects!$C$5:$C$2426='MDOT FTA Detail'!$C$4)*(Projects!$L$5:$L$2426='MDOT FTA Detail'!$A7)*(Projects!$J$5:$J$2426<>'MDOT FTA Detail'!$A$171)*(Projects!$Q$5:$Q$2426)) -> 0 | M7: =SUMPRODUCT((Projects!$A$5:$A$2426='MDOT FTA Detail'!$M$3)*(Projects!$C$5:$C$2426='MDOT FTA Detail'!$C$4)*(Projects!$L$5:$L$2426='MDOT FTA Detail'!$A7)*(Projects!$J$5:$J$2426<>'MDOT FTA Detail'!$A$171)*(Projects!$K$5:$K$2426)) -> 0 | N7: 0 | O7: =SUMPRODUCT((Projects!$A$5:$A$2426='MDOT FTA Detail'!$M$3)*(Projects!$C$5:$C$2426='MDOT FTA Detail'!$C$4)*(Projects!$L$5:$L$2426='MDOT FTA Detail'!$A7)*(Projects!$J$5:$J$2426<>'MDOT FTA Detail'!$A$171)*(Projects!$Q$5:$Q$2426)) -> 0
A8: BHO | B8: Bridge Rehabilitation - Not Classified, Off System | C8: MDOT FA | D8: =SUMPRODUCT((Projects!$A$5:$A$2426='MDOT FTA Detail'!$D$3)*(Projects!$C$5:$C$2426='MDOT FTA Detail'!$C$4)*(Projects!$L$5:$L$2426='MDOT FTA Detail'!$A8)*(Projects!$J$5:$J$2426<>'MDOT FTA Detail'!$A$171)*(Projects!$K$5:K$2426)) -> 0 | E8: 0 | F8: =SUMPRODUCT((Projects!$A$5:$A$2426='MDOT FTA Detail'!$D$3)*(Projects!$C$5:$C$2426='MDOT FTA Detail'!$C$4)*(Projects!$L$5:$L$2426='MDOT FTA Detail'!$A8)*(Projects!$J$5:$J$2426<>'MDOT FTA Detail'!$A$171)*(Projects!$Q$5:Q$2426)) -> 0 | G8: =SUMPRODUCT((Projects!$A$5:$A$2426='MDOT FTA Detail'!$G$3)*(Projects!$C$5:$C$2426='MDOT FTA Detail'!$C$4)*(Projects!$L$5:$L$2426='MDOT FTA Detail'!$A8)*(Projects!$J$5:$J$2426<>'MDOT FTA Detail'!$A$171)*(Projects!$K$5:K$2426)) -> 0 | H8: 0 | I8: =SUMPRODUCT((Projects!$A$5:$A$2426='MDOT FTA Detail'!$G$3)*(Projects!$C$5:$C$2426='MDOT FTA Detail'!$C$4)*(Projects!$L$5:$L$2426='MDOT FTA Detail'!$A8)*(Projects!$J$5:$J$2426<>'MDOT FTA Detail'!$A$171)*(Projects!$Q$5:Q$2426)) -> 0 | J8: =SUMPRODUCT((Projects!$A$5:$A$2426='MDOT FTA Detail'!$J$3)*(Projects!$C$5:$C$2426='MDOT FTA Detail'!$C$4)*(Projects!$L$5:$L$2426='MDOT FTA Detail'!$A8)*(Projects!$J$5:$J$2426<>'MDOT FTA Detail'!$A$171)*(Projects!$K$5:$K$2426)) -> 0 | K8: 0 | L8: =SUMPRODUCT((Projects!$A$5:$A$2426='MDOT FTA Detail'!$J$3)*(Projects!$C$5:$C$2426='MDOT FTA Detail'!$C$4)*(Projects!$L$5:$L$2426='MDOT FTA Detail'!$A8)*(Projects!$J$5:$J$2426<>'MDOT FTA Detail'!$A$171)*(Projects!$Q$5:$Q$2426)) -> 0 | M8: =SUMPRODUCT((Projects!$A$5:$A$2426='MDOT FTA Detail'!$M$3)*(Projects!$C$5:$C$2426='MDOT FTA Detail'!$C$4)*(Projects!$L$5:$L$2426='MDOT FTA Detail'!$A8)*(Projects!$J$5:$J$2426<>'MDOT FTA Detail'!$A$171)*(Projects!$K$5:$K$2426)) -> 0 | N8: 0 | O8: =SUMPRODUCT((Projects!$A$5:$A$2426='MDOT FTA Detail'!$M$3)*(Projects!$C$5:$C$2426='MDOT FTA Detail'!$C$4)*(Projects!$L$5:$L$2426='MDOT FTA Detail'!$A8)*(Projects!$J$5:$J$2426<>'MDOT FTA Detail'!$A$171)*(Projects!$Q$5:$Q$2426)) -> 0
A9: BHT | B9: Bridge Rehabilitation - Surface Transportation Program (STP) | C9: MDOT FA | D9: =SUMPRODUCT((Projects!$A$5:$A$2426='MDOT FTA Detail'!$D$3)*(Projects!$C$5:$C$2426='MDOT FTA Detail'!$C$4)*(Projects!$L$5:$L$2426='MDOT FTA Detail'!$A9)*(Projects!$J$5:$J$2426<>'MDOT FTA Detail'!$A$171)*(Projects!$K$5:K$2426)) -> 0 | E9: 0 | F9: =SUMPRODUCT((Projects!$A$5:$A$2426='MDOT FTA Detail'!$D$3)*(Projects!$C$5:$C$2426='MDOT FTA Detail'!$C$4)*(Projects!$L$5:$L$2426='MDOT FTA Detail'!$A9)*(Projects!$J$5:$J$2426<>'MDOT FTA Detail'!$A$171)*(Projects!$Q$5:Q$2426)) -> 0 | G9: =SUMPRODUCT((Projects!$A$5:$A$2426='MDOT FTA Detail'!$G$3)*(Projects!$C$5:$C$2426='MDOT FTA Detail'!$C$4)*(Projects!$L$5:$L$2426='MDOT FTA Detail'!$A9)*(Projects!$J$5:$J$2426<>'MDOT FTA Detail'!$A$171)*(Projects!$K$5:K$2426)) -> 0 | H9: 0 | I9: =SUMPRODUCT((Projects!$A$5:$A$2426='MDOT FTA Detail'!$G$3)*(Projects!$C$5:$C$2426='MDOT FTA Detail'!$C$4)*(Projects!$L$5:$L$2426='MDOT FTA Detail'!$A9)*(Projects!$J$5:$J$2426<>'MDOT FTA Detail'!$A$171)*(Projects!$Q$5:Q$2426)) -> 0 | J9: =SUMPRODUCT((Projects!$A$5:$A$2426='MDOT FTA Detail'!$J$3)*(Projects!$C$5:$C$2426='MDOT FTA Detail'!$C$4)*(Projects!$L$5:$L$2426='MDOT FTA Detail'!$A9)*(Projects!$J$5:$J$2426<>'MDOT FTA Detail'!$A$171)*(Projects!$K$5:$K$2426)) -> 0 | K9: 0 | L9: =SUMPRODUCT((Projects!$A$5:$A$2426='MDOT FTA Detail'!$J$3)*(Projects!$C$5:$C$2426='MDOT FTA Detail'!$C$4)*(Projects!$L$5:$L$2426='MDOT FTA Detail'!$A9)*(Projects!$J$5:$J$2426<>'MDOT FTA Detail'!$A$171)*(Projects!$Q$5:$Q$2426)) -> 0 | M9: =SUMPRODUCT((Projects!$A$5:$A$2426='MDOT FTA Detail'!$M$3)*(Projects!$C$5:$C$2426='MDOT FTA Detail'!$C$4)*(Projects!$L$5:$L$2426='MDOT FTA Detail'!$A9)*(Projects!$J$5:$J$2426<>'MDOT FTA Detail'!$A$171)*(Projects!$K$5:$K$2426)) -> 0 | N9: 0 | O9: =SUMPRODUCT((Projects!$A$5:$A$2426='MDOT FTA Detail'!$M$3)*(Projects!$C$5:$C$2426='MDOT FTA Detail'!$C$4)*(Projects!$L$5:$L$2426='MDOT FTA Detail'!$A9)*(Projects!$J$5:$J$2426<>'MDOT FTA Detail'!$A$171)*(Projects!$Q$5:$Q$2426)) -> 0
A10: BI08 | B10: Build Michigan FY08 | C10: MDOT FA | D10: =SUMPRODUCT((Projects!$A$5:$A$2426='MDOT FTA Detail'!$D$3)*(Projects!$C$5:$C$2426='MDOT FTA Detail'!$C$4)*(Projects!$L$5:$L$2426='MDOT FTA Detail'!$A10)*(Projects!$J$5:$J$2426<>'MDOT FTA Detail'!$A$171)*(Projects!$K$5:K$2426)) -> 0 | E10: 0 | F10: =SUMPRODUCT((Projects!$A$5:$A$2426='MDOT FTA Detail'!$D$3)*(Projects!$C$5:$C$2426='MDOT FTA Detail'!$C$4)*(Projects!$L$5:$L$2426='MDOT FTA Detail'!$A10)*(Projects!$J$5:$J$2426<>'MDOT FTA Detail'!$A$171)*(Projects!$Q$5:Q$2426)) -> 0 | G10: =SUMPRODUCT((Projects!$A$5:$A$2426='MDOT FTA Detail'!$G$3)*(Projects!$C$5:$C$2426='MDOT FTA Detail'!$C$4)*(Projects!$L$5:$L$2426='MDOT FTA Detail'!$A10)*(Projects!$J$5:$J$2426<>'MDOT FTA Detail'!$A$171)*(Projects!$K$5:K$2426)) -> 0 | H10: 0 | I10: =SUMPRODUCT((Projects!$A$5:$A$2426='MDOT FTA Detail'!$G$3)*(Projects!$C$5:$C$2426='MDOT FTA Detail'!$C$4)*(Projects!$L$5:$L$2426='MDOT FTA Detail'!$A10)*(Projects!$J$5:$J$2426<>'MDOT FTA Detail'!$A$171)*(Projects!$Q$5:Q$2426)) -> 0 | J10: =SUMPRODUCT((Projects!$A$5:$A$2426='MDOT FTA Detail'!$J$3)*(Projects!$C$5:$C$2426='MDOT FTA Detail'!$C$4)*(Projects!$L$5:$L$2426='MDOT FTA Detail'!$A10)*(Projects!$J$5:$J$2426<>'MDOT FTA Detail'!$A$171)*(Projects!$K$5:$K$2426)) -> 0 | K10: 0 | L10: =SUMPRODUCT((Projects!$A$5:$A$2426='MDOT FTA Detail'!$J$3)*(Projects!$C$5:$C$2426='MDOT FTA Detail'!$C$4)*(Projects!$L$5:$L$2426='MDOT FTA Detail'!$A10)*(Projects!$J$5:$J$2426<>'MDOT FTA Detail'!$A$171)*(Projects!$Q$5:$Q$2426)) -> 0 | M10: =SUMPRODUCT((Projects!$A$5:$A$2426='MDOT FTA Detail'!$M$3)*(Projects!$C$5:$C$2426='MDOT FTA Detail'!$C$4)*(Projects!$L$5:$L$2426='MDOT FTA Detail'!$A10)*(Projects!$J$5:$J$2426<>'MDOT FTA Detail'!$A$171)*(Projects!$K$5:$K$2426)) -> 0 | N10: 0 | O10: =SUMPRODUCT((Projects!$A$5:$A$2426='MDOT FTA Detail'!$M$3)*(Projects!$C$5:$C$2426='MDOT FTA Detail'!$C$4)*(Projects!$L$5:$L$2426='MDOT FTA Detail'!$A10)*(Projects!$J$5:$J$2426<>'MDOT FTA Detail'!$A$171)*(Projects!$Q$5:$Q$2426)) -> 0
A11: BO | B11: Bridge Not Classified Off System | C11: MDOT FA | D11: =SUMPRODUCT((Projects!$A$5:$A$2426='MDOT FTA Detail'!$D$3)*(Projects!$C$5:$C$2426='MDOT FTA Detail'!$C$4)*(Projects!$L$5:$L$2426='MDOT FTA Detail'!$A11)*(Projects!$J$5:$J$2426<>'MDOT FTA Detail'!$A$171)*(Projects!$K$5:K$2426)) -> 0 | E11: =F11-D11 -> 0 | F11: =SUMPRODUCT((Projects!$A$5:$A$2426='MDOT FTA Detail'!$D$3)*(Projects!$C$5:$C$2426='MDOT FTA Detail'!$C$4)*(Projects!$L$5:$L$2426='MDOT FTA Detail'!$A11)*(Projects!$J$5:$J$2426<>'MDOT FTA Detail'!$A$171)*(Projects!$Q$5:Q$2426)) -> 0 | G11: =SUMPRODUCT((Projects!$A$5:$A$2426='MDOT FTA Detail'!$G$3)*(Projects!$C$5:$C$2426='MDOT FTA Detail'!$C$4)*(Projects!$L$5:$L$2426='MDOT FTA Detail'!$A11)*(Projects!$J$5:$J$2426<>'MDOT FTA Detail'!$A$171)*(Projects!$K$5:K$2426)) -> 0 | H11: =I11-G11 -> 0 | I11: =SUMPRODUCT((Projects!$A$5:$A$2426='MDOT FTA Detail'!$G$3)*(Projects!$C$5:$C$2426='MDOT FTA Detail'!$C$4)*(Projects!$L$5:$L$2426='MDOT FTA Detail'!$A11)*(Projects!$J$5:$J$2426<>'MDOT FTA Detail'!$A$171)*(Projects!$Q$5:Q$2426)) -> 0 | J11: =SUMPRODUCT((Projects!$A$5:$A$2426='MDOT FTA Detail'!$J$3)*(Projects!$C$5:$C$2426='MDOT FTA Detail'!$C$4)*(Projects!$L$5:$L$2426='MDOT FTA Detail'!$A11)*(Projects!$J$5:$J$2426<>'MDOT FTA Detail'!$A$171)*(Projects!$K$5:$K$2426)) -> 0 | K11: =L11-J11 -> 0 | L11: =SUMPRODUCT((Projects!$A$5:$A$2426='MDOT FTA Detail'!$J$3)*(Projects!$C$5:$C$2426='MDOT FTA Detail'!$C$4)*(Projects!$L$5:$L$2426='MDOT FTA Detail'!$A11)*(Projects!$J$5:$J$2426<>'MDOT FTA Detail'!$A$171)*(Projects!$Q$5:$Q$2426)) -> 0 | M11: =SUMPRODUCT((Projects!$A$5:$A$2426='MDOT FTA Detail'!$M$3)*(Projects!$C$5:$C$2426='MDOT FTA Detail'!$C$4)*(Projects!$L$5:$L$2426='MDOT FTA Detail'!$A11)*(Projects!$J$5:$J$2426<>'MDOT FTA Detail'!$A$171)*(Projects!$K$5:$K$2426)) -> 0 | N11: =O11-M11 -> 0 | O11: =SUMPRODUCT((Projects!$A$5:$A$2426='MDOT FTA Detail'!$M$3)*(Projects!$C$5:$C$2426='MDOT FTA Detail'!$C$4)*(Projects!$L$5:$L$2426='MDOT FTA Detail'!$A11)*(Projects!$J$5:$J$2426<>'MDOT FTA Detail'!$A$171)*(Projects!$Q$5:$Q$2426)) -> 0
A12: BOWD | B12: Business Opportunity & Workforce Development Center | C12: MDOT FA | D12: =SUMPRODUCT((Projects!$A$5:$A$2426='MDOT FTA Detail'!$D$3)*(Projects!$C$5:$C$2426='MDOT FTA Detail'!$C$4)*(Projects!$L$5:$L$2426='MDOT FTA Detail'!$A12)*(Projects!$J$5:$J$2426<>'MDOT FTA Detail'!$A$171)*(Projects!$K$5:K$2426)) -> 0 | E12: 0 | F12: =SUMPRODUCT((Projects!$A$5:$A$2426='MDOT FTA Detail'!$D$3)*(Projects!$C$5:$C$2426='MDOT FTA Detail'!$C$4)*(Projects!$L$5:$L$2426='MDOT FTA Detail'!$A12)*(Projects!$J$5:$J$2426<>'MDOT FTA Detail'!$A$171)*(Projects!$Q$5:Q$2426)) -> 0 | G12: =SUMPRODUCT((Projects!$A$5:$A$2426='MDOT FTA Detail'!$G$3)*(Projects!$C$5:$C$2426='MDOT FTA Detail'!$C$4)*(Projects!$L$5:$L$2426='MDOT FTA Detail'!$A12)*(Projects!$J$5:$J$2426<>'MDOT FTA Detail'!$A$171)*(Projects!$K$5:K$2426)) -> 0 | H12: 0 | I12: =SUMPRODUCT((Projects!$A$5:$A$2426='MDOT FTA Detail'!$G$3)*(Projects!$C$5:$C$2426='MDOT FTA Detail'!$C$4)*(Projects!$L$5:$L$2426='MDOT FTA Detail'!$A12)*(Projects!$J$5:$J$2426<>'MDOT FTA Detail'!$A$171)*(Projects!$Q$5:Q$2426)) -> 0 | J12: =SUMPRODUCT((Projects!$A$5:$A$2426='MDOT FTA Detail'!$J$3)*(Projects!$C$5:$C$2426='MDOT FTA Detail'!$C$4)*(Projects!$L$5:$L$2426='MDOT FTA Detail'!$A12)*(Projects!$J$5:$J$2426<>'MDOT FTA Detail'!$A$171)*(Projects!$K$5:$K$2426)) -> 0 | K12: 0 | L12: =SUMPRODUCT((Projects!$A$5:$A$2426='MDOT FTA Detail'!$J$3)*(Projects!$C$5:$C$2426='MDOT FTA Detail'!$C$4)*(Projects!$L$5:$L$2426='MDOT FTA Detail'!$A12)*(Projects!$J$5:$J$2426<>'MDOT FTA Detail'!$A$171)*(Projects!$Q$5:$Q$2426)) -> 0 | M12: =SUMPRODUCT((Projects!$A$5:$A$2426='MDOT FTA Detail'!$M$3)*(Projects!$C$5:$C$2426='MDOT FTA Detail'!$C$4)*(Projects!$L$5:$L$2426='MDOT FTA Detail'!$A12)*(Projects!$J$5:$J$2426<>'MDOT FTA Detail'!$A$171)*(Projects!$K$5:$K$2426)) -> 0 | N12: 0 | O12: =SUMPRODUCT((Projects!$A$5:$A$2426='MDOT FTA Detail'!$M$3)*(Projects!$C$5:$C$2426='MDOT FTA Detail'!$C$4)*(Projects!$L$5:$L$2426='MDOT FTA Detail'!$A12)*(Projects!$J$5:$J$2426<>'MDOT FTA Detail'!$A$171)*(Projects!$Q$5:$Q$2426)) -> 0
A13: BRI | B13: Bridge Replacement - Pre 1991 Interstate | C13: MDOT FA | D13: =SUMPRODUCT((Projects!$A$5:$A$2426='MDOT FTA Detail'!$D$3)*(Projects!$C$5:$C$2426='MDOT FTA Detail'!$C$4)*(Projects!$L$5:$L$2426='MDOT FTA Detail'!$A13)*(Projects!$J$5:$J$2426<>'MDOT FTA Detail'!$A$171)*(Projects!$K$5:K$2426)) -> 0 | E13: 0 | F13: =SUMPRODUCT((Projects!$A$5:$A$2426='MDOT FTA Detail'!$D$3)*(Projects!$C$5:$C$2426='MDOT FTA Detail'!$C$4)*(Projects!$L$5:$L$2426='MDOT FTA Detail'!$A13)*(Projects!$J$5:$J$2426<>'MDOT FTA Detail'!$A$171)*(Projects!$Q$5:Q$2426)) -> 0 | G13: =SUMPRODUCT((Projects!$A$5:$A$2426='MDOT FTA Detail'!$G$3)*(Projects!$C$5:$C$2426='MDOT FTA Detail'!$C$4)*(Projects!$L$5:$L$2426='MDOT FTA Detail'!$A13)*(Projects!$J$5:$J$2426<>'MDOT FTA Detail'!$A$171)*(Projects!$K$5:K$2426)) -> 4135701 | H13: 459522 | I13: =SUMPRODUCT((Projects!$A$5:$A$2426='MDOT FTA Detail'!$G$3)*(Projects!$C$5:$C$2426='MDOT FTA Detail'!$C$4)*(Projects!$L$5:$L$2426='MDOT FTA Detail'!$A13)*(Projects!$J$5:$J$2426<>'MDOT FTA Detail'!$A$171)*(Projects!$Q$5:Q$2426)) -> 4595223 | J13: =SUMPRODUCT((Projects!$A$5:$A$2426='MDOT FTA Detail'!$J$3)*(Projects!$C$5:$C$2426='MDOT FTA Detail'!$C$4)*(Projects!$L$5:$L$2426='MDOT FTA Detail'!$A13)*(Projects!$J$5:$J$2426<>'MDOT FTA Detail'!$A$171)*(Projects!$K$5:$K$2426)) -> 0 | K13: 0 | L13: =SUMPRODUCT((Projects!$A$5:$A$2426='MDOT FTA Detail'!$J$3)*(Projects!$C$5:$C$2426='MDOT FTA Detail'!$C$4)*(Projects!$L$5:$L$2426='MDOT FTA Detail'!$A13)*(Projects!$J$5:$J$2426<>'MDOT FTA Detail'!$A$171)*(Projects!$Q$5:$Q$2426)) -> 0 | M13: =SUMPRODUCT((Projects!$A$5:$A$2426='MDOT FTA Detail'!$M$3)*(Projects!$C$5:$C$2426='MDOT FTA Detail'!$C$4)*(Projects!$L$5:$L$2426='MDOT FTA Detail'!$A13)*(Projects!$J$5:$J$2426<>'MDOT FTA Detail'!$A$171)*(Projects!$K$5:$K$2426)) -> 0 | N13: 0 | O13: =SUMPRODUCT((Projects!$A$5:$A$2426='MDOT FTA Detail'!$M$3)*(Projects!$C$5:$C$2426='MDOT FTA Detail'!$C$4)*(Projects!$L$5:$L$2426='MDOT FTA Detail'!$A13)*(Projects!$J$5:$J$2426<>'MDOT FTA Detail'!$A$171)*(Projects!$Q$5:$Q$2426)) -> 0
A14: BRN | B14: Bridge Replacement - National Highway System (NHS) | C14: MDOT FA | D14: =SUMPRODUCT((Projects!$A$5:$A$2426='MDOT FTA Detail'!$D$3)*(Projects!$C$5:$C$2426='MDOT FTA Detail'!$C$4)*(Projects!$L$5:$L$2426='MDOT FTA Detail'!$A14)*(Projects!$J$5:$J$2426<>'MDOT FTA Detail'!$A$171)*(Projects!$K$5:K$2426)) -> 0 | E14: 0 | F14: =SUMPRODUCT((Projects!$A$5:$A$2426='MDOT FTA Detail'!$D$3)*(Projects!$C$5:$C$2426='MDOT FTA Detail'!$C$4)*(Projects!$L$5:$L$2426='MDOT FTA Detail'!$A14)*(Projects!$J$5:$J$2426<>'MDOT FTA Detail'!$A$171)*(Projects!$Q$5:Q$2426)) -> 0 | G14: =SUMPRODUCT((Projects!$A$5:$A$2426='MDOT FTA Detail'!$G$3)*(Projects!$C$5:$C$2426='MDOT FTA Detail'!$C$4)*(Projects!$L$5:$L$2426='MDOT FTA Detail'!$A14)*(Projects!$J$5:$J$2426<>'MDOT FTA Detail'!$A$171)*(Projects!$K$5:K$2426)) -> 0 | H14: 0 | I14: =SUMPRODUCT((Projects!$A$5:$A$2426='MDOT FTA Detail'!$G$3)*(Projects!$C$5:$C$2426='MDOT FTA Detail'!$C$4)*(Projects!$L$5:$L$2426='MDOT FTA Detail'!$A14)*(Projects!$J$5:$J$2426<>'MDOT FTA Detail'!$A$171)*(Projects!$Q$5:Q$2426)) -> 0 | J14: =SUMPRODUCT((Projects!$A$5:$A$2426='MDOT FTA Detail'!$J$3)*(Projects!$C$5:$C$2426='MDOT FTA Detail'!$C$4)*(Projects!$L$5:$L$2426='MDOT FTA Detail'!$A14)*(Projects!$J$5:$J$2426<>'MDOT FTA Detail'!$A$171)*(Projects!$K$5:$K$2426)) -> 0 | K14: 0 | L14: =SUMPRODUCT((Projects!$A$5:$A$2426='MDOT FTA Detail'!$J$3)*(Projects!$C$5:$C$2426='MDOT FTA Detail'!$C$4)*(Projects!$L$5:$L$2426='MDOT FTA Detail'!$A14)*(Projects!$J$5:$J$2426<>'MDOT FTA Detail'!$A$171)*(Projects!$Q$5:$Q$2426)) -> 0 | M14: =SUMPRODUCT((Projects!$A$5:$A$2426='MDOT FTA Detail'!$M$3)*(Projects!$C$5:$C$2426='MDOT FTA Detail'!$C$4)*(Projects!$L$5:$L$2426='MDOT FTA Detail'!$A14)*(Projects!$J$5:$J$2426<>'MDOT FTA Detail'!$A$171)*(Projects!$K$5:$K$2426)) -> 0 | N14: 0 | O14: =SUMPRODUCT((Projects!$A$5:$A$2426='MDOT FTA Detail'!$M$3)*(Projects!$C$5:$C$2426='MDOT FTA Detail'!$C$4)*(Projects!$L$5:$L$2426='MDOT FTA Detail'!$A14)*(Projects!$J$5:$J$2426<>'MDOT FTA Detail'!$A$171)*(Projects!$Q$5:$Q$2426)) -> 0
A15: BRO | B15: Bridge Replacement - Not Classified, Off System | C15: MDOT FA | D15: =SUMPRODUCT((Projects!$A$5:$A$2426='MDOT FTA Detail'!$D$3)*(Projects!$C$5:$C$2426='MDOT FTA Detail'!$C$4)*(Projects!$L$5:$L$2426='MDOT FTA Detail'!$A15)*(Projects!$J$5:$J$2426<>'MDOT FTA Detail'!$A$171)*(Projects!$K$5:K$2426)) -> 0 | E15: 0 | F15: =SUMPRODUCT((Projects!$A$5:$A$2426='MDOT FTA Detail'!$D$3)*(Projects!$C$5:$C$2426='MDOT FTA Detail'!$C$4)*(Projects!$L$5:$L$2426='MDOT FTA Detail'!$A15)*(Projects!$J$5:$J$2426<>'MDOT FTA Detail'!$A$171)*(Projects!$Q$5:Q$2426)) -> 0 | G15: =SUMPRODUCT((Projects!$A$5:$A$2426='MDOT FTA Detail'!$G$3)*(Projects!$C$5:$C$2426='MDOT FTA Detail'!$C$4)*(Projects!$L$5:$L$2426='MDOT FTA Detail'!$A15)*(Projects!$J$5:$J$2426<>'MDOT FTA Detail'!$A$171)*(Projects!$K$5:K$2426)) -> 0 | H15: 0 | I15: =SUMPRODUCT((Projects!$A$5:$A$2426='MDOT FTA Detail'!$G$3)*(Projects!$C$5:$C$2426='MDOT FTA Detail'!$C$4)*(Projects!$L$5:$L$2426='MDOT FTA Detail'!$A15)*(Projects!$J$5:$J$2426<>'MDOT FTA Detail'!$A$171)*(Projects!$Q$5:Q$2426)) -> 0 | J15: =SUMPRODUCT((Projects!$A$5:$A$2426='MDOT FTA Detail'!$J$3)*(Projects!$C$5:$C$2426='MDOT FTA Detail'!$C$4)*(Projects!$L$5:$L$2426='MDOT FTA Detail'!$A15)*(Projects!$J$5:$J$2426<>'MDOT FTA Detail'!$A$171)*(Projects!$K$5:$K$2426)) -> 0 | K15: 0 | L15: =SUMPRODUCT((Projects!$A$5:$A$2426='MDOT FTA Detail'!$J$3)*(Projects!$C$5:$C$2426='MDOT FTA Detail'!$C$4)*(Projects!$L$5:$L$2426='MDOT FTA Detail'!$A15)*(Projects!$J$5:$J$2426<>'MDOT FTA Detail'!$A$171)*(Projects!$Q$5:$Q$2426)) -> 0 | M15: =SUMPRODUCT((Projects!$A$5:$A$2426='MDOT FTA Detail'!$M$3)*(Projects!$C$5:$C$2426='MDOT FTA Detail'!$C$4)*(Projects!$L$5:$L$2426='MDOT FTA Detail'!$A15)*(Projects!$J$5:$J$2426<>'MDOT FTA Detail'!$A$171)*(Projects!$K$5:$K$2426)) -> 0 | N15: 0 | O15: =SUMPRODUCT((Projects!$A$5:$A$2426='MDOT FTA Detail'!$M$3)*(Projects!$C$5:$C$2426='MDOT FTA Detail'!$C$4)*(Projects!$L$5:$L$2426='MDOT FTA Detail'!$A15)*(Projects!$J$5:$J$2426<>'MDOT FTA Detail'!$A$171)*(Projects!$Q$5:$Q$2426)) -> 0
A16: BRT | B16: Bridge Replacement - Surface Transportation Program (STP) | C16: MDOT FA | D16: =SUMPRODUCT((Projects!$A$5:$A$2426='MDOT FTA Detail'!$D$3)*(Projects!$C$5:$C$2426='MDOT FTA Detail'!$C$4)*(Projects!$L$5:$L$2426='MDOT FTA Detail'!$A16)*(Projects!$J$5:$J$2426<>'MDOT FTA Detail'!$A$171)*(Projects!$K$5:K$2426)) -> 0 | E16: 0 | F16: =SUMPRODUCT((Projects!$A$5:$A$2426='MDOT FTA Detail'!$D$3)*(Projects!$C$5:$C$2426='MDOT FTA Detail'!$C$4)*(Projects!$L$5:$L$2426='MDOT FTA Detail'!$A16)*(Projects!$J$5:$J$2426<>'MDOT FTA Detail'!$A$171)*(Projects!$Q$5:Q$2426)) -> 0 | G16: =SUMPRODUCT((Projects!$A$5:$A$2426='MDOT FTA Detail'!$G$3)*(Projects!$C$5:$C$2426='MDOT FTA Detail'!$C$4)*(Projects!$L$5:$L$2426='MDOT FTA Detail'!$A16)*(Projects!$J$5:$J$2426<>'MDOT FTA Detail'!$A$171)*(Projects!$K$5:K$2426)) -> 0 | H16: 0 | I16: =SUMPRODUCT((Projects!$A$5:$A$2426='MDOT FTA Detail'!$G$3)*(Projects!$C$5:$C$2426='MDOT FTA Detail'!$C$4)*(Projects!$L$5:$L$2426='MDOT FTA Detail'!$A16)*(Projects!$J$5:$J$2426<>'MDOT FTA Detail'!$A$171)*(Projects!$Q$5:Q$2426)) -> 0 | J16: =SUMPRODUCT((Projects!$A$5:$A$2426='MDOT FTA Detail'!$J$3)*(Projects!$C$5:$C$2426='MDOT FTA Detail'!$C$4)*(Projects!$L$5:$L$2426='MDOT FTA Detail'!$A16)*(Projects!$J$5:$J$2426<>'MDOT FTA Detail'!$A$171)*(Projects!$K$5:$K$2426)) -> 0 | K16: 0 | L16: =SUMPRODUCT((Projects!$A$5:$A$2426='MDOT FTA Detail'!$J$3)*(Projects!$C$5:$C$2426='MDOT FTA Detail'!$C$4)*(Projects!$L$5:$L$2426='MDOT FTA Detail'!$A16)*(Projects!$J$5:$J$2426<>'MDOT FTA Detail'!$A$171)*(Projects!$Q$5:$Q$2426)) -> 0 | M16: =SUMPRODUCT((Projects!$A$5:$A$2426='MDOT FTA Detail'!$M$3)*(Projects!$C$5:$C$2426='MDOT FTA Detail'!$C$4)*(Projects!$L$5:$L$2426='MDOT FTA Detail'!$A16)*(Projects!$J$5:$J$2426<>'MDOT FTA Detail'!$A$171)*(Projects!$K$5:$K$2426)) -> 0 | N16: 0 | O16: =SUMPRODUCT((Projects!$A$5:$A$2426='MDOT FTA Detail'!$M$3)*(Projects!$C$5:$C$2426='MDOT FTA Detail'!$C$4)*(Projects!$L$5:$L$2426='MDOT FTA Detail'!$A16)*(Projects!$J$5:$J$2426<>'MDOT FTA Detail'!$A$171)*(Projects!$Q$5:$Q$2426)) -> 0
A17: CANX | B17: Canadian Bridge Funds | C17: MDOT FA | D17: =SUMPRODUCT((Projects!$A$5:$A$2426='MDOT FTA Detail'!$D$3)*(Projects!$C$5:$C$2426='MDOT FTA Detail'!$C$4)*(Projects!$L$5:$L$2426='MDOT FTA Detail'!$A17)*(Projects!$J$5:$J$2426<>'MDOT FTA Detail'!$A$171)*(Projects!$K$5:K$2426)) -> 0 | E17: 0 | F17: =SUMPRODUCT((Projects!$A$5:$A$2426='MDOT FTA Detail'!$D$3)*(Projects!$C$5:$C$2426='MDOT FTA Detail'!$C$4)*(Projects!$L$5:$L$2426='MDOT FTA Detail'!$A17)*(Projects!$J$5:$J$2426<>'MDOT FTA Detail'!$A$171)*(Projects!$Q$5:Q$2426)) -> 0 | G17: =SUMPRODUCT((Projects!$A$5:$A$2426='MDOT FTA Detail'!$G$3)*(Projects!$C$5:$C$2426='MDOT FTA Detail'!$C$4)*(Projects!$L$5:$L$2426='MDOT FTA Detail'!$A17)*(Projects!$J$5:$J$2426<>'MDOT FTA Detail'!$A$171)*(Projects!$K$5:K$2426)) -> 0 | H17: 0 | I17: =SUMPRODUCT((Projects!$A$5:$A$2426='MDOT FTA Detail'!$G$3)*(Projects!$C$5:$C$2426='MDOT FTA Detail'!$C$4)*(Projects!$L$5:$L$2426='MDOT FTA Detail'!$A17)*(Projects!$J$5:$J$2426<>'MDOT FTA Detail'!$A$171)*(Projects!$Q$5:Q$2426)) -> 0 | J17: =SUMPRODUCT((Projects!$A$5:$A$2426='MDOT FTA Detail'!$J$3)*(Projects!$C$5:$C$2426='MDOT FTA Detail'!$C$4)*(Projects!$L$5:$L$2426='MDOT FTA Detail'!$A17)*(Projects!$J$5:$J$2426<>'MDOT FTA Detail'!$A$171)*(Projects!$K$5:$K$2426)) -> 0 | K17: 0 | L17: =SUMPRODUCT((Projects!$A$5:$A$2426='MDOT FTA Detail'!$J$3)*(Projects!$C$5:$C$2426='MDOT FTA Detail'!$C$4)*(Projects!$L$5:$L$2426='MDOT FTA Detail'!$A17)*(Projects!$J$5:$J$2426<>'MDOT FTA Detail'!$A$171)*(Projects!$Q$5:$Q$2426)) -> 0 | M17: =SUMPRODUCT((Projects!$A$5:$A$2426='MDOT FTA Detail'!$M$3)*(Projects!$C$5:$C$2426='MDOT FTA Detail'!$C$4)*(Projects!$L$5:$L$2426='MDOT FTA Detail'!$A17)*(Projects!$J$5:$J$2426<>'MDOT FTA Detail'!$A$171)*(Projects!$K$5:$K$2426)) -> 0 | N17: 0 | O17: =SUMPRODUCT((Projects!$A$5:$A$2426='MDOT FTA Detail'!$M$3)*(Projects!$C$5:$C$2426='MDOT FTA Detail'!$C$4)*(Projects!$L$5:$L$2426='MDOT FTA Detail'!$A17)*(Projects!$J$5:$J$2426<>'MDOT FTA Detail'!$A$171)*(Projects!$Q$5:$Q$2426)) -> 0
A18: CBCD | B18: Corridor & Border Crossing Discretionary | C18: MDOT FA | D18: =SUMPRODUCT((Projects!$A$5:$A$2426='MDOT FTA Detail'!$D$3)*(Projects!$C$5:$C$2426='MDOT FTA Detail'!$C$4)*(Projects!$L$5:$L$2426='MDOT FTA Detail'!$A18)*(Projects!$J$5:$J$2426<>'MDOT FTA Detail'!$A$171)*(Projects!$K$5:K$2426)) -> 0 | E18: 0 | F18: =SUMPRODUCT((Projects!$A$5:$A$2426='MDOT FTA Detail'!$D$3)*(Projects!$C$5:$C$2426='MDOT FTA Detail'!$C$4)*(Projects!$L$5:$L$2426='MDOT FTA Detail'!$A18)*(Projects!$J$5:$J$2426<>'MDOT FTA Detail'!$A$171)*(Projects!$Q$5:Q$2426)) -> 0 | G18: =SUMPRODUCT((Projects!$A$5:$A$2426='MDOT FTA Detail'!$G$3)*(Projects!$C$5:$C$2426='MDOT FTA Detail'!$C$4)*(Projects!$L$5:$L$2426='MDOT FTA Detail'!$A18)*(Projects!$J$5:$J$2426<>'MDOT FTA Detail'!$A$171)*(Projects!$K$5:K$2426)) -> 0 | H18: 0 | I18: =SUMPRODUCT((Projects!$A$5:$A$2426='MDOT FTA Detail'!$G$3)*(Projects!$C$5:$C$2426='MDOT FTA Detail'!$C$4)*(Projects!$L$5:$L$2426='MDOT FTA Detail'!$A18)*(Projects!$J$5:$J$2426<>'MDOT FTA Detail'!$A$171)*(Projects!$Q$5:Q$2426)) -> 0 | J18: =SUMPRODUCT((Projects!$A$5:$A$2426='MDOT FTA Detail'!$J$3)*(Projects!$C$5:$C$2426='MDOT FTA Detail'!$C$4)*(Projects!$L$5:$L$2426='MDOT FTA Detail'!$A18)*(Projects!$J$5:$J$2426<>'MDOT FTA Detail'!$A$171)*(Projects!$K$5:$K$2426)) -> 0 | K18: 0 | L18: =SUMPRODUCT((Projects!$A$5:$A$2426='MDOT FTA Detail'!$J$3)*(Projects!$C$5:$C$2426='MDOT FTA Detail'!$C$4)*(Projects!$L$5:$L$2426='MDOT FTA Detail'!$A18)*(Projects!$J$5:$J$2426<>'MDOT FTA Detail'!$A$171)*(Projects!$Q$5:$Q$2426)) -> 0 | M18: =SUMPRODUCT((Projects!$A$5:$A$2426='MDOT FTA Detail'!$M$3)*(Projects!$C$5:$C$2426='MDOT FTA Detail'!$C$4)*(Projects!$L$5:$L$2426='MDOT FTA Detail'!$A18)*(Projects!$J$5:$J$2426<>'MDOT FTA Detail'!$A$171)*(Projects!$K$5:$K$2426)) -> 0 | N18: 0 | O18: =SUMPRODUCT((Projects!$A$5:$A$2426='MDOT FTA Detail'!$M$3)*(Projects!$C$5:$C$2426='MDOT FTA Detail'!$C$4)*(Projects!$L$5:$L$2426='MDOT FTA Detail'!$A18)*(Projects!$J$5:$J$2426<>'MDOT FTA Detail'!$A$171)*(Projects!$Q$5:$Q$2426)) -> 0
A19: CBIP | B19: Coordinated Border Infrastructure Program - SAFETEA-LU | C19: MDOT FA | D19: =SUMPRODUCT((Projects!$A$5:$A$2426='MDOT FTA Detail'!$D$3)*(Projects!$C$5:$C$2426='MDOT FTA Detail'!$C$4)*(Projects!$L$5:$L$2426='MDOT FTA Detail'!$A19)*(Projects!$J$5:$J$2426<>'MDOT FTA Detail'!$A$171)*(Projects!$K$5:K$2426)) -> 0 | E19: 0 | F19: =SUMPRODUCT((Projects!$A$5:$A$2426='MDOT FTA Detail'!$D$3)*(Projects!$C$5:$C$2426='MDOT FTA Detail'!$C$4)*(Projects!$L$5:$L$2426='MDOT FTA Detail'!$A19)*(Projects!$J$5:$J$2426<>'MDOT FTA Detail'!$A$171)*(Projects!$Q$5:Q$2426)) -> 0 | G19: =SUMPRODUCT((Projects!$A$5:$A$2426='MDOT FTA Detail'!$G$3)*(Projects!$C$5:$C$2426='MDOT FTA Detail'!$C$4)*(Projects!$L$5:$L$2426='MDOT FTA Detail'!$A19)*(Projects!$J$5:$J$2426<>'MDOT FTA Detail'!$A$171)*(Projects!$K$5:K$2426)) -> 0 | H19: 0 | I19: =SUMPRODUCT((Projects!$A$5:$A$2426='MDOT FTA Detail'!$G$3)*(Projects!$C$5:$C$2426='MDOT FTA Detail'!$C$4)*(Projects!$L$5:$L$2426='MDOT FTA Detail'!$A19)*(Projects!$J$5:$J$2426<>'MDOT FTA Detail'!$A$171)*(Projects!$Q$5:Q$2426)) -> 0 | J19: =SUMPRODUCT((Projects!$A$5:$A$2426='MDOT FTA Detail'!$J$3)*(Projects!$C$5:$C$2426='MDOT FTA Detail'!$C$4)*(Projects!$L$5:$L$2426='MDOT FTA Detail'!$A19)*(Projects!$J$5:$J$2426<>'MDOT FTA Detail'!$A$171)*(Projects!$K$5:$K$2426)) -> 0 | K19: 0 | L19: =SUMPRODUCT((Projects!$A$5:$A$2426='MDOT FTA Detail'!$J$3)*(Projects!$C$5:$C$2426='MDOT FTA Detail'!$C$4)*(Projects!$L$5:$L$2426='MDOT FTA Detail'!$A19)*(Projects!$J$5:$J$2426<>'MDOT FTA Detail'!$A$171)*(Projects!$Q$5:$Q$2426)) -> 0 | M19: =SUMPRODUCT((Projects!$A$5:$A$2426='MDOT FTA Detail'!$M$3)*(Projects!$C$5:$C$2426='MDOT FTA Detail'!$C$4)*(Projects!$L$5:$L$2426='MDOT FTA Detail'!$A19)*(Projects!$J$5:$J$2426<>'MDOT FTA Detail'!$A$171)*(Projects!$K$5:$K$2426)) -> 0 | N19: 0 | O19: =SUMPRODUCT((Projects!$A$5:$A$2426='MDOT FTA Detail'!$M$3)*(Projects!$C$5:$C$2426='MDOT FTA Detail'!$C$4)*(Projects!$L$5:$L$2426='MDOT FTA Detail'!$A19)*(Projects!$J$5:$J$2426<>'MDOT FTA Detail'!$A$171)*(Projects!$Q$5:$Q$2426)) -> 0
A20: CM | B20: Congestion Mitigation & Air Quality | C20: MDOT FA | D20: =SUMPRODUCT((Projects!$A$5:$A$2426='MDOT FTA Detail'!$D$3)*(Projects!$C$5:$C$2426='MDOT FTA Detail'!$C$4)*(Projects!$L$5:$L$2426='MDOT FTA Detail'!$A20)*(Projects!$J$5:$J$2426<>'MDOT FTA Detail'!$A$171)*(Projects!$K$5:K$2426)) -> 57189 | E20: 12681 | F20: =SUMPRODUCT((Projects!$A$5:$A$2426='MDOT FTA Detail'!$D$3)*(Projects!$C$5:$C$2426='MDOT FTA Detail'!$C$4)*(Projects!$L$5:$L$2426='MDOT FTA Detail'!$A20)*(Projects!$J$5:$J$2426<>'MDOT FTA Detail'!$A$171)*(Projects!$Q$5:Q$2426)) -> 69870 | G20: =SUMPRODUCT((Projects!$A$5:$A$2426='MDOT FTA Detail'!$G$3)*(Projects!$C$5:$C$2426='MDOT FTA Detail'!$C$4)*(Projects!$L$5:$L$2426='MDOT FTA Detail'!$A20)*(Projects!$J$5:$J$2426<>'MDOT FTA Detail'!$A$171)*(Projects!$K$5:K$2426)) -> 0 | H20: 0 | I20: =SUMPRODUCT((Projects!$A$5:$A$2426='MDOT FTA Detail'!$G$3)*(Projects!$C$5:$C$2426='MDOT FTA Detail'!$C$4)*(Projects!$L$5:$L$2426='MDOT FTA Detail'!$A20)*(Projects!$J$5:$J$2426<>'MDOT FTA Detail'!$A$171)*(Projects!$Q$5:Q$2426)) -> 0 | J20: =SUMPRODUCT((Projects!$A$5:$A$2426='MDOT FTA Detail'!$J$3)*(Projects!$C$5:$C$2426='MDOT FTA Detail'!$C$4)*(Projects!$L$5:$L$2426='MDOT FTA Detail'!$A20)*(Projects!$J$5:$J$2426<>'MDOT FTA Detail'!$A$171)*(Projects!$K$5:$K$2426)) -> 0 | K20: 0 | L20: =SUMPRODUCT((Projects!$A$5:$A$2426='MDOT FTA Detail'!$J$3)*(Projects!$C$5:$C$2426='MDOT FTA Detail'!$C$4)*(Projects!$L$5:$L$2426='MDOT FTA Detail'!$A20)*(Projects!$J$5:$J$2426<>'MDOT FTA Detail'!$A$171)*(Projects!$Q$5:$Q$2426)) -> 0 | M20: =SUMPRODUCT((Projects!$A$5:$A$2426='MDOT FTA Detail'!$M$3)*(Projects!$C$5:$C$2426='MDOT FTA Detail'!$C$4)*(Projects!$L$5:$L$2426='MDOT FTA Detail'!$A20)*(Projects!$J$5:$J$2426<>'MDOT FTA Detail'!$A$171)*(Projects!$K$5:$K$2426)) -> 486712 | N20: 107928 | O20: =SUMPRODUCT((Projects!$A$5:$A$2426='MDOT FTA Detail'!$M$3)*(Projects!$C$5:$C$2426='MDOT FTA Detail'!$C$4)*(Projects!$L$5:$L$2426='MDOT FTA Detail'!$A20)*(Projects!$J$5:$J$2426<>'MDOT FTA Detail'!$A$171)*(Projects!$Q$5:$Q$2426)) -> 594640
A21: CMG | B21: Congestion Mitigation & Air Quality - 100% Federal | C21: MDOT FA | D21: =SUMPRODUCT((Projects!$A$5:$A$2426='MDOT FTA Detail'!$D$3)*(Projects!$C$5:$C$2426='MDOT FTA Detail'!$C$4)*(Projects!$L$5:$L$2426='MDOT FTA Detail'!$A21)*(Projects!$J$5:$J$2426<>'MDOT FTA Detail'!$A$171)*(Projects!$K$5:K$2426)) -> 0 | E21: 0 | F21: =SUMPRODUCT((Projects!$A$5:$A$2426='MDOT FTA Detail'!$D$3)*(Projects!$C$5:$C$2426='MDOT FTA Detail'!$C$4)*(Projects!$L$5:$L$2426='MDOT FTA Detail'!$A21)*(Projects!$J$5:$J$2426<>'MDOT FTA Detail'!$A$171)*(Projects!$Q$5:Q$2426)) -> 0 | G21: =SUMPRODUCT((Projects!$A$5:$A$2426='MDOT FTA Detail'!$G$3)*(Projects!$C$5:$C$2426='MDOT FTA Detail'!$C$4)*(Projects!$L$5:$L$2426='MDOT FTA Detail'!$A21)*(Projects!$J$5:$J$2426<>'MDOT FTA Detail'!$A$171)*(Projects!$K$5:K$2426)) -> 0 | H21: 0 | I21: =SUMPRODUCT((Projects!$A$5:$A$2426='MDOT FTA Detail'!$G$3)*(Projects!$C$5:$C$2426='MDOT FTA Detail'!$C$4)*(Projects!$L$5:$L$2426='MDOT FTA Detail'!$A21)*(Projects!$J$5:$J$2426<>'MDOT FTA Detail'!$A$171)*(Projects!$Q$5:Q$2426)) -> 0 | J21: =SUMPRODUCT((Projects!$A$5:$A$2426='MDOT FTA Detail'!$J$3)*(Projects!$C$5:$C$2426='MDOT FTA Detail'!$C$4)*(Projects!$L$5:$L$2426='MDOT FTA Detail'!$A21)*(Projects!$J$5:$J$2426<>'MDOT FTA Detail'!$A$171)*(Projects!$K$5:$K$2426)) -> 0 | K21: 0 | L21: =SUMPRODUCT((Projects!$A$5:$A$2426='MDOT FTA Detail'!$J$3)*(Projects!$C$5:$C$2426='MDOT FTA Detail'!$C$4)*(Projects!$L$5:$L$2426='MDOT FTA Detail'!$A21)*(Projects!$J$5:$J$2426<>'MDOT FTA Detail'!$A$171)*(Projects!$Q$5:$Q$2426)) -> 0 | M21: =SUMPRODUCT((Projects!$A$5:$A$2426='MDOT FTA Detail'!$M$3)*(Projects!$C$5:$C$2426='MDOT FTA Detail'!$C$4)*(Projects!$L$5:$L$2426='MDOT FTA Detail'!$A21)*(Projects!$J$5:$J$2426<>'MDOT FTA Detail'!$A$171)*(Projects!$K$5:$K$2426)) -> 0 | N21: 0 | O21: =SUMPRODUCT((Projects!$A$5:$A$2426='MDOT FTA Detail'!$M$3)*(Projects!$C$5:$C$2426='MDOT FTA Detail'!$C$4)*(Projects!$L$5:$L$2426='MDOT FTA Detail'!$A21)*(Projects!$J$5:$J$2426<>'MDOT FTA Detail'!$A$171)*(Projects!$Q$5:$Q$2426)) -> 0
A22: CPM | B22: Congestion Mititagion & Air Quality for PM 2.5 Emissions | C22: MDOT FA | D22: =SUMPRODUCT((Projects!$A$5:$A$2426='MDOT FTA Detail'!$D$3)*(Projects!$C$5:$C$2426='MDOT FTA Detail'!$C$4)*(Projects!$L$5:$L$2426='MDOT FTA Detail'!$A22)*(Projects!$J$5:$J$2426<>'MDOT FTA Detail'!$A$171)*(Projects!$K$5:K$2426)) -> 0 | E22: =F22-D22 -> 0 | F22: =SUMPRODUCT((Projects!$A$5:$A$2426='MDOT FTA Detail'!$D$3)*(Projects!$C$5:$C$2426='MDOT FTA Detail'!$C$4)*(Projects!$L$5:$L$2426='MDOT FTA Detail'!$A22)*(Projects!$J$5:$J$2426<>'MDOT FTA Detail'!$A$171)*(Projects!$Q$5:Q$2426)) -> 0 | G22: =SUMPRODUCT((Projects!$A$5:$A$2426='MDOT FTA Detail'!$G$3)*(Projects!$C$5:$C$2426='MDOT FTA Detail'!$C$4)*(Projects!$L$5:$L$2426='MDOT FTA Detail'!$A22)*(Projects!$J$5:$J$2426<>'MDOT FTA Detail'!$A$171)*(Projects!$K$5:K$2426)) -> 0 | H22: =I22-G22 -> 0 | I22: =SUMPRODUCT((Projects!$A$5:$A$2426='MDOT FTA Detail'!$G$3)*(Projects!$C$5:$C$2426='MDOT FTA Detail'!$C$4)*(Projects!$L$5:$L$2426='MDOT FTA Detail'!$A22)*(Projects!$J$5:$J$2426<>'MDOT FTA Detail'!$A$171)*(Projects!$Q$5:Q$2426)) -> 0 | J22: =SUMPRODUCT((Projects!$A$5:$A$2426='MDOT FTA Detail'!$J$3)*(Projects!$C$5:$C$2426='MDOT FTA Detail'!$C$4)*(Projects!$L$5:$L$2426='MDOT FTA Detail'!$A22)*(Projects!$J$5:$J$2426<>'MDOT FTA Detail'!$A$171)*(Projects!$K$5:$K$2426)) -> 0 | K22: =L22-J22 -> 0 | L22: =SUMPRODUCT((Projects!$A$5:$A$2426='MDOT FTA Detail'!$J$3)*(Projects!$C$5:$C$2426='MDOT FTA Detail'!$C$4)*(Projects!$L$5:$L$2426='MDOT FTA Detail'!$A22)*(Projects!$J$5:$J$2426<>'MDOT FTA Detail'!$A$171)*(Projects!$Q$5:$Q$2426)) -> 0 | M22: =SUMPRODUCT((Projects!$A$5:$A$2426='MDOT FTA Detail'!$M$3)*(Projects!$C$5:$C$2426='MDOT FTA Detail'!$C$4)*(Projects!$L$5:$L$2426='MDOT FTA Detail'!$A22)*(Projects!$J$5:$J$2426<>'MDOT FTA Detail'!$A$171)*(Projects!$K$5:$K$2426)) -> 0 | N22: =O22-M22 -> 0 | O22: =SUMPRODUCT((Projects!$A$5:$A$2426='MDOT FTA Detail'!$M$3)*(Projects!$C$5:$C$2426='MDOT FTA Detail'!$C$4)*(Projects!$L$5:$L$2426='MDOT FTA Detail'!$A22)*(Projects!$J$5:$J$2426<>'MDOT FTA Detail'!$A$171)*(Projects!$Q$5:$Q$2426)) -> 0
A23: CPMG | B23: Congestion Mititagion & Air Quality for PM 2.5 Emissions - 100% Federal | C23: MDOT FA | D23: =SUMPRODUCT((Projects!$A$5:$A$2426='MDOT FTA Detail'!$D$3)*(Projects!$C$5:$C$2426='MDOT FTA Detail'!$C$4)*(Projects!$L$5:$L$2426='MDOT FTA Detail'!$A23)*(Projects!$J$5:$J$2426<>'MDOT FTA Detail'!$A$171)*(Projects!$K$5:K$2426)) -> 0 | E23: 0 | F23: =SUMPRODUCT((Projects!$A$5:$A$2426='MDOT FTA Detail'!$D$3)*(Projects!$C$5:$C$2426='MDOT FTA Detail'!$C$4)*(Projects!$L$5:$L$2426='MDOT FTA Detail'!$A23)*(Projects!$J$5:$J$2426<>'MDOT FTA Detail'!$A$171)*(Projects!$Q$5:Q$2426)) -> 0 | G23: =SUMPRODUCT((Projects!$A$5:$A$2426='MDOT FTA Detail'!$G$3)*(Projects!$C$5:$C$2426='MDOT FTA Detail'!$C$4)*(Projects!$L$5:$L$2426='MDOT FTA Detail'!$A23)*(Projects!$J$5:$J$2426<>'MDOT FTA Detail'!$A$171)*(Projects!$K$5:K$2426)) -> 0 | H23: 0 | I23: =SUMPRODUCT((Projects!$A$5:$A$2426='MDOT FTA Detail'!$G$3)*(Projects!$C$5:$C$2426='MDOT FTA Detail'!$C$4)*(Projects!$L$5:$L$2426='MDOT FTA Detail'!$A23)*(Projects!$J$5:$J$2426<>'MDOT FTA Detail'!$A$171)*(Projects!$Q$5:Q$2426)) -> 0 | J23: =SUMPRODUCT((Projects!$A$5:$A$2426='MDOT FTA Detail'!$J$3)*(Projects!$C$5:$C$2426='MDOT FTA Detail'!$C$4)*(Projects!$L$5:$L$2426='MDOT FTA Detail'!$A23)*(Projects!$J$5:$J$2426<>'MDOT FTA Detail'!$A$171)*(Projects!$K$5:$K$2426)) -> 0 | K23: 0 | L23: =SUMPRODUCT((Projects!$A$5:$A$2426='MDOT FTA Detail'!$J$3)*(Projects!$C$5:$C$2426='MDOT FTA Detail'!$C$4)*(Projects!$L$5:$L$2426='MDOT FTA Detail'!$A23)*(Projects!$J$5:$J$2426<>'MDOT FTA Detail'!$A$171)*(Projects!$Q$5:$Q$2426)) -> 0 | M23: =SUMPRODUCT((Projects!$A$5:$A$2426='MDOT FTA Detail'!$M$3)*(Projects!$C$5:$C$2426='MDOT FTA Detail'!$C$4)*(Projects!$L$5:$L$2426='MDOT FTA Detail'!$A23)*(Projects!$J$5:$J$2426<>'MDOT FTA Detail'!$A$171)*(Projects!$K$5:$K$2426)) -> 0 | N23: 0 | O23: =SUMPRODUCT((Projects!$A$5:$A$2426='MDOT FTA Detail'!$M$3)*(Projects!$C$5:$C$2426='MDOT FTA Detail'!$C$4)*(Projects!$L$5:$L$2426='MDOT FTA Detail'!$A23)*(Projects!$J$5:$J$2426<>'MDOT FTA Detail'!$A$171)*(Projects!$Q$5:$Q$2426)) -> 0
A24: D129 | B24: Demonstration for Surface Transportation - Section 129 | C24: MDOT FA | D24: =SUMPRODUCT((Projects!$A$5:$A$2426='MDOT FTA Detail'!$D$3)*(Projects!$C$5:$C$2426='MDOT FTA Detail'!$C$4)*(Projects!$L$5:$L$2426='MDOT FTA Detail'!$A24)*(Projects!$J$5:$J$2426<>'MDOT FTA Detail'!$A$171)*(Projects!$K$5:K$2426)) -> 0 | E24: =F24-D24 -> 0 | F24: =SUMPRODUCT((Projects!$A$5:$A$2426='MDOT FTA Detail'!$D$3)*(Projects!$C$5:$C$2426='MDOT FTA Detail'!$C$4)*(Projects!$L$5:$L$2426='MDOT FTA Detail'!$A24)*(Projects!$J$5:$J$2426<>'MDOT FTA Detail'!$A$171)*(Projects!$Q$5:Q$2426)) -> 0 | G24: =SUMPRODUCT((Projects!$A$5:$A$2426='MDOT FTA Detail'!$G$3)*(Projects!$C$5:$C$2426='MDOT FTA Detail'!$C$4)*(Projects!$L$5:$L$2426='MDOT FTA Detail'!$A24)*(Projects!$J$5:$J$2426<>'MDOT FTA Detail'!$A$171)*(Projects!$K$5:K$2426)) -> 0 | H24: =I24-G24 -> 0 | I24: =SUMPRODUCT((Projects!$A$5:$A$2426='MDOT FTA Detail'!$G$3)*(Projects!$C$5:$C$2426='MDOT FTA Detail'!$C$4)*(Projects!$L$5:$L$2426='MDOT FTA Detail'!$A24)*(Projects!$J$5:$J$2426<>'MDOT FTA Detail'!$A$171)*(Projects!$Q$5:Q$2426)) -> 0 | J24: =SUMPRODUCT((Projects!$A$5:$A$2426='MDOT FTA Detail'!$J$3)*(Projects!$C$5:$C$2426='MDOT FTA Detail'!$C$4)*(Projects!$L$5:$L$2426='MDOT FTA Detail'!$A24)*(Projects!$J$5:$J$2426<>'MDOT FTA Detail'!$A$171)*(Projects!$K$5:$K$2426)) -> 0 | K24: =L24-J24 -> 0 | L24: =SUMPRODUCT((Projects!$A$5:$A$2426='MDOT FTA Detail'!$J$3)*(Projects!$C$5:$C$2426='MDOT FTA Detail'!$C$4)*(Projects!$L$5:$L$2426='MDOT FTA Detail'!$A24)*(Projects!$J$5:$J$2426<>'MDOT FTA Detail'!$A$171)*(Projects!$Q$5:$Q$2426)) -> 0 | M24: =SUMPRODUCT((Projects!$A$5:$A$2426='MDOT FTA Detail'!$M$3)*(Projects!$C$5:$C$2426='MDOT FTA Detail'!$C$4)*(Projects!$L$5:$L$2426='MDOT FTA Detail'!$A24)*(Projects!$J$5:$J$2426<>'MDOT FTA Detail'!$A$171)*(Projects!$K$5:$K$2426)) -> 0 | N24: =O24-M24 -> 0 | O24: =SUMPRODUCT((Projects!$A$5:$A$2426='MDOT FTA Detail'!$M$3)*(Projects!$C$5:$C$2426='MDOT FTA Detail'!$C$4)*(Projects!$L$5:$L$2426='MDOT FTA Detail'!$A24)*(Projects!$J$5:$J$2426<>'MDOT FTA Detail'!$A$171)*(Projects!$Q$5:$Q$2426)) -> 0
A25: DIG | B25: ISTEA Demonstration 100% Federal on Interstate | C25: MDOT FA | D25: =SUMPRODUCT((Projects!$A$5:$A$2426='MDOT FTA Detail'!$D$3)*(Projects!$C$5:$C$2426='MDOT FTA Detail'!$C$4)*(Projects!$L$5:$L$2426='MDOT FTA Detail'!$A25)*(Projects!$J$5:$J$2426<>'MDOT FTA Detail'!$A$171)*(Projects!$K$5:K$2426)) -> 0 | E25: 0 | F25: =SUMPRODUCT((Projects!$A$5:$A$2426='MDOT FTA Detail'!$D$3)*(Projects!$C$5:$C$2426='MDOT FTA Detail'!$C$4)*(Projects!$L$5:$L$2426='MDOT FTA Detail'!$A25)*(Projects!$J$5:$J$2426<>'MDOT FTA Detail'!$A$171)*(Projects!$Q$5:Q$2426)) -> 0 | G25: =SUMPRODUCT((Projects!$A$5:$A$2426='MDOT FTA Detail'!$G$3)*(Projects!$C$5:$C$2426='MDOT FTA Detail'!$C$4)*(Projects!$L$5:$L$2426='MDOT FTA Detail'!$A25)*(Projects!$J$5:$J$2426<>'MDOT FTA Detail'!$A$171)*(Projects!$K$5:K$2426)) -> 0 | H25: 0 | I25: =SUMPRODUCT((Projects!$A$5:$A$2426='MDOT FTA Detail'!$G$3)*(Projects!$C$5:$C$2426='MDOT FTA Detail'!$C$4)*(Projects!$L$5:$L$2426='MDOT FTA Detail'!$A25)*(Projects!$J$5:$J$2426<>'MDOT FTA Detail'!$A$171)*(Projects!$Q$5:Q$2426)) -> 0 | J25: =SUMPRODUCT((Projects!$A$5:$A$2426='MDOT FTA Detail'!$J$3)*(Projects!$C$5:$C$2426='MDOT FTA Detail'!$C$4)*(Projects!$L$5:$L$2426='MDOT FTA Detail'!$A25)*(Projects!$J$5:$J$2426<>'MDOT FTA Detail'!$A$171)*(Projects!$K$5:$K$2426)) -> 0 | K25: 0 | L25: =SUMPRODUCT((Projects!$A$5:$A$2426='MDOT FTA Detail'!$J$3)*(Projects!$C$5:$C$2426='MDOT FTA Detail'!$C$4)*(Projects!$L$5:$L$2426='MDOT FTA Detail'!$A25)*(Projects!$J$5:$J$2426<>'MDOT FTA Detail'!$A$171)*(Projects!$Q$5:$Q$2426)) -> 0 | M25: =SUMPRODUCT((Projects!$A$5:$A$2426='MDOT FTA Detail'!$M$3)*(Projects!$C$5:$C$2426='MDOT FTA Detail'!$C$4)*(Projects!$L$5:$L$2426='MDOT FTA Detail'!$A25)*(Projects!$J$5:$J$2426<>'MDOT FTA Detail'!$A$171)*(Projects!$K$5:$K$2426)) -> 0 | N25: 0 | O25: =SUMPRODUCT((Projects!$A$5:$A$2426='MDOT FTA Detail'!$M$3)*(Projects!$C$5:$C$2426='MDOT FTA Detail'!$C$4)*(Projects!$L$5:$L$2426='MDOT FTA Detail'!$A25)*(Projects!$J$5:$J$2426<>'MDOT FTA Detail'!$A$171)*(Projects!$Q$5:$Q$2426)) -> 0
A26: DOG | B26: ISTEA Demonstration 100% Federal Not Classified | C26: MDOT FA | D26: =SUMPRODUCT((Projects!$A$5:$A$2426='MDOT FTA Detail'!$D$3)*(Projects!$C$5:$C$2426='MDOT FTA Detail'!$C$4)*(Projects!$L$5:$L$2426='MDOT FTA Detail'!$A26)*(Projects!$J$5:$J$2426<>'MDOT FTA Detail'!$A$171)*(Projects!$K$5:K$2426)) -> 0 | E26: 0 | F26: =SUMPRODUCT((Projects!$A$5:$A$2426='MDOT FTA Detail'!$D$3)*(Projects!$C$5:$C$2426='MDOT FTA Detail'!$C$4)*(Projects!$L$5:$L$2426='MDOT FTA Detail'!$A26)*(Projects!$J$5:$J$2426<>'MDOT FTA Detail'!$A$171)*(Projects!$Q$5:Q$2426)) -> 0 | G26: =SUMPRODUCT((Projects!$A$5:$A$2426='MDOT FTA Detail'!$G$3)*(Projects!$C$5:$C$2426='MDOT FTA Detail'!$C$4)*(Projects!$L$5:$L$2426='MDOT FTA Detail'!$A26)*(Projects!$J$5:$J$2426<>'MDOT FTA Detail'!$A$171)*(Projects!$K$5:K$2426)) -> 0 | H26: 0 | I26: =SUMPRODUCT((Projects!$A$5:$A$2426='MDOT FTA Detail'!$G$3)*(Projects!$C$5:$C$2426='MDOT FTA Detail'!$C$4)*(Projects!$L$5:$L$2426='MDOT FTA Detail'!$A26)*(Projects!$J$5:$J$2426<>'MDOT FTA Detail'!$A$171)*(Projects!$Q$5:Q$2426)) -> 0 | J26: =SUMPRODUCT((Projects!$A$5:$A$2426='MDOT FTA Detail'!$J$3)*(Projects!$C$5:$C$2426='MDOT FTA Detail'!$C$4)*(Projects!$L$5:$L$2426='MDOT FTA Detail'!$A26)*(Projects!$J$5:$J$2426<>'MDOT FTA Detail'!$A$171)*(Projects!$K$5:$K$2426)) -> 0 | K26: 0 | L26: =SUMPRODUCT((Projects!$A$5:$A$2426='MDOT FTA Detail'!$J$3)*(Projects!$C$5:$C$2426='MDOT FTA Detail'!$C$4)*(Projects!$L$5:$L$2426='MDOT FTA Detail'!$A26)*(Projects!$J$5:$J$2426<>'MDOT FTA Detail'!$A$171)*(Projects!$Q$5:$Q$2426)) -> 0 | M26: =SUMPRODUCT((Projects!$A$5:$A$2426='MDOT FTA Detail'!$M$3)*(Projects!$C$5:$C$2426='MDOT FTA Detail'!$C$4)*(Projects!$L$5:$L$2426='MDOT FTA Detail'!$A26)*(Projects!$J$5:$J$2426<>'MDOT FTA Detail'!$A$171)*(Projects!$K$5:$K$2426)) -> 0 | N26: 0 | O26: =SUMPRODUCT((Projects!$A$5:$A$2426='MDOT FTA Detail'!$M$3)*(Projects!$C$5:$C$2426='MDOT FTA Detail'!$C$4)*(Projects!$L$5:$L$2426='MDOT FTA Detail'!$A26)*(Projects!$J$5:$J$2426<>'MDOT FTA Detail'!$A$171)*(Projects!$Q$5:$Q$2426)) -> 0
A27: DPN | B27: ISTEA Demonstration 80% Federal on NHS | C27: MDOT FA | D27: =SUMPRODUCT((Projects!$A$5:$A$2426='MDOT FTA Detail'!$D$3)*(Projects!$C$5:$C$2426='MDOT FTA Detail'!$C$4)*(Projects!$L$5:$L$2426='MDOT FTA Detail'!$A27)*(Projects!$J$5:$J$2426<>'MDOT FTA Detail'!$A$171)*(Projects!$K$5:K$2426)) -> 0 | E27: 0 | F27: =SUMPRODUCT((Projects!$A$5:$A$2426='MDOT FTA Detail'!$D$3)*(Projects!$C$5:$C$2426='MDOT FTA Detail'!$C$4)*(Projects!$L$5:$L$2426='MDOT FTA Detail'!$A27)*(Projects!$J$5:$J$2426<>'MDOT FTA Detail'!$A$171)*(Projects!$Q$5:Q$2426)) -> 0 | G27: =SUMPRODUCT((Projects!$A$5:$A$2426='MDOT FTA Detail'!$G$3)*(Projects!$C$5:$C$2426='MDOT FTA Detail'!$C$4)*(Projects!$L$5:$L$2426='MDOT FTA Detail'!$A27)*(Projects!$J$5:$J$2426<>'MDOT FTA Detail'!$A$171)*(Projects!$K$5:K$2426)) -> 0 | H27: 0 | I27: =SUMPRODUCT((Projects!$A$5:$A$2426='MDOT FTA Detail'!$G$3)*(Projects!$C$5:$C$2426='MDOT FTA Detail'!$C$4)*(Projects!$L$5:$L$2426='MDOT FTA Detail'!$A27)*(Projects!$J$5:$J$2426<>'MDOT FTA Detail'!$A$171)*(Projects!$Q$5:Q$2426)) -> 0 | J27: =SUMPRODUCT((Projects!$A$5:$A$2426='MDOT FTA Detail'!$J$3)*(Projects!$C$5:$C$2426='MDOT FTA Detail'!$C$4)*(Projects!$L$5:$L$2426='MDOT FTA Detail'!$A27)*(Projects!$J$5:$J$2426<>'MDOT FTA Detail'!$A$171)*(Projects!$K$5:$K$2426)) -> 0 | K27: 0 | L27: =SUMPRODUCT((Projects!$A$5:$A$2426='MDOT FTA Detail'!$J$3)*(Projects!$C$5:$C$2426='MDOT FTA Detail'!$C$4)*(Projects!$L$5:$L$2426='MDOT FTA Detail'!$A27)*(Projects!$J$5:$J$2426<>'MDOT FTA Detail'!$A$171)*(Projects!$Q$5:$Q$2426)) -> 0 | M27: =SUMPRODUCT((Projects!$A$5:$A$2426='MDOT FTA Detail'!$M$3)*(Projects!$C$5:$C$2426='MDOT FTA Detail'!$C$4)*(Projects!$L$5:$L$2426='MDOT FTA Detail'!$A27)*(Projects!$J$5:$J$2426<>'MDOT FTA Detail'!$A$171)*(Projects!$K$5:$K$2426)) -> 0 | N27: 0 | O27: =SUMPRODUCT((Projects!$A$5:$A$2426='MDOT FTA Detail'!$M$3)*(Projects!$C$5:$C$2426='MDOT FTA Detail'!$C$4)*(Projects!$L$5:$L$2426='MDOT FTA Detail'!$A27)*(Projects!$J$5:$J$2426<>'MDOT FTA Detail'!$A$171)*(Projects!$Q$5:$Q$2426)) -> 0
A28: DPO | B28: ISTEA Demonstration 80% Federal Not Classified | C28: MDOT FA | D28: =SUMPRODUCT((Projects!$A$5:$A$2426='MDOT FTA Detail'!$D$3)*(Projects!$C$5:$C$2426='MDOT FTA Detail'!$C$4)*(Projects!$L$5:$L$2426='MDOT FTA Detail'!$A28)*(Projects!$J$5:$J$2426<>'MDOT FTA Detail'!$A$171)*(Projects!$K$5:K$2426)) -> 0 | E28: 0 | F28: =SUMPRODUCT((Projects!$A$5:$A$2426='MDOT FTA Detail'!$D$3)*(Projects!$C$5:$C$2426='MDOT FTA Detail'!$C$4)*(Projects!$L$5:$L$2426='MDOT FTA Detail'!$A28)*(Projects!$J$5:$J$2426<>'MDOT FTA Detail'!$A$171)*(Projects!$Q$5:Q$2426)) -> 0 | G28: =SUMPRODUCT((Projects!$A$5:$A$2426='MDOT FTA Detail'!$G$3)*(Projects!$C$5:$C$2426='MDOT FTA Detail'!$C$4)*(Projects!$L$5:$L$2426='MDOT FTA Detail'!$A28)*(Projects!$J$5:$J$2426<>'MDOT FTA Detail'!$A$171)*(Projects!$K$5:K$2426)) -> 0 | H28: 0 | I28: =SUMPRODUCT((Projects!$A$5:$A$2426='MDOT FTA Detail'!$G$3)*(Projects!$C$5:$C$2426='MDOT FTA Detail'!$C$4)*(Projects!$L$5:$L$2426='MDOT FTA Detail'!$A28)*(Projects!$J$5:$J$2426<>'MDOT FTA Detail'!$A$171)*(Projects!$Q$5:Q$2426)) -> 0 | J28: =SUMPRODUCT((Projects!$A$5:$A$2426='MDOT FTA Detail'!$J$3)*(Projects!$C$5:$C$2426='MDOT FTA Detail'!$C$4)*(Projects!$L$5:$L$2426='MDOT FTA Detail'!$A28)*(Projects!$J$5:$J$2426<>'MDOT FTA Detail'!$A$171)*(Projects!$K$5:$K$2426)) -> 0 | K28: 0 | L28: =SUMPRODUCT((Projects!$A$5:$A$2426='MDOT FTA Detail'!$J$3)*(Projects!$C$5:$C$2426='MDOT FTA Detail'!$C$4)*(Projects!$L$5:$L$2426='MDOT FTA Detail'!$A28)*(Projects!$J$5:$J$2426<>'MDOT FTA Detail'!$A$171)*(Projects!$Q$5:$Q$2426)) -> 0 | M28: =SUMPRODUCT((Projects!$A$5:$A$2426='MDOT FTA Detail'!$M$3)*(Projects!$C$5:$C$2426='MDOT FTA Detail'!$C$4)*(Projects!$L$5:$L$2426='MDOT FTA Detail'!$A28)*(Projects!$J$5:$J$2426<>'MDOT FTA Detail'!$A$171)*(Projects!$K$5:$K$2426)) -> 0 | N28: 0 | O28: =SUMPRODUCT((Projects!$A$5:$A$2426='MDOT FTA Detail'!$M$3)*(Projects!$C$5:$C$2426='MDOT FTA Detail'!$C$4)*(Projects!$L$5:$L$2426='MDOT FTA Detail'!$A28)*(Projects!$J$5:$J$2426<>'MDOT FTA Detail'!$A$171)*(Projects!$Q$5:$Q$2426)) -> 0
A29: DPS | B29: ISTEA Demonstration 80% Federal on STP | C29: MDOT FA | D29: =SUMPRODUCT((Projects!$A$5:$A$2426='MDOT FTA Detail'!$D$3)*(Projects!$C$5:$C$2426='MDOT FTA Detail'!$C$4)*(Projects!$L$5:$L$2426='MDOT FTA Detail'!$A29)*(Projects!$J$5:$J$2426<>'MDOT FTA Detail'!$A$171)*(Projects!$K$5:K$2426)) -> 0 | E29: 0 | F29: =SUMPRODUCT((Projects!$A$5:$A$2426='MDOT FTA Detail'!$D$3)*(Projects!$C$5:$C$2426='MDOT FTA Detail'!$C$4)*(Projects!$L$5:$L$2426='MDOT FTA Detail'!$A29)*(Projects!$J$5:$J$2426<>'MDOT FTA Detail'!$A$171)*(Projects!$Q$5:Q$2426)) -> 0 | G29: =SUMPRODUCT((Projects!$A$5:$A$2426='MDOT FTA Detail'!$G$3)*(Projects!$C$5:$C$2426='MDOT FTA Detail'!$C$4)*(Projects!$L$5:$L$2426='MDOT FTA Detail'!$A29)*(Projects!$J$5:$J$2426<>'MDOT FTA Detail'!$A$171)*(Projects!$K$5:K$2426)) -> 0 | H29: 0 | I29: =SUMPRODUCT((Projects!$A$5:$A$2426='MDOT FTA Detail'!$G$3)*(Projects!$C$5:$C$2426='MDOT FTA Detail'!$C$4)*(Projects!$L$5:$L$2426='MDOT FTA Detail'!$A29)*(Projects!$J$5:$J$2426<>'MDOT FTA Detail'!$A$171)*(Projects!$Q$5:Q$2426)) -> 0 | J29: =SUMPRODUCT((Projects!$A$5:$A$2426='MDOT FTA Detail'!$J$3)*(Projects!$C$5:$C$2426='MDOT FTA Detail'!$C$4)*(Projects!$L$5:$L$2426='MDOT FTA Detail'!$A29)*(Projects!$J$5:$J$2426<>'MDOT FTA Detail'!$A$171)*(Projects!$K$5:$K$2426)) -> 0 | K29: 0 | L29: =SUMPRODUCT((Projects!$A$5:$A$2426='MDOT FTA Detail'!$J$3)*(Projects!$C$5:$C$2426='MDOT FTA Detail'!$C$4)*(Projects!$L$5:$L$2426='MDOT FTA Detail'!$A29)*(Projects!$J$5:$J$2426<>'MDOT FTA Detail'!$A$171)*(Projects!$Q$5:$Q$2426)) -> 0 | M29: =SUMPRODUCT((Projects!$A$5:$A$2426='MDOT FTA Detail'!$M$3)*(Projects!$C$5:$C$2426='MDOT FTA Detail'!$C$4)*(Projects!$L$5:$L$2426='MDOT FTA Detail'!$A29)*(Projects!$J$5:$J$2426<>'MDOT FTA Detail'!$A$171)*(Projects!$K$5:$K$2426)) -> 0 | N29: 0 | O29: =SUMPRODUCT((Projects!$A$5:$A$2426='MDOT FTA Detail'!$M$3)*(Projects!$C$5:$C$2426='MDOT FTA Detail'!$C$4)*(Projects!$L$5:$L$2426='MDOT FTA Detail'!$A29)*(Projects!$J$5:$J$2426<>'MDOT FTA Detail'!$A$171)*(Projects!$Q$5:$Q$2426)) -> 0
A30: DPSA | B30: Demonstration Project Section 112 Division A | C30: MDOT FA | D30: =SUMPRODUCT((Projects!$A$5:$A$2426='MDOT FTA Detail'!$D$3)*(Projects!$C$5:$C$2426='MDOT FTA Detail'!$C$4)*(Projects!$L$5:$L$2426='MDOT FTA Detail'!$A30)*(Projects!$J$5:$J$2426<>'MDOT FTA Detail'!$A$171)*(Projects!$K$5:K$2426)) -> 0 | E30: 0 | F30: =SUMPRODUCT((Projects!$A$5:$A$2426='MDOT FTA Detail'!$D$3)*(Projects!$C$5:$C$2426='MDOT FTA Detail'!$C$4)*(Projects!$L$5:$L$2426='MDOT FTA Detail'!$A30)*(Projects!$J$5:$J$2426<>'MDOT FTA Detail'!$A$171)*(Projects!$Q$5:Q$2426)) -> 0 | G30: =SUMPRODUCT((Projects!$A$5:$A$2426='MDOT FTA Detail'!$G$3)*(Projects!$C$5:$C$2426='MDOT FTA Detail'!$C$4)*(Projects!$L$5:$L$2426='MDOT FTA Detail'!$A30)*(Projects!$J$5:$J$2426<>'MDOT FTA Detail'!$A$171)*(Projects!$K$5:K$2426)) -> 0 | H30: 0 | I30: =SUMPRODUCT((Projects!$A$5:$A$2426='MDOT FTA Detail'!$G$3)*(Projects!$C$5:$C$2426='MDOT FTA Detail'!$C$4)*(Projects!$L$5:$L$2426='MDOT FTA Detail'!$A30)*(Projects!$J$5:$J$2426<>'MDOT FTA Detail'!$A$171)*(Projects!$Q$5:Q$2426)) -> 0 | J30: =SUMPRODUCT((Projects!$A$5:$A$2426='MDOT FTA Detail'!$J$3)*(Projects!$C$5:$C$2426='MDOT FTA Detail'!$C$4)*(Projects!$L$5:$L$2426='MDOT FTA Detail'!$A30)*(Projects!$J$5:$J$2426<>'MDOT FTA Detail'!$A$171)*(Projects!$K$5:$K$2426)) -> 0 | K30: 0 | L30: =SUMPRODUCT((Projects!$A$5:$A$2426='MDOT FTA Detail'!$J$3)*(Projects!$C$5:$C$2426='MDOT FTA Detail'!$C$4)*(Projects!$L$5:$L$2426='MDOT FTA Detail'!$A30)*(Projects!$J$5:$J$2426<>'MDOT FTA Detail'!$A$171)*(Projects!$Q$5:$Q$2426)) -> 0 | M30: =SUMPRODUCT((Projects!$A$5:$A$2426='MDOT FTA Detail'!$M$3)*(Projects!$C$5:$C$2426='MDOT FTA Detail'!$C$4)*(Projects!$L$5:$L$2426='MDOT FTA Detail'!$A30)*(Projects!$J$5:$J$2426<>'MDOT FTA Detail'!$A$171)*(Projects!$K$5:$K$2426)) -> 0 | N30: 0 | O30: =SUMPRODUCT((Projects!$A$5:$A$2426='MDOT FTA Detail'!$M$3)*(Projects!$C$5:$C$2426='MDOT FTA Detail'!$C$4)*(Projects!$L$5:$L$2426='MDOT FTA Detail'!$A30)*(Projects!$J$5:$J$2426<>'MDOT FTA Detail'!$A$171)*(Projects!$Q$5:$Q$2426)) -> 0
A31: DST | B31: Donor Bonus Surface Transportation | C31: MDOT FA | D31: =SUMPRODUCT((Projects!$A$5:$A$2426='MDOT FTA Detail'!$D$3)*(Projects!$C$5:$C$2426='MDOT FTA Detail'!$C$4)*(Projects!$L$5:$L$2426='MDOT FTA Detail'!$A31)*(Projects!$J$5:$J$2426<>'MDOT FTA Detail'!$A$171)*(Projects!$K$5:K$2426)) -> 0 | E31: 0 | F31: =SUMPRODUCT((Projects!$A$5:$A$2426='MDOT FTA Detail'!$D$3)*(Projects!$C$5:$C$2426='MDOT FTA Detail'!$C$4)*(Projects!$L$5:$L$2426='MDOT FTA Detail'!$A31)*(Projects!$J$5:$J$2426<>'MDOT FTA Detail'!$A$171)*(Projects!$Q$5:Q$2426)) -> 0 | G31: =SUMPRODUCT((Projects!$A$5:$A$2426='MDOT FTA Detail'!$G$3)*(Projects!$C$5:$C$2426='MDOT FTA Detail'!$C$4)*(Projects!$L$5:$L$2426='MDOT FTA Detail'!$A31)*(Projects!$J$5:$J$2426<>'MDOT FTA Detail'!$A$171)*(Projects!$K$5:K$2426)) -> 0 | H31: 0 | I31: =SUMPRODUCT((Projects!$A$5:$A$2426='MDOT FTA Detail'!$G$3)*(Projects!$C$5:$C$2426='MDOT FTA Detail'!$C$4)*(Projects!$L$5:$L$2426='MDOT FTA Detail'!$A31)*(Projects!$J$5:$J$2426<>'MDOT FTA Detail'!$A$171)*(Projects!$Q$5:Q$2426)) -> 0 | J31: =SUMPRODUCT((Projects!$A$5:$A$2426='MDOT FTA Detail'!$J$3)*(Projects!$C$5:$C$2426='MDOT FTA Detail'!$C$4)*(Projects!$L$5:$L$2426='MDOT FTA Detail'!$A31)*(Projects!$J$5:$J$2426<>'MDOT FTA Detail'!$A$171)*(Projects!$K$5:$K$2426)) -> 0 | K31: 0 | L31: =SUMPRODUCT((Projects!$A$5:$A$2426='MDOT FTA Detail'!$J$3)*(Projects!$C$5:$C$2426='MDOT FTA Detail'!$C$4)*(Projects!$L$5:$L$2426='MDOT FTA Detail'!$A31)*(Projects!$J$5:$J$2426<>'MDOT FTA Detail'!$A$171)*(Projects!$Q$5:$Q$2426)) -> 0 | M31: =SUMPRODUCT((Projects!$A$5:$A$2426='MDOT FTA Detail'!$M$3)*(Projects!$C$5:$C$2426='MDOT FTA Detail'!$C$4)*(Projects!$L$5:$L$2426='MDOT FTA Detail'!$A31)*(Projects!$J$5:$J$2426<>'MDOT FTA Detail'!$A$171)*(Projects!$K$5:$K$2426)) -> 0 | N31: 0 | O31: =SUMPRODUCT((Projects!$A$5:$A$2426='MDOT FTA Detail'!$M$3)*(Projects!$C$5:$C$2426='MDOT FTA Detail'!$C$4)*(Projects!$L$5:$L$2426='MDOT FTA Detail'!$A31)*(Projects!$J$5:$J$2426<>'MDOT FTA Detail'!$A$171)*(Projects!$Q$5:$Q$2426)) -> 0
A32: DSTU | B32: Donor Bonus Surface Transportation - (Urban > 2499,000) | C32: MDOT FA | D32: =SUMPRODUCT((Projects!$A$5:$A$2426='MDOT FTA Detail'!$D$3)*(Projects!$C$5:$C$2426='MDOT FTA Detail'!$C$4)*(Projects!$L$5:$L$2426='MDOT FTA Detail'!$A32)*(Projects!$J$5:$J$2426<>'MDOT FTA Detail'!$A$171)*(Projects!$K$5:K$2426)) -> 0 | E32: 0 | F32: =SUMPRODUCT((Projects!$A$5:$A$2426='MDOT FTA Detail'!$D$3)*(Projects!$C$5:$C$2426='MDOT FTA Detail'!$C$4)*(Projects!$L$5:$L$2426='MDOT FTA Detail'!$A32)*(Projects!$J$5:$J$2426<>'MDOT FTA Detail'!$A$171)*(Projects!$Q$5:Q$2426)) -> 0 | G32: =SUMPRODUCT((Projects!$A$5:$A$2426='MDOT FTA Detail'!$G$3)*(Projects!$C$5:$C$2426='MDOT FTA Detail'!$C$4)*(Projects!$L$5:$L$2426='MDOT FTA Detail'!$A32)*(Projects!$J$5:$J$2426<>'MDOT FTA Detail'!$A$171)*(Projects!$K$5:K$2426)) -> 0 | H32: 0 | I32: =SUMPRODUCT((Projects!$A$5:$A$2426='MDOT FTA Detail'!$G$3)*(Projects!$C$5:$C$2426='MDOT FTA Detail'!$C$4)*(Projects!$L$5:$L$2426='MDOT FTA Detail'!$A32)*(Projects!$J$5:$J$2426<>'MDOT FTA Detail'!$A$171)*(Projects!$Q$5:Q$2426)) -> 0 | J32: =SUMPRODUCT((Projects!$A$5:$A$2426='MDOT FTA Detail'!$J$3)*(Projects!$C$5:$C$2426='MDOT FTA Detail'!$C$4)*(Projects!$L$5:$L$2426='MDOT FTA Detail'!$A32)*(Projects!$J$5:$J$2426<>'MDOT FTA Detail'!$A$171)*(Projects!$K$5:$K$2426)) -> 0 | K32: 0 | L32: =SUMPRODUCT((Projects!$A$5:$A$2426='MDOT FTA Detail'!$J$3)*(Projects!$C$5:$C$2426='MDOT FTA Detail'!$C$4)*(Projects!$L$5:$L$2426='MDOT FTA Detail'!$A32)*(Projects!$J$5:$J$2426<>'MDOT FTA Detail'!$A$171)*(Projects!$Q$5:$Q$2426)) -> 0 | M32: =SUMPRODUCT((Projects!$A$5:$A$2426='MDOT FTA Detail'!$M$3)*(Projects!$C$5:$C$2426='MDOT FTA Detail'!$C$4)*(Projects!$L$5:$L$2426='MDOT FTA Detail'!$A32)*(Projects!$J$5:$J$2426<>'MDOT FTA Detail'!$A$171)*(Projects!$K$5:$K$2426)) -> 0 | N32: 0 | O32: =SUMPRODUCT((Projects!$A$5:$A$2426='MDOT FTA Detail'!$M$3)*(Projects!$C$5:$C$2426='MDOT FTA Detail'!$C$4)*(Projects!$L$5:$L$2426='MDOT FTA Detail'!$A32)*(Projects!$J$5:$J$2426<>'MDOT FTA Detail'!$A$171)*(Projects!$Q$5:$Q$2426)) -> 0
A33: DSTT | B33: Donor Bonus Surface Transportation - Rural - Trunkline | C33: MDOT FA | D33: =SUMPRODUCT((Projects!$A$5:$A$2426='MDOT FTA Detail'!$D$3)*(Projects!$C$5:$C$2426='MDOT FTA Detail'!$C$4)*(Projects!$L$5:$L$2426='MDOT FTA Detail'!$A33)*(Projects!$J$5:$J$2426<>'MDOT FTA Detail'!$A$171)*(Projects!$K$5:K$2426)) -> 0 | E33: 0 | F33: =SUMPRODUCT((Projects!$A$5:$A$2426='MDOT FTA Detail'!$D$3)*(Projects!$C$5:$C$2426='MDOT FTA Detail'!$C$4)*(Projects!$L$5:$L$2426='MDOT FTA Detail'!$A33)*(Projects!$J$5:$J$2426<>'MDOT FTA Detail'!$A$171)*(Projects!$Q$5:Q$2426)) -> 0 | G33: =SUMPRODUCT((Projects!$A$5:$A$2426='MDOT FTA Detail'!$G$3)*(Projects!$C$5:$C$2426='MDOT FTA Detail'!$C$4)*(Projects!$L$5:$L$2426='MDOT FTA Detail'!$A33)*(Projects!$J$5:$J$2426<>'MDOT FTA Detail'!$A$171)*(Projects!$K$5:K$2426)) -> 0 | H33: 0 | I33: =SUMPRODUCT((Projects!$A$5:$A$2426='MDOT FTA Detail'!$G$3)*(Projects!$C$5:$C$2426='MDOT FTA Detail'!$C$4)*(Projects!$L$5:$L$2426='MDOT FTA Detail'!$A33)*(Projects!$J$5:$J$2426<>'MDOT FTA Detail'!$A$171)*(Projects!$Q$5:Q$2426)) -> 0 | J33: =SUMPRODUCT((Projects!$A$5:$A$2426='MDOT FTA Detail'!$J$3)*(Projects!$C$5:$C$2426='MDOT FTA Detail'!$C$4)*(Projects!$L$5:$L$2426='MDOT FTA Detail'!$A33)*(Projects!$J$5:$J$2426<>'MDOT FTA Detail'!$A$171)*(Projects!$K$5:$K$2426)) -> 0 | K33: 0 | L33: =SUMPRODUCT((Projects!$A$5:$A$2426='MDOT FTA Detail'!$J$3)*(Projects!$C$5:$C$2426='MDOT FTA Detail'!$C$4)*(Projects!$L$5:$L$2426='MDOT FTA Detail'!$A33)*(Projects!$J$5:$J$2426<>'MDOT FTA Detail'!$A$171)*(Projects!$Q$5:$Q$2426)) -> 0 | M33: =SUMPRODUCT((Projects!$A$5:$A$2426='MDOT FTA Detail'!$M$3)*(Projects!$C$5:$C$2426='MDOT FTA Detail'!$C$4)*(Projects!$L$5:$L$2426='MDOT FTA Detail'!$A33)*(Projects!$J$5:$J$2426<>'MDOT FTA Detail'!$A$171)*(Projects!$K$5:$K$2426)) -> 0 | N33: 0 | O33: =SUMPRODUCT((Projects!$A$5:$A$2426='MDOT FTA Detail'!$M$3)*(Projects!$C$5:$C$2426='MDOT FTA Detail'!$C$4)*(Projects!$L$5:$L$2426='MDOT FTA Detail'!$A33)*(Projects!$J$5:$J$2426<>'MDOT FTA Detail'!$A$171)*(Projects!$Q$5:$Q$2426)) -> 0
A34: EBSL | B34: Equity Bonus - SAFETEA-LU | C34: MDOT FA | D34: =SUMPRODUCT((Projects!$A$5:$A$2426='MDOT FTA Detail'!$D$3)*(Projects!$C$5:$C$2426='MDOT FTA Detail'!$C$4)*(Projects!$L$5:$L$2426='MDOT FTA Detail'!$A34)*(Projects!$J$5:$J$2426<>'MDOT FTA Detail'!$A$171)*(Projects!$K$5:K$2426)) -> 0 | E34: 0 | F34: =SUMPRODUCT((Projects!$A$5:$A$2426='MDOT FTA Detail'!$D$3)*(Projects!$C$5:$C$2426='MDOT FTA Detail'!$C$4)*(Projects!$L$5:$L$2426='MDOT FTA Detail'!$A34)*(Projects!$J$5:$J$2426<>'MDOT FTA Detail'!$A$171)*(Projects!$Q$5:Q$2426)) -> 0 | G34: =SUMPRODUCT((Projects!$A$5:$A$2426='MDOT FTA Detail'!$G$3)*(Projects!$C$5:$C$2426='MDOT FTA Detail'!$C$4)*(Projects!$L$5:$L$2426='MDOT FTA Detail'!$A34)*(Projects!$J$5:$J$2426<>'MDOT FTA Detail'!$A$171)*(Projects!$K$5:K$2426)) -> 0 | H34: 0 | I34: =SUMPRODUCT((Projects!$A$5:$A$2426='MDOT FTA Detail'!$G$3)*(Projects!$C$5:$C$2426='MDOT FTA Detail'!$C$4)*(Projects!$L$5:$L$2426='MDOT FTA Detail'!$A34)*(Projects!$J$5:$J$2426<>'MDOT FTA Detail'!$A$171)*(Projects!$Q$5:Q$2426)) -> 0 | J34: =SUMPRODUCT((Projects!$A$5:$A$2426='MDOT FTA Detail'!$J$3)*(Projects!$C$5:$C$2426='MDOT FTA Detail'!$C$4)*(Projects!$L$5:$L$2426='MDOT FTA Detail'!$A34)*(Projects!$J$5:$J$2426<>'MDOT FTA Detail'!$A$171)*(Projects!$K$5:$K$2426)) -> 0 | K34: 0 | L34: =SUMPRODUCT((Projects!$A$5:$A$2426='MDOT FTA Detail'!$J$3)*(Projects!$C$5:$C$2426='MDOT FTA Detail'!$C$4)*(Projects!$L$5:$L$2426='MDOT FTA Detail'!$A34)*(Projects!$J$5:$J$2426<>'MDOT FTA Detail'!$A$171)*(Projects!$Q$5:$Q$2426)) -> 0 | M34: =SUMPRODUCT((Projects!$A$5:$A$2426='MDOT FTA Detail'!$M$3)*(Projects!$C$5:$C$2426='MDOT FTA Detail'!$C$4)*(Projects!$L$5:$L$2426='MDOT FTA Detail'!$A34)*(Projects!$J$5:$J$2426<>'MDOT FTA Detail'!$A$171)*(Projects!$K$5:$K$2426)) -> 0 | N34: 0 | O34: =SUMPRODUCT((Projects!$A$5:$A$2426='MDOT FTA Detail'!$M$3)*(Projects!$C$5:$C$2426='MDOT FTA Detail'!$C$4)*(Projects!$L$5:$L$2426='MDOT FTA Detail'!$A34)*(Projects!$J$5:$J$2426<>'MDOT FTA Detail'!$A$171)*(Projects!$Q$5:$Q$2426)) -> 0
A35: EDAF | B35: Economic Development - Category A with Federal Aid | C35: MDOT FA | D35: =SUMPRODUCT((Projects!$A$5:$A$2426='MDOT FTA Detail'!$D$3)*(Projects!$C$5:$C$2426='MDOT FTA Detail'!$C$4)*(Projects!$L$5:$L$2426='MDOT FTA Detail'!$A35)*(Projects!$J$5:$J$2426<>'MDOT FTA Detail'!$A$171)*(Projects!$K$5:K$2426)) -> 0 | E35: 0 | F35: =SUMPRODUCT((Projects!$A$5:$A$2426='MDOT FTA Detail'!$D$3)*(Projects!$C$5:$C$2426='MDOT FTA Detail'!$C$4)*(Projects!$L$5:$L$2426='MDOT FTA Detail'!$A35)*(Projects!$J$5:$J$2426<>'MDOT FTA Detail'!$A$171)*(Projects!$Q$5:Q$2426)) -> 0 | G35: =SUMPRODUCT((Projects!$A$5:$A$2426='MDOT FTA Detail'!$G$3)*(Projects!$C$5:$C$2426='MDOT FTA Detail'!$C$4)*(Projects!$L$5:$L$2426='MDOT FTA Detail'!$A35)*(Projects!$J$5:$J$2426<>'MDOT FTA Detail'!$A$171)*(Projects!$K$5:K$2426)) -> 0 | H35: 0 | I35: =SUMPRODUCT((Projects!$A$5:$A$2426='MDOT FTA Detail'!$G$3)*(Projects!$C$5:$C$2426='MDOT FTA Detail'!$C$4)*(Projects!$L$5:$L$2426='MDOT FTA Detail'!$A35)*(Projects!$J$5:$J$2426<>'MDOT FTA Detail'!$A$171)*(Projects!$Q$5:Q$2426)) -> 0 | J35: =SUMPRODUCT((Projects!$A$5:$A$2426='MDOT FTA Detail'!$J$3)*(Projects!$C$5:$C$2426='MDOT FTA Detail'!$C$4)*(Projects!$L$5:$L$2426='MDOT FTA Detail'!$A35)*(Projects!$J$5:$J$2426<>'MDOT FTA Detail'!$A$171)*(Projects!$K$5:$K$2426)) -> 0 | K35: 0 | L35: =SUMPRODUCT((Projects!$A$5:$A$2426='MDOT FTA Detail'!$J$3)*(Projects!$C$5:$C$2426='MDOT FTA Detail'!$C$4)*(Projects!$L$5:$L$2426='MDOT FTA Detail'!$A35)*(Projects!$J$5:$J$2426<>'MDOT FTA Detail'!$A$171)*(Projects!$Q$5:$Q$2426)) -> 0 | M35: =SUMPRODUCT((Projects!$A$5:$A$2426='MDOT FTA Detail'!$M$3)*(Projects!$C$5:$C$2426='MDOT FTA Detail'!$C$4)*(Projects!$L$5:$L$2426='MDOT FTA Detail'!$A35)*(Projects!$J$5:$J$2426<>'MDOT FTA Detail'!$A$171)*(Projects!$K$5:$K$2426)) -> 0 | N35: 0 | O35: =SUMPRODUCT((Projects!$A$5:$A$2426='MDOT FTA Detail'!$M$3)*(Projects!$C$5:$C$2426='MDOT FTA Detail'!$C$4)*(Projects!$L$5:$L$2426='MDOT FTA Detail'!$A35)*(Projects!$J$5:$J$2426<>'MDOT FTA Detail'!$A$171)*(Projects!$Q$5:$Q$2426)) -> 0
A36: EDCF | B36: Economic Development - Category C with Federal Aid | C36: MDOT FA | D36: =SUMPRODUCT((Projects!$A$5:$A$2426='MDOT FTA Detail'!$D$3)*(Projects!$C$5:$C$2426='MDOT FTA Detail'!$C$4)*(Projects!$L$5:$L$2426='MDOT FTA Detail'!$A36)*(Projects!$J$5:$J$2426<>'MDOT FTA Detail'!$A$171)*(Projects!$K$5:K$2426)) -> 0 | E36: 0 | F36: =SUMPRODUCT((Projects!$A$5:$A$2426='MDOT FTA Detail'!$D$3)*(Projects!$C$5:$C$2426='MDOT FTA Detail'!$C$4)*(Projects!$L$5:$L$2426='MDOT FTA Detail'!$A36)*(Projects!$J$5:$J$2426<>'MDOT FTA Detail'!$A$171)*(Projects!$Q$5:Q$2426)) -> 0 | G36: =SUMPRODUCT((Projects!$A$5:$A$2426='MDOT FTA Detail'!$G$3)*(Projects!$C$5:$C$2426='MDOT FTA Detail'!$C$4)*(Projects!$L$5:$L$2426='MDOT FTA Detail'!$A36)*(Projects!$J$5:$J$2426<>'MDOT FTA Detail'!$A$171)*(Projects!$K$5:K$2426)) -> 0 | H36: 0 | I36: =SUMPRODUCT((Projects!$A$5:$A$2426='MDOT FTA Detail'!$G$3)*(Projects!$C$5:$C$2426='MDOT FTA Detail'!$C$4)*(Projects!$L$5:$L$2426='MDOT FTA Detail'!$A36)*(Projects!$J$5:$J$2426<>'MDOT FTA Detail'!$A$171)*(Projects!$Q$5:Q$2426)) -> 0 | J36: =SUMPRODUCT((Projects!$A$5:$A$2426='MDOT FTA Detail'!$J$3)*(Projects!$C$5:$C$2426='MDOT FTA Detail'!$C$4)*(Projects!$L$5:$L$2426='MDOT FTA Detail'!$A36)*(Projects!$J$5:$J$2426<>'MDOT FTA Detail'!$A$171)*(Projects!$K$5:$K$2426)) -> 0 | K36: 0 | L36: =SUMPRODUCT((Projects!$A$5:$A$2426='MDOT FTA Detail'!$J$3)*(Projects!$C$5:$C$2426='MDOT FTA Detail'!$C$4)*(Projects!$L$5:$L$2426='MDOT FTA Detail'!$A36)*(Projects!$J$5:$J$2426<>'MDOT FTA Detail'!$A$171)*(Projects!$Q$5:$Q$2426)) -> 0 | M36: =SUMPRODUCT((Projects!$A$5:$A$2426='MDOT FTA Detail'!$M$3)*(Projects!$C$5:$C$2426='MDOT FTA Detail'!$C$4)*(Projects!$L$5:$L$2426='MDOT FTA Detail'!$A36)*(Projects!$J$5:$J$2426<>'MDOT FTA Detail'!$A$171)*(Projects!$K$5:$K$2426)) -> 0 | N36: 0 | O36: =SUMPRODUCT((Projects!$A$5:$A$2426='MDOT FTA Detail'!$M$3)*(Projects!$C$5:$C$2426='MDOT FTA Detail'!$C$4)*(Projects!$L$5:$L$2426='MDOT FTA Detail'!$A36)*(Projects!$J$5:$J$2426<>'MDOT FTA Detail'!$A$171)*(Projects!$Q$5:$Q$2426)) -> 0
A37: EDDF | B37: Economic Development - Category D with Federal Aid | C37: MDOT FA | D37: =SUMPRODUCT((Projects!$A$5:$A$2426='MDOT FTA Detail'!$D$3)*(Projects!$C$5:$C$2426='MDOT FTA Detail'!$C$4)*(Projects!$L$5:$L$2426='MDOT FTA Detail'!$A37)*(Projects!$J$5:$J$2426<>'MDOT FTA Detail'!$A$171)*(Projects!$K$5:K$2426)) -> 0 | E37: 0 | F37: =SUMPRODUCT((Projects!$A$5:$A$2426='MDOT FTA Detail'!$D$3)*(Projects!$C$5:$C$2426='MDOT FTA Detail'!$C$4)*(Projects!$L$5:$L$2426='MDOT FTA Detail'!$A37)*(Projects!$J$5:$J$2426<>'MDOT FTA Detail'!$A$171)*(Projects!$Q$5:Q$2426)) -> 0 | G37: =SUMPRODUCT((Projects!$A$5:$A$2426='MDOT FTA Detail'!$G$3)*(Projects!$C$5:$C$2426='MDOT FTA Detail'!$C$4)*(Projects!$L$5:$L$2426='MDOT FTA Detail'!$A37)*(Projects!$J$5:$J$2426<>'MDOT FTA Detail'!$A$171)*(Projects!$K$5:K$2426)) -> 0 | H37: 0 | I37: =SUMPRODUCT((Projects!$A$5:$A$2426='MDOT FTA Detail'!$G$3)*(Projects!$C$5:$C$2426='MDOT FTA Detail'!$C$4)*(Projects!$L$5:$L$2426='MDOT FTA Detail'!$A37)*(Projects!$J$5:$J$2426<>'MDOT FTA Detail'!$A$171)*(Projects!$Q$5:Q$2426)) -> 0 | J37: =SUMPRODUCT((Projects!$A$5:$A$2426='MDOT FTA Detail'!$J$3)*(Projects!$C$5:$C$2426='MDOT FTA Detail'!$C$4)*(Projects!$L$5:$L$2426='MDOT FTA Detail'!$A37)*(Projects!$J$5:$J$2426<>'MDOT FTA Detail'!$A$171)*(Projects!$K$5:$K$2426)) -> 0 | K37: 0 | L37: =SUMPRODUCT((Projects!$A$5:$A$2426='MDOT FTA Detail'!$J$3)*(Projects!$C$5:$C$2426='MDOT FTA Detail'!$C$4)*(Projects!$L$5:$L$2426='MDOT FTA Detail'!$A37)*(Projects!$J$5:$J$2426<>'MDOT FTA Detail'!$A$171)*(Projects!$Q$5:$Q$2426)) -> 0 | M37: =SUMPRODUCT((Projects!$A$5:$A$2426='MDOT FTA Detail'!$M$3)*(Projects!$C$5:$C$2426='MDOT FTA Detail'!$C$4)*(Projects!$L$5:$L$2426='MDOT FTA Detail'!$A37)*(Projects!$J$5:$J$2426<>'MDOT FTA Detail'!$A$171)*(Projects!$K$5:$K$2426)) -> 0 | N37: 0 | O37: =SUMPRODUCT((Projects!$A$5:$A$2426='MDOT FTA Detail'!$M$3)*(Projects!$C$5:$C$2426='MDOT FTA Detail'!$C$4)*(Projects!$L$5:$L$2426='MDOT FTA Detail'!$A37)*(Projects!$J$5:$J$2426<>'MDOT FTA Detail'!$A$171)*(Projects!$Q$5:$Q$2426)) -> 0
A38: EDFF | B38: Economic Development - Category F with Federal Aid | C38: MDOT FA | D38: =SUMPRODUCT((Projects!$A$5:$A$2426='MDOT FTA Detail'!$D$3)*(Projects!$C$5:$C$2426='MDOT FTA Detail'!$C$4)*(Projects!$L$5:$L$2426='MDOT FTA Detail'!$A38)*(Projects!$J$5:$J$2426<>'MDOT FTA Detail'!$A$171)*(Projects!$K$5:K$2426)) -> 0 | E38: 0 | F38: =SUMPRODUCT((Projects!$A$5:$A$2426='MDOT FTA Detail'!$D$3)*(Projects!$C$5:$C$2426='MDOT FTA Detail'!$C$4)*(Projects!$L$5:$L$2426='MDOT FTA Detail'!$A38)*(Projects!$J$5:$J$2426<>'MDOT FTA Detail'!$A$171)*(Projects!$Q$5:Q$2426)) -> 0 | G38: =SUMPRODUCT((Projects!$A$5:$A$2426='MDOT FTA Detail'!$G$3)*(Projects!$C$5:$C$2426='MDOT FTA Detail'!$C$4)*(Projects!$L$5:$L$2426='MDOT FTA Detail'!$A38)*(Projects!$J$5:$J$2426<>'MDOT FTA Detail'!$A$171)*(Projects!$K$5:K$2426)) -> 0 | H38: 0 | I38: =SUMPRODUCT((Projects!$A$5:$A$2426='MDOT FTA Detail'!$G$3)*(Projects!$C$5:$C$2426='MDOT FTA Detail'!$C$4)*(Projects!$L$5:$L$2426='MDOT FTA Detail'!$A38)*(Projects!$J$5:$J$2426<>'MDOT FTA Detail'!$A$171)*(Projects!$Q$5:Q$2426)) -> 0 | J38: =SUMPRODUCT((Projects!$A$5:$A$2426='MDOT FTA Detail'!$J$3)*(Projects!$C$5:$C$2426='MDOT FTA Detail'!$C$4)*(Projects!$L$5:$L$2426='MDOT FTA Detail'!$A38)*(Projects!$J$5:$J$2426<>'MDOT FTA Detail'!$A$171)*(Projects!$K$5:$K$2426)) -> 0 | K38: 0 | L38: =SUMPRODUCT((Projects!$A$5:$A$2426='MDOT FTA Detail'!$J$3)*(Projects!$C$5:$C$2426='MDOT FTA Detail'!$C$4)*(Projects!$L$5:$L$2426='MDOT FTA Detail'!$A38)*(Projects!$J$5:$J$2426<>'MDOT FTA Detail'!$A$171)*(Projects!$Q$5:$Q$2426)) -> 0 | M38: =SUMPRODUCT((Projects!$A$5:$A$2426='MDOT FTA Detail'!$M$3)*(Projects!$C$5:$C$2426='MDOT FTA Detail'!$C$4)*(Projects!$L$5:$L$2426='MDOT FTA Detail'!$A38)*(Projects!$J$5:$J$2426<>'MDOT FTA Detail'!$A$171)*(Projects!$K$5:$K$2426)) -> 0 | N38: 0 | O38: =SUMPRODUCT((Projects!$A$5:$A$2426='MDOT FTA Detail'!$M$3)*(Projects!$C$5:$C$2426='MDOT FTA Detail'!$C$4)*(Projects!$L$5:$L$2426='MDOT FTA Detail'!$A38)*(Projects!$J$5:$J$2426<>'MDOT FTA Detail'!$A$171)*(Projects!$Q$5:$Q$2426)) -> 0
A39: ER | B39: Emergency Relief | C39: MDOT FA | D39: =SUMPRODUCT((Projects!$A$5:$A$2426='MDOT FTA Detail'!$D$3)*(Projects!$C$5:$C$2426='MDOT FTA Detail'!$C$4)*(Projects!$L$5:$L$2426='MDOT FTA Detail'!$A39)*(Projects!$J$5:$J$2426<>'MDOT FTA Detail'!$A$171)*(Projects!$K$5:K$2426)) -> 0 | E39: 0 | F39: =SUMPRODUCT((Projects!$A$5:$A$2426='MDOT FTA Detail'!$D$3)*(Projects!$C$5:$C$2426='MDOT FTA Detail'!$C$4)*(Projects!$L$5:$L$2426='MDOT FTA Detail'!$A39)*(Projects!$J$5:$J$2426<>'MDOT FTA Detail'!$A$171)*(Projects!$Q$5:Q$2426)) -> 0 | G39: =SUMPRODUCT((Projects!$A$5:$A$2426='MDOT FTA Detail'!$G$3)*(Projects!$C$5:$C$2426='MDOT FTA Detail'!$C$4)*(Projects!$L$5:$L$2426='MDOT FTA Detail'!$A39)*(Projects!$J$5:$J$2426<>'MDOT FTA Detail'!$A$171)*(Projects!$K$5:K$2426)) -> 0 | H39: 0 | I39: =SUMPRODUCT((Projects!$A$5:$A$2426='MDOT FTA Detail'!$G$3)*(Projects!$C$5:$C$2426='MDOT FTA Detail'!$C$4)*(Projects!$L$5:$L$2426='MDOT FTA Detail'!$A39)*(Projects!$J$5:$J$2426<>'MDOT FTA Detail'!$A$171)*(Projects!$Q$5:Q$2426)) -> 0 | J39: =SUMPRODUCT((Projects!$A$5:$A$2426='MDOT FTA Detail'!$J$3)*(Projects!$C$5:$C$2426='MDOT FTA Detail'!$C$4)*(Projects!$L$5:$L$2426='MDOT FTA Detail'!$A39)*(Projects!$J$5:$J$2426<>'MDOT FTA Detail'!$A$171)*(Projects!$K$5:$K$2426)) -> 0 | K39: 0 | L39: =SUMPRODUCT((Projects!$A$5:$A$2426='MDOT FTA Detail'!$J$3)*(Projects!$C$5:$C$2426='MDOT FTA Detail'!$C$4)*(Projects!$L$5:$L$2426='MDOT FTA Detail'!$A39)*(Projects!$J$5:$J$2426<>'MDOT FTA Detail'!$A$171)*(Projects!$Q$5:$Q$2426)) -> 0 | M39: =SUMPRODUCT((Projects!$A$5:$A$2426='MDOT FTA Detail'!$M$3)*(Projects!$C$5:$C$2426='MDOT FTA Detail'!$C$4)*(Projects!$L$5:$L$2426='MDOT FTA Detail'!$A39)*(Projects!$J$5:$J$2426<>'MDOT FTA Detail'!$A$171)*(Projects!$K$5:$K$2426)) -> 0 | N39: 0 | O39: =SUMPRODUCT((Projects!$A$5:$A$2426='MDOT FTA Detail'!$M$3)*(Projects!$C$5:$C$2426='MDOT FTA Detail'!$C$4)*(Projects!$L$5:$L$2426='MDOT FTA Detail'!$A39)*(Projects!$J$5:$J$2426<>'MDOT FTA Detail'!$A$171)*(Projects!$Q$5:$Q$2426)) -> 0
A40: FBD | B40: Ferry Boat & Terminal Discretionary | C40: MDOT FA | D40: =SUMPRODUCT((Projects!$A$5:$A$2426='MDOT FTA Detail'!$D$3)*(Projects!$C$5:$C$2426='MDOT FTA Detail'!$C$4)*(Projects!$L$5:$L$2426='MDOT FTA Detail'!$A40)*(Projects!$J$5:$J$2426<>'MDOT FTA Detail'!$A$171)*(Projects!$K$5:K$2426)) -> 0 | E40: 0 | F40: =SUMPRODUCT((Projects!$A$5:$A$2426='MDOT FTA Detail'!$D$3)*(Projects!$C$5:$C$2426='MDOT FTA Detail'!$C$4)*(Projects!$L$5:$L$2426='MDOT FTA Detail'!$A40)*(Projects!$J$5:$J$2426<>'MDOT FTA Detail'!$A$171)*(Projects!$Q$5:Q$2426)) -> 0 | G40: =SUMPRODUCT((Projects!$A$5:$A$2426='MDOT FTA Detail'!$G$3)*(Projects!$C$5:$C$2426='MDOT FTA Detail'!$C$4)*(Projects!$L$5:$L$2426='MDOT FTA Detail'!$A40)*(Projects!$J$5:$J$2426<>'MDOT FTA Detail'!$A$171)*(Projects!$K$5:K$2426)) -> 0 | H40: 0 | I40: =SUMPRODUCT((Projects!$A$5:$A$2426='MDOT FTA Detail'!$G$3)*(Projects!$C$5:$C$2426='MDOT FTA Detail'!$C$4)*(Projects!$L$5:$L$2426='MDOT FTA Detail'!$A40)*(Projects!$J$5:$J$2426<>'MDOT FTA Detail'!$A$171)*(Projects!$Q$5:Q$2426)) -> 0 | J40: =SUMPRODUCT((Projects!$A$5:$A$2426='MDOT FTA Detail'!$J$3)*(Projects!$C$5:$C$2426='MDOT FTA Detail'!$C$4)*(Projects!$L$5:$L$2426='MDOT FTA Detail'!$A40)*(Projects!$J$5:$J$2426<>'MDOT FTA Detail'!$A$171)*(Projects!$K$5:$K$2426)) -> 0 | K40: 0 | L40: =SUMPRODUCT((Projects!$A$5:$A$2426='MDOT FTA Detail'!$J$3)*(Projects!$C$5:$C$2426='MDOT FTA Detail'!$C$4)*(Projects!$L$5:$L$2426='MDOT FTA Detail'!$A40)*(Projects!$J$5:$J$2426<>'MDOT FTA Detail'!$A$171)*(Projects!$Q$5:$Q$2426)) -> 0 | M40: =SUMPRODUCT((Projects!$A$5:$A$2426='MDOT FTA Detail'!$M$3)*(Projects!$C$5:$C$2426='MDOT FTA Detail'!$C$4)*(Projects!$L$5:$L$2426='MDOT FTA Detail'!$A40)*(Projects!$J$5:$J$2426<>'MDOT FTA Detail'!$A$171)*(Projects!$K$5:$K$2426)) -> 0 | N40: 0 | O40: =SUMPRODUCT((Projects!$A$5:$A$2426='MDOT FTA Detail'!$M$3)*(Projects!$C$5:$C$2426='MDOT FTA Detail'!$C$4)*(Projects!$L$5:$L$2426='MDOT FTA Detail'!$A40)*(Projects!$J$5:$J$2426<>'MDOT FTA Detail'!$A$171)*(Projects!$Q$5:$Q$2426)) -> 0
A41: FFH | B41: Federal Forest Highway | C41: MDOT FA | D41: =SUMPRODUCT((Projects!$A$5:$A$2426='MDOT FTA Detail'!$D$3)*(Projects!$C$5:$C$2426='MDOT FTA Detail'!$C$4)*(Projects!$L$5:$L$2426='MDOT FTA Detail'!$A41)*(Projects!$J$5:$J$2426<>'MDOT FTA Detail'!$A$171)*(Projects!$K$5:K$2426)) -> 0 | E41: 0 | F41: =SUMPRODUCT((Projects!$A$5:$A$2426='MDOT FTA Detail'!$D$3)*(Projects!$C$5:$C$2426='MDOT FTA Detail'!$C$4)*(Projects!$L$5:$L$2426='MDOT FTA Detail'!$A41)*(Projects!$J$5:$J$2426<>'MDOT FTA Detail'!$A$171)*(Projects!$Q$5:Q$2426)) -> 0 | G41: =SUMPRODUCT((Projects!$A$5:$A$2426='MDOT FTA Detail'!$G$3)*(Projects!$C$5:$C$2426='MDOT FTA Detail'!$C$4)*(Projects!$L$5:$L$2426='MDOT FTA Detail'!$A41)*(Projects!$J$5:$J$2426<>'MDOT FTA Detail'!$A$171)*(Projects!$K$5:K$2426)) -> 0 | H41: 0 | I41: =SUMPRODUCT((Projects!$A$5:$A$2426='MDOT FTA Detail'!$G$3)*(Projects!$C$5:$C$2426='MDOT FTA Detail'!$C$4)*(Projects!$L$5:$L$2426='MDOT FTA Detail'!$A41)*(Projects!$J$5:$J$2426<>'MDOT FTA Detail'!$A$171)*(Projects!$Q$5:Q$2426)) -> 0 | J41: =SUMPRODUCT((Projects!$A$5:$A$2426='MDOT FTA Detail'!$J$3)*(Projects!$C$5:$C$2426='MDOT FTA Detail'!$C$4)*(Projects!$L$5:$L$2426='MDOT FTA Detail'!$A41)*(Projects!$J$5:$J$2426<>'MDOT FTA Detail'!$A$171)*(Projects!$K$5:$K$2426)) -> 0 | K41: 0 | L41: =SUMPRODUCT((Projects!$A$5:$A$2426='MDOT FTA Detail'!$J$3)*(Projects!$C$5:$C$2426='MDOT FTA Detail'!$C$4)*(Projects!$L$5:$L$2426='MDOT FTA Detail'!$A41)*(Projects!$J$5:$J$2426<>'MDOT FTA Detail'!$A$171)*(Projects!$Q$5:$Q$2426)) -> 0 | M41: =SUMPRODUCT((Projects!$A$5:$A$2426='MDOT FTA Detail'!$M$3)*(Projects!$C$5:$C$2426='MDOT FTA Detail'!$C$4)*(Projects!$L$5:$L$2426='MDOT FTA Detail'!$A41)*(Projects!$J$5:$J$2426<>'MDOT FTA Detail'!$A$171)*(Projects!$K$5:$K$2426)) -> 0 | N41: 0 | O41: =SUMPRODUCT((Projects!$A$5:$A$2426='MDOT FTA Detail'!$M$3)*(Projects!$C$5:$C$2426='MDOT FTA Detail'!$C$4)*(Projects!$L$5:$L$2426='MDOT FTA Detail'!$A41)*(Projects!$J$5:$J$2426<>'MDOT FTA Detail'!$A$171)*(Projects!$Q$5:$Q$2426)) -> 0
A42: FLAP | B42: Federal Lands Access Program | C42: MDOT FA | D42: =SUMPRODUCT((Projects!$A$5:$A$2426='MDOT FTA Detail'!$D$3)*(Projects!$C$5:$C$2426='MDOT FTA Detail'!$C$4)*(Projects!$L$5:$L$2426='MDOT FTA Detail'!$A42)*(Projects!$J$5:$J$2426<>'MDOT FTA Detail'!$A$171)*(Projects!$K$5:K$2426)) -> 0 | E42: 0 | F42: =SUMPRODUCT((Projects!$A$5:$A$2426='MDOT FTA Detail'!$D$3)*(Projects!$C$5:$C$2426='MDOT FTA Detail'!$C$4)*(Projects!$L$5:$L$2426='MDOT FTA Detail'!$A42)*(Projects!$J$5:$J$2426<>'MDOT FTA Detail'!$A$171)*(Projects!$Q$5:Q$2426)) -> 0 | G42: =SUMPRODUCT((Projects!$A$5:$A$2426='MDOT FTA Detail'!$G$3)*(Projects!$C$5:$C$2426='MDOT FTA Detail'!$C$4)*(Projects!$L$5:$L$2426='MDOT FTA Detail'!$A42)*(Projects!$J$5:$J$2426<>'MDOT FTA Detail'!$A$171)*(Projects!$K$5:K$2426)) -> 0 | H42: 0 | I42: =SUMPRODUCT((Projects!$A$5:$A$2426='MDOT FTA Detail'!$G$3)*(Projects!$C$5:$C$2426='MDOT FTA Detail'!$C$4)*(Projects!$L$5:$L$2426='MDOT FTA Detail'!$A42)*(Projects!$J$5:$J$2426<>'MDOT FTA Detail'!$A$171)*(Projects!$Q$5:Q$2426)) -> 0 | J42: =SUMPRODUCT((Projects!$A$5:$A$2426='MDOT FTA Detail'!$J$3)*(Projects!$C$5:$C$2426='MDOT FTA Detail'!$C$4)*(Projects!$L$5:$L$2426='MDOT FTA Detail'!$A42)*(Projects!$J$5:$J$2426<>'MDOT FTA Detail'!$A$171)*(Projects!$K$5:$K$2426)) -> 0 | K42: 0 | L42: =SUMPRODUCT((Projects!$A$5:$A$2426='MDOT FTA Detail'!$J$3)*(Projects!$C$5:$C$2426='MDOT FTA Detail'!$C$4)*(Projects!$L$5:$L$2426='MDOT FTA Detail'!$A42)*(Projects!$J$5:$J$2426<>'MDOT FTA Detail'!$A$171)*(Projects!$Q$5:$Q$2426)) -> 0 | M42: =SUMPRODUCT((Projects!$A$5:$A$2426='MDOT FTA Detail'!$M$3)*(Projects!$C$5:$C$2426='MDOT FTA Detail'!$C$4)*(Projects!$L$5:$L$2426='MDOT FTA Detail'!$A42)*(Projects!$J$5:$J$2426<>'MDOT FTA Detail'!$A$171)*(Projects!$K$5:$K$2426)) -> 0 | N42: 0 | O42: =SUMPRODUCT((Projects!$A$5:$A$2426='MDOT FTA Detail'!$M$3)*(Projects!$C$5:$C$2426='MDOT FTA Detail'!$C$4)*(Projects!$L$5:$L$2426='MDOT FTA Detail'!$A42)*(Projects!$J$5:$J$2426<>'MDOT FTA Detail'!$A$171)*(Projects!$Q$5:$Q$2426)) -> 0
A43: HBOA | B43: Highway Bridge Obligation Authority | C43: MDOT FA | D43: =SUMPRODUCT((Projects!$A$5:$A$2426='MDOT FTA Detail'!$D$3)*(Projects!$C$5:$C$2426='MDOT FTA Detail'!$C$4)*(Projects!$L$5:$L$2426='MDOT FTA Detail'!$A43)*(Projects!$J$5:$J$2426<>'MDOT FTA Detail'!$A$171)*(Projects!$K$5:K$2426)) -> 0 | E43: 0 | F43: =SUMPRODUCT((Projects!$A$5:$A$2426='MDOT FTA Detail'!$D$3)*(Projects!$C$5:$C$2426='MDOT FTA Detail'!$C$4)*(Projects!$L$5:$L$2426='MDOT FTA Detail'!$A43)*(Projects!$J$5:$J$2426<>'MDOT FTA Detail'!$A$171)*(Projects!$Q$5:Q$2426)) -> 0 | G43: =SUMPRODUCT((Projects!$A$5:$A$2426='MDOT FTA Detail'!$G$3)*(Projects!$C$5:$C$2426='MDOT FTA Detail'!$C$4)*(Projects!$L$5:$L$2426='MDOT FTA Detail'!$A43)*(Projects!$J$5:$J$2426<>'MDOT FTA Detail'!$A$171)*(Projects!$K$5:K$2426)) -> 0 | H43: 0 | I43: =SUMPRODUCT((Projects!$A$5:$A$2426='MDOT FTA Detail'!$G$3)*(Projects!$C$5:$C$2426='MDOT FTA Detail'!$C$4)*(Projects!$L$5:$L$2426='MDOT FTA Detail'!$A43)*(Projects!$J$5:$J$2426<>'MDOT FTA Detail'!$A$171)*(Projects!$Q$5:Q$2426)) -> 0 | J43: =SUMPRODUCT((Projects!$A$5:$A$2426='MDOT FTA Detail'!$J$3)*(Projects!$C$5:$C$2426='MDOT FTA Detail'!$C$4)*(Projects!$L$5:$L$2426='MDOT FTA Detail'!$A43)*(Projects!$J$5:$J$2426<>'MDOT FTA Detail'!$A$171)*(Projects!$K$5:$K$2426)) -> 0 | K43: 0 | L43: =SUMPRODUCT((Projects!$A$5:$A$2426='MDOT FTA Detail'!$J$3)*(Projects!$C$5:$C$2426='MDOT FTA Detail'!$C$4)*(Projects!$L$5:$L$2426='MDOT FTA Detail'!$A43)*(Projects!$J$5:$J$2426<>'MDOT FTA Detail'!$A$171)*(Projects!$Q$5:$Q$2426)) -> 0 | M43: =SUMPRODUCT((Projects!$A$5:$A$2426='MDOT FTA Detail'!$M$3)*(Projects!$C$5:$C$2426='MDOT FTA Detail'!$C$4)*(Projects!$L$5:$L$2426='MDOT FTA Detail'!$A43)*(Projects!$J$5:$J$2426<>'MDOT FTA Detail'!$A$171)*(Projects!$K$5:$K$2426)) -> 0 | N43: 0 | O43: =SUMPRODUCT((Projects!$A$5:$A$2426='MDOT FTA Detail'!$M$3)*(Projects!$C$5:$C$2426='MDOT FTA Detail'!$C$4)*(Projects!$L$5:$L$2426='MDOT FTA Detail'!$A43)*(Projects!$J$5:$J$2426<>'MDOT FTA Detail'!$A$171)*(Projects!$Q$5:$Q$2426)) -> 0
A44: HPP | B44: High Priority Projects (Demo) | C44: MDOT FA | D44: =SUMPRODUCT((Projects!$A$5:$A$2426='MDOT FTA Detail'!$D$3)*(Projects!$C$5:$C$2426='MDOT FTA Detail'!$C$4)*(Projects!$L$5:$L$2426='MDOT FTA Detail'!$A44)*(Projects!$J$5:$J$2426<>'MDOT FTA Detail'!$A$171)*(Projects!$K$5:K$2426)) -> 0 | E44: 0 | F44: =SUMPRODUCT((Projects!$A$5:$A$2426='MDOT FTA Detail'!$D$3)*(Projects!$C$5:$C$2426='MDOT FTA Detail'!$C$4)*(Projects!$L$5:$L$2426='MDOT FTA Detail'!$A44)*(Projects!$J$5:$J$2426<>'MDOT FTA Detail'!$A$171)*(Projects!$Q$5:Q$2426)) -> 0 | G44: =SUMPRODUCT((Projects!$A$5:$A$2426='MDOT FTA Detail'!$G$3)*(Projects!$C$5:$C$2426='MDOT FTA Detail'!$C$4)*(Projects!$L$5:$L$2426='MDOT FTA Detail'!$A44)*(Projects!$J$5:$J$2426<>'MDOT FTA Detail'!$A$171)*(Projects!$K$5:K$2426)) -> 0 | H44: 0 | I44: =SUMPRODUCT((Projects!$A$5:$A$2426='MDOT FTA Detail'!$G$3)*(Projects!$C$5:$C$2426='MDOT FTA Detail'!$C$4)*(Projects!$L$5:$L$2426='MDOT FTA Detail'!$A44)*(Projects!$J$5:$J$2426<>'MDOT FTA Detail'!$A$171)*(Projects!$Q$5:Q$2426)) -> 0 | J44: =SUMPRODUCT((Projects!$A$5:$A$2426='MDOT FTA Detail'!$J$3)*(Projects!$C$5:$C$2426='MDOT FTA Detail'!$C$4)*(Projects!$L$5:$L$2426='MDOT FTA Detail'!$A44)*(Projects!$J$5:$J$2426<>'MDOT FTA Detail'!$A$171)*(Projects!$K$5:$K$2426)) -> 0 | K44: 0 | L44: =SUMPRODUCT((Projects!$A$5:$A$2426='MDOT FTA Detail'!$J$3)*(Projects!$C$5:$C$2426='MDOT FTA Detail'!$C$4)*(Projects!$L$5:$L$2426='MDOT FTA Detail'!$A44)*(Projects!$J$5:$J$2426<>'MDOT FTA Detail'!$A$171)*(Projects!$Q$5:$Q$2426)) -> 0 | M44: =SUMPRODUCT((Projects!$A$5:$A$2426='MDOT FTA Detail'!$M$3)*(Projects!$C$5:$C$2426='MDOT FTA Detail'!$C$4)*(Projects!$L$5:$L$2426='MDOT FTA Detail'!$A44)*(Projects!$J$5:$J$2426<>'MDOT FTA Detail'!$A$171)*(Projects!$K$5:$K$2426)) -> 0 | N44: 0 | O44: =SUMPRODUCT((Projects!$A$5:$A$2426='MDOT FTA Detail'!$M$3)*(Projects!$C$5:$C$2426='MDOT FTA Detail'!$C$4)*(Projects!$L$5:$L$2426='MDOT FTA Detail'!$A44)*(Projects!$J$5:$J$2426<>'MDOT FTA Detail'!$A$171)*(Projects!$Q$5:$Q$2426)) -> 0
A45: HPSL | B45: High Priority Projects - SAFETEA-LU | C45: MDOT FA | D45: =SUMPRODUCT((Projects!$A$5:$A$2426='MDOT FTA Detail'!$D$3)*(Projects!$C$5:$C$2426='MDOT FTA Detail'!$C$4)*(Projects!$L$5:$L$2426='MDOT FTA Detail'!$A45)*(Projects!$J$5:$J$2426<>'MDOT FTA Detail'!$A$171)*(Projects!$K$5:K$2426)) -> 0 | E45: 0 | F45: =SUMPRODUCT((Projects!$A$5:$A$2426='MDOT FTA Detail'!$D$3)*(Projects!$C$5:$C$2426='MDOT FTA Detail'!$C$4)*(Projects!$L$5:$L$2426='MDOT FTA Detail'!$A45)*(Projects!$J$5:$J$2426<>'MDOT FTA Detail'!$A$171)*(Projects!$Q$5:Q$2426)) -> 0 | G45: =SUMPRODUCT((Projects!$A$5:$A$2426='MDOT FTA Detail'!$G$3)*(Projects!$C$5:$C$2426='MDOT FTA Detail'!$C$4)*(Projects!$L$5:$L$2426='MDOT FTA Detail'!$A45)*(Projects!$J$5:$J$2426<>'MDOT FTA Detail'!$A$171)*(Projects!$K$5:K$2426)) -> 0 | H45: 0 | I45: =SUMPRODUCT((Projects!$A$5:$A$2426='MDOT FTA Detail'!$G$3)*(Projects!$C$5:$C$2426='MDOT FTA Detail'!$C$4)*(Projects!$L$5:$L$2426='MDOT FTA Detail'!$A45)*(Projects!$J$5:$J$2426<>'MDOT FTA Detail'!$A$171)*(Projects!$Q$5:Q$2426)) -> 0 | J45: =SUMPRODUCT((Projects!$A$5:$A$2426='MDOT FTA Detail'!$J$3)*(Projects!$C$5:$C$2426='MDOT FTA Detail'!$C$4)*(Projects!$L$5:$L$2426='MDOT FTA Detail'!$A45)*(Projects!$J$5:$J$2426<>'MDOT FTA Detail'!$A$171)*(Projects!$K$5:$K$2426)) -> 0 | K45: 0 | L45: =SUMPRODUCT((Projects!$A$5:$A$2426='MDOT FTA Detail'!$J$3)*(Projects!$C$5:$C$2426='MDOT FTA Detail'!$C$4)*(Projects!$L$5:$L$2426='MDOT FTA Detail'!$A45)*(Projects!$J$5:$J$2426<>'MDOT FTA Detail'!$A$171)*(Projects!$Q$5:$Q$2426)) -> 0 | M45: =SUMPRODUCT((Projects!$A$5:$A$2426='MDOT FTA Detail'!$M$3)*(Projects!$C$5:$C$2426='MDOT FTA Detail'!$C$4)*(Projects!$L$5:$L$2426='MDOT FTA Detail'!$A45)*(Projects!$J$5:$J$2426<>'MDOT FTA Detail'!$A$171)*(Projects!$K$5:$K$2426)) -> 0 | N45: 0 | O45: =SUMPRODUCT((Projects!$A$5:$A$2426='MDOT FTA Detail'!$M$3)*(Projects!$C$5:$C$2426='MDOT FTA Detail'!$C$4)*(Projects!$L$5:$L$2426='MDOT FTA Detail'!$A45)*(Projects!$J$5:$J$2426<>'MDOT FTA Detail'!$A$171)*(Projects!$Q$5:$Q$2426)) -> 0
A46: HRRR | B46: High Risk Rural Roads - SAFETEA-LU | C46: MDOT FA | D46: =SUMPRODUCT((Projects!$A$5:$A$2426='MDOT FTA Detail'!$D$3)*(Projects!$C$5:$C$2426='MDOT FTA Detail'!$C$4)*(Projects!$L$5:$L$2426='MDOT FTA Detail'!$A46)*(Projects!$J$5:$J$2426<>'MDOT FTA Detail'!$A$171)*(Projects!$K$5:K$2426)) -> 0 | E46: 0 | F46: =SUMPRODUCT((Projects!$A$5:$A$2426='MDOT FTA Detail'!$D$3)*(Projects!$C$5:$C$2426='MDOT FTA Detail'!$C$4)*(Projects!$L$5:$L$2426='MDOT FTA Detail'!$A46)*(Projects!$J$5:$J$2426<>'MDOT FTA Detail'!$A$171)*(Projects!$Q$5:Q$2426)) -> 0 | G46: =SUMPRODUCT((Projects!$A$5:$A$2426='MDOT FTA Detail'!$G$3)*(Projects!$C$5:$C$2426='MDOT FTA Detail'!$C$4)*(Projects!$L$5:$L$2426='MDOT FTA Detail'!$A46)*(Projects!$J$5:$J$2426<>'MDOT FTA Detail'!$A$171)*(Projects!$K$5:K$2426)) -> 0 | H46: 0 | I46: =SUMPRODUCT((Projects!$A$5:$A$2426='MDOT FTA Detail'!$G$3)*(Projects!$C$5:$C$2426='MDOT FTA Detail'!$C$4)*(Projects!$L$5:$L$2426='MDOT FTA Detail'!$A46)*(Projects!$J$5:$J$2426<>'MDOT FTA Detail'!$A$171)*(Projects!$Q$5:Q$2426)) -> 0 | J46: =SUMPRODUCT((Projects!$A$5:$A$2426='MDOT FTA Detail'!$J$3)*(Projects!$C$5:$C$2426='MDOT FTA Detail'!$C$4)*(Projects!$L$5:$L$2426='MDOT FTA Detail'!$A46)*(Projects!$J$5:$J$2426<>'MDOT FTA Detail'!$A$171)*(Projects!$K$5:$K$2426)) -> 0 | K46: 0 | L46: =SUMPRODUCT((Projects!$A$5:$A$2426='MDOT FTA Detail'!$J$3)*(Projects!$C$5:$C$2426='MDOT FTA Detail'!$C$4)*(Projects!$L$5:$L$2426='MDOT FTA Detail'!$A46)*(Projects!$J$5:$J$2426<>'MDOT FTA Detail'!$A$171)*(Projects!$Q$5:$Q$2426)) -> 0 | M46: =SUMPRODUCT((Projects!$A$5:$A$2426='MDOT FTA Detail'!$M$3)*(Projects!$C$5:$C$2426='MDOT FTA Detail'!$C$4)*(Projects!$L$5:$L$2426='MDOT FTA Detail'!$A46)*(Projects!$J$5:$J$2426<>'MDOT FTA Detail'!$A$171)*(Projects!$K$5:$K$2426)) -> 0 | N46: 0 | O46: =SUMPRODUCT((Projects!$A$5:$A$2426='MDOT FTA Detail'!$M$3)*(Projects!$C$5:$C$2426='MDOT FTA Detail'!$C$4)*(Projects!$L$5:$L$2426='MDOT FTA Detail'!$A46)*(Projects!$J$5:$J$2426<>'MDOT FTA Detail'!$A$171)*(Projects!$Q$5:$Q$2426)) -> 0
A47: HSG | B47: High Speed Raix Crossings - 100% Federal | C47: MDOT FA | D47: =SUMPRODUCT((Projects!$A$5:$A$2426='MDOT FTA Detail'!$D$3)*(Projects!$C$5:$C$2426='MDOT FTA Detail'!$C$4)*(Projects!$L$5:$L$2426='MDOT FTA Detail'!$A47)*(Projects!$J$5:$J$2426<>'MDOT FTA Detail'!$A$171)*(Projects!$K$5:K$2426)) -> 0 | E47: 0 | F47: =SUMPRODUCT((Projects!$A$5:$A$2426='MDOT FTA Detail'!$D$3)*(Projects!$C$5:$C$2426='MDOT FTA Detail'!$C$4)*(Projects!$L$5:$L$2426='MDOT FTA Detail'!$A47)*(Projects!$J$5:$J$2426<>'MDOT FTA Detail'!$A$171)*(Projects!$Q$5:Q$2426)) -> 0 | G47: =SUMPRODUCT((Projects!$A$5:$A$2426='MDOT FTA Detail'!$G$3)*(Projects!$C$5:$C$2426='MDOT FTA Detail'!$C$4)*(Projects!$L$5:$L$2426='MDOT FTA Detail'!$A47)*(Projects!$J$5:$J$2426<>'MDOT FTA Detail'!$A$171)*(Projects!$K$5:K$2426)) -> 0 | H47: 0 | I47: =SUMPRODUCT((Projects!$A$5:$A$2426='MDOT FTA Detail'!$G$3)*(Projects!$C$5:$C$2426='MDOT FTA Detail'!$C$4)*(Projects!$L$5:$L$2426='MDOT FTA Detail'!$A47)*(Projects!$J$5:$J$2426<>'MDOT FTA Detail'!$A$171)*(Projects!$Q$5:Q$2426)) -> 0 | J47: =SUMPRODUCT((Projects!$A$5:$A$2426='MDOT FTA Detail'!$J$3)*(Projects!$C$5:$C$2426='MDOT FTA Detail'!$C$4)*(Projects!$L$5:$L$2426='MDOT FTA Detail'!$A47)*(Projects!$J$5:$J$2426<>'MDOT FTA Detail'!$A$171)*(Projects!$K$5:$K$2426)) -> 0 | K47: 0 | L47: =SUMPRODUCT((Projects!$A$5:$A$2426='MDOT FTA Detail'!$J$3)*(Projects!$C$5:$C$2426='MDOT FTA Detail'!$C$4)*(Projects!$L$5:$L$2426='MDOT FTA Detail'!$A47)*(Projects!$J$5:$J$2426<>'MDOT FTA Detail'!$A$171)*(Projects!$Q$5:$Q$2426)) -> 0 | M47: =SUMPRODUCT((Projects!$A$5:$A$2426='MDOT FTA Detail'!$M$3)*(Projects!$C$5:$C$2426='MDOT FTA Detail'!$C$4)*(Projects!$L$5:$L$2426='MDOT FTA Detail'!$A47)*(Projects!$J$5:$J$2426<>'MDOT FTA Detail'!$A$171)*(Projects!$K$5:$K$2426)) -> 0 | N47: 0 | O47: =SUMPRODUCT((Projects!$A$5:$A$2426='MDOT FTA Detail'!$M$3)*(Projects!$C$5:$C$2426='MDOT FTA Detail'!$C$4)*(Projects!$L$5:$L$2426='MDOT FTA Detail'!$A47)*(Projects!$J$5:$J$2426<>'MDOT FTA Detail'!$A$171)*(Projects!$Q$5:$Q$2426)) -> 0
A48: HSIP | B48: Highway Safety Improvement Program - SAFETEA-LU | C48: MDOT FA | D48: =SUMPRODUCT((Projects!$A$5:$A$2426='MDOT FTA Detail'!$D$3)*(Projects!$C$5:$C$2426='MDOT FTA Detail'!$C$4)*(Projects!$L$5:$L$2426='MDOT FTA Detail'!$A48)*(Projects!$J$5:$J$2426<>'MDOT FTA Detail'!$A$171)*(Projects!$K$5:K$2426)) -> 0 | E48: 0 | F48: =SUMPRODUCT((Projects!$A$5:$A$2426='MDOT FTA Detail'!$D$3)*(Projects!$C$5:$C$2426='MDOT FTA Detail'!$C$4)*(Projects!$L$5:$L$2426='MDOT FTA Detail'!$A48)*(Projects!$J$5:$J$2426<>'MDOT FTA Detail'!$A$171)*(Projects!$Q$5:Q$2426)) -> 0 | G48: =SUMPRODUCT((Projects!$A$5:$A$2426='MDOT FTA Detail'!$G$3)*(Projects!$C$5:$C$2426='MDOT FTA Detail'!$C$4)*(Projects!$L$5:$L$2426='MDOT FTA Detail'!$A48)*(Projects!$J$5:$J$2426<>'MDOT FTA Detail'!$A$171)*(Projects!$K$5:K$2426)) -> 0 | H48: 0 | I48: =SUMPRODUCT((Projects!$A$5:$A$2426='MDOT FTA Detail'!$G$3)*(Projects!$C$5:$C$2426='MDOT FTA Detail'!$C$4)*(Projects!$L$5:$L$2426='MDOT FTA Detail'!$A48)*(Projects!$J$5:$J$2426<>'MDOT FTA Detail'!$A$171)*(Projects!$Q$5:Q$2426)) -> 0 | J48: =SUMPRODUCT((Projects!$A$5:$A$2426='MDOT FTA Detail'!$J$3)*(Projects!$C$5:$C$2426='MDOT FTA Detail'!$C$4)*(Projects!$L$5:$L$2426='MDOT FTA Detail'!$A48)*(Projects!$J$5:$J$2426<>'MDOT FTA Detail'!$A$171)*(Projects!$K$5:$K$2426)) -> 0 | K48: 0 | L48: =SUMPRODUCT((Projects!$A$5:$A$2426='MDOT FTA Detail'!$J$3)*(Projects!$C$5:$C$2426='MDOT FTA Detail'!$C$4)*(Projects!$L$5:$L$2426='MDOT FTA Detail'!$A48)*(Projects!$J$5:$J$2426<>'MDOT FTA Detail'!$A$171)*(Projects!$Q$5:$Q$2426)) -> 0 | M48: =SUMPRODUCT((Projects!$A$5:$A$2426='MDOT FTA Detail'!$M$3)*(Projects!$C$5:$C$2426='MDOT FTA Detail'!$C$4)*(Projects!$L$5:$L$2426='MDOT FTA Detail'!$A48)*(Projects!$J$5:$J$2426<>'MDOT FTA Detail'!$A$171)*(Projects!$K$5:$K$2426)) -> 0 | N48: 0 | O48: =SUMPRODUCT((Projects!$A$5:$A$2426='MDOT FTA Detail'!$M$3)*(Projects!$C$5:$C$2426='MDOT FTA Detail'!$C$4)*(Projects!$L$5:$L$2426='MDOT FTA Detail'!$A48)*(Projects!$J$5:$J$2426<>'MDOT FTA Detail'!$A$171)*(Projects!$Q$5:$Q$2426)) -> 0
A49: IM | B49: Interstate Maintenance - No Added Lanes | C49: MDOT FA | D49: =SUMPRODUCT((Projects!$A$5:$A$2426='MDOT FTA Detail'!$D$3)*(Projects!$C$5:$C$2426='MDOT FTA Detail'!$C$4)*(Projects!$L$5:$L$2426='MDOT FTA Detail'!$A49)*(Projects!$J$5:$J$2426<>'MDOT FTA Detail'!$A$171)*(Projects!$K$5:K$2426)) -> 805074 | E49: 89453 | F49: =SUMPRODUCT((Projects!$A$5:$A$2426='MDOT FTA Detail'!$D$3)*(Projects!$C$5:$C$2426='MDOT FTA Detail'!$C$4)*(Projects!$L$5:$L$2426='MDOT FTA Detail'!$A49)*(Projects!$J$5:$J$2426<>'MDOT FTA Detail'!$A$171)*(Projects!$Q$5:Q$2426)) -> 894527 | G49: =SUMPRODUCT((Projects!$A$5:$A$2426='MDOT FTA Detail'!$G$3)*(Projects!$C$5:$C$2426='MDOT FTA Detail'!$C$4)*(Projects!$L$5:$L$2426='MDOT FTA Detail'!$A49)*(Projects!$J$5:$J$2426<>'MDOT FTA Detail'!$A$171)*(Projects!$K$5:K$2426)) -> 16035197 | H49: 1781689 | I49: =SUMPRODUCT((Projects!$A$5:$A$2426='MDOT FTA Detail'!$G$3)*(Projects!$C$5:$C$2426='MDOT FTA Detail'!$C$4)*(Projects!$L$5:$L$2426='MDOT FTA Detail'!$A49)*(Projects!$J$5:$J$2426<>'MDOT FTA Detail'!$A$171)*(Projects!$Q$5:Q$2426)) -> 17816886 | J49: =SUMPRODUCT((Projects!$A$5:$A$2426='MDOT FTA Detail'!$J$3)*(Projects!$C$5:$C$2426='MDOT FTA Detail'!$C$4)*(Projects!$L$5:$L$2426='MDOT FTA Detail'!$A49)*(Projects!$J$5:$J$2426<>'MDOT FTA Detail'!$A$171)*(Projects!$K$5:$K$2426)) -> 2862000 | K49: 318000 | L49: =SUMPRODUCT((Projects!$A$5:$A$2426='MDOT FTA Detail'!$J$3)*(Projects!$C$5:$C$2426='MDOT FTA Detail'!$C$4)*(Projects!$L$5:$L$2426='MDOT FTA Detail'!$A49)*(Projects!$J$5:$J$2426<>'MDOT FTA Detail'!$A$171)*(Projects!$Q$5:$Q$2426)) -> 3180000 | M49: =SUMPRODUCT((Projects!$A$5:$A$2426='MDOT FTA Detail'!$M$3)*(Projects!$C$5:$C$2426='MDOT FTA Detail'!$C$4)*(Projects!$L$5:$L$2426='MDOT FTA Detail'!$A49)*(Projects!$J$5:$J$2426<>'MDOT FTA Detail'!$A$171)*(Projects!$K$5:$K$2426)) -> 13167000 | N49: 1463000 | O49: =SUMPRODUCT((Projects!$A$5:$A$2426='MDOT FTA Detail'!$M$3)*(Projects!$C$5:$C$2426='MDOT FTA Detail'!$C$4)*(Projects!$L$5:$L$2426='MDOT FTA Detail'!$A49)*(Projects!$J$5:$J$2426<>'MDOT FTA Detail'!$A$171)*(Projects!$Q$5:$Q$2426)) -> 14630000
A50: IMD | B50: Interstate Maintenance Discretionary | C50: MDOT FA | D50: =SUMPRODUCT((Projects!$A$5:$A$2426='MDOT FTA Detail'!$D$3)*(Projects!$C$5:$C$2426='MDOT FTA Detail'!$C$4)*(Projects!$L$5:$L$2426='MDOT FTA Detail'!$A50)*(Projects!$J$5:$J$2426<>'MDOT FTA Detail'!$A$171)*(Projects!$K$5:K$2426)) -> 0 | E50: 0 | F50: =SUMPRODUCT((Projects!$A$5:$A$2426='MDOT FTA Detail'!$D$3)*(Projects!$C$5:$C$2426='MDOT FTA Detail'!$C$4)*(Projects!$L$5:$L$2426='MDOT FTA Detail'!$A50)*(Projects!$J$5:$J$2426<>'MDOT FTA Detail'!$A$171)*(Projects!$Q$5:Q$2426)) -> 0 | G50: =SUMPRODUCT((Projects!$A$5:$A$2426='MDOT FTA Detail'!$G$3)*(Projects!$C$5:$C$2426='MDOT FTA Detail'!$C$4)*(Projects!$L$5:$L$2426='MDOT FTA Detail'!$A50)*(Projects!$J$5:$J$2426<>'MDOT FTA Detail'!$A$171)*(Projects!$K$5:K$2426)) -> 0 | H50: 0 | I50: =SUMPRODUCT((Projects!$A$5:$A$2426='MDOT FTA Detail'!$G$3)*(Projects!$C$5:$C$2426='MDOT FTA Detail'!$C$4)*(Projects!$L$5:$L$2426='MDOT FTA Detail'!$A50)*(Projects!$J$5:$J$2426<>'MDOT FTA Detail'!$A$171)*(Projects!$Q$5:Q$2426)) -> 0 | J50: =SUMPRODUCT((Projects!$A$5:$A$2426='MDOT FTA Detail'!$J$3)*(Projects!$C$5:$C$2426='MDOT FTA Detail'!$C$4)*(Projects!$L$5:$L$2426='MDOT FTA Detail'!$A50)*(Projects!$J$5:$J$2426<>'MDOT FTA Detail'!$A$171)*(Projects!$K$5:$K$2426)) -> 0 | K50: 0 | L50: =SUMPRODUCT((Projects!$A$5:$A$2426='MDOT FTA Detail'!$J$3)*(Projects!$C$5:$C$2426='MDOT FTA Detail'!$C$4)*(Projects!$L$5:$L$2426='MDOT FTA Detail'!$A50)*(Projects!$J$5:$J$2426<>'MDOT FTA Detail'!$A$171)*(Projects!$Q$5:$Q$2426)) -> 0 | M50: =SUMPRODUCT((Projects!$A$5:$A$2426='MDOT FTA Detail'!$M$3)*(Projects!$C$5:$C$2426='MDOT FTA Detail'!$C$4)*(Projects!$L$5:$L$2426='MDOT FTA Detail'!$A50)*(Projects!$J$5:$J$2426<>'MDOT FTA Detail'!$A$171)*(Projects!$K$5:$K$2426)) -> 0 | N50: 0 | O50: =SUMPRODUCT((Projects!$A$5:$A$2426='MDOT FTA Detail'!$M$3)*(Projects!$C$5:$C$2426='MDOT FTA Detail'!$C$4)*(Projects!$L$5:$L$2426='MDOT FTA Detail'!$A50)*(Projects!$J$5:$J$2426<>'MDOT FTA Detail'!$A$171)*(Projects!$Q$5:$Q$2426)) -> 0
A51: IMG | B51: Interstate Maintenance - Safety - 100% Federal | C51: MDOT FA | D51: =SUMPRODUCT((Projects!$A$5:$A$2426='MDOT FTA Detail'!$D$3)*(Projects!$C$5:$C$2426='MDOT FTA Detail'!$C$4)*(Projects!$L$5:$L$2426='MDOT FTA Detail'!$A51)*(Projects!$J$5:$J$2426<>'MDOT FTA Detail'!$A$171)*(Projects!$K$5:K$2426)) -> 0 | E51: 0 | F51: =SUMPRODUCT((Projects!$A$5:$A$2426='MDOT FTA Detail'!$D$3)*(Projects!$C$5:$C$2426='MDOT FTA Detail'!$C$4)*(Projects!$L$5:$L$2426='MDOT FTA Detail'!$A51)*(Projects!$J$5:$J$2426<>'MDOT FTA Detail'!$A$171)*(Projects!$Q$5:Q$2426)) -> 0 | G51: =SUMPRODUCT((Projects!$A$5:$A$2426='MDOT FTA Detail'!$G$3)*(Projects!$C$5:$C$2426='MDOT FTA Detail'!$C$4)*(Projects!$L$5:$L$2426='MDOT FTA Detail'!$A51)*(Projects!$J$5:$J$2426<>'MDOT FTA Detail'!$A$171)*(Projects!$K$5:K$2426)) -> 0 | H51: 0 | I51: =SUMPRODUCT((Projects!$A$5:$A$2426='MDOT FTA Detail'!$G$3)*(Projects!$C$5:$C$2426='MDOT FTA Detail'!$C$4)*(Projects!$L$5:$L$2426='MDOT FTA Detail'!$A51)*(Projects!$J$5:$J$2426<>'MDOT FTA Detail'!$A$171)*(Projects!$Q$5:Q$2426)) -> 0 | J51: =SUMPRODUCT((Projects!$A$5:$A$2426='MDOT FTA Detail'!$J$3)*(Projects!$C$5:$C$2426='MDOT FTA Detail'!$C$4)*(Projects!$L$5:$L$2426='MDOT FTA Detail'!$A51)*(Projects!$J$5:$J$2426<>'MDOT FTA Detail'!$A$171)*(Projects!$K$5:$K$2426)) -> 0 | K51: 0 | L51: =SUMPRODUCT((Projects!$A$5:$A$2426='MDOT FTA Detail'!$J$3)*(Projects!$C$5:$C$2426='MDOT FTA Detail'!$C$4)*(Projects!$L$5:$L$2426='MDOT FTA Detail'!$A51)*(Projects!$J$5:$J$2426<>'MDOT FTA Detail'!$A$171)*(Projects!$Q$5:$Q$2426)) -> 0 | M51: =SUMPRODUCT((Projects!$A$5:$A$2426='MDOT FTA Detail'!$M$3)*(Projects!$C$5:$C$2426='MDOT FTA Detail'!$C$4)*(Projects!$L$5:$L$2426='MDOT FTA Detail'!$A51)*(Projects!$J$5:$J$2426<>'MDOT FTA Detail'!$A$171)*(Projects!$K$5:$K$2426)) -> 0 | N51: 0 | O51: =SUMPRODUCT((Projects!$A$5:$A$2426='MDOT FTA Detail'!$M$3)*(Projects!$C$5:$C$2426='MDOT FTA Detail'!$C$4)*(Projects!$L$5:$L$2426='MDOT FTA Detail'!$A51)*(Projects!$J$5:$J$2426<>'MDOT FTA Detail'!$A$171)*(Projects!$Q$5:$Q$2426)) -> 0
A52: ITS | B52: Intelligent Transportation Systems | C52: MDOT FA | D52: =SUMPRODUCT((Projects!$A$5:$A$2426='MDOT FTA Detail'!$D$3)*(Projects!$C$5:$C$2426='MDOT FTA Detail'!$C$4)*(Projects!$L$5:$L$2426='MDOT FTA Detail'!$A52)*(Projects!$J$5:$J$2426<>'MDOT FTA Detail'!$A$171)*(Projects!$K$5:K$2426)) -> 0 | E52: 0 | F52: =SUMPRODUCT((Projects!$A$5:$A$2426='MDOT FTA Detail'!$D$3)*(Projects!$C$5:$C$2426='MDOT FTA Detail'!$C$4)*(Projects!$L$5:$L$2426='MDOT FTA Detail'!$A52)*(Projects!$J$5:$J$2426<>'MDOT FTA Detail'!$A$171)*(Projects!$Q$5:Q$2426)) -> 0 | G52: =SUMPRODUCT((Projects!$A$5:$A$2426='MDOT FTA Detail'!$G$3)*(Projects!$C$5:$C$2426='MDOT FTA Detail'!$C$4)*(Projects!$L$5:$L$2426='MDOT FTA Detail'!$A52)*(Projects!$J$5:$J$2426<>'MDOT FTA Detail'!$A$171)*(Projects!$K$5:K$2426)) -> 0 | H52: 0 | I52: =SUMPRODUCT((Projects!$A$5:$A$2426='MDOT FTA Detail'!$G$3)*(Projects!$C$5:$C$2426='MDOT FTA Detail'!$C$4)*(Projects!$L$5:$L$2426='MDOT FTA Detail'!$A52)*(Projects!$J$5:$J$2426<>'MDOT FTA Detail'!$A$171)*(Projects!$Q$5:Q$2426)) -> 0 | J52: =SUMPRODUCT((Projects!$A$5:$A$2426='MDOT FTA Detail'!$J$3)*(Projects!$C$5:$C$2426='MDOT FTA Detail'!$C$4)*(Projects!$L$5:$L$2426='MDOT FTA Detail'!$A52)*(Projects!$J$5:$J$2426<>'MDOT FTA Detail'!$A$171)*(Projects!$K$5:$K$2426)) -> 0 | K52: 0 | L52: =SUMPRODUCT((Projects!$A$5:$A$2426='MDOT FTA Detail'!$J$3)*(Projects!$C$5:$C$2426='MDOT FTA Detail'!$C$4)*(Projects!$L$5:$L$2426='MDOT FTA Detail'!$A52)*(Projects!$J$5:$J$2426<>'MDOT FTA Detail'!$A$171)*(Projects!$Q$5:$Q$2426)) -> 0 | M52: =SUMPRODUCT((Projects!$A$5:$A$2426='MDOT FTA Detail'!$M$3)*(Projects!$C$5:$C$2426='MDOT FTA Detail'!$C$4)*(Projects!$L$5:$L$2426='MDOT FTA Detail'!$A52)*(Projects!$J$5:$J$2426<>'MDOT FTA Detail'!$A$171)*(Projects!$K$5:$K$2426)) -> 0 | N52: 0 | O52: =SUMPRODUCT((Projects!$A$5:$A$2426='MDOT FTA Detail'!$M$3)*(Projects!$C$5:$C$2426='MDOT FTA Detail'!$C$4)*(Projects!$L$5:$L$2426='MDOT FTA Detail'!$A52)*(Projects!$J$5:$J$2426<>'MDOT FTA Detail'!$A$171)*(Projects!$Q$5:$Q$2426)) -> 0
A53: JST | B53: 85% Minimum Floor Surface Transportation | C53: MDOT FA | D53: =SUMPRODUCT((Projects!$A$5:$A$2426='MDOT FTA Detail'!$D$3)*(Projects!$C$5:$C$2426='MDOT FTA Detail'!$C$4)*(Projects!$L$5:$L$2426='MDOT FTA Detail'!$A53)*(Projects!$J$5:$J$2426<>'MDOT FTA Detail'!$A$171)*(Projects!$K$5:K$2426)) -> 0 | E53: 0 | F53: =SUMPRODUCT((Projects!$A$5:$A$2426='MDOT FTA Detail'!$D$3)*(Projects!$C$5:$C$2426='MDOT FTA Detail'!$C$4)*(Projects!$L$5:$L$2426='MDOT FTA Detail'!$A53)*(Projects!$J$5:$J$2426<>'MDOT FTA Detail'!$A$171)*(Projects!$Q$5:Q$2426)) -> 0 | G53: =SUMPRODUCT((Projects!$A$5:$A$2426='MDOT FTA Detail'!$G$3)*(Projects!$C$5:$C$2426='MDOT FTA Detail'!$C$4)*(Projects!$L$5:$L$2426='MDOT FTA Detail'!$A53)*(Projects!$J$5:$J$2426<>'MDOT FTA Detail'!$A$171)*(Projects!$K$5:K$2426)) -> 0 | H53: 0 | I53: =SUMPRODUCT((Projects!$A$5:$A$2426='MDOT FTA Detail'!$G$3)*(Projects!$C$5:$C$2426='MDOT FTA Detail'!$C$4)*(Projects!$L$5:$L$2426='MDOT FTA Detail'!$A53)*(Projects!$J$5:$J$2426<>'MDOT FTA Detail'!$A$171)*(Projects!$Q$5:Q$2426)) -> 0 | J53: =SUMPRODUCT((Projects!$A$5:$A$2426='MDOT FTA Detail'!$J$3)*(Projects!$C$5:$C$2426='MDOT FTA Detail'!$C$4)*(Projects!$L$5:$L$2426='MDOT FTA Detail'!$A53)*(Projects!$J$5:$J$2426<>'MDOT FTA Detail'!$A$171)*(Projects!$K$5:$K$2426)) -> 0 | K53: 0 | L53: =SUMPRODUCT((Projects!$A$5:$A$2426='MDOT FTA Detail'!$J$3)*(Projects!$C$5:$C$2426='MDOT FTA Detail'!$C$4)*(Projects!$L$5:$L$2426='MDOT FTA Detail'!$A53)*(Projects!$J$5:$J$2426<>'MDOT FTA Detail'!$A$171)*(Projects!$Q$5:$Q$2426)) -> 0 | M53: =SUMPRODUCT((Projects!$A$5:$A$2426='MDOT FTA Detail'!$M$3)*(Projects!$C$5:$C$2426='MDOT FTA Detail'!$C$4)*(Projects!$L$5:$L$2426='MDOT FTA Detail'!$A53)*(Projects!$J$5:$J$2426<>'MDOT FTA Detail'!$A$171)*(Projects!$K$5:$K$2426)) -> 0 | N53: 0 | O53: =SUMPRODUCT((Projects!$A$5:$A$2426='MDOT FTA Detail'!$M$3)*(Projects!$C$5:$C$2426='MDOT FTA Detail'!$C$4)*(Projects!$L$5:$L$2426='MDOT FTA Detail'!$A53)*(Projects!$J$5:$J$2426<>'MDOT FTA Detail'!$A$171)*(Projects!$Q$5:$Q$2426)) -> 0
A54: JSTU | B54: 85% Minimum Floor Surface Transportation (Urban Area > 2499,000) | C54: MDOT FA | D54: =SUMPRODUCT((Projects!$A$5:$A$2426='MDOT FTA Detail'!$D$3)*(Projects!$C$5:$C$2426='MDOT FTA Detail'!$C$4)*(Projects!$L$5:$L$2426='MDOT FTA Detail'!$A54)*(Projects!$J$5:$J$2426<>'MDOT FTA Detail'!$A$171)*(Projects!$K$5:K$2426)) -> 0 | E54: 0 | F54: =SUMPRODUCT((Projects!$A$5:$A$2426='MDOT FTA Detail'!$D$3)*(Projects!$C$5:$C$2426='MDOT FTA Detail'!$C$4)*(Projects!$L$5:$L$2426='MDOT FTA Detail'!$A54)*(Projects!$J$5:$J$2426<>'MDOT FTA Detail'!$A$171)*(Projects!$Q$5:Q$2426)) -> 0 | G54: =SUMPRODUCT((Projects!$A$5:$A$2426='MDOT FTA Detail'!$G$3)*(Projects!$C$5:$C$2426='MDOT FTA Detail'!$C$4)*(Projects!$L$5:$L$2426='MDOT FTA Detail'!$A54)*(Projects!$J$5:$J$2426<>'MDOT FTA Detail'!$A$171)*(Projects!$K$5:K$2426)) -> 0 | H54: 0 | I54: =SUMPRODUCT((Projects!$A$5:$A$2426='MDOT FTA Detail'!$G$3)*(Projects!$C$5:$C$2426='MDOT FTA Detail'!$C$4)*(Projects!$L$5:$L$2426='MDOT FTA Detail'!$A54)*(Projects!$J$5:$J$2426<>'MDOT FTA Detail'!$A$171)*(Projects!$Q$5:Q$2426)) -> 0 | J54: =SUMPRODUCT((Projects!$A$5:$A$2426='MDOT FTA Detail'!$J$3)*(Projects!$C$5:$C$2426='MDOT FTA Detail'!$C$4)*(Projects!$L$5:$L$2426='MDOT FTA Detail'!$A54)*(Projects!$J$5:$J$2426<>'MDOT FTA Detail'!$A$171)*(Projects!$K$5:$K$2426)) -> 0 | K54: 0 | L54: =SUMPRODUCT((Projects!$A$5:$A$2426='MDOT FTA Detail'!$J$3)*(Projects!$C$5:$C$2426='MDOT FTA Detail'!$C$4)*(Projects!$L$5:$L$2426='MDOT FTA Detail'!$A54)*(Projects!$J$5:$J$2426<>'MDOT FTA Detail'!$A$171)*(Projects!$Q$5:$Q$2426)) -> 0 | M54: =SUMPRODUCT((Projects!$A$5:$A$2426='MDOT FTA Detail'!$M$3)*(Projects!$C$5:$C$2426='MDOT FTA Detail'!$C$4)*(Projects!$L$5:$L$2426='MDOT FTA Detail'!$A54)*(Projects!$J$5:$J$2426<>'MDOT FTA Detail'!$A$171)*(Projects!$K$5:$K$2426)) -> 0 | N54: 0 | O54: =SUMPRODUCT((Projects!$A$5:$A$2426='MDOT FTA Detail'!$M$3)*(Projects!$C$5:$C$2426='MDOT FTA Detail'!$C$4)*(Projects!$L$5:$L$2426='MDOT FTA Detail'!$A54)*(Projects!$J$5:$J$2426<>'MDOT FTA Detail'!$A$171)*(Projects!$Q$5:$Q$2426)) -> 0
A55: LTA | B55: Local Technical Assistance Program | C55: MDOT FA | D55: =SUMPRODUCT((Projects!$A$5:$A$2426='MDOT FTA Detail'!$D$3)*(Projects!$C$5:$C$2426='MDOT FTA Detail'!$C$4)*(Projects!$L$5:$L$2426='MDOT FTA Detail'!$A55)*(Projects!$J$5:$J$2426<>'MDOT FTA Detail'!$A$171)*(Projects!$K$5:K$2426)) -> 0 | E55: 0 | F55: =SUMPRODUCT((Projects!$A$5:$A$2426='MDOT FTA Detail'!$D$3)*(Projects!$C$5:$C$2426='MDOT FTA Detail'!$C$4)*(Projects!$L$5:$L$2426='MDOT FTA Detail'!$A55)*(Projects!$J$5:$J$2426<>'MDOT FTA Detail'!$A$171)*(Projects!$Q$5:Q$2426)) -> 0 | G55: =SUMPRODUCT((Projects!$A$5:$A$2426='MDOT FTA Detail'!$G$3)*(Projects!$C$5:$C$2426='MDOT FTA Detail'!$C$4)*(Projects!$L$5:$L$2426='MDOT FTA Detail'!$A55)*(Projects!$J$5:$J$2426<>'MDOT FTA Detail'!$A$171)*(Projects!$K$5:K$2426)) -> 0 | H55: 0 | I55: =SUMPRODUCT((Projects!$A$5:$A$2426='MDOT FTA Detail'!$G$3)*(Projects!$C$5:$C$2426='MDOT FTA Detail'!$C$4)*(Projects!$L$5:$L$2426='MDOT FTA Detail'!$A55)*(Projects!$J$5:$J$2426<>'MDOT FTA Detail'!$A$171)*(Projects!$Q$5:Q$2426)) -> 0 | J55: =SUMPRODUCT((Projects!$A$5:$A$2426='MDOT FTA Detail'!$J$3)*(Projects!$C$5:$C$2426='MDOT FTA Detail'!$C$4)*(Projects!$L$5:$L$2426='MDOT FTA Detail'!$A55)*(Projects!$J$5:$J$2426<>'MDOT FTA Detail'!$A$171)*(Projects!$K$5:$K$2426)) -> 0 | K55: 0 | L55: =SUMPRODUCT((Projects!$A$5:$A$2426='MDOT FTA Detail'!$J$3)*(Projects!$C$5:$C$2426='MDOT FTA Detail'!$C$4)*(Projects!$L$5:$L$2426='MDOT FTA Detail'!$A55)*(Projects!$J$5:$J$2426<>'MDOT FTA Detail'!$A$171)*(Projects!$Q$5:$Q$2426)) -> 0 | M55: =SUMPRODUCT((Projects!$A$5:$A$2426='MDOT FTA Detail'!$M$3)*(Projects!$C$5:$C$2426='MDOT FTA Detail'!$C$4)*(Projects!$L$5:$L$2426='MDOT FTA Detail'!$A55)*(Projects!$J$5:$J$2426<>'MDOT FTA Detail'!$A$171)*(Projects!$K$5:$K$2426)) -> 0 | N55: 0 | O55: =SUMPRODUCT((Projects!$A$5:$A$2426='MDOT FTA Detail'!$M$3)*(Projects!$C$5:$C$2426='MDOT FTA Detail'!$C$4)*(Projects!$L$5:$L$2426='MDOT FTA Detail'!$A55)*(Projects!$J$5:$J$2426<>'MDOT FTA Detail'!$A$171)*(Projects!$Q$5:$Q$2426)) -> 0
A56: MG | B56: Minimum Guarantee | C56: MDOT FA | D56: =SUMPRODUCT((Projects!$A$5:$A$2426='MDOT FTA Detail'!$D$3)*(Projects!$C$5:$C$2426='MDOT FTA Detail'!$C$4)*(Projects!$L$5:$L$2426='MDOT FTA Detail'!$A56)*(Projects!$J$5:$J$2426<>'MDOT FTA Detail'!$A$171)*(Projects!$K$5:K$2426)) -> 0 | E56: 0 | F56: =SUMPRODUCT((Projects!$A$5:$A$2426='MDOT FTA Detail'!$D$3)*(Projects!$C$5:$C$2426='MDOT FTA Detail'!$C$4)*(Projects!$L$5:$L$2426='MDOT FTA Detail'!$A56)*(Projects!$J$5:$J$2426<>'MDOT FTA Detail'!$A$171)*(Projects!$Q$5:Q$2426)) -> 0 | G56: =SUMPRODUCT((Projects!$A$5:$A$2426='MDOT FTA Detail'!$G$3)*(Projects!$C$5:$C$2426='MDOT FTA Detail'!$C$4)*(Projects!$L$5:$L$2426='MDOT FTA Detail'!$A56)*(Projects!$J$5:$J$2426<>'MDOT FTA Detail'!$A$171)*(Projects!$K$5:K$2426)) -> 0 | H56: 0 | I56: =SUMPRODUCT((Projects!$A$5:$A$2426='MDOT FTA Detail'!$G$3)*(Projects!$C$5:$C$2426='MDOT FTA Detail'!$C$4)*(Projects!$L$5:$L$2426='MDOT FTA Detail'!$A56)*(Projects!$J$5:$J$2426<>'MDOT FTA Detail'!$A$171)*(Projects!$Q$5:Q$2426)) -> 0 | J56: =SUMPRODUCT((Projects!$A$5:$A$2426='MDOT FTA Detail'!$J$3)*(Projects!$C$5:$C$2426='MDOT FTA Detail'!$C$4)*(Projects!$L$5:$L$2426='MDOT FTA Detail'!$A56)*(Projects!$J$5:$J$2426<>'MDOT FTA Detail'!$A$171)*(Projects!$K$5:$K$2426)) -> 0 | K56: 0 | L56: =SUMPRODUCT((Projects!$A$5:$A$2426='MDOT FTA Detail'!$J$3)*(Projects!$C$5:$C$2426='MDOT FTA Detail'!$C$4)*(Projects!$L$5:$L$2426='MDOT FTA Detail'!$A56)*(Projects!$J$5:$J$2426<>'MDOT FTA Detail'!$A$171)*(Projects!$Q$5:$Q$2426)) -> 0 | M56: =SUMPRODUCT((Projects!$A$5:$A$2426='MDOT FTA Detail'!$M$3)*(Projects!$C$5:$C$2426='MDOT FTA Detail'!$C$4)*(Projects!$L$5:$L$2426='MDOT FTA Detail'!$A56)*(Projects!$J$5:$J$2426<>'MDOT FTA Detail'!$A$171)*(Projects!$K$5:$K$2426)) -> 0 | N56: 0 | O56: =SUMPRODUCT((Projects!$A$5:$A$2426='MDOT FTA Detail'!$M$3)*(Projects!$C$5:$C$2426='MDOT FTA Detail'!$C$4)*(Projects!$L$5:$L$2426='MDOT FTA Detail'!$A56)*(Projects!$J$5:$J$2426<>'MDOT FTA Detail'!$A$171)*(Projects!$Q$5:$Q$2426)) -> 0
A57: NCII | B57: National Corridor Infrastructure Improvement - SAFETEA-LU | C57: MDOT FA | D57: =SUMPRODUCT((Projects!$A$5:$A$2426='MDOT FTA Detail'!$D$3)*(Projects!$C$5:$C$2426='MDOT FTA Detail'!$C$4)*(Projects!$L$5:$L$2426='MDOT FTA Detail'!$A57)*(Projects!$J$5:$J$2426<>'MDOT FTA Detail'!$A$171)*(Projects!$K$5:K$2426)) -> 0 | E57: 0 | F57: =SUMPRODUCT((Projects!$A$5:$A$2426='MDOT FTA Detail'!$D$3)*(Projects!$C$5:$C$2426='MDOT FTA Detail'!$C$4)*(Projects!$L$5:$L$2426='MDOT FTA Detail'!$A57)*(Projects!$J$5:$J$2426<>'MDOT FTA Detail'!$A$171)*(Projects!$Q$5:Q$2426)) -> 0 | G57: =SUMPRODUCT((Projects!$A$5:$A$2426='MDOT FTA Detail'!$G$3)*(Projects!$C$5:$C$2426='MDOT FTA Detail'!$C$4)*(Projects!$L$5:$L$2426='MDOT FTA Detail'!$A57)*(Projects!$J$5:$J$2426<>'MDOT FTA Detail'!$A$171)*(Projects!$K$5:K$2426)) -> 0 | H57: 0 | I57: =SUMPRODUCT((Projects!$A$5:$A$2426='MDOT FTA Detail'!$G$3)*(Projects!$C$5:$C$2426='MDOT FTA Detail'!$C$4)*(Projects!$L$5:$L$2426='MDOT FTA Detail'!$A57)*(Projects!$J$5:$J$2426<>'MDOT FTA Detail'!$A$171)*(Projects!$Q$5:Q$2426)) -> 0 | J57: =SUMPRODUCT((Projects!$A$5:$A$2426='MDOT FTA Detail'!$J$3)*(Projects!$C$5:$C$2426='MDOT FTA Detail'!$C$4)*(Projects!$L$5:$L$2426='MDOT FTA Detail'!$A57)*(Projects!$J$5:$J$2426<>'MDOT FTA Detail'!$A$171)*(Projects!$K$5:$K$2426)) -> 0 | K57: 0 | L57: =SUMPRODUCT((Projects!$A$5:$A$2426='MDOT FTA Detail'!$J$3)*(Projects!$C$5:$C$2426='MDOT FTA Detail'!$C$4)*(Projects!$L$5:$L$2426='MDOT FTA Detail'!$A57)*(Projects!$J$5:$J$2426<>'MDOT FTA Detail'!$A$171)*(Projects!$Q$5:$Q$2426)) -> 0 | M57: =SUMPRODUCT((Projects!$A$5:$A$2426='MDOT FTA Detail'!$M$3)*(Projects!$C$5:$C$2426='MDOT FTA Detail'!$C$4)*(Projects!$L$5:$L$2426='MDOT FTA Detail'!$A57)*(Projects!$J$5:$J$2426<>'MDOT FTA Detail'!$A$171)*(Projects!$K$5:$K$2426)) -> 0 | N57: 0 | O57: =SUMPRODUCT((Projects!$A$5:$A$2426='MDOT FTA Detail'!$M$3)*(Projects!$C$5:$C$2426='MDOT FTA Detail'!$C$4)*(Projects!$L$5:$L$2426='MDOT FTA Detail'!$A57)*(Projects!$J$5:$J$2426<>'MDOT FTA Detail'!$A$171)*(Projects!$Q$5:$Q$2426)) -> 0
A58: NH | B58: National Highway System | C58: MDOT FA | D58: =SUMPRODUCT((Projects!$A$5:$A$2426='MDOT FTA Detail'!$D$3)*(Projects!$C$5:$C$2426='MDOT FTA Detail'!$C$4)*(Projects!$L$5:$L$2426='MDOT FTA Detail'!$A58)*(Projects!$J$5:$J$2426<>'MDOT FTA Detail'!$A$171)*(Projects!$K$5:K$2426)) -> 3270574 | E58: 725180 | F58: =SUMPRODUCT((Projects!$A$5:$A$2426='MDOT FTA Detail'!$D$3)*(Projects!$C$5:$C$2426='MDOT FTA Detail'!$C$4)*(Projects!$L$5:$L$2426='MDOT FTA Detail'!$A58)*(Projects!$J$5:$J$2426<>'MDOT FTA Detail'!$A$171)*(Projects!$Q$5:Q$2426)) -> 3995754 | G58: =SUMPRODUCT((Projects!$A$5:$A$2426='MDOT FTA Detail'!$G$3)*(Projects!$C$5:$C$2426='MDOT FTA Detail'!$C$4)*(Projects!$L$5:$L$2426='MDOT FTA Detail'!$A58)*(Projects!$J$5:$J$2426<>'MDOT FTA Detail'!$A$171)*(Projects!$K$5:K$2426)) -> 0 | H58: 0 | I58: =SUMPRODUCT((Projects!$A$5:$A$2426='MDOT FTA Detail'!$G$3)*(Projects!$C$5:$C$2426='MDOT FTA Detail'!$C$4)*(Projects!$L$5:$L$2426='MDOT FTA Detail'!$A58)*(Projects!$J$5:$J$2426<>'MDOT FTA Detail'!$A$171)*(Projects!$Q$5:Q$2426)) -> 0 | J58: =SUMPRODUCT((Projects!$A$5:$A$2426='MDOT FTA Detail'!$J$3)*(Projects!$C$5:$C$2426='MDOT FTA Detail'!$C$4)*(Projects!$L$5:$L$2426='MDOT FTA Detail'!$A58)*(Projects!$J$5:$J$2426<>'MDOT FTA Detail'!$A$171)*(Projects!$K$5:$K$2426)) -> 5241278 | K58: 1162237 | L58: =SUMPRODUCT((Projects!$A$5:$A$2426='MDOT FTA Detail'!$J$3)*(Projects!$C$5:$C$2426='MDOT FTA Detail'!$C$4)*(Projects!$L$5:$L$2426='MDOT FTA Detail'!$A58)*(Projects!$J$5:$J$2426<>'MDOT FTA Detail'!$A$171)*(Projects!$Q$5:$Q$2426)) -> 6403515 | M58: =SUMPRODUCT((Projects!$A$5:$A$2426='MDOT FTA Detail'!$M$3)*(Projects!$C$5:$C$2426='MDOT FTA Detail'!$C$4)*(Projects!$L$5:$L$2426='MDOT FTA Detail'!$A58)*(Projects!$J$5:$J$2426<>'MDOT FTA Detail'!$A$171)*(Projects!$K$5:$K$2426)) -> 0 | N58: 0 | O58: =SUMPRODUCT((Projects!$A$5:$A$2426='MDOT FTA Detail'!$M$3)*(Projects!$C$5:$C$2426='MDOT FTA Detail'!$C$4)*(Projects!$L$5:$L$2426='MDOT FTA Detail'!$A58)*(Projects!$J$5:$J$2426<>'MDOT FTA Detail'!$A$171)*(Projects!$Q$5:$Q$2426)) -> 0
A59: NHG | B59: National Highway System - Safety - 100% Federal | C59: MDOT FA | D59: =SUMPRODUCT((Projects!$A$5:$A$2426='MDOT FTA Detail'!$D$3)*(Projects!$C$5:$C$2426='MDOT FTA Detail'!$C$4)*(Projects!$L$5:$L$2426='MDOT FTA Detail'!$A59)*(Projects!$J$5:$J$2426<>'MDOT FTA Detail'!$A$171)*(Projects!$K$5:K$2426)) -> 0 | E59: 0 | F59: =SUMPRODUCT((Projects!$A$5:$A$2426='MDOT FTA Detail'!$D$3)*(Projects!$C$5:$C$2426='MDOT FTA Detail'!$C$4)*(Projects!$L$5:$L$2426='MDOT FTA Detail'!$A59)*(Projects!$J$5:$J$2426<>'MDOT FTA Detail'!$A$171)*(Projects!$Q$5:Q$2426)) -> 0 | G59: =SUMPRODUCT((Projects!$A$5:$A$2426='MDOT FTA Detail'!$G$3)*(Projects!$C$5:$C$2426='MDOT FTA Detail'!$C$4)*(Projects!$L$5:$L$2426='MDOT FTA Detail'!$A59)*(Projects!$J$5:$J$2426<>'MDOT FTA Detail'!$A$171)*(Projects!$K$5:K$2426)) -> 0 | H59: 0 | I59: =SUMPRODUCT((Projects!$A$5:$A$2426='MDOT FTA Detail'!$G$3)*(Projects!$C$5:$C$2426='MDOT FTA Detail'!$C$4)*(Projects!$L$5:$L$2426='MDOT FTA Detail'!$A59)*(Projects!$J$5:$J$2426<>'MDOT FTA Detail'!$A$171)*(Projects!$Q$5:Q$2426)) -> 0 | J59: =SUMPRODUCT((Projects!$A$5:$A$2426='MDOT FTA Detail'!$J$3)*(Projects!$C$5:$C$2426='MDOT FTA Detail'!$C$4)*(Projects!$L$5:$L$2426='MDOT FTA Detail'!$A59)*(Projects!$J$5:$J$2426<>'MDOT FTA Detail'!$A$171)*(Projects!$K$5:$K$2426)) -> 0 | K59: 0 | L59: =SUMPRODUCT((Projects!$A$5:$A$2426='MDOT FTA Detail'!$J$3)*(Projects!$C$5:$C$2426='MDOT FTA Detail'!$C$4)*(Projects!$L$5:$L$2426='MDOT FTA Detail'!$A59)*(Projects!$J$5:$J$2426<>'MDOT FTA Detail'!$A$171)*(Projects!$Q$5:$Q$2426)) -> 0 | M59: =SUMPRODUCT((Projects!$A$5:$A$2426='MDOT FTA Detail'!$M$3)*(Projects!$C$5:$C$2426='MDOT FTA Detail'!$C$4)*(Projects!$L$5:$L$2426='MDOT FTA Detail'!$A59)*(Projects!$J$5:$J$2426<>'MDOT FTA Detail'!$A$171)*(Projects!$K$5:$K$2426)) -> 0 | N59: 0 | O59: =SUMPRODUCT((Projects!$A$5:$A$2426='MDOT FTA Detail'!$M$3)*(Projects!$C$5:$C$2426='MDOT FTA Detail'!$C$4)*(Projects!$L$5:$L$2426='MDOT FTA Detail'!$A59)*(Projects!$J$5:$J$2426<>'MDOT FTA Detail'!$A$171)*(Projects!$Q$5:$Q$2426)) -> 0
A60: NHI | B60: National Highway Funds on I (Does not Qualify for I) | C60: MDOT FA | D60: =SUMPRODUCT((Projects!$A$5:$A$2426='MDOT FTA Detail'!$D$3)*(Projects!$C$5:$C$2426='MDOT FTA Detail'!$C$4)*(Projects!$L$5:$L$2426='MDOT FTA Detail'!$A60)*(Projects!$J$5:$J$2426<>'MDOT FTA Detail'!$A$171)*(Projects!$K$5:K$2426)) -> 0 | E60: 0 | F60: =SUMPRODUCT((Projects!$A$5:$A$2426='MDOT FTA Detail'!$D$3)*(Projects!$C$5:$C$2426='MDOT FTA Detail'!$C$4)*(Projects!$L$5:$L$2426='MDOT FTA Detail'!$A60)*(Projects!$J$5:$J$2426<>'MDOT FTA Detail'!$A$171)*(Projects!$Q$5:Q$2426)) -> 0 | G60: =SUMPRODUCT((Projects!$A$5:$A$2426='MDOT FTA Detail'!$G$3)*(Projects!$C$5:$C$2426='MDOT FTA Detail'!$C$4)*(Projects!$L$5:$L$2426='MDOT FTA Detail'!$A60)*(Projects!$J$5:$J$2426<>'MDOT FTA Detail'!$A$171)*(Projects!$K$5:K$2426)) -> 0 | H60: 0 | I60: =SUMPRODUCT((Projects!$A$5:$A$2426='MDOT FTA Detail'!$G$3)*(Projects!$C$5:$C$2426='MDOT FTA Detail'!$C$4)*(Projects!$L$5:$L$2426='MDOT FTA Detail'!$A60)*(Projects!$J$5:$J$2426<>'MDOT FTA Detail'!$A$171)*(Projects!$Q$5:Q$2426)) -> 0 | J60: =SUMPRODUCT((Projects!$A$5:$A$2426='MDOT FTA Detail'!$J$3)*(Projects!$C$5:$C$2426='MDOT FTA Detail'!$C$4)*(Projects!$L$5:$L$2426='MDOT FTA Detail'!$A60)*(Projects!$J$5:$J$2426<>'MDOT FTA Detail'!$A$171)*(Projects!$K$5:$K$2426)) -> 0 | K60: 0 | L60: =SUMPRODUCT((Projects!$A$5:$A$2426='MDOT FTA Detail'!$J$3)*(Projects!$C$5:$C$2426='MDOT FTA Detail'!$C$4)*(Projects!$L$5:$L$2426='MDOT FTA Detail'!$A60)*(Projects!$J$5:$J$2426<>'MDOT FTA Detail'!$A$171)*(Projects!$Q$5:$Q$2426)) -> 0 | M60: =SUMPRODUCT((Projects!$A$5:$A$2426='MDOT FTA Detail'!$M$3)*(Projects!$C$5:$C$2426='MDOT FTA Detail'!$C$4)*(Projects!$L$5:$L$2426='MDOT FTA Detail'!$A60)*(Projects!$J$5:$J$2426<>'MDOT FTA Detail'!$A$171)*(Projects!$K$5:$K$2426)) -> 0 | N60: 0 | O60: =SUMPRODUCT((Projects!$A$5:$A$2426='MDOT FTA Detail'!$M$3)*(Projects!$C$5:$C$2426='MDOT FTA Detail'!$C$4)*(Projects!$L$5:$L$2426='MDOT FTA Detail'!$A60)*(Projects!$J$5:$J$2426<>'MDOT FTA Detail'!$A$171)*(Projects!$Q$5:$Q$2426)) -> 0
A61: NHIM | B61: National Highway Funds on I (Qualifies for IM) | C61: MDOT FA | D61: =SUMPRODUCT((Projects!$A$5:$A$2426='MDOT FTA Detail'!$D$3)*(Projects!$C$5:$C$2426='MDOT FTA Detail'!$C$4)*(Projects!$L$5:$L$2426='MDOT FTA Detail'!$A61)*(Projects!$J$5:$J$2426<>'MDOT FTA Detail'!$A$171)*(Projects!$K$5:K$2426)) -> 0 | E61: 0 | F61: =SUMPRODUCT((Projects!$A$5:$A$2426='MDOT FTA Detail'!$D$3)*(Projects!$C$5:$C$2426='MDOT FTA Detail'!$C$4)*(Projects!$L$5:$L$2426='MDOT FTA Detail'!$A61)*(Projects!$J$5:$J$2426<>'MDOT FTA Detail'!$A$171)*(Projects!$Q$5:Q$2426)) -> 0 | G61: =SUMPRODUCT((Projects!$A$5:$A$2426='MDOT FTA Detail'!$G$3)*(Projects!$C$5:$C$2426='MDOT FTA Detail'!$C$4)*(Projects!$L$5:$L$2426='MDOT FTA Detail'!$A61)*(Projects!$J$5:$J$2426<>'MDOT FTA Detail'!$A$171)*(Projects!$K$5:K$2426)) -> 0 | H61: 0 | I61: =SUMPRODUCT((Projects!$A$5:$A$2426='MDOT FTA Detail'!$G$3)*(Projects!$C$5:$C$2426='MDOT FTA Detail'!$C$4)*(Projects!$L$5:$L$2426='MDOT FTA Detail'!$A61)*(Projects!$J$5:$J$2426<>'MDOT FTA Detail'!$A$171)*(Projects!$Q$5:Q$2426)) -> 0 | J61: =SUMPRODUCT((Projects!$A$5:$A$2426='MDOT FTA Detail'!$J$3)*(Projects!$C$5:$C$2426='MDOT FTA Detail'!$C$4)*(Projects!$L$5:$L$2426='MDOT FTA Detail'!$A61)*(Projects!$J$5:$J$2426<>'MDOT FTA Detail'!$A$171)*(Projects!$K$5:$K$2426)) -> 0 | K61: 0 | L61: =SUMPRODUCT((Projects!$A$5:$A$2426='MDOT FTA Detail'!$J$3)*(Projects!$C$5:$C$2426='MDOT FTA Detail'!$C$4)*(Projects!$L$5:$L$2426='MDOT FTA Detail'!$A61)*(Projects!$J$5:$J$2426<>'MDOT FTA Detail'!$A$171)*(Projects!$Q$5:$Q$2426)) -> 0 | M61: =SUMPRODUCT((Projects!$A$5:$A$2426='MDOT FTA Detail'!$M$3)*(Projects!$C$5:$C$2426='MDOT FTA Detail'!$C$4)*(Projects!$L$5:$L$2426='MDOT FTA Detail'!$A61)*(Projects!$J$5:$J$2426<>'MDOT FTA Detail'!$A$171)*(Projects!$K$5:$K$2426)) -> 0 | N61: 0 | O61: =SUMPRODUCT((Projects!$A$5:$A$2426='MDOT FTA Detail'!$M$3)*(Projects!$C$5:$C$2426='MDOT FTA Detail'!$C$4)*(Projects!$L$5:$L$2426='MDOT FTA Detail'!$A61)*(Projects!$J$5:$J$2426<>'MDOT FTA Detail'!$A$171)*(Projects!$Q$5:$Q$2426)) -> 0
A62: NHS | B62: National Highway System - MDOT Safety Program | C62: MDOT FA | D62: =SUMPRODUCT((Projects!$A$5:$A$2426='MDOT FTA Detail'!$D$3)*(Projects!$C$5:$C$2426='MDOT FTA Detail'!$C$4)*(Projects!$L$5:$L$2426='MDOT FTA Detail'!$A62)*(Projects!$J$5:$J$2426<>'MDOT FTA Detail'!$A$171)*(Projects!$K$5:K$2426)) -> 0 | E62: 0 | F62: =SUMPRODUCT((Projects!$A$5:$A$2426='MDOT FTA Detail'!$D$3)*(Projects!$C$5:$C$2426='MDOT FTA Detail'!$C$4)*(Projects!$L$5:$L$2426='MDOT FTA Detail'!$A62)*(Projects!$J$5:$J$2426<>'MDOT FTA Detail'!$A$171)*(Projects!$Q$5:Q$2426)) -> 0 | G62: =SUMPRODUCT((Projects!$A$5:$A$2426='MDOT FTA Detail'!$G$3)*(Projects!$C$5:$C$2426='MDOT FTA Detail'!$C$4)*(Projects!$L$5:$L$2426='MDOT FTA Detail'!$A62)*(Projects!$J$5:$J$2426<>'MDOT FTA Detail'!$A$171)*(Projects!$K$5:K$2426)) -> 0 | H62: 0 | I62: =SUMPRODUCT((Projects!$A$5:$A$2426='MDOT FTA Detail'!$G$3)*(Projects!$C$5:$C$2426='MDOT FTA Detail'!$C$4)*(Projects!$L$5:$L$2426='MDOT FTA Detail'!$A62)*(Projects!$J$5:$J$2426<>'MDOT FTA Detail'!$A$171)*(Projects!$Q$5:Q$2426)) -> 0 | J62: =SUMPRODUCT((Projects!$A$5:$A$2426='MDOT FTA Detail'!$J$3)*(Projects!$C$5:$C$2426='MDOT FTA Detail'!$C$4)*(Projects!$L$5:$L$2426='MDOT FTA Detail'!$A62)*(Projects!$J$5:$J$2426<>'MDOT FTA Detail'!$A$171)*(Projects!$K$5:$K$2426)) -> 0 | K62: 0 | L62: =SUMPRODUCT((Projects!$A$5:$A$2426='MDOT FTA Detail'!$J$3)*(Projects!$C$5:$C$2426='MDOT FTA Detail'!$C$4)*(Projects!$L$5:$L$2426='MDOT FTA Detail'!$A62)*(Projects!$J$5:$J$2426<>'MDOT FTA Detail'!$A$171)*(Projects!$Q$5:$Q$2426)) -> 0 | M62: =SUMPRODUCT((Projects!$A$5:$A$2426='MDOT FTA Detail'!$M$3)*(Projects!$C$5:$C$2426='MDOT FTA Detail'!$C$4)*(Projects!$L$5:$L$2426='MDOT FTA Detail'!$A62)*(Projects!$J$5:$J$2426<>'MDOT FTA Detail'!$A$171)*(Projects!$K$5:$K$2426)) -> 0 | N62: 0 | O62: =SUMPRODUCT((Projects!$A$5:$A$2426='MDOT FTA Detail'!$M$3)*(Projects!$C$5:$C$2426='MDOT FTA Detail'!$C$4)*(Projects!$L$5:$L$2426='MDOT FTA Detail'!$A62)*(Projects!$J$5:$J$2426<>'MDOT FTA Detail'!$A$171)*(Projects!$Q$5:$Q$2426)) -> 0
A63: NRT | B63: National Recreational Trails | C63: MDOT FA | D63: =SUMPRODUCT((Projects!$A$5:$A$2426='MDOT FTA Detail'!$D$3)*(Projects!$C$5:$C$2426='MDOT FTA Detail'!$C$4)*(Projects!$L$5:$L$2426='MDOT FTA Detail'!$A63)*(Projects!$J$5:$J$2426<>'MDOT FTA Detail'!$A$171)*(Projects!$K$5:K$2426)) -> 0 | E63: 0 | F63: =SUMPRODUCT((Projects!$A$5:$A$2426='MDOT FTA Detail'!$D$3)*(Projects!$C$5:$C$2426='MDOT FTA Detail'!$C$4)*(Projects!$L$5:$L$2426='MDOT FTA Detail'!$A63)*(Projects!$J$5:$J$2426<>'MDOT FTA Detail'!$A$171)*(Projects!$Q$5:Q$2426)) -> 0 | G63: =SUMPRODUCT((Projects!$A$5:$A$2426='MDOT FTA Detail'!$G$3)*(Projects!$C$5:$C$2426='MDOT FTA Detail'!$C$4)*(Projects!$L$5:$L$2426='MDOT FTA Detail'!$A63)*(Projects!$J$5:$J$2426<>'MDOT FTA Detail'!$A$171)*(Projects!$K$5:K$2426)) -> 0 | H63: 0 | I63: =SUMPRODUCT((Projects!$A$5:$A$2426='MDOT FTA Detail'!$G$3)*(Projects!$C$5:$C$2426='MDOT FTA Detail'!$C$4)*(Projects!$L$5:$L$2426='MDOT FTA Detail'!$A63)*(Projects!$J$5:$J$2426<>'MDOT FTA Detail'!$A$171)*(Projects!$Q$5:Q$2426)) -> 0 | J63: =SUMPRODUCT((Projects!$A$5:$A$2426='MDOT FTA Detail'!$J$3)*(Projects!$C$5:$C$2426='MDOT FTA Detail'!$C$4)*(Projects!$L$5:$L$2426='MDOT FTA Detail'!$A63)*(Projects!$J$5:$J$2426<>'MDOT FTA Detail'!$A$171)*(Projects!$K$5:$K$2426)) -> 0 | K63: 0 | L63: =SUMPRODUCT((Projects!$A$5:$A$2426='MDOT FTA Detail'!$J$3)*(Projects!$C$5:$C$2426='MDOT FTA Detail'!$C$4)*(Projects!$L$5:$L$2426='MDOT FTA Detail'!$A63)*(Projects!$J$5:$J$2426<>'MDOT FTA Detail'!$A$171)*(Projects!$Q$5:$Q$2426)) -> 0 | M63: =SUMPRODUCT((Projects!$A$5:$A$2426='MDOT FTA Detail'!$M$3)*(Projects!$C$5:$C$2426='MDOT FTA Detail'!$C$4)*(Projects!$L$5:$L$2426='MDOT FTA Detail'!$A63)*(Projects!$J$5:$J$2426<>'MDOT FTA Detail'!$A$171)*(Projects!$K$5:$K$2426)) -> 0 | N63: 0 | O63: =SUMPRODUCT((Projects!$A$5:$A$2426='MDOT FTA Detail'!$M$3)*(Projects!$C$5:$C$2426='MDOT FTA Detail'!$C$4)*(Projects!$L$5:$L$2426='MDOT FTA Detail'!$A63)*(Projects!$J$5:$J$2426<>'MDOT FTA Detail'!$A$171)*(Projects!$Q$5:$Q$2426)) -> 0
A64: OFHWA | B64: Other FHWA Funds (Specify source in Comments) | C64: MDOT FA | D64: =SUMPRODUCT((Projects!$A$5:$A$2426='MDOT FTA Detail'!$D$3)*(Projects!$C$5:$C$2426='MDOT FTA Detail'!$C$4)*(Projects!$L$5:$L$2426='MDOT FTA Detail'!$A64)*(Projects!$J$5:$J$2426<>'MDOT FTA Detail'!$A$171)*(Projects!$K$5:K$2426)) -> 0 | E64: 0 | F64: =SUMPRODUCT((Projects!$A$5:$A$2426='MDOT FTA Detail'!$D$3)*(Projects!$C$5:$C$2426='MDOT FTA Detail'!$C$4)*(Projects!$L$5:$L$2426='MDOT FTA Detail'!$A64)*(Projects!$J$5:$J$2426<>'MDOT FTA Detail'!$A$171)*(Projects!$Q$5:Q$2426)) -> 0 | G64: =SUMPRODUCT((Projects!$A$5:$A$2426='MDOT FTA Detail'!$G$3)*(Projects!$C$5:$C$2426='MDOT FTA Detail'!$C$4)*(Projects!$L$5:$L$2426='MDOT FTA Detail'!$A64)*(Projects!$J$5:$J$2426<>'MDOT FTA Detail'!$A$171)*(Projects!$K$5:K$2426)) -> 0 | H64: 0 | I64: =SUMPRODUCT((Projects!$A$5:$A$2426='MDOT FTA Detail'!$G$3)*(Projects!$C$5:$C$2426='MDOT FTA Detail'!$C$4)*(Projects!$L$5:$L$2426='MDOT FTA Detail'!$A64)*(Projects!$J$5:$J$2426<>'MDOT FTA Detail'!$A$171)*(Projects!$Q$5:Q$2426)) -> 0 | J64: =SUMPRODUCT((Projects!$A$5:$A$2426='MDOT FTA Detail'!$J$3)*(Projects!$C$5:$C$2426='MDOT FTA Detail'!$C$4)*(Projects!$L$5:$L$2426='MDOT FTA Detail'!$A64)*(Projects!$J$5:$J$2426<>'MDOT FTA Detail'!$A$171)*(Projects!$K$5:$K$2426)) -> 0 | K64: 0 | L64: =SUMPRODUCT((Projects!$A$5:$A$2426='MDOT FTA Detail'!$J$3)*(Projects!$C$5:$C$2426='MDOT FTA Detail'!$C$4)*(Projects!$L$5:$L$2426='MDOT FTA Detail'!$A64)*(Projects!$J$5:$J$2426<>'MDOT FTA Detail'!$A$171)*(Projects!$Q$5:$Q$2426)) -> 0 | M64: =SUMPRODUCT((Projects!$A$5:$A$2426='MDOT FTA Detail'!$M$3)*(Projects!$C$5:$C$2426='MDOT FTA Detail'!$C$4)*(Projects!$L$5:$L$2426='MDOT FTA Detail'!$A64)*(Projects!$J$5:$J$2426<>'MDOT FTA Detail'!$A$171)*(Projects!$K$5:$K$2426)) -> 0 | N64: 0 | O64: =SUMPRODUCT((Projects!$A$5:$A$2426='MDOT FTA Detail'!$M$3)*(Projects!$C$5:$C$2426='MDOT FTA Detail'!$C$4)*(Projects!$L$5:$L$2426='MDOT FTA Detail'!$A64)*(Projects!$J$5:$J$2426<>'MDOT FTA Detail'!$A$171)*(Projects!$Q$5:$Q$2426)) -> 0
A65: PNRS | B65: Projects of National and Regional Significance | C65: MDOT FA | D65: =SUMPRODUCT((Projects!$A$5:$A$2426='MDOT FTA Detail'!$D$3)*(Projects!$C$5:$C$2426='MDOT FTA Detail'!$C$4)*(Projects!$L$5:$L$2426='MDOT FTA Detail'!$A65)*(Projects!$J$5:$J$2426<>'MDOT FTA Detail'!$A$171)*(Projects!$K$5:K$2426)) -> 0 | E65: 0 | F65: =SUMPRODUCT((Projects!$A$5:$A$2426='MDOT FTA Detail'!$D$3)*(Projects!$C$5:$C$2426='MDOT FTA Detail'!$C$4)*(Projects!$L$5:$L$2426='MDOT FTA Detail'!$A65)*(Projects!$J$5:$J$2426<>'MDOT FTA Detail'!$A$171)*(Projects!$Q$5:Q$2426)) -> 0 | G65: =SUMPRODUCT((Projects!$A$5:$A$2426='MDOT FTA Detail'!$G$3)*(Projects!$C$5:$C$2426='MDOT FTA Detail'!$C$4)*(Projects!$L$5:$L$2426='MDOT FTA Detail'!$A65)*(Projects!$J$5:$J$2426<>'MDOT FTA Detail'!$A$171)*(Projects!$K$5:K$2426)) -> 0 | H65: 0 | I65: =SUMPRODUCT((Projects!$A$5:$A$2426='MDOT FTA Detail'!$G$3)*(Projects!$C$5:$C$2426='MDOT FTA Detail'!$C$4)*(Projects!$L$5:$L$2426='MDOT FTA Detail'!$A65)*(Projects!$J$5:$J$2426<>'MDOT FTA Detail'!$A$171)*(Projects!$Q$5:Q$2426)) -> 0 | J65: =SUMPRODUCT((Projects!$A$5:$A$2426='MDOT FTA Detail'!$J$3)*(Projects!$C$5:$C$2426='MDOT FTA Detail'!$C$4)*(Projects!$L$5:$L$2426='MDOT FTA Detail'!$A65)*(Projects!$J$5:$J$2426<>'MDOT FTA Detail'!$A$171)*(Projects!$K$5:$K$2426)) -> 0 | K65: 0 | L65: =SUMPRODUCT((Projects!$A$5:$A$2426='MDOT FTA Detail'!$J$3)*(Projects!$C$5:$C$2426='MDOT FTA Detail'!$C$4)*(Projects!$L$5:$L$2426='MDOT FTA Detail'!$A65)*(Projects!$J$5:$J$2426<>'MDOT FTA Detail'!$A$171)*(Projects!$Q$5:$Q$2426)) -> 0 | M65: =SUMPRODUCT((Projects!$A$5:$A$2426='MDOT FTA Detail'!$M$3)*(Projects!$C$5:$C$2426='MDOT FTA Detail'!$C$4)*(Projects!$L$5:$L$2426='MDOT FTA Detail'!$A65)*(Projects!$J$5:$J$2426<>'MDOT FTA Detail'!$A$171)*(Projects!$K$5:$K$2426)) -> 0 | N65: 0 | O65: =SUMPRODUCT((Projects!$A$5:$A$2426='MDOT FTA Detail'!$M$3)*(Projects!$C$5:$C$2426='MDOT FTA Detail'!$C$4)*(Projects!$L$5:$L$2426='MDOT FTA Detail'!$A65)*(Projects!$J$5:$J$2426<>'MDOT FTA Detail'!$A$171)*(Projects!$Q$5:$Q$2426)) -> 0
A66: PRIP | B66: Priority Roads Investment Program | C66: MDOT FA | D66: =SUMPRODUCT((Projects!$A$5:$A$2426='MDOT FTA Detail'!$D$3)*(Projects!$C$5:$C$2426='MDOT FTA Detail'!$C$4)*(Projects!$L$5:$L$2426='MDOT FTA Detail'!$A66)*(Projects!$J$5:$J$2426<>'MDOT FTA Detail'!$A$171)*(Projects!$K$5:K$2426)) -> 0 | E66: =F66-D66 -> 0 | F66: =SUMPRODUCT((Projects!$A$5:$A$2426='MDOT FTA Detail'!$D$3)*(Projects!$C$5:$C$2426='MDOT FTA Detail'!$C$4)*(Projects!$L$5:$L$2426='MDOT FTA Detail'!$A66)*(Projects!$J$5:$J$2426<>'MDOT FTA Detail'!$A$171)*(Projects!$Q$5:Q$2426)) -> 0 | G66: =SUMPRODUCT((Projects!$A$5:$A$2426='MDOT FTA Detail'!$G$3)*(Projects!$C$5:$C$2426='MDOT FTA Detail'!$C$4)*(Projects!$L$5:$L$2426='MDOT FTA Detail'!$A66)*(Projects!$J$5:$J$2426<>'MDOT FTA Detail'!$A$171)*(Projects!$K$5:K$2426)) -> 0 | H66: =I66-G66 -> 0 | I66: =SUMPRODUCT((Projects!$A$5:$A$2426='MDOT FTA Detail'!$G$3)*(Projects!$C$5:$C$2426='MDOT FTA Detail'!$C$4)*(Projects!$L$5:$L$2426='MDOT FTA Detail'!$A66)*(Projects!$J$5:$J$2426<>'MDOT FTA Detail'!$A$171)*(Projects!$Q$5:Q$2426)) -> 0 | J66: =SUMPRODUCT((Projects!$A$5:$A$2426='MDOT FTA Detail'!$J$3)*(Projects!$C$5:$C$2426='MDOT FTA Detail'!$C$4)*(Projects!$L$5:$L$2426='MDOT FTA Detail'!$A66)*(Projects!$J$5:$J$2426<>'MDOT FTA Detail'!$A$171)*(Projects!$K$5:$K$2426)) -> 0 | K66: =L66-J66 -> 0 | L66: =SUMPRODUCT((Projects!$A$5:$A$2426='MDOT FTA Detail'!$J$3)*(Projects!$C$5:$C$2426='MDOT FTA Detail'!$C$4)*(Projects!$L$5:$L$2426='MDOT FTA Detail'!$A66)*(Projects!$J$5:$J$2426<>'MDOT FTA Detail'!$A$171)*(Projects!$Q$5:$Q$2426)) -> 0 | M66: =SUMPRODUCT((Projects!$A$5:$A$2426='MDOT FTA Detail'!$M$3)*(Projects!$C$5:$C$2426='MDOT FTA Detail'!$C$4)*(Projects!$L$5:$L$2426='MDOT FTA Detail'!$A66)*(Projects!$J$5:$J$2426<>'MDOT FTA Detail'!$A$171)*(Projects!$K$5:$K$2426)) -> 0 | N66: =O66-M66 -> 0 | O66: =SUMPRODUCT((Projects!$A$5:$A$2426='MDOT FTA Detail'!$M$3)*(Projects!$C$5:$C$2426='MDOT FTA Detail'!$C$4)*(Projects!$L$5:$L$2426='MDOT FTA Detail'!$A66)*(Projects!$J$5:$J$2426<>'MDOT FTA Detail'!$A$171)*(Projects!$Q$5:$Q$2426)) -> 0
A67: RP | B67: Research Project | C67: MDOT FA | D67: =SUMPRODUCT((Projects!$A$5:$A$2426='MDOT FTA Detail'!$D$3)*(Projects!$C$5:$C$2426='MDOT FTA Detail'!$C$4)*(Projects!$L$5:$L$2426='MDOT FTA Detail'!$A67)*(Projects!$J$5:$J$2426<>'MDOT FTA Detail'!$A$171)*(Projects!$K$5:K$2426)) -> 0 | E67: 0 | F67: =SUMPRODUCT((Projects!$A$5:$A$2426='MDOT FTA Detail'!$D$3)*(Projects!$C$5:$C$2426='MDOT FTA Detail'!$C$4)*(Projects!$L$5:$L$2426='MDOT FTA Detail'!$A67)*(Projects!$J$5:$J$2426<>'MDOT FTA Detail'!$A$171)*(Projects!$Q$5:Q$2426)) -> 0 | G67: =SUMPRODUCT((Projects!$A$5:$A$2426='MDOT FTA Detail'!$G$3)*(Projects!$C$5:$C$2426='MDOT FTA Detail'!$C$4)*(Projects!$L$5:$L$2426='MDOT FTA Detail'!$A67)*(Projects!$J$5:$J$2426<>'MDOT FTA Detail'!$A$171)*(Projects!$K$5:K$2426)) -> 0 | H67: 0 | I67: =SUMPRODUCT((Projects!$A$5:$A$2426='MDOT FTA Detail'!$G$3)*(Projects!$C$5:$C$2426='MDOT FTA Detail'!$C$4)*(Projects!$L$5:$L$2426='MDOT FTA Detail'!$A67)*(Projects!$J$5:$J$2426<>'MDOT FTA Detail'!$A$171)*(Projects!$Q$5:Q$2426)) -> 0 | J67: =SUMPRODUCT((Projects!$A$5:$A$2426='MDOT FTA Detail'!$J$3)*(Projects!$C$5:$C$2426='MDOT FTA Detail'!$C$4)*(Projects!$L$5:$L$2426='MDOT FTA Detail'!$A67)*(Projects!$J$5:$J$2426<>'MDOT FTA Detail'!$A$171)*(Projects!$K$5:$K$2426)) -> 0 | K67: 0 | L67: =SUMPRODUCT((Projects!$A$5:$A$2426='MDOT FTA Detail'!$J$3)*(Projects!$C$5:$C$2426='MDOT FTA Detail'!$C$4)*(Projects!$L$5:$L$2426='MDOT FTA Detail'!$A67)*(Projects!$J$5:$J$2426<>'MDOT FTA Detail'!$A$171)*(Projects!$Q$5:$Q$2426)) -> 0 | M67: =SUMPRODUCT((Projects!$A$5:$A$2426='MDOT FTA Detail'!$M$3)*(Projects!$C$5:$C$2426='MDOT FTA Detail'!$C$4)*(Projects!$L$5:$L$2426='MDOT FTA Detail'!$A67)*(Projects!$J$5:$J$2426<>'MDOT FTA Detail'!$A$171)*(Projects!$K$5:$K$2426)) -> 0 | N67: 0 | O67: =SUMPRODUCT((Projects!$A$5:$A$2426='MDOT FTA Detail'!$M$3)*(Projects!$C$5:$C$2426='MDOT FTA Detail'!$C$4)*(Projects!$L$5:$L$2426='MDOT FTA Detail'!$A67)*(Projects!$J$5:$J$2426<>'MDOT FTA Detail'!$A$171)*(Projects!$Q$5:$Q$2426)) -> 0
A68: RPH | B68: American Recovery and Reinvestment Act | C68: MDOT FA | D68: =SUMPRODUCT((Projects!$A$5:$A$2426='MDOT FTA Detail'!$D$3)*(Projects!$C$5:$C$2426='MDOT FTA Detail'!$C$4)*(Projects!$L$5:$L$2426='MDOT FTA Detail'!$A68)*(Projects!$J$5:$J$2426<>'MDOT FTA Detail'!$A$171)*(Projects!$K$5:K$2426)) -> 0 | E68: 0 | F68: =SUMPRODUCT((Projects!$A$5:$A$2426='MDOT FTA Detail'!$D$3)*(Projects!$C$5:$C$2426='MDOT FTA Detail'!$C$4)*(Projects!$L$5:$L$2426='MDOT FTA Detail'!$A68)*(Projects!$J$5:$J$2426<>'MDOT FTA Detail'!$A$171)*(Projects!$Q$5:Q$2426)) -> 0 | G68: =SUMPRODUCT((Projects!$A$5:$A$2426='MDOT FTA Detail'!$G$3)*(Projects!$C$5:$C$2426='MDOT FTA Detail'!$C$4)*(Projects!$L$5:$L$2426='MDOT FTA Detail'!$A68)*(Projects!$J$5:$J$2426<>'MDOT FTA Detail'!$A$171)*(Projects!$K$5:K$2426)) -> 0 | H68: 0 | I68: =SUMPRODUCT((Projects!$A$5:$A$2426='MDOT FTA Detail'!$G$3)*(Projects!$C$5:$C$2426='MDOT FTA Detail'!$C$4)*(Projects!$L$5:$L$2426='MDOT FTA Detail'!$A68)*(Projects!$J$5:$J$2426<>'MDOT FTA Detail'!$A$171)*(Projects!$Q$5:Q$2426)) -> 0 | J68: =SUMPRODUCT((Projects!$A$5:$A$2426='MDOT FTA Detail'!$J$3)*(Projects!$C$5:$C$2426='MDOT FTA Detail'!$C$4)*(Projects!$L$5:$L$2426='MDOT FTA Detail'!$A68)*(Projects!$J$5:$J$2426<>'MDOT FTA Detail'!$A$171)*(Projects!$K$5:$K$2426)) -> 0 | K68: 0 | L68: =SUMPRODUCT((Projects!$A$5:$A$2426='MDOT FTA Detail'!$J$3)*(Projects!$C$5:$C$2426='MDOT FTA Detail'!$C$4)*(Projects!$L$5:$L$2426='MDOT FTA Detail'!$A68)*(Projects!$J$5:$J$2426<>'MDOT FTA Detail'!$A$171)*(Projects!$Q$5:$Q$2426)) -> 0 | M68: =SUMPRODUCT((Projects!$A$5:$A$2426='MDOT FTA Detail'!$M$3)*(Projects!$C$5:$C$2426='MDOT FTA Detail'!$C$4)*(Projects!$L$5:$L$2426='MDOT FTA Detail'!$A68)*(Projects!$J$5:$J$2426<>'MDOT FTA Detail'!$A$171)*(Projects!$K$5:$K$2426)) -> 0 | N68: 0 | O68: =SUMPRODUCT((Projects!$A$5:$A$2426='MDOT FTA Detail'!$M$3)*(Projects!$C$5:$C$2426='MDOT FTA Detail'!$C$4)*(Projects!$L$5:$L$2426='MDOT FTA Detail'!$A68)*(Projects!$J$5:$J$2426<>'MDOT FTA Detail'!$A$171)*(Projects!$Q$5:$Q$2426)) -> 0
A69: SBD | B69: Scenic Byways - Discretionary | C69: MDOT FA | D69: =SUMPRODUCT((Projects!$A$5:$A$2426='MDOT FTA Detail'!$D$3)*(Projects!$C$5:$C$2426='MDOT FTA Detail'!$C$4)*(Projects!$L$5:$L$2426='MDOT FTA Detail'!$A69)*(Projects!$J$5:$J$2426<>'MDOT FTA Detail'!$A$171)*(Projects!$K$5:K$2426)) -> 0 | E69: 0 | F69: =SUMPRODUCT((Projects!$A$5:$A$2426='MDOT FTA Detail'!$D$3)*(Projects!$C$5:$C$2426='MDOT FTA Detail'!$C$4)*(Projects!$L$5:$L$2426='MDOT FTA Detail'!$A69)*(Projects!$J$5:$J$2426<>'MDOT FTA Detail'!$A$171)*(Projects!$Q$5:Q$2426)) -> 0 | G69: =SUMPRODUCT((Projects!$A$5:$A$2426='MDOT FTA Detail'!$G$3)*(Projects!$C$5:$C$2426='MDOT FTA Detail'!$C$4)*(Projects!$L$5:$L$2426='MDOT FTA Detail'!$A69)*(Projects!$J$5:$J$2426<>'MDOT FTA Detail'!$A$171)*(Projects!$K$5:K$2426)) -> 0 | H69: 0 | I69: =SUMPRODUCT((Projects!$A$5:$A$2426='MDOT FTA Detail'!$G$3)*(Projects!$C$5:$C$2426='MDOT FTA Detail'!$C$4)*(Projects!$L$5:$L$2426='MDOT FTA Detail'!$A69)*(Projects!$J$5:$J$2426<>'MDOT FTA Detail'!$A$171)*(Projects!$Q$5:Q$2426)) -> 0 | J69: =SUMPRODUCT((Projects!$A$5:$A$2426='MDOT FTA Detail'!$J$3)*(Projects!$C$5:$C$2426='MDOT FTA Detail'!$C$4)*(Projects!$L$5:$L$2426='MDOT FTA Detail'!$A69)*(Projects!$J$5:$J$2426<>'MDOT FTA Detail'!$A$171)*(Projects!$K$5:$K$2426)) -> 0 | K69: 0 | L69: =SUMPRODUCT((Projects!$A$5:$A$2426='MDOT FTA Detail'!$J$3)*(Projects!$C$5:$C$2426='MDOT FTA Detail'!$C$4)*(Projects!$L$5:$L$2426='MDOT FTA Detail'!$A69)*(Projects!$J$5:$J$2426<>'MDOT FTA Detail'!$A$171)*(Projects!$Q$5:$Q$2426)) -> 0 | M69: =SUMPRODUCT((Projects!$A$5:$A$2426='MDOT FTA Detail'!$M$3)*(Projects!$C$5:$C$2426='MDOT FTA Detail'!$C$4)*(Projects!$L$5:$L$2426='MDOT FTA Detail'!$A69)*(Projects!$J$5:$J$2426<>'MDOT FTA Detail'!$A$171)*(Projects!$K$5:$K$2426)) -> 0 | N69: 0 | O69: =SUMPRODUCT((Projects!$A$5:$A$2426='MDOT FTA Detail'!$M$3)*(Projects!$C$5:$C$2426='MDOT FTA Detail'!$C$4)*(Projects!$L$5:$L$2426='MDOT FTA Detail'!$A69)*(Projects!$J$5:$J$2426<>'MDOT FTA Detail'!$A$171)*(Projects!$Q$5:$Q$2426)) -> 0
A70: SIB | B70: State Infrastructure Bank | C70: MDOT FA | D70: =SUMPRODUCT((Projects!$A$5:$A$2426='MDOT FTA Detail'!$D$3)*(Projects!$C$5:$C$2426='MDOT FTA Detail'!$C$4)*(Projects!$L$5:$L$2426='MDOT FTA Detail'!$A70)*(Projects!$J$5:$J$2426<>'MDOT FTA Detail'!$A$171)*(Projects!$K$5:K$2426)) -> 0 | E70: 0 | F70: =SUMPRODUCT((Projects!$A$5:$A$2426='MDOT FTA Detail'!$D$3)*(Projects!$C$5:$C$2426='MDOT FTA Detail'!$C$4)*(Projects!$L$5:$L$2426='MDOT FTA Detail'!$A70)*(Projects!$J$5:$J$2426<>'MDOT FTA Detail'!$A$171)*(Projects!$Q$5:Q$2426)) -> 0 | G70: =SUMPRODUCT((Projects!$A$5:$A$2426='MDOT FTA Detail'!$G$3)*(Projects!$C$5:$C$2426='MDOT FTA Detail'!$C$4)*(Projects!$L$5:$L$2426='MDOT FTA Detail'!$A70)*(Projects!$J$5:$J$2426<>'MDOT FTA Detail'!$A$171)*(Projects!$K$5:K$2426)) -> 0 | H70: 0 | I70: =SUMPRODUCT((Projects!$A$5:$A$2426='MDOT FTA Detail'!$G$3)*(Projects!$C$5:$C$2426='MDOT FTA Detail'!$C$4)*(Projects!$L$5:$L$2426='MDOT FTA Detail'!$A70)*(Projects!$J$5:$J$2426<>'MDOT FTA Detail'!$A$171)*(Projects!$Q$5:Q$2426)) -> 0 | J70: =SUMPRODUCT((Projects!$A$5:$A$2426='MDOT FTA Detail'!$J$3)*(Projects!$C$5:$C$2426='MDOT FTA Detail'!$C$4)*(Projects!$L$5:$L$2426='MDOT FTA Detail'!$A70)*(Projects!$J$5:$J$2426<>'MDOT FTA Detail'!$A$171)*(Projects!$K$5:$K$2426)) -> 0 | K70: 0 | L70: =SUMPRODUCT((Projects!$A$5:$A$2426='MDOT FTA Detail'!$J$3)*(Projects!$C$5:$C$2426='MDOT FTA Detail'!$C$4)*(Projects!$L$5:$L$2426='MDOT FTA Detail'!$A70)*(Projects!$J$5:$J$2426<>'MDOT FTA Detail'!$A$171)*(Projects!$Q$5:$Q$2426)) -> 0 | M70: =SUMPRODUCT((Projects!$A$5:$A$2426='MDOT FTA Detail'!$M$3)*(Projects!$C$5:$C$2426='MDOT FTA Detail'!$C$4)*(Projects!$L$5:$L$2426='MDOT FTA Detail'!$A70)*(Projects!$J$5:$J$2426<>'MDOT FTA Detail'!$A$171)*(Projects!$K$5:$K$2426)) -> 0 | N70: 0 | O70: =SUMPRODUCT((Projects!$A$5:$A$2426='MDOT FTA Detail'!$M$3)*(Projects!$C$5:$C$2426='MDOT FTA Detail'!$C$4)*(Projects!$L$5:$L$2426='MDOT FTA Detail'!$A70)*(Projects!$J$5:$J$2426<>'MDOT FTA Detail'!$A$171)*(Projects!$Q$5:$Q$2426)) -> 0
A71: SLG | B71: Surface Transportation Safety | C71: MDOT FA | D71: =SUMPRODUCT((Projects!$A$5:$A$2426='MDOT FTA Detail'!$D$3)*(Projects!$C$5:$C$2426='MDOT FTA Detail'!$C$4)*(Projects!$L$5:$L$2426='MDOT FTA Detail'!$A71)*(Projects!$J$5:$J$2426<>'MDOT FTA Detail'!$A$171)*(Projects!$K$5:K$2426)) -> 0 | E71: 0 | F71: =SUMPRODUCT((Projects!$A$5:$A$2426='MDOT FTA Detail'!$D$3)*(Projects!$C$5:$C$2426='MDOT FTA Detail'!$C$4)*(Projects!$L$5:$L$2426='MDOT FTA Detail'!$A71)*(Projects!$J$5:$J$2426<>'MDOT FTA Detail'!$A$171)*(Projects!$Q$5:Q$2426)) -> 0 | G71: =SUMPRODUCT((Projects!$A$5:$A$2426='MDOT FTA Detail'!$G$3)*(Projects!$C$5:$C$2426='MDOT FTA Detail'!$C$4)*(Projects!$L$5:$L$2426='MDOT FTA Detail'!$A71)*(Projects!$J$5:$J$2426<>'MDOT FTA Detail'!$A$171)*(Projects!$K$5:K$2426)) -> 0 | H71: 0 | I71: =SUMPRODUCT((Projects!$A$5:$A$2426='MDOT FTA Detail'!$G$3)*(Projects!$C$5:$C$2426='MDOT FTA Detail'!$C$4)*(Projects!$L$5:$L$2426='MDOT FTA Detail'!$A71)*(Projects!$J$5:$J$2426<>'MDOT FTA Detail'!$A$171)*(Projects!$Q$5:Q$2426)) -> 0 | J71: =SUMPRODUCT((Projects!$A$5:$A$2426='MDOT FTA Detail'!$J$3)*(Projects!$C$5:$C$2426='MDOT FTA Detail'!$C$4)*(Projects!$L$5:$L$2426='MDOT FTA Detail'!$A71)*(Projects!$J$5:$J$2426<>'MDOT FTA Detail'!$A$171)*(Projects!$K$5:$K$2426)) -> 0 | K71: 0 | L71: =SUMPRODUCT((Projects!$A$5:$A$2426='MDOT FTA Detail'!$J$3)*(Projects!$C$5:$C$2426='MDOT FTA Detail'!$C$4)*(Projects!$L$5:$L$2426='MDOT FTA Detail'!$A71)*(Projects!$J$5:$J$2426<>'MDOT FTA Detail'!$A$171)*(Projects!$Q$5:$Q$2426)) -> 0 | M71: =SUMPRODUCT((Projects!$A$5:$A$2426='MDOT FTA Detail'!$M$3)*(Projects!$C$5:$C$2426='MDOT FTA Detail'!$C$4)*(Projects!$L$5:$L$2426='MDOT FTA Detail'!$A71)*(Projects!$J$5:$J$2426<>'MDOT FTA Detail'!$A$171)*(Projects!$K$5:$K$2426)) -> 0 | N71: 0 | O71: =SUMPRODUCT((Projects!$A$5:$A$2426='MDOT FTA Detail'!$M$3)*(Projects!$C$5:$C$2426='MDOT FTA Detail'!$C$4)*(Projects!$L$5:$L$2426='MDOT FTA Detail'!$A71)*(Projects!$J$5:$J$2426<>'MDOT FTA Detail'!$A$171)*(Projects!$Q$5:$Q$2426)) -> 0
A72: SRSE | B72: Surface Transportation Safety Highway Crossing Hazard Elimination | C72: MDOT FA | D72: =SUMPRODUCT((Projects!$A$5:$A$2426='MDOT FTA Detail'!$D$3)*(Projects!$C$5:$C$2426='MDOT FTA Detail'!$C$4)*(Projects!$L$5:$L$2426='MDOT FTA Detail'!$A72)*(Projects!$J$5:$J$2426<>'MDOT FTA Detail'!$A$171)*(Projects!$K$5:K$2426)) -> 0 | E72: 0 | F72: =SUMPRODUCT((Projects!$A$5:$A$2426='MDOT FTA Detail'!$D$3)*(Projects!$C$5:$C$2426='MDOT FTA Detail'!$C$4)*(Projects!$L$5:$L$2426='MDOT FTA Detail'!$A72)*(Projects!$J$5:$J$2426<>'MDOT FTA Detail'!$A$171)*(Projects!$Q$5:Q$2426)) -> 0 | G72: =SUMPRODUCT((Projects!$A$5:$A$2426='MDOT FTA Detail'!$G$3)*(Projects!$C$5:$C$2426='MDOT FTA Detail'!$C$4)*(Projects!$L$5:$L$2426='MDOT FTA Detail'!$A72)*(Projects!$J$5:$J$2426<>'MDOT FTA Detail'!$A$171)*(Projects!$K$5:K$2426)) -> 0 | H72: 0 | I72: =SUMPRODUCT((Projects!$A$5:$A$2426='MDOT FTA Detail'!$G$3)*(Projects!$C$5:$C$2426='MDOT FTA Detail'!$C$4)*(Projects!$L$5:$L$2426='MDOT FTA Detail'!$A72)*(Projects!$J$5:$J$2426<>'MDOT FTA Detail'!$A$171)*(Projects!$Q$5:Q$2426)) -> 0 | J72: =SUMPRODUCT((Projects!$A$5:$A$2426='MDOT FTA Detail'!$J$3)*(Projects!$C$5:$C$2426='MDOT FTA Detail'!$C$4)*(Projects!$L$5:$L$2426='MDOT FTA Detail'!$A72)*(Projects!$J$5:$J$2426<>'MDOT FTA Detail'!$A$171)*(Projects!$K$5:$K$2426)) -> 0 | K72: 0 | L72: =SUMPRODUCT((Projects!$A$5:$A$2426='MDOT FTA Detail'!$J$3)*(Projects!$C$5:$C$2426='MDOT FTA Detail'!$C$4)*(Projects!$L$5:$L$2426='MDOT FTA Detail'!$A72)*(Projects!$J$5:$J$2426<>'MDOT FTA Detail'!$A$171)*(Projects!$Q$5:$Q$2426)) -> 0 | M72: =SUMPRODUCT((Projects!$A$5:$A$2426='MDOT FTA Detail'!$M$3)*(Projects!$C$5:$C$2426='MDOT FTA Detail'!$C$4)*(Projects!$L$5:$L$2426='MDOT FTA Detail'!$A72)*(Projects!$J$5:$J$2426<>'MDOT FTA Detail'!$A$171)*(Projects!$K$5:$K$2426)) -> 0 | N72: 0 | O72: =SUMPRODUCT((Projects!$A$5:$A$2426='MDOT FTA Detail'!$M$3)*(Projects!$C$5:$C$2426='MDOT FTA Detail'!$C$4)*(Projects!$L$5:$L$2426='MDOT FTA Detail'!$A72)*(Projects!$J$5:$J$2426<>'MDOT FTA Detail'!$A$171)*(Projects!$Q$5:$Q$2426)) -> 0
A73: SRHG | B73: Surface Transportation Safety Highway Crossing Protection Devices 100% | C73: MDOT FA | D73: =SUMPRODUCT((Projects!$A$5:$A$2426='MDOT FTA Detail'!$D$3)*(Projects!$C$5:$C$2426='MDOT FTA Detail'!$C$4)*(Projects!$L$5:$L$2426='MDOT FTA Detail'!$A73)*(Projects!$J$5:$J$2426<>'MDOT FTA Detail'!$A$171)*(Projects!$K$5:K$2426)) -> 0 | E73: =F73-D73 -> 0 | F73: =SUMPRODUCT((Projects!$A$5:$A$2426='MDOT FTA Detail'!$D$3)*(Projects!$C$5:$C$2426='MDOT FTA Detail'!$C$4)*(Projects!$L$5:$L$2426='MDOT FTA Detail'!$A73)*(Projects!$J$5:$J$2426<>'MDOT FTA Detail'!$A$171)*(Projects!$Q$5:Q$2426)) -> 0 | G73: =SUMPRODUCT((Projects!$A$5:$A$2426='MDOT FTA Detail'!$G$3)*(Projects!$C$5:$C$2426='MDOT FTA Detail'!$C$4)*(Projects!$L$5:$L$2426='MDOT FTA Detail'!$A73)*(Projects!$J$5:$J$2426<>'MDOT FTA Detail'!$A$171)*(Projects!$K$5:K$2426)) -> 0 | H73: =I73-G73 -> 0 | I73: =SUMPRODUCT((Projects!$A$5:$A$2426='MDOT FTA Detail'!$G$3)*(Projects!$C$5:$C$2426='MDOT FTA Detail'!$C$4)*(Projects!$L$5:$L$2426='MDOT FTA Detail'!$A73)*(Projects!$J$5:$J$2426<>'MDOT FTA Detail'!$A$171)*(Projects!$Q$5:Q$2426)) -> 0 | J73: =SUMPRODUCT((Projects!$A$5:$A$2426='MDOT FTA Detail'!$J$3)*(Projects!$C$5:$C$2426='MDOT FTA Detail'!$C$4)*(Projects!$L$5:$L$2426='MDOT FTA Detail'!$A73)*(Projects!$J$5:$J$2426<>'MDOT FTA Detail'!$A$171)*(Projects!$K$5:$K$2426)) -> 0 | K73: =L73-J73 -> 0 | L73: =SUMPRODUCT((Projects!$A$5:$A$2426='MDOT FTA Detail'!$J$3)*(Projects!$C$5:$C$2426='MDOT FTA Detail'!$C$4)*(Projects!$L$5:$L$2426='MDOT FTA Detail'!$A73)*(Projects!$J$5:$J$2426<>'MDOT FTA Detail'!$A$171)*(Projects!$Q$5:$Q$2426)) -> 0 | M73: =SUMPRODUCT((Projects!$A$5:$A$2426='MDOT FTA Detail'!$M$3)*(Projects!$C$5:$C$2426='MDOT FTA Detail'!$C$4)*(Projects!$L$5:$L$2426='MDOT FTA Detail'!$A73)*(Projects!$J$5:$J$2426<>'MDOT FTA Detail'!$A$171)*(Projects!$K$5:$K$2426)) -> 0 | N73: =O73-M73 -> 0 | O73: =SUMPRODUCT((Projects!$A$5:$A$2426='MDOT FTA Detail'!$M$3)*(Projects!$C$5:$C$2426='MDOT FTA Detail'!$C$4)*(Projects!$L$5:$L$2426='MDOT FTA Detail'!$A73)*(Projects!$J$5:$J$2426<>'MDOT FTA Detail'!$A$171)*(Projects!$Q$5:$Q$2426)) -> 0
A74: SRPG | B74: Safe Routes to School - Either - SAFETEA-LU | C74: MDOT FA | D74: =SUMPRODUCT((Projects!$A$5:$A$2426='MDOT FTA Detail'!$D$3)*(Projects!$C$5:$C$2426='MDOT FTA Detail'!$C$4)*(Projects!$L$5:$L$2426='MDOT FTA Detail'!$A74)*(Projects!$J$5:$J$2426<>'MDOT FTA Detail'!$A$171)*(Projects!$K$5:K$2426)) -> 0 | E74: =F74-D74 -> 0 | F74: =SUMPRODUCT((Projects!$A$5:$A$2426='MDOT FTA Detail'!$D$3)*(Projects!$C$5:$C$2426='MDOT FTA Detail'!$C$4)*(Projects!$L$5:$L$2426='MDOT FTA Detail'!$A74)*(Projects!$J$5:$J$2426<>'MDOT FTA Detail'!$A$171)*(Projects!$Q$5:Q$2426)) -> 0 | G74: =SUMPRODUCT((Projects!$A$5:$A$2426='MDOT FTA Detail'!$G$3)*(Projects!$C$5:$C$2426='MDOT FTA Detail'!$C$4)*(Projects!$L$5:$L$2426='MDOT FTA Detail'!$A74)*(Projects!$J$5:$J$2426<>'MDOT FTA Detail'!$A$171)*(Projects!$K$5:K$2426)) -> 0 | H74: =I74-G74 -> 0 | I74: =SUMPRODUCT((Projects!$A$5:$A$2426='MDOT FTA Detail'!$G$3)*(Projects!$C$5:$C$2426='MDOT FTA Detail'!$C$4)*(Projects!$L$5:$L$2426='MDOT FTA Detail'!$A74)*(Projects!$J$5:$J$2426<>'MDOT FTA Detail'!$A$171)*(Projects!$Q$5:Q$2426)) -> 0 | J74: =SUMPRODUCT((Projects!$A$5:$A$2426='MDOT FTA Detail'!$J$3)*(Projects!$C$5:$C$2426='MDOT FTA Detail'!$C$4)*(Projects!$L$5:$L$2426='MDOT FTA Detail'!$A74)*(Projects!$J$5:$J$2426<>'MDOT FTA Detail'!$A$171)*(Projects!$K$5:$K$2426)) -> 0 | K74: =L74-J74 -> 0 | L74: =SUMPRODUCT((Projects!$A$5:$A$2426='MDOT FTA Detail'!$J$3)*(Projects!$C$5:$C$2426='MDOT FTA Detail'!$C$4)*(Projects!$L$5:$L$2426='MDOT FTA Detail'!$A74)*(Projects!$J$5:$J$2426<>'MDOT FTA Detail'!$A$171)*(Projects!$Q$5:$Q$2426)) -> 0 | M74: =SUMPRODUCT((Projects!$A$5:$A$2426='MDOT FTA Detail'!$M$3)*(Projects!$C$5:$C$2426='MDOT FTA Detail'!$C$4)*(Projects!$L$5:$L$2426='MDOT FTA Detail'!$A74)*(Projects!$J$5:$J$2426<>'MDOT FTA Detail'!$A$171)*(Projects!$K$5:$K$2426)) -> 0 | N74: =O74-M74 -> 0 | O74: =SUMPRODUCT((Projects!$A$5:$A$2426='MDOT FTA Detail'!$M$3)*(Projects!$C$5:$C$2426='MDOT FTA Detail'!$C$4)*(Projects!$L$5:$L$2426='MDOT FTA Detail'!$A74)*(Projects!$J$5:$J$2426<>'MDOT FTA Detail'!$A$171)*(Projects!$Q$5:$Q$2426)) -> 0
A75: SRSI | B75: Safe Routes to School - Infrastructure - SAFETEA-LU | C75: MDOT FA | D75: =SUMPRODUCT((Projects!$A$5:$A$2426='MDOT FTA Detail'!$D$3)*(Projects!$C$5:$C$2426='MDOT FTA Detail'!$C$4)*(Projects!$L$5:$L$2426='MDOT FTA Detail'!$A75)*(Projects!$J$5:$J$2426<>'MDOT FTA Detail'!$A$171)*(Projects!$K$5:K$2426)) -> 0 | E75: =F75-D75 -> 0 | F75: =SUMPRODUCT((Projects!$A$5:$A$2426='MDOT FTA Detail'!$D$3)*(Projects!$C$5:$C$2426='MDOT FTA Detail'!$C$4)*(Projects!$L$5:$L$2426='MDOT FTA Detail'!$A75)*(Projects!$J$5:$J$2426<>'MDOT FTA Detail'!$A$171)*(Projects!$Q$5:Q$2426)) -> 0 | G75: =SUMPRODUCT((Projects!$A$5:$A$2426='MDOT FTA Detail'!$G$3)*(Projects!$C$5:$C$2426='MDOT FTA Detail'!$C$4)*(Projects!$L$5:$L$2426='MDOT FTA Detail'!$A75)*(Projects!$J$5:$J$2426<>'MDOT FTA Detail'!$A$171)*(Projects!$K$5:K$2426)) -> 0 | H75: =I75-G75 -> 0 | I75: =SUMPRODUCT((Projects!$A$5:$A$2426='MDOT FTA Detail'!$G$3)*(Projects!$C$5:$C$2426='MDOT FTA Detail'!$C$4)*(Projects!$L$5:$L$2426='MDOT FTA Detail'!$A75)*(Projects!$J$5:$J$2426<>'MDOT FTA Detail'!$A$171)*(Projects!$Q$5:Q$2426)) -> 0 | J75: =SUMPRODUCT((Projects!$A$5:$A$2426='MDOT FTA Detail'!$J$3)*(Projects!$C$5:$C$2426='MDOT FTA Detail'!$C$4)*(Projects!$L$5:$L$2426='MDOT FTA Detail'!$A75)*(Projects!$J$5:$J$2426<>'MDOT FTA Detail'!$A$171)*(Projects!$K$5:$K$2426)) -> 0 | K75: =L75-J75 -> 0 | L75: =SUMPRODUCT((Projects!$A$5:$A$2426='MDOT FTA Detail'!$J$3)*(Projects!$C$5:$C$2426='MDOT FTA Detail'!$C$4)*(Projects!$L$5:$L$2426='MDOT FTA Detail'!$A75)*(Projects!$J$5:$J$2426<>'MDOT FTA Detail'!$A$171)*(Projects!$Q$5:$Q$2426)) -> 0 | M75: =SUMPRODUCT((Projects!$A$5:$A$2426='MDOT FTA Detail'!$M$3)*(Projects!$C$5:$C$2426='MDOT FTA Detail'!$C$4)*(Projects!$L$5:$L$2426='MDOT FTA Detail'!$A75)*(Projects!$J$5:$J$2426<>'MDOT FTA Detail'!$A$171)*(Projects!$K$5:$K$2426)) -> 0 | N75: =O75-M75 -> 0 | O75: =SUMPRODUCT((Projects!$A$5:$A$2426='MDOT FTA Detail'!$M$3)*(Projects!$C$5:$C$2426='MDOT FTA Detail'!$C$4)*(Projects!$L$5:$L$2426='MDOT FTA Detail'!$A75)*(Projects!$J$5:$J$2426<>'MDOT FTA Detail'!$A$171)*(Projects!$Q$5:$Q$2426)) -> 0
A76: SRSN | B76: Safe Routes to School - Non-infrastructure - SAFETEA-LU | C76: MDOT FA | D76: =SUMPRODUCT((Projects!$A$5:$A$2426='MDOT FTA Detail'!$D$3)*(Projects!$C$5:$C$2426='MDOT FTA Detail'!$C$4)*(Projects!$L$5:$L$2426='MDOT FTA Detail'!$A76)*(Projects!$J$5:$J$2426<>'MDOT FTA Detail'!$A$171)*(Projects!$K$5:K$2426)) -> 0 | E76: 0 | F76: =SUMPRODUCT((Projects!$A$5:$A$2426='MDOT FTA Detail'!$D$3)*(Projects!$C$5:$C$2426='MDOT FTA Detail'!$C$4)*(Projects!$L$5:$L$2426='MDOT FTA Detail'!$A76)*(Projects!$J$5:$J$2426<>'MDOT FTA Detail'!$A$171)*(Projects!$Q$5:Q$2426)) -> 0 | G76: =SUMPRODUCT((Projects!$A$5:$A$2426='MDOT FTA Detail'!$G$3)*(Projects!$C$5:$C$2426='MDOT FTA Detail'!$C$4)*(Projects!$L$5:$L$2426='MDOT FTA Detail'!$A76)*(Projects!$J$5:$J$2426<>'MDOT FTA Detail'!$A$171)*(Projects!$K$5:K$2426)) -> 0 | H76: 0 | I76: =SUMPRODUCT((Projects!$A$5:$A$2426='MDOT FTA Detail'!$G$3)*(Projects!$C$5:$C$2426='MDOT FTA Detail'!$C$4)*(Projects!$L$5:$L$2426='MDOT FTA Detail'!$A76)*(Projects!$J$5:$J$2426<>'MDOT FTA Detail'!$A$171)*(Projects!$Q$5:Q$2426)) -> 0 | J76: =SUMPRODUCT((Projects!$A$5:$A$2426='MDOT FTA Detail'!$J$3)*(Projects!$C$5:$C$2426='MDOT FTA Detail'!$C$4)*(Projects!$L$5:$L$2426='MDOT FTA Detail'!$A76)*(Projects!$J$5:$J$2426<>'MDOT FTA Detail'!$A$171)*(Projects!$K$5:$K$2426)) -> 0 | K76: 0 | L76: =SUMPRODUCT((Projects!$A$5:$A$2426='MDOT FTA Detail'!$J$3)*(Projects!$C$5:$C$2426='MDOT FTA Detail'!$C$4)*(Projects!$L$5:$L$2426='MDOT FTA Detail'!$A76)*(Projects!$J$5:$J$2426<>'MDOT FTA Detail'!$A$171)*(Projects!$Q$5:$Q$2426)) -> 0 | M76: =SUMPRODUCT((Projects!$A$5:$A$2426='MDOT FTA Detail'!$M$3)*(Projects!$C$5:$C$2426='MDOT FTA Detail'!$C$4)*(Projects!$L$5:$L$2426='MDOT FTA Detail'!$A76)*(Projects!$J$5:$J$2426<>'MDOT FTA Detail'!$A$171)*(Projects!$K$5:$K$2426)) -> 0 | N76: 0 | O76: =SUMPRODUCT((Projects!$A$5:$A$2426='MDOT FTA Detail'!$M$3)*(Projects!$C$5:$C$2426='MDOT FTA Detail'!$C$4)*(Projects!$L$5:$L$2426='MDOT FTA Detail'!$A76)*(Projects!$J$5:$J$2426<>'MDOT FTA Detail'!$A$171)*(Projects!$Q$5:$Q$2426)) -> 0
A77: SST | B77: Supportive Services Training | C77: MDOT FA | D77: =SUMPRODUCT((Projects!$A$5:$A$2426='MDOT FTA Detail'!$D$3)*(Projects!$C$5:$C$2426='MDOT FTA Detail'!$C$4)*(Projects!$L$5:$L$2426='MDOT FTA Detail'!$A77)*(Projects!$J$5:$J$2426<>'MDOT FTA Detail'!$A$171)*(Projects!$K$5:K$2426)) -> 0 | E77: 0 | F77: =SUMPRODUCT((Projects!$A$5:$A$2426='MDOT FTA Detail'!$D$3)*(Projects!$C$5:$C$2426='MDOT FTA Detail'!$C$4)*(Projects!$L$5:$L$2426='MDOT FTA Detail'!$A77)*(Projects!$J$5:$J$2426<>'MDOT FTA Detail'!$A$171)*(Projects!$Q$5:Q$2426)) -> 0 | G77: =SUMPRODUCT((Projects!$A$5:$A$2426='MDOT FTA Detail'!$G$3)*(Projects!$C$5:$C$2426='MDOT FTA Detail'!$C$4)*(Projects!$L$5:$L$2426='MDOT FTA Detail'!$A77)*(Projects!$J$5:$J$2426<>'MDOT FTA Detail'!$A$171)*(Projects!$K$5:K$2426)) -> 0 | H77: 0 | I77: =SUMPRODUCT((Projects!$A$5:$A$2426='MDOT FTA Detail'!$G$3)*(Projects!$C$5:$C$2426='MDOT FTA Detail'!$C$4)*(Projects!$L$5:$L$2426='MDOT FTA Detail'!$A77)*(Projects!$J$5:$J$2426<>'MDOT FTA Detail'!$A$171)*(Projects!$Q$5:Q$2426)) -> 0 | J77: =SUMPRODUCT((Projects!$A$5:$A$2426='MDOT FTA Detail'!$J$3)*(Projects!$C$5:$C$2426='MDOT FTA Detail'!$C$4)*(Projects!$L$5:$L$2426='MDOT FTA Detail'!$A77)*(Projects!$J$5:$J$2426<>'MDOT FTA Detail'!$A$171)*(Projects!$K$5:$K$2426)) -> 0 | K77: 0 | L77: =SUMPRODUCT((Projects!$A$5:$A$2426='MDOT FTA Detail'!$J$3)*(Projects!$C$5:$C$2426='MDOT FTA Detail'!$C$4)*(Projects!$L$5:$L$2426='MDOT FTA Detail'!$A77)*(Projects!$J$5:$J$2426<>'MDOT FTA Detail'!$A$171)*(Projects!$Q$5:$Q$2426)) -> 0 | M77: =SUMPRODUCT((Projects!$A$5:$A$2426='MDOT FTA Detail'!$M$3)*(Projects!$C$5:$C$2426='MDOT FTA Detail'!$C$4)*(Projects!$L$5:$L$2426='MDOT FTA Detail'!$A77)*(Projects!$J$5:$J$2426<>'MDOT FTA Detail'!$A$171)*(Projects!$K$5:$K$2426)) -> 0 | N77: 0 | O77: =SUMPRODUCT((Projects!$A$5:$A$2426='MDOT FTA Detail'!$M$3)*(Projects!$C$5:$C$2426='MDOT FTA Detail'!$C$4)*(Projects!$L$5:$L$2426='MDOT FTA Detail'!$A77)*(Projects!$J$5:$J$2426<>'MDOT FTA Detail'!$A$171)*(Projects!$Q$5:$Q$2426)) -> 0
A78: ST | B78: Surface Transportation Program (STP) - Any Area | C78: MDOT FA | D78: =SUMPRODUCT((Projects!$A$5:$A$2426='MDOT FTA Detail'!$D$3)*(Projects!$C$5:$C$2426='MDOT FTA Detail'!$C$4)*(Projects!$L$5:$L$2426='MDOT FTA Detail'!$A78)*(Projects!$J$5:$J$2426<>'MDOT FTA Detail'!$A$171)*(Projects!$K$5:K$2426)) -> 108937 | E78: 24156 | F78: =SUMPRODUCT((Projects!$A$5:$A$2426='MDOT FTA Detail'!$D$3)*(Projects!$C$5:$C$2426='MDOT FTA Detail'!$C$4)*(Projects!$L$5:$L$2426='MDOT FTA Detail'!$A78)*(Projects!$J$5:$J$2426<>'MDOT FTA Detail'!$A$171)*(Projects!$Q$5:Q$2426)) -> 133093 | G78: =SUMPRODUCT((Projects!$A$5:$A$2426='MDOT FTA Detail'!$G$3)*(Projects!$C$5:$C$2426='MDOT FTA Detail'!$C$4)*(Projects!$L$5:$L$2426='MDOT FTA Detail'!$A78)*(Projects!$J$5:$J$2426<>'MDOT FTA Detail'!$A$171)*(Projects!$K$5:K$2426)) -> 69573 | H78: 15427 | I78: =SUMPRODUCT((Projects!$A$5:$A$2426='MDOT FTA Detail'!$G$3)*(Projects!$C$5:$C$2426='MDOT FTA Detail'!$C$4)*(Projects!$L$5:$L$2426='MDOT FTA Detail'!$A78)*(Projects!$J$5:$J$2426<>'MDOT FTA Detail'!$A$171)*(Projects!$Q$5:Q$2426)) -> 85000 | J78: =SUMPRODUCT((Projects!$A$5:$A$2426='MDOT FTA Detail'!$J$3)*(Projects!$C$5:$C$2426='MDOT FTA Detail'!$C$4)*(Projects!$L$5:$L$2426='MDOT FTA Detail'!$A78)*(Projects!$J$5:$J$2426<>'MDOT FTA Detail'!$A$171)*(Projects!$K$5:$K$2426)) -> 0 | K78: 0 | L78: =SUMPRODUCT((Projects!$A$5:$A$2426='MDOT FTA Detail'!$J$3)*(Projects!$C$5:$C$2426='MDOT FTA Detail'!$C$4)*(Projects!$L$5:$L$2426='MDOT FTA Detail'!$A78)*(Projects!$J$5:$J$2426<>'MDOT FTA Detail'!$A$171)*(Projects!$Q$5:$Q$2426)) -> 0 | M78: =SUMPRODUCT((Projects!$A$5:$A$2426='MDOT FTA Detail'!$M$3)*(Projects!$C$5:$C$2426='MDOT FTA Detail'!$C$4)*(Projects!$L$5:$L$2426='MDOT FTA Detail'!$A78)*(Projects!$J$5:$J$2426<>'MDOT FTA Detail'!$A$171)*(Projects!$K$5:$K$2426)) -> 0 | N78: 0 | O78: =SUMPRODUCT((Projects!$A$5:$A$2426='MDOT FTA Detail'!$M$3)*(Projects!$C$5:$C$2426='MDOT FTA Detail'!$C$4)*(Projects!$L$5:$L$2426='MDOT FTA Detail'!$A78)*(Projects!$J$5:$J$2426<>'MDOT FTA Detail'!$A$171)*(Projects!$Q$5:$Q$2426)) -> 0
A79: STE | B79: STP - Enhancement | C79: MDOT FA | D79: =SUMPRODUCT((Projects!$A$5:$A$2426='MDOT FTA Detail'!$D$3)*(Projects!$C$5:$C$2426='MDOT FTA Detail'!$C$4)*(Projects!$L$5:$L$2426='MDOT FTA Detail'!$A79)*(Projects!$J$5:$J$2426<>'MDOT FTA Detail'!$A$171)*(Projects!$K$5:K$2426)) -> 0 | E79: 0 | F79: =SUMPRODUCT((Projects!$A$5:$A$2426='MDOT FTA Detail'!$D$3)*(Projects!$C$5:$C$2426='MDOT FTA Detail'!$C$4)*(Projects!$L$5:$L$2426='MDOT FTA Detail'!$A79)*(Projects!$J$5:$J$2426<>'MDOT FTA Detail'!$A$171)*(Projects!$Q$5:Q$2426)) -> 0 | G79: =SUMPRODUCT((Projects!$A$5:$A$2426='MDOT FTA Detail'!$G$3)*(Projects!$C$5:$C$2426='MDOT FTA Detail'!$C$4)*(Projects!$L$5:$L$2426='MDOT FTA Detail'!$A79)*(Projects!$J$5:$J$2426<>'MDOT FTA Detail'!$A$171)*(Projects!$K$5:K$2426)) -> 0 | H79: 0 | I79: =SUMPRODUCT((Projects!$A$5:$A$2426='MDOT FTA Detail'!$G$3)*(Projects!$C$5:$C$2426='MDOT FTA Detail'!$C$4)*(Projects!$L$5:$L$2426='MDOT FTA Detail'!$A79)*(Projects!$J$5:$J$2426<>'MDOT FTA Detail'!$A$171)*(Projects!$Q$5:Q$2426)) -> 0 | J79: =SUMPRODUCT((Projects!$A$5:$A$2426='MDOT FTA Detail'!$J$3)*(Projects!$C$5:$C$2426='MDOT FTA Detail'!$C$4)*(Projects!$L$5:$L$2426='MDOT FTA Detail'!$A79)*(Projects!$J$5:$J$2426<>'MDOT FTA Detail'!$A$171)*(Projects!$K$5:$K$2426)) -> 0 | K79: 0 | L79: =SUMPRODUCT((Projects!$A$5:$A$2426='MDOT FTA Detail'!$J$3)*(Projects!$C$5:$C$2426='MDOT FTA Detail'!$C$4)*(Projects!$L$5:$L$2426='MDOT FTA Detail'!$A79)*(Projects!$J$5:$J$2426<>'MDOT FTA Detail'!$A$171)*(Projects!$Q$5:$Q$2426)) -> 0 | M79: =SUMPRODUCT((Projects!$A$5:$A$2426='MDOT FTA Detail'!$M$3)*(Projects!$C$5:$C$2426='MDOT FTA Detail'!$C$4)*(Projects!$L$5:$L$2426='MDOT FTA Detail'!$A79)*(Projects!$J$5:$J$2426<>'MDOT FTA Detail'!$A$171)*(Projects!$K$5:$K$2426)) -> 0 | N79: 0 | O79: =SUMPRODUCT((Projects!$A$5:$A$2426='MDOT FTA Detail'!$M$3)*(Projects!$C$5:$C$2426='MDOT FTA Detail'!$C$4)*(Projects!$L$5:$L$2426='MDOT FTA Detail'!$A79)*(Projects!$J$5:$J$2426<>'MDOT FTA Detail'!$A$171)*(Projects!$Q$5:$Q$2426)) -> 0
A80: STG | B80: STP - Safety - 100% Federal for ST | C80: MDOT FA | D80: =SUMPRODUCT((Projects!$A$5:$A$2426='MDOT FTA Detail'!$D$3)*(Projects!$C$5:$C$2426='MDOT FTA Detail'!$C$4)*(Projects!$L$5:$L$2426='MDOT FTA Detail'!$A80)*(Projects!$J$5:$J$2426<>'MDOT FTA Detail'!$A$171)*(Projects!$K$5:K$2426)) -> 0 | E80: 0 | F80: =SUMPRODUCT((Projects!$A$5:$A$2426='MDOT FTA Detail'!$D$3)*(Projects!$C$5:$C$2426='MDOT FTA Detail'!$C$4)*(Projects!$L$5:$L$2426='MDOT FTA Detail'!$A80)*(Projects!$J$5:$J$2426<>'MDOT FTA Detail'!$A$171)*(Projects!$Q$5:Q$2426)) -> 0 | G80: =SUMPRODUCT((Projects!$A$5:$A$2426='MDOT FTA Detail'!$G$3)*(Projects!$C$5:$C$2426='MDOT FTA Detail'!$C$4)*(Projects!$L$5:$L$2426='MDOT FTA Detail'!$A80)*(Projects!$J$5:$J$2426<>'MDOT FTA Detail'!$A$171)*(Projects!$K$5:K$2426)) -> 0 | H80: 0 | I80: =SUMPRODUCT((Projects!$A$5:$A$2426='MDOT FTA Detail'!$G$3)*(Projects!$C$5:$C$2426='MDOT FTA Detail'!$C$4)*(Projects!$L$5:$L$2426='MDOT FTA Detail'!$A80)*(Projects!$J$5:$J$2426<>'MDOT FTA Detail'!$A$171)*(Projects!$Q$5:Q$2426)) -> 0 | J80: =SUMPRODUCT((Projects!$A$5:$A$2426='MDOT FTA Detail'!$J$3)*(Projects!$C$5:$C$2426='MDOT FTA Detail'!$C$4)*(Projects!$L$5:$L$2426='MDOT FTA Detail'!$A80)*(Projects!$J$5:$J$2426<>'MDOT FTA Detail'!$A$171)*(Projects!$K$5:$K$2426)) -> 0 | K80: 0 | L80: =SUMPRODUCT((Projects!$A$5:$A$2426='MDOT FTA Detail'!$J$3)*(Projects!$C$5:$C$2426='MDOT FTA Detail'!$C$4)*(Projects!$L$5:$L$2426='MDOT FTA Detail'!$A80)*(Projects!$J$5:$J$2426<>'MDOT FTA Detail'!$A$171)*(Projects!$Q$5:$Q$2426)) -> 0 | M80: =SUMPRODUCT((Projects!$A$5:$A$2426='MDOT FTA Detail'!$M$3)*(Projects!$C$5:$C$2426='MDOT FTA Detail'!$C$4)*(Projects!$L$5:$L$2426='MDOT FTA Detail'!$A80)*(Projects!$J$5:$J$2426<>'MDOT FTA Detail'!$A$171)*(Projects!$K$5:$K$2426)) -> 0 | N80: 0 | O80: =SUMPRODUCT((Projects!$A$5:$A$2426='MDOT FTA Detail'!$M$3)*(Projects!$C$5:$C$2426='MDOT FTA Detail'!$C$4)*(Projects!$L$5:$L$2426='MDOT FTA Detail'!$A80)*(Projects!$J$5:$J$2426<>'MDOT FTA Detail'!$A$171)*(Projects!$Q$5:$Q$2426)) -> 0
A81: STH | B81: STP - Safety - Hazard Elimination | C81: MDOT FA | D81: =SUMPRODUCT((Projects!$A$5:$A$2426='MDOT FTA Detail'!$D$3)*(Projects!$C$5:$C$2426='MDOT FTA Detail'!$C$4)*(Projects!$L$5:$L$2426='MDOT FTA Detail'!$A81)*(Projects!$J$5:$J$2426<>'MDOT FTA Detail'!$A$171)*(Projects!$K$5:K$2426)) -> 0 | E81: 0 | F81: =SUMPRODUCT((Projects!$A$5:$A$2426='MDOT FTA Detail'!$D$3)*(Projects!$C$5:$C$2426='MDOT FTA Detail'!$C$4)*(Projects!$L$5:$L$2426='MDOT FTA Detail'!$A81)*(Projects!$J$5:$J$2426<>'MDOT FTA Detail'!$A$171)*(Projects!$Q$5:Q$2426)) -> 0 | G81: =SUMPRODUCT((Projects!$A$5:$A$2426='MDOT FTA Detail'!$G$3)*(Projects!$C$5:$C$2426='MDOT FTA Detail'!$C$4)*(Projects!$L$5:$L$2426='MDOT FTA Detail'!$A81)*(Projects!$J$5:$J$2426<>'MDOT FTA Detail'!$A$171)*(Projects!$K$5:K$2426)) -> 0 | H81: 0 | I81: =SUMPRODUCT((Projects!$A$5:$A$2426='MDOT FTA Detail'!$G$3)*(Projects!$C$5:$C$2426='MDOT FTA Detail'!$C$4)*(Projects!$L$5:$L$2426='MDOT FTA Detail'!$A81)*(Projects!$J$5:$J$2426<>'MDOT FTA Detail'!$A$171)*(Projects!$Q$5:Q$2426)) -> 0 | J81: =SUMPRODUCT((Projects!$A$5:$A$2426='MDOT FTA Detail'!$J$3)*(Projects!$C$5:$C$2426='MDOT FTA Detail'!$C$4)*(Projects!$L$5:$L$2426='MDOT FTA Detail'!$A81)*(Projects!$J$5:$J$2426<>'MDOT FTA Detail'!$A$171)*(Projects!$K$5:$K$2426)) -> 0 | K81: 0 | L81: =SUMPRODUCT((Projects!$A$5:$A$2426='MDOT FTA Detail'!$J$3)*(Projects!$C$5:$C$2426='MDOT FTA Detail'!$C$4)*(Projects!$L$5:$L$2426='MDOT FTA Detail'!$A81)*(Projects!$J$5:$J$2426<>'MDOT FTA Detail'!$A$171)*(Projects!$Q$5:$Q$2426)) -> 0 | M81: =SUMPRODUCT((Projects!$A$5:$A$2426='MDOT FTA Detail'!$M$3)*(Projects!$C$5:$C$2426='MDOT FTA Detail'!$C$4)*(Projects!$L$5:$L$2426='MDOT FTA Detail'!$A81)*(Projects!$J$5:$J$2426<>'MDOT FTA Detail'!$A$171)*(Projects!$K$5:$K$2426)) -> 0 | N81: 0 | O81: =SUMPRODUCT((Projects!$A$5:$A$2426='MDOT FTA Detail'!$M$3)*(Projects!$C$5:$C$2426='MDOT FTA Detail'!$C$4)*(Projects!$L$5:$L$2426='MDOT FTA Detail'!$A81)*(Projects!$J$5:$J$2426<>'MDOT FTA Detail'!$A$171)*(Projects!$Q$5:$Q$2426)) -> 0
A82: STI | B82: STP - Interstate (90%) | C82: MDOT FA | D82: =SUMPRODUCT((Projects!$A$5:$A$2426='MDOT FTA Detail'!$D$3)*(Projects!$C$5:$C$2426='MDOT FTA Detail'!$C$4)*(Projects!$L$5:$L$2426='MDOT FTA Detail'!$A82)*(Projects!$J$5:$J$2426<>'MDOT FTA Detail'!$A$171)*(Projects!$K$5:K$2426)) -> 0 | E82: 0 | F82: =SUMPRODUCT((Projects!$A$5:$A$2426='MDOT FTA Detail'!$D$3)*(Projects!$C$5:$C$2426='MDOT FTA Detail'!$C$4)*(Projects!$L$5:$L$2426='MDOT FTA Detail'!$A82)*(Projects!$J$5:$J$2426<>'MDOT FTA Detail'!$A$171)*(Projects!$Q$5:Q$2426)) -> 0 | G82: =SUMPRODUCT((Projects!$A$5:$A$2426='MDOT FTA Detail'!$G$3)*(Projects!$C$5:$C$2426='MDOT FTA Detail'!$C$4)*(Projects!$L$5:$L$2426='MDOT FTA Detail'!$A82)*(Projects!$J$5:$J$2426<>'MDOT FTA Detail'!$A$171)*(Projects!$K$5:K$2426)) -> 0 | H82: 0 | I82: =SUMPRODUCT((Projects!$A$5:$A$2426='MDOT FTA Detail'!$G$3)*(Projects!$C$5:$C$2426='MDOT FTA Detail'!$C$4)*(Projects!$L$5:$L$2426='MDOT FTA Detail'!$A82)*(Projects!$J$5:$J$2426<>'MDOT FTA Detail'!$A$171)*(Projects!$Q$5:Q$2426)) -> 0 | J82: =SUMPRODUCT((Projects!$A$5:$A$2426='MDOT FTA Detail'!$J$3)*(Projects!$C$5:$C$2426='MDOT FTA Detail'!$C$4)*(Projects!$L$5:$L$2426='MDOT FTA Detail'!$A82)*(Projects!$J$5:$J$2426<>'MDOT FTA Detail'!$A$171)*(Projects!$K$5:$K$2426)) -> 0 | K82: 0 | L82: =SUMPRODUCT((Projects!$A$5:$A$2426='MDOT FTA Detail'!$J$3)*(Projects!$C$5:$C$2426='MDOT FTA Detail'!$C$4)*(Projects!$L$5:$L$2426='MDOT FTA Detail'!$A82)*(Projects!$J$5:$J$2426<>'MDOT FTA Detail'!$A$171)*(Projects!$Q$5:$Q$2426)) -> 0 | M82: =SUMPRODUCT((Projects!$A$5:$A$2426='MDOT FTA Detail'!$M$3)*(Projects!$C$5:$C$2426='MDOT FTA Detail'!$C$4)*(Projects!$L$5:$L$2426='MDOT FTA Detail'!$A82)*(Projects!$J$5:$J$2426<>'MDOT FTA Detail'!$A$171)*(Projects!$K$5:$K$2426)) -> 0 | N82: 0 | O82: =SUMPRODUCT((Projects!$A$5:$A$2426='MDOT FTA Detail'!$M$3)*(Projects!$C$5:$C$2426='MDOT FTA Detail'!$C$4)*(Projects!$L$5:$L$2426='MDOT FTA Detail'!$A82)*(Projects!$J$5:$J$2426<>'MDOT FTA Detail'!$A$171)*(Projects!$Q$5:$Q$2426)) -> 0
A83: STL | B83: STP - Local | C83: MDOT FA | D83: =SUMPRODUCT((Projects!$A$5:$A$2426='MDOT FTA Detail'!$D$3)*(Projects!$C$5:$C$2426='MDOT FTA Detail'!$C$4)*(Projects!$L$5:$L$2426='MDOT FTA Detail'!$A83)*(Projects!$J$5:$J$2426<>'MDOT FTA Detail'!$A$171)*(Projects!$K$5:K$2426)) -> 0 | E83: 0 | F83: =SUMPRODUCT((Projects!$A$5:$A$2426='MDOT FTA Detail'!$D$3)*(Projects!$C$5:$C$2426='MDOT FTA Detail'!$C$4)*(Projects!$L$5:$L$2426='MDOT FTA Detail'!$A83)*(Projects!$J$5:$J$2426<>'MDOT FTA Detail'!$A$171)*(Projects!$Q$5:Q$2426)) -> 0 | G83: =SUMPRODUCT((Projects!$A$5:$A$2426='MDOT FTA Detail'!$G$3)*(Projects!$C$5:$C$2426='MDOT FTA Detail'!$C$4)*(Projects!$L$5:$L$2426='MDOT FTA Detail'!$A83)*(Projects!$J$5:$J$2426<>'MDOT FTA Detail'!$A$171)*(Projects!$K$5:K$2426)) -> 0 | H83: 0 | I83: =SUMPRODUCT((Projects!$A$5:$A$2426='MDOT FTA Detail'!$G$3)*(Projects!$C$5:$C$2426='MDOT FTA Detail'!$C$4)*(Projects!$L$5:$L$2426='MDOT FTA Detail'!$A83)*(Projects!$J$5:$J$2426<>'MDOT FTA Detail'!$A$171)*(Projects!$Q$5:Q$2426)) -> 0 | J83: =SUMPRODUCT((Projects!$A$5:$A$2426='MDOT FTA Detail'!$J$3)*(Projects!$C$5:$C$2426='MDOT FTA Detail'!$C$4)*(Projects!$L$5:$L$2426='MDOT FTA Detail'!$A83)*(Projects!$J$5:$J$2426<>'MDOT FTA Detail'!$A$171)*(Projects!$K$5:$K$2426)) -> 0 | K83: 0 | L83: =SUMPRODUCT((Projects!$A$5:$A$2426='MDOT FTA Detail'!$J$3)*(Projects!$C$5:$C$2426='MDOT FTA Detail'!$C$4)*(Projects!$L$5:$L$2426='MDOT FTA Detail'!$A83)*(Projects!$J$5:$J$2426<>'MDOT FTA Detail'!$A$171)*(Projects!$Q$5:$Q$2426)) -> 0 | M83: =SUMPRODUCT((Projects!$A$5:$A$2426='MDOT FTA Detail'!$M$3)*(Projects!$C$5:$C$2426='MDOT FTA Detail'!$C$4)*(Projects!$L$5:$L$2426='MDOT FTA Detail'!$A83)*(Projects!$J$5:$J$2426<>'MDOT FTA Detail'!$A$171)*(Projects!$K$5:$K$2426)) -> 0 | N83: 0 | O83: =SUMPRODUCT((Projects!$A$5:$A$2426='MDOT FTA Detail'!$M$3)*(Projects!$C$5:$C$2426='MDOT FTA Detail'!$C$4)*(Projects!$L$5:$L$2426='MDOT FTA Detail'!$A83)*(Projects!$J$5:$J$2426<>'MDOT FTA Detail'!$A$171)*(Projects!$Q$5:$Q$2426)) -> 0
A84: STLG | B84: Surface Transportation Safety 100% Federal for STL Items | C84: MDOT FA | D84: =SUMPRODUCT((Projects!$A$5:$A$2426='MDOT FTA Detail'!$D$3)*(Projects!$C$5:$C$2426='MDOT FTA Detail'!$C$4)*(Projects!$L$5:$L$2426='MDOT FTA Detail'!$A84)*(Projects!$J$5:$J$2426<>'MDOT FTA Detail'!$A$171)*(Projects!$K$5:K$2426)) -> 0 | E84: =F84-D84 -> 0 | F84: =SUMPRODUCT((Projects!$A$5:$A$2426='MDOT FTA Detail'!$D$3)*(Projects!$C$5:$C$2426='MDOT FTA Detail'!$C$4)*(Projects!$L$5:$L$2426='MDOT FTA Detail'!$A84)*(Projects!$J$5:$J$2426<>'MDOT FTA Detail'!$A$171)*(Projects!$Q$5:Q$2426)) -> 0 | G84: =SUMPRODUCT((Projects!$A$5:$A$2426='MDOT FTA Detail'!$G$3)*(Projects!$C$5:$C$2426='MDOT FTA Detail'!$C$4)*(Projects!$L$5:$L$2426='MDOT FTA Detail'!$A84)*(Projects!$J$5:$J$2426<>'MDOT FTA Detail'!$A$171)*(Projects!$K$5:K$2426)) -> 0 | H84: =I84-G84 -> 0 | I84: =SUMPRODUCT((Projects!$A$5:$A$2426='MDOT FTA Detail'!$G$3)*(Projects!$C$5:$C$2426='MDOT FTA Detail'!$C$4)*(Projects!$L$5:$L$2426='MDOT FTA Detail'!$A84)*(Projects!$J$5:$J$2426<>'MDOT FTA Detail'!$A$171)*(Projects!$Q$5:Q$2426)) -> 0 | J84: =SUMPRODUCT((Projects!$A$5:$A$2426='MDOT FTA Detail'!$J$3)*(Projects!$C$5:$C$2426='MDOT FTA Detail'!$C$4)*(Projects!$L$5:$L$2426='MDOT FTA Detail'!$A84)*(Projects!$J$5:$J$2426<>'MDOT FTA Detail'!$A$171)*(Projects!$K$5:$K$2426)) -> 0 | K84: =L84-J84 -> 0 | L84: =SUMPRODUCT((Projects!$A$5:$A$2426='MDOT FTA Detail'!$J$3)*(Projects!$C$5:$C$2426='MDOT FTA Detail'!$C$4)*(Projects!$L$5:$L$2426='MDOT FTA Detail'!$A84)*(Projects!$J$5:$J$2426<>'MDOT FTA Detail'!$A$171)*(Projects!$Q$5:$Q$2426)) -> 0 | M84: =SUMPRODUCT((Projects!$A$5:$A$2426='MDOT FTA Detail'!$M$3)*(Projects!$C$5:$C$2426='MDOT FTA Detail'!$C$4)*(Projects!$L$5:$L$2426='MDOT FTA Detail'!$A84)*(Projects!$J$5:$J$2426<>'MDOT FTA Detail'!$A$171)*(Projects!$K$5:$K$2426)) -> 0 | N84: =O84-M84 -> 0 | O84: =SUMPRODUCT((Projects!$A$5:$A$2426='MDOT FTA Detail'!$M$3)*(Projects!$C$5:$C$2426='MDOT FTA Detail'!$C$4)*(Projects!$L$5:$L$2426='MDOT FTA Detail'!$A84)*(Projects!$J$5:$J$2426<>'MDOT FTA Detail'!$A$171)*(Projects!$Q$5:$Q$2426)) -> 0
A85: STR | B85: STP - Safety - Rail-Highway Crossing Protection | C85: MDOT FA | D85: =SUMPRODUCT((Projects!$A$5:$A$2426='MDOT FTA Detail'!$D$3)*(Projects!$C$5:$C$2426='MDOT FTA Detail'!$C$4)*(Projects!$L$5:$L$2426='MDOT FTA Detail'!$A85)*(Projects!$J$5:$J$2426<>'MDOT FTA Detail'!$A$171)*(Projects!$K$5:K$2426)) -> 0 | E85: 0 | F85: =SUMPRODUCT((Projects!$A$5:$A$2426='MDOT FTA Detail'!$D$3)*(Projects!$C$5:$C$2426='MDOT FTA Detail'!$C$4)*(Projects!$L$5:$L$2426='MDOT FTA Detail'!$A85)*(Projects!$J$5:$J$2426<>'MDOT FTA Detail'!$A$171)*(Projects!$Q$5:Q$2426)) -> 0 | G85: =SUMPRODUCT((Projects!$A$5:$A$2426='MDOT FTA Detail'!$G$3)*(Projects!$C$5:$C$2426='MDOT FTA Detail'!$C$4)*(Projects!$L$5:$L$2426='MDOT FTA Detail'!$A85)*(Projects!$J$5:$J$2426<>'MDOT FTA Detail'!$A$171)*(Projects!$K$5:K$2426)) -> 0 | H85: 0 | I85: =SUMPRODUCT((Projects!$A$5:$A$2426='MDOT FTA Detail'!$G$3)*(Projects!$C$5:$C$2426='MDOT FTA Detail'!$C$4)*(Projects!$L$5:$L$2426='MDOT FTA Detail'!$A85)*(Projects!$J$5:$J$2426<>'MDOT FTA Detail'!$A$171)*(Projects!$Q$5:Q$2426)) -> 0 | J85: =SUMPRODUCT((Projects!$A$5:$A$2426='MDOT FTA Detail'!$J$3)*(Projects!$C$5:$C$2426='MDOT FTA Detail'!$C$4)*(Projects!$L$5:$L$2426='MDOT FTA Detail'!$A85)*(Projects!$J$5:$J$2426<>'MDOT FTA Detail'!$A$171)*(Projects!$K$5:$K$2426)) -> 0 | K85: 0 | L85: =SUMPRODUCT((Projects!$A$5:$A$2426='MDOT FTA Detail'!$J$3)*(Projects!$C$5:$C$2426='MDOT FTA Detail'!$C$4)*(Projects!$L$5:$L$2426='MDOT FTA Detail'!$A85)*(Projects!$J$5:$J$2426<>'MDOT FTA Detail'!$A$171)*(Projects!$Q$5:$Q$2426)) -> 0 | M85: =SUMPRODUCT((Projects!$A$5:$A$2426='MDOT FTA Detail'!$M$3)*(Projects!$C$5:$C$2426='MDOT FTA Detail'!$C$4)*(Projects!$L$5:$L$2426='MDOT FTA Detail'!$A85)*(Projects!$J$5:$J$2426<>'MDOT FTA Detail'!$A$171)*(Projects!$K$5:$K$2426)) -> 0 | N85: 0 | O85: =SUMPRODUCT((Projects!$A$5:$A$2426='MDOT FTA Detail'!$M$3)*(Projects!$C$5:$C$2426='MDOT FTA Detail'!$C$4)*(Projects!$L$5:$L$2426='MDOT FTA Detail'!$A85)*(Projects!$J$5:$J$2426<>'MDOT FTA Detail'!$A$171)*(Projects!$Q$5:$Q$2426)) -> 0
A86: STRG | B86: STP - Safety Rail-Highway & Incentive Payment - 100% Federal | C86: MDOT FA | D86: =SUMPRODUCT((Projects!$A$5:$A$2426='MDOT FTA Detail'!$D$3)*(Projects!$C$5:$C$2426='MDOT FTA Detail'!$C$4)*(Projects!$L$5:$L$2426='MDOT FTA Detail'!$A86)*(Projects!$J$5:$J$2426<>'MDOT FTA Detail'!$A$171)*(Projects!$K$5:K$2426)) -> 0 | E86: 0 | F86: =SUMPRODUCT((Projects!$A$5:$A$2426='MDOT FTA Detail'!$D$3)*(Projects!$C$5:$C$2426='MDOT FTA Detail'!$C$4)*(Projects!$L$5:$L$2426='MDOT FTA Detail'!$A86)*(Projects!$J$5:$J$2426<>'MDOT FTA Detail'!$A$171)*(Projects!$Q$5:Q$2426)) -> 0 | G86: =SUMPRODUCT((Projects!$A$5:$A$2426='MDOT FTA Detail'!$G$3)*(Projects!$C$5:$C$2426='MDOT FTA Detail'!$C$4)*(Projects!$L$5:$L$2426='MDOT FTA Detail'!$A86)*(Projects!$J$5:$J$2426<>'MDOT FTA Detail'!$A$171)*(Projects!$K$5:K$2426)) -> 0 | H86: 0 | I86: =SUMPRODUCT((Projects!$A$5:$A$2426='MDOT FTA Detail'!$G$3)*(Projects!$C$5:$C$2426='MDOT FTA Detail'!$C$4)*(Projects!$L$5:$L$2426='MDOT FTA Detail'!$A86)*(Projects!$J$5:$J$2426<>'MDOT FTA Detail'!$A$171)*(Projects!$Q$5:Q$2426)) -> 0 | J86: =SUMPRODUCT((Projects!$A$5:$A$2426='MDOT FTA Detail'!$J$3)*(Projects!$C$5:$C$2426='MDOT FTA Detail'!$C$4)*(Projects!$L$5:$L$2426='MDOT FTA Detail'!$A86)*(Projects!$J$5:$J$2426<>'MDOT FTA Detail'!$A$171)*(Projects!$K$5:$K$2426)) -> 0 | K86: 0 | L86: =SUMPRODUCT((Projects!$A$5:$A$2426='MDOT FTA Detail'!$J$3)*(Projects!$C$5:$C$2426='MDOT FTA Detail'!$C$4)*(Projects!$L$5:$L$2426='MDOT FTA Detail'!$A86)*(Projects!$J$5:$J$2426<>'MDOT FTA Detail'!$A$171)*(Projects!$Q$5:$Q$2426)) -> 0 | M86: =SUMPRODUCT((Projects!$A$5:$A$2426='MDOT FTA Detail'!$M$3)*(Projects!$C$5:$C$2426='MDOT FTA Detail'!$C$4)*(Projects!$L$5:$L$2426='MDOT FTA Detail'!$A86)*(Projects!$J$5:$J$2426<>'MDOT FTA Detail'!$A$171)*(Projects!$K$5:$K$2426)) -> 0 | N86: 0 | O86: =SUMPRODUCT((Projects!$A$5:$A$2426='MDOT FTA Detail'!$M$3)*(Projects!$C$5:$C$2426='MDOT FTA Detail'!$C$4)*(Projects!$L$5:$L$2426='MDOT FTA Detail'!$A86)*(Projects!$J$5:$J$2426<>'MDOT FTA Detail'!$A$171)*(Projects!$Q$5:$Q$2426)) -> 0
A87: STRH | B87: Surface Transportation Safety Highway Crossing Hazard Elimination | C87: MDOT FA | D87: =SUMPRODUCT((Projects!$A$5:$A$2426='MDOT FTA Detail'!$D$3)*(Projects!$C$5:$C$2426='MDOT FTA Detail'!$C$4)*(Projects!$L$5:$L$2426='MDOT FTA Detail'!$A87)*(Projects!$J$5:$J$2426<>'MDOT FTA Detail'!$A$171)*(Projects!$K$5:K$2426)) -> 45000 | E87: =F87-D87 -> 5000 | F87: =SUMPRODUCT((Projects!$A$5:$A$2426='MDOT FTA Detail'!$D$3)*(Projects!$C$5:$C$2426='MDOT FTA Detail'!$C$4)*(Projects!$L$5:$L$2426='MDOT FTA Detail'!$A87)*(Projects!$J$5:$J$2426<>'MDOT FTA Detail'!$A$171)*(Projects!$Q$5:Q$2426)) -> 50000 | G87: =SUMPRODUCT((Projects!$A$5:$A$2426='MDOT FTA Detail'!$G$3)*(Projects!$C$5:$C$2426='MDOT FTA Detail'!$C$4)*(Projects!$L$5:$L$2426='MDOT FTA Detail'!$A87)*(Projects!$J$5:$J$2426<>'MDOT FTA Detail'!$A$171)*(Projects!$K$5:K$2426)) -> 0 | H87: =I87-G87 -> 0 | I87: =SUMPRODUCT((Projects!$A$5:$A$2426='MDOT FTA Detail'!$G$3)*(Projects!$C$5:$C$2426='MDOT FTA Detail'!$C$4)*(Projects!$L$5:$L$2426='MDOT FTA Detail'!$A87)*(Projects!$J$5:$J$2426<>'MDOT FTA Detail'!$A$171)*(Projects!$Q$5:Q$2426)) -> 0 | J87: =SUMPRODUCT((Projects!$A$5:$A$2426='MDOT FTA Detail'!$J$3)*(Projects!$C$5:$C$2426='MDOT FTA Detail'!$C$4)*(Projects!$L$5:$L$2426='MDOT FTA Detail'!$A87)*(Projects!$J$5:$J$2426<>'MDOT FTA Detail'!$A$171)*(Projects!$K$5:$K$2426)) -> 0 | K87: =L87-J87 -> 0 | L87: =SUMPRODUCT((Projects!$A$5:$A$2426='MDOT FTA Detail'!$J$3)*(Projects!$C$5:$C$2426='MDOT FTA Detail'!$C$4)*(Projects!$L$5:$L$2426='MDOT FTA Detail'!$A87)*(Projects!$J$5:$J$2426<>'MDOT FTA Detail'!$A$171)*(Projects!$Q$5:$Q$2426)) -> 0 | M87: =SUMPRODUCT((Projects!$A$5:$A$2426='MDOT FTA Detail'!$M$3)*(Projects!$C$5:$C$2426='MDOT FTA Detail'!$C$4)*(Projects!$L$5:$L$2426='MDOT FTA Detail'!$A87)*(Projects!$J$5:$J$2426<>'MDOT FTA Detail'!$A$171)*(Projects!$K$5:$K$2426)) -> 0 | N87: =O87-M87 -> 0 | O87: =SUMPRODUCT((Projects!$A$5:$A$2426='MDOT FTA Detail'!$M$3)*(Projects!$C$5:$C$2426='MDOT FTA Detail'!$C$4)*(Projects!$L$5:$L$2426='MDOT FTA Detail'!$A87)*(Projects!$J$5:$J$2426<>'MDOT FTA Detail'!$A$171)*(Projects!$Q$5:$Q$2426)) -> 0
A88: STRP | B88: Surface Transportation Safety Highway Crossing Protection Devices | C88: MDOT FA | D88: =SUMPRODUCT((Projects!$A$5:$A$2426='MDOT FTA Detail'!$D$3)*(Projects!$C$5:$C$2426='MDOT FTA Detail'!$C$4)*(Projects!$L$5:$L$2426='MDOT FTA Detail'!$A88)*(Projects!$J$5:$J$2426<>'MDOT FTA Detail'!$A$171)*(Projects!$K$5:K$2426)) -> 0 | E88: =F88-D88 -> 0 | F88: =SUMPRODUCT((Projects!$A$5:$A$2426='MDOT FTA Detail'!$D$3)*(Projects!$C$5:$C$2426='MDOT FTA Detail'!$C$4)*(Projects!$L$5:$L$2426='MDOT FTA Detail'!$A88)*(Projects!$J$5:$J$2426<>'MDOT FTA Detail'!$A$171)*(Projects!$Q$5:Q$2426)) -> 0 | G88: =SUMPRODUCT((Projects!$A$5:$A$2426='MDOT FTA Detail'!$G$3)*(Projects!$C$5:$C$2426='MDOT FTA Detail'!$C$4)*(Projects!$L$5:$L$2426='MDOT FTA Detail'!$A88)*(Projects!$J$5:$J$2426<>'MDOT FTA Detail'!$A$171)*(Projects!$K$5:K$2426)) -> 0 | H88: =I88-G88 -> 0 | I88: =SUMPRODUCT((Projects!$A$5:$A$2426='MDOT FTA Detail'!$G$3)*(Projects!$C$5:$C$2426='MDOT FTA Detail'!$C$4)*(Projects!$L$5:$L$2426='MDOT FTA Detail'!$A88)*(Projects!$J$5:$J$2426<>'MDOT FTA Detail'!$A$171)*(Projects!$Q$5:Q$2426)) -> 0 | J88: =SUMPRODUCT((Projects!$A$5:$A$2426='MDOT FTA Detail'!$J$3)*(Projects!$C$5:$C$2426='MDOT FTA Detail'!$C$4)*(Projects!$L$5:$L$2426='MDOT FTA Detail'!$A88)*(Projects!$J$5:$J$2426<>'MDOT FTA Detail'!$A$171)*(Projects!$K$5:$K$2426)) -> 0 | K88: =L88-J88 -> 0 | L88: =SUMPRODUCT((Projects!$A$5:$A$2426='MDOT FTA Detail'!$J$3)*(Projects!$C$5:$C$2426='MDOT FTA Detail'!$C$4)*(Projects!$L$5:$L$2426='MDOT FTA Detail'!$A88)*(Projects!$J$5:$J$2426<>'MDOT FTA Detail'!$A$171)*(Projects!$Q$5:$Q$2426)) -> 0 | M88: =SUMPRODUCT((Projects!$A$5:$A$2426='MDOT FTA Detail'!$M$3)*(Projects!$C$5:$C$2426='MDOT FTA Detail'!$C$4)*(Projects!$L$5:$L$2426='MDOT FTA Detail'!$A88)*(Projects!$J$5:$J$2426<>'MDOT FTA Detail'!$A$171)*(Projects!$K$5:$K$2426)) -> 0 | N88: =O88-M88 -> 0 | O88: =SUMPRODUCT((Projects!$A$5:$A$2426='MDOT FTA Detail'!$M$3)*(Projects!$C$5:$C$2426='MDOT FTA Detail'!$C$4)*(Projects!$L$5:$L$2426='MDOT FTA Detail'!$A88)*(Projects!$J$5:$J$2426<>'MDOT FTA Detail'!$A$171)*(Projects!$Q$5:$Q$2426)) -> 0
A89: STS | B89: STP - Any Area- MDOT Safety Program | C89: MDOT FA | D89: =SUMPRODUCT((Projects!$A$5:$A$2426='MDOT FTA Detail'!$D$3)*(Projects!$C$5:$C$2426='MDOT FTA Detail'!$C$4)*(Projects!$L$5:$L$2426='MDOT FTA Detail'!$A89)*(Projects!$J$5:$J$2426<>'MDOT FTA Detail'!$A$171)*(Projects!$K$5:K$2426)) -> 0 | E89: 0 | F89: =SUMPRODUCT((Projects!$A$5:$A$2426='MDOT FTA Detail'!$D$3)*(Projects!$C$5:$C$2426='MDOT FTA Detail'!$C$4)*(Projects!$L$5:$L$2426='MDOT FTA Detail'!$A89)*(Projects!$J$5:$J$2426<>'MDOT FTA Detail'!$A$171)*(Projects!$Q$5:Q$2426)) -> 0 | G89: =SUMPRODUCT((Projects!$A$5:$A$2426='MDOT FTA Detail'!$G$3)*(Projects!$C$5:$C$2426='MDOT FTA Detail'!$C$4)*(Projects!$L$5:$L$2426='MDOT FTA Detail'!$A89)*(Projects!$J$5:$J$2426<>'MDOT FTA Detail'!$A$171)*(Projects!$K$5:K$2426)) -> 0 | H89: 0 | I89: =SUMPRODUCT((Projects!$A$5:$A$2426='MDOT FTA Detail'!$G$3)*(Projects!$C$5:$C$2426='MDOT FTA Detail'!$C$4)*(Projects!$L$5:$L$2426='MDOT FTA Detail'!$A89)*(Projects!$J$5:$J$2426<>'MDOT FTA Detail'!$A$171)*(Projects!$Q$5:Q$2426)) -> 0 | J89: =SUMPRODUCT((Projects!$A$5:$A$2426='MDOT FTA Detail'!$J$3)*(Projects!$C$5:$C$2426='MDOT FTA Detail'!$C$4)*(Projects!$L$5:$L$2426='MDOT FTA Detail'!$A89)*(Projects!$J$5:$J$2426<>'MDOT FTA Detail'!$A$171)*(Projects!$K$5:$K$2426)) -> 0 | K89: 0 | L89: =SUMPRODUCT((Projects!$A$5:$A$2426='MDOT FTA Detail'!$J$3)*(Projects!$C$5:$C$2426='MDOT FTA Detail'!$C$4)*(Projects!$L$5:$L$2426='MDOT FTA Detail'!$A89)*(Projects!$J$5:$J$2426<>'MDOT FTA Detail'!$A$171)*(Projects!$Q$5:$Q$2426)) -> 0 | M89: =SUMPRODUCT((Projects!$A$5:$A$2426='MDOT FTA Detail'!$M$3)*(Projects!$C$5:$C$2426='MDOT FTA Detail'!$C$4)*(Projects!$L$5:$L$2426='MDOT FTA Detail'!$A89)*(Projects!$J$5:$J$2426<>'MDOT FTA Detail'!$A$171)*(Projects!$K$5:$K$2426)) -> 0 | N89: 0 | O89: =SUMPRODUCT((Projects!$A$5:$A$2426='MDOT FTA Detail'!$M$3)*(Projects!$C$5:$C$2426='MDOT FTA Detail'!$C$4)*(Projects!$L$5:$L$2426='MDOT FTA Detail'!$A89)*(Projects!$J$5:$J$2426<>'MDOT FTA Detail'!$A$171)*(Projects!$Q$5:$Q$2426)) -> 0
A90: STT | B90: STP - Trunkline | C90: MDOT FA | D90: =SUMPRODUCT((Projects!$A$5:$A$2426='MDOT FTA Detail'!$D$3)*(Projects!$C$5:$C$2426='MDOT FTA Detail'!$C$4)*(Projects!$L$5:$L$2426='MDOT FTA Detail'!$A90)*(Projects!$J$5:$J$2426<>'MDOT FTA Detail'!$A$171)*(Projects!$K$5:K$2426)) -> 0 | E90: 0 | F90: =SUMPRODUCT((Projects!$A$5:$A$2426='MDOT FTA Detail'!$D$3)*(Projects!$C$5:$C$2426='MDOT FTA Detail'!$C$4)*(Projects!$L$5:$L$2426='MDOT FTA Detail'!$A90)*(Projects!$J$5:$J$2426<>'MDOT FTA Detail'!$A$171)*(Projects!$Q$5:Q$2426)) -> 0 | G90: =SUMPRODUCT((Projects!$A$5:$A$2426='MDOT FTA Detail'!$G$3)*(Projects!$C$5:$C$2426='MDOT FTA Detail'!$C$4)*(Projects!$L$5:$L$2426='MDOT FTA Detail'!$A90)*(Projects!$J$5:$J$2426<>'MDOT FTA Detail'!$A$171)*(Projects!$K$5:K$2426)) -> 0 | H90: 0 | I90: =SUMPRODUCT((Projects!$A$5:$A$2426='MDOT FTA Detail'!$G$3)*(Projects!$C$5:$C$2426='MDOT FTA Detail'!$C$4)*(Projects!$L$5:$L$2426='MDOT FTA Detail'!$A90)*(Projects!$J$5:$J$2426<>'MDOT FTA Detail'!$A$171)*(Projects!$Q$5:Q$2426)) -> 0 | J90: =SUMPRODUCT((Projects!$A$5:$A$2426='MDOT FTA Detail'!$J$3)*(Projects!$C$5:$C$2426='MDOT FTA Detail'!$C$4)*(Projects!$L$5:$L$2426='MDOT FTA Detail'!$A90)*(Projects!$J$5:$J$2426<>'MDOT FTA Detail'!$A$171)*(Projects!$K$5:$K$2426)) -> 0 | K90: 0 | L90: =SUMPRODUCT((Projects!$A$5:$A$2426='MDOT FTA Detail'!$J$3)*(Projects!$C$5:$C$2426='MDOT FTA Detail'!$C$4)*(Projects!$L$5:$L$2426='MDOT FTA Detail'!$A90)*(Projects!$J$5:$J$2426<>'MDOT FTA Detail'!$A$171)*(Projects!$Q$5:$Q$2426)) -> 0 | M90: =SUMPRODUCT((Projects!$A$5:$A$2426='MDOT FTA Detail'!$M$3)*(Projects!$C$5:$C$2426='MDOT FTA Detail'!$C$4)*(Projects!$L$5:$L$2426='MDOT FTA Detail'!$A90)*(Projects!$J$5:$J$2426<>'MDOT FTA Detail'!$A$171)*(Projects!$K$5:$K$2426)) -> 0 | N90: 0 | O90: =SUMPRODUCT((Projects!$A$5:$A$2426='MDOT FTA Detail'!$M$3)*(Projects!$C$5:$C$2426='MDOT FTA Detail'!$C$4)*(Projects!$L$5:$L$2426='MDOT FTA Detail'!$A90)*(Projects!$J$5:$J$2426<>'MDOT FTA Detail'!$A$171)*(Projects!$Q$5:$Q$2426)) -> 0
A91: STU | B91: STP - Urban Areas > 200,000 Population | C91: MDOT FA | D91: =SUMPRODUCT((Projects!$A$5:$A$2426='MDOT FTA Detail'!$D$3)*(Projects!$C$5:$C$2426='MDOT FTA Detail'!$C$4)*(Projects!$L$5:$L$2426='MDOT FTA Detail'!$A91)*(Projects!$J$5:$J$2426<>'MDOT FTA Detail'!$A$171)*(Projects!$K$5:K$2426)) -> 0 | E91: 0 | F91: =SUMPRODUCT((Projects!$A$5:$A$2426='MDOT FTA Detail'!$D$3)*(Projects!$C$5:$C$2426='MDOT FTA Detail'!$C$4)*(Projects!$L$5:$L$2426='MDOT FTA Detail'!$A91)*(Projects!$J$5:$J$2426<>'MDOT FTA Detail'!$A$171)*(Projects!$Q$5:Q$2426)) -> 0 | G91: =SUMPRODUCT((Projects!$A$5:$A$2426='MDOT FTA Detail'!$G$3)*(Projects!$C$5:$C$2426='MDOT FTA Detail'!$C$4)*(Projects!$L$5:$L$2426='MDOT FTA Detail'!$A91)*(Projects!$J$5:$J$2426<>'MDOT FTA Detail'!$A$171)*(Projects!$K$5:K$2426)) -> 0 | H91: 0 | I91: =SUMPRODUCT((Projects!$A$5:$A$2426='MDOT FTA Detail'!$G$3)*(Projects!$C$5:$C$2426='MDOT FTA Detail'!$C$4)*(Projects!$L$5:$L$2426='MDOT FTA Detail'!$A91)*(Projects!$J$5:$J$2426<>'MDOT FTA Detail'!$A$171)*(Projects!$Q$5:Q$2426)) -> 0 | J91: =SUMPRODUCT((Projects!$A$5:$A$2426='MDOT FTA Detail'!$J$3)*(Projects!$C$5:$C$2426='MDOT FTA Detail'!$C$4)*(Projects!$L$5:$L$2426='MDOT FTA Detail'!$A91)*(Projects!$J$5:$J$2426<>'MDOT FTA Detail'!$A$171)*(Projects!$K$5:$K$2426)) -> 0 | K91: 0 | L91: =SUMPRODUCT((Projects!$A$5:$A$2426='MDOT FTA Detail'!$J$3)*(Projects!$C$5:$C$2426='MDOT FTA Detail'!$C$4)*(Projects!$L$5:$L$2426='MDOT FTA Detail'!$A91)*(Projects!$J$5:$J$2426<>'MDOT FTA Detail'!$A$171)*(Projects!$Q$5:$Q$2426)) -> 0 | M91: =SUMPRODUCT((Projects!$A$5:$A$2426='MDOT FTA Detail'!$M$3)*(Projects!$C$5:$C$2426='MDOT FTA Detail'!$C$4)*(Projects!$L$5:$L$2426='MDOT FTA Detail'!$A91)*(Projects!$J$5:$J$2426<>'MDOT FTA Detail'!$A$171)*(Projects!$K$5:$K$2426)) -> 0 | N91: 0 | O91: =SUMPRODUCT((Projects!$A$5:$A$2426='MDOT FTA Detail'!$M$3)*(Projects!$C$5:$C$2426='MDOT FTA Detail'!$C$4)*(Projects!$L$5:$L$2426='MDOT FTA Detail'!$A91)*(Projects!$J$5:$J$2426<>'MDOT FTA Detail'!$A$171)*(Projects!$Q$5:$Q$2426)) -> 0
A92: STUG | B92: STP - Urban Areas < 200,000 Population 100% | C92: MDOT FA | D92: =SUMPRODUCT((Projects!$A$5:$A$2426='MDOT FTA Detail'!$D$3)*(Projects!$C$5:$C$2426='MDOT FTA Detail'!$C$4)*(Projects!$L$5:$L$2426='MDOT FTA Detail'!$A92)*(Projects!$J$5:$J$2426<>'MDOT FTA Detail'!$A$171)*(Projects!$K$5:K$2426)) -> 0 | E92: =F92-D92 -> 0 | F92: =SUMPRODUCT((Projects!$A$5:$A$2426='MDOT FTA Detail'!$D$3)*(Projects!$C$5:$C$2426='MDOT FTA Detail'!$C$4)*(Projects!$L$5:$L$2426='MDOT FTA Detail'!$A92)*(Projects!$J$5:$J$2426<>'MDOT FTA Detail'!$A$171)*(Projects!$Q$5:Q$2426)) -> 0 | G92: =SUMPRODUCT((Projects!$A$5:$A$2426='MDOT FTA Detail'!$G$3)*(Projects!$C$5:$C$2426='MDOT FTA Detail'!$C$4)*(Projects!$L$5:$L$2426='MDOT FTA Detail'!$A92)*(Projects!$J$5:$J$2426<>'MDOT FTA Detail'!$A$171)*(Projects!$K$5:K$2426)) -> 0 | H92: =I92-G92 -> 0 | I92: =SUMPRODUCT((Projects!$A$5:$A$2426='MDOT FTA Detail'!$G$3)*(Projects!$C$5:$C$2426='MDOT FTA Detail'!$C$4)*(Projects!$L$5:$L$2426='MDOT FTA Detail'!$A92)*(Projects!$J$5:$J$2426<>'MDOT FTA Detail'!$A$171)*(Projects!$Q$5:Q$2426)) -> 0 | J92: =SUMPRODUCT((Projects!$A$5:$A$2426='MDOT FTA Detail'!$J$3)*(Projects!$C$5:$C$2426='MDOT FTA Detail'!$C$4)*(Projects!$L$5:$L$2426='MDOT FTA Detail'!$A92)*(Projects!$J$5:$J$2426<>'MDOT FTA Detail'!$A$171)*(Projects!$K$5:$K$2426)) -> 0 | K92: =L92-J92 -> 0 | L92: =SUMPRODUCT((Projects!$A$5:$A$2426='MDOT FTA Detail'!$J$3)*(Projects!$C$5:$C$2426='MDOT FTA Detail'!$C$4)*(Projects!$L$5:$L$2426='MDOT FTA Detail'!$A92)*(Projects!$J$5:$J$2426<>'MDOT FTA Detail'!$A$171)*(Projects!$Q$5:$Q$2426)) -> 0 | M92: =SUMPRODUCT((Projects!$A$5:$A$2426='MDOT FTA Detail'!$M$3)*(Projects!$C$5:$C$2426='MDOT FTA Detail'!$C$4)*(Projects!$L$5:$L$2426='MDOT FTA Detail'!$A92)*(Projects!$J$5:$J$2426<>'MDOT FTA Detail'!$A$171)*(Projects!$K$5:$K$2426)) -> 0 | N92: =O92-M92 -> 0 | O92: =SUMPRODUCT((Projects!$A$5:$A$2426='MDOT FTA Detail'!$M$3)*(Projects!$C$5:$C$2426='MDOT FTA Detail'!$C$4)*(Projects!$L$5:$L$2426='MDOT FTA Detail'!$A92)*(Projects!$J$5:$J$2426<>'MDOT FTA Detail'!$A$171)*(Projects!$Q$5:$Q$2426)) -> 0
A93: STUL | B93: STP - Urban Areas < 200,000 Population | C93: MDOT FA | D93: =SUMPRODUCT((Projects!$A$5:$A$2426='MDOT FTA Detail'!$D$3)*(Projects!$C$5:$C$2426='MDOT FTA Detail'!$C$4)*(Projects!$L$5:$L$2426='MDOT FTA Detail'!$A93)*(Projects!$J$5:$J$2426<>'MDOT FTA Detail'!$A$171)*(Projects!$K$5:K$2426)) -> 0 | E93: 0 | F93: =SUMPRODUCT((Projects!$A$5:$A$2426='MDOT FTA Detail'!$D$3)*(Projects!$C$5:$C$2426='MDOT FTA Detail'!$C$4)*(Projects!$L$5:$L$2426='MDOT FTA Detail'!$A93)*(Projects!$J$5:$J$2426<>'MDOT FTA Detail'!$A$171)*(Projects!$Q$5:Q$2426)) -> 0 | G93: =SUMPRODUCT((Projects!$A$5:$A$2426='MDOT FTA Detail'!$G$3)*(Projects!$C$5:$C$2426='MDOT FTA Detail'!$C$4)*(Projects!$L$5:$L$2426='MDOT FTA Detail'!$A93)*(Projects!$J$5:$J$2426<>'MDOT FTA Detail'!$A$171)*(Projects!$K$5:K$2426)) -> 0 | H93: 0 | I93: =SUMPRODUCT((Projects!$A$5:$A$2426='MDOT FTA Detail'!$G$3)*(Projects!$C$5:$C$2426='MDOT FTA Detail'!$C$4)*(Projects!$L$5:$L$2426='MDOT FTA Detail'!$A93)*(Projects!$J$5:$J$2426<>'MDOT FTA Detail'!$A$171)*(Projects!$Q$5:Q$2426)) -> 0 | J93: =SUMPRODUCT((Projects!$A$5:$A$2426='MDOT FTA Detail'!$J$3)*(Projects!$C$5:$C$2426='MDOT FTA Detail'!$C$4)*(Projects!$L$5:$L$2426='MDOT FTA Detail'!$A93)*(Projects!$J$5:$J$2426<>'MDOT FTA Detail'!$A$171)*(Projects!$K$5:$K$2426)) -> 0 | K93: 0 | L93: =SUMPRODUCT((Projects!$A$5:$A$2426='MDOT FTA Detail'!$J$3)*(Projects!$C$5:$C$2426='MDOT FTA Detail'!$C$4)*(Projects!$L$5:$L$2426='MDOT FTA Detail'!$A93)*(Projects!$J$5:$J$2426<>'MDOT FTA Detail'!$A$171)*(Projects!$Q$5:$Q$2426)) -> 0 | M93: =SUMPRODUCT((Projects!$A$5:$A$2426='MDOT FTA Detail'!$M$3)*(Projects!$C$5:$C$2426='MDOT FTA Detail'!$C$4)*(Projects!$L$5:$L$2426='MDOT FTA Detail'!$A93)*(Projects!$J$5:$J$2426<>'MDOT FTA Detail'!$A$171)*(Projects!$K$5:$K$2426)) -> 0 | N93: 0 | O93: =SUMPRODUCT((Projects!$A$5:$A$2426='MDOT FTA Detail'!$M$3)*(Projects!$C$5:$C$2426='MDOT FTA Detail'!$C$4)*(Projects!$L$5:$L$2426='MDOT FTA Detail'!$A93)*(Projects!$J$5:$J$2426<>'MDOT FTA Detail'!$A$171)*(Projects!$Q$5:$Q$2426)) -> 0
A94: STUT | B94: STP - Urban Areas < 200,000 Population - Trunkline | C94: MDOT FA | D94: =SUMPRODUCT((Projects!$A$5:$A$2426='MDOT FTA Detail'!$D$3)*(Projects!$C$5:$C$2426='MDOT FTA Detail'!$C$4)*(Projects!$L$5:$L$2426='MDOT FTA Detail'!$A94)*(Projects!$J$5:$J$2426<>'MDOT FTA Detail'!$A$171)*(Projects!$K$5:K$2426)) -> 0 | E94: 0 | F94: =SUMPRODUCT((Projects!$A$5:$A$2426='MDOT FTA Detail'!$D$3)*(Projects!$C$5:$C$2426='MDOT FTA Detail'!$C$4)*(Projects!$L$5:$L$2426='MDOT FTA Detail'!$A94)*(Projects!$J$5:$J$2426<>'MDOT FTA Detail'!$A$171)*(Projects!$Q$5:Q$2426)) -> 0 | G94: =SUMPRODUCT((Projects!$A$5:$A$2426='MDOT FTA Detail'!$G$3)*(Projects!$C$5:$C$2426='MDOT FTA Detail'!$C$4)*(Projects!$L$5:$L$2426='MDOT FTA Detail'!$A94)*(Projects!$J$5:$J$2426<>'MDOT FTA Detail'!$A$171)*(Projects!$K$5:K$2426)) -> 0 | H94: 0 | I94: =SUMPRODUCT((Projects!$A$5:$A$2426='MDOT FTA Detail'!$G$3)*(Projects!$C$5:$C$2426='MDOT FTA Detail'!$C$4)*(Projects!$L$5:$L$2426='MDOT FTA Detail'!$A94)*(Projects!$J$5:$J$2426<>'MDOT FTA Detail'!$A$171)*(Projects!$Q$5:Q$2426)) -> 0 | J94: =SUMPRODUCT((Projects!$A$5:$A$2426='MDOT FTA Detail'!$J$3)*(Projects!$C$5:$C$2426='MDOT FTA Detail'!$C$4)*(Projects!$L$5:$L$2426='MDOT FTA Detail'!$A94)*(Projects!$J$5:$J$2426<>'MDOT FTA Detail'!$A$171)*(Projects!$K$5:$K$2426)) -> 0 | K94: 0 | L94: =SUMPRODUCT((Projects!$A$5:$A$2426='MDOT FTA Detail'!$J$3)*(Projects!$C$5:$C$2426='MDOT FTA Detail'!$C$4)*(Projects!$L$5:$L$2426='MDOT FTA Detail'!$A94)*(Projects!$J$5:$J$2426<>'MDOT FTA Detail'!$A$171)*(Projects!$Q$5:$Q$2426)) -> 0 | M94: =SUMPRODUCT((Projects!$A$5:$A$2426='MDOT FTA Detail'!$M$3)*(Projects!$C$5:$C$2426='MDOT FTA Detail'!$C$4)*(Projects!$L$5:$L$2426='MDOT FTA Detail'!$A94)*(Projects!$J$5:$J$2426<>'MDOT FTA Detail'!$A$171)*(Projects!$K$5:$K$2426)) -> 0 | N94: 0 | O94: =SUMPRODUCT((Projects!$A$5:$A$2426='MDOT FTA Detail'!$M$3)*(Projects!$C$5:$C$2426='MDOT FTA Detail'!$C$4)*(Projects!$L$5:$L$2426='MDOT FTA Detail'!$A94)*(Projects!$J$5:$J$2426<>'MDOT FTA Detail'!$A$171)*(Projects!$Q$5:$Q$2426)) -> 0
A95: SUG | B95: STP - Safety - 100% Federal for STU | C95: MDOT FA | D95: =SUMPRODUCT((Projects!$A$5:$A$2426='MDOT FTA Detail'!$D$3)*(Projects!$C$5:$C$2426='MDOT FTA Detail'!$C$4)*(Projects!$L$5:$L$2426='MDOT FTA Detail'!$A95)*(Projects!$J$5:$J$2426<>'MDOT FTA Detail'!$A$171)*(Projects!$K$5:K$2426)) -> 0 | E95: 0 | F95: =SUMPRODUCT((Projects!$A$5:$A$2426='MDOT FTA Detail'!$D$3)*(Projects!$C$5:$C$2426='MDOT FTA Detail'!$C$4)*(Projects!$L$5:$L$2426='MDOT FTA Detail'!$A95)*(Projects!$J$5:$J$2426<>'MDOT FTA Detail'!$A$171)*(Projects!$Q$5:Q$2426)) -> 0 | G95: =SUMPRODUCT((Projects!$A$5:$A$2426='MDOT FTA Detail'!$G$3)*(Projects!$C$5:$C$2426='MDOT FTA Detail'!$C$4)*(Projects!$L$5:$L$2426='MDOT FTA Detail'!$A95)*(Projects!$J$5:$J$2426<>'MDOT FTA Detail'!$A$171)*(Projects!$K$5:K$2426)) -> 0 | H95: 0 | I95: =SUMPRODUCT((Projects!$A$5:$A$2426='MDOT FTA Detail'!$G$3)*(Projects!$C$5:$C$2426='MDOT FTA Detail'!$C$4)*(Projects!$L$5:$L$2426='MDOT FTA Detail'!$A95)*(Projects!$J$5:$J$2426<>'MDOT FTA Detail'!$A$171)*(Projects!$Q$5:Q$2426)) -> 0 | J95: =SUMPRODUCT((Projects!$A$5:$A$2426='MDOT FTA Detail'!$J$3)*(Projects!$C$5:$C$2426='MDOT FTA Detail'!$C$4)*(Projects!$L$5:$L$2426='MDOT FTA Detail'!$A95)*(Projects!$J$5:$J$2426<>'MDOT FTA Detail'!$A$171)*(Projects!$K$5:$K$2426)) -> 0 | K95: 0 | L95: =SUMPRODUCT((Projects!$A$5:$A$2426='MDOT FTA Detail'!$J$3)*(Projects!$C$5:$C$2426='MDOT FTA Detail'!$C$4)*(Projects!$L$5:$L$2426='MDOT FTA Detail'!$A95)*(Projects!$J$5:$J$2426<>'MDOT FTA Detail'!$A$171)*(Projects!$Q$5:$Q$2426)) -> 0 | M95: =SUMPRODUCT((Projects!$A$5:$A$2426='MDOT FTA Detail'!$M$3)*(Projects!$C$5:$C$2426='MDOT FTA Detail'!$C$4)*(Projects!$L$5:$L$2426='MDOT FTA Detail'!$A95)*(Projects!$J$5:$J$2426<>'MDOT FTA Detail'!$A$171)*(Projects!$K$5:$K$2426)) -> 0 | N95: 0 | O95: =SUMPRODUCT((Projects!$A$5:$A$2426='MDOT FTA Detail'!$M$3)*(Projects!$C$5:$C$2426='MDOT FTA Detail'!$C$4)*(Projects!$L$5:$L$2426='MDOT FTA Detail'!$A95)*(Projects!$J$5:$J$2426<>'MDOT FTA Detail'!$A$171)*(Projects!$Q$5:$Q$2426)) -> 0
A96: SUL | B96: Surface Transportation Urban Areas <200,000 Population | C96: MDOT FA | D96: =SUMPRODUCT((Projects!$A$5:$A$2426='MDOT FTA Detail'!$D$3)*(Projects!$C$5:$C$2426='MDOT FTA Detail'!$C$4)*(Projects!$L$5:$L$2426='MDOT FTA Detail'!$A96)*(Projects!$J$5:$J$2426<>'MDOT FTA Detail'!$A$171)*(Projects!$K$5:K$2426)) -> 0 | E96: 0 | F96: =SUMPRODUCT((Projects!$A$5:$A$2426='MDOT FTA Detail'!$D$3)*(Projects!$C$5:$C$2426='MDOT FTA Detail'!$C$4)*(Projects!$L$5:$L$2426='MDOT FTA Detail'!$A96)*(Projects!$J$5:$J$2426<>'MDOT FTA Detail'!$A$171)*(Projects!$Q$5:Q$2426)) -> 0 | G96: =SUMPRODUCT((Projects!$A$5:$A$2426='MDOT FTA Detail'!$G$3)*(Projects!$C$5:$C$2426='MDOT FTA Detail'!$C$4)*(Projects!$L$5:$L$2426='MDOT FTA Detail'!$A96)*(Projects!$J$5:$J$2426<>'MDOT FTA Detail'!$A$171)*(Projects!$K$5:K$2426)) -> 0 | H96: 0 | I96: =SUMPRODUCT((Projects!$A$5:$A$2426='MDOT FTA Detail'!$G$3)*(Projects!$C$5:$C$2426='MDOT FTA Detail'!$C$4)*(Projects!$L$5:$L$2426='MDOT FTA Detail'!$A96)*(Projects!$J$5:$J$2426<>'MDOT FTA Detail'!$A$171)*(Projects!$Q$5:Q$2426)) -> 0 | J96: =SUMPRODUCT((Projects!$A$5:$A$2426='MDOT FTA Detail'!$J$3)*(Projects!$C$5:$C$2426='MDOT FTA Detail'!$C$4)*(Projects!$L$5:$L$2426='MDOT FTA Detail'!$A96)*(Projects!$J$5:$J$2426<>'MDOT FTA Detail'!$A$171)*(Projects!$K$5:$K$2426)) -> 0 | K96: 0 | L96: =SUMPRODUCT((Projects!$A$5:$A$2426='MDOT FTA Detail'!$J$3)*(Projects!$C$5:$C$2426='MDOT FTA Detail'!$C$4)*(Projects!$L$5:$L$2426='MDOT FTA Detail'!$A96)*(Projects!$J$5:$J$2426<>'MDOT FTA Detail'!$A$171)*(Projects!$Q$5:$Q$2426)) -> 0 | M96: =SUMPRODUCT((Projects!$A$5:$A$2426='MDOT FTA Detail'!$M$3)*(Projects!$C$5:$C$2426='MDOT FTA Detail'!$C$4)*(Projects!$L$5:$L$2426='MDOT FTA Detail'!$A96)*(Projects!$J$5:$J$2426<>'MDOT FTA Detail'!$A$171)*(Projects!$K$5:$K$2426)) -> 0 | N96: 0 | O96: =SUMPRODUCT((Projects!$A$5:$A$2426='MDOT FTA Detail'!$M$3)*(Projects!$C$5:$C$2426='MDOT FTA Detail'!$C$4)*(Projects!$L$5:$L$2426='MDOT FTA Detail'!$A96)*(Projects!$J$5:$J$2426<>'MDOT FTA Detail'!$A$171)*(Projects!$Q$5:$Q$2426)) -> 0
A97: SULG | B97: Surfcace Transportation Urban Areas <200,000 Population 100% | C97: MDOT FA | D97: =SUMPRODUCT((Projects!$A$5:$A$2426='MDOT FTA Detail'!$D$3)*(Projects!$C$5:$C$2426='MDOT FTA Detail'!$C$4)*(Projects!$L$5:$L$2426='MDOT FTA Detail'!$A97)*(Projects!$J$5:$J$2426<>'MDOT FTA Detail'!$A$171)*(Projects!$K$5:K$2426)) -> 0 | E97: 0 | F97: =SUMPRODUCT((Projects!$A$5:$A$2426='MDOT FTA Detail'!$D$3)*(Projects!$C$5:$C$2426='MDOT FTA Detail'!$C$4)*(Projects!$L$5:$L$2426='MDOT FTA Detail'!$A97)*(Projects!$J$5:$J$2426<>'MDOT FTA Detail'!$A$171)*(Projects!$Q$5:Q$2426)) -> 0 | G97: =SUMPRODUCT((Projects!$A$5:$A$2426='MDOT FTA Detail'!$G$3)*(Projects!$C$5:$C$2426='MDOT FTA Detail'!$C$4)*(Projects!$L$5:$L$2426='MDOT FTA Detail'!$A97)*(Projects!$J$5:$J$2426<>'MDOT FTA Detail'!$A$171)*(Projects!$K$5:K$2426)) -> 0 | H97: 0 | I97: =SUMPRODUCT((Projects!$A$5:$A$2426='MDOT FTA Detail'!$G$3)*(Projects!$C$5:$C$2426='MDOT FTA Detail'!$C$4)*(Projects!$L$5:$L$2426='MDOT FTA Detail'!$A97)*(Projects!$J$5:$J$2426<>'MDOT FTA Detail'!$A$171)*(Projects!$Q$5:Q$2426)) -> 0 | J97: =SUMPRODUCT((Projects!$A$5:$A$2426='MDOT FTA Detail'!$J$3)*(Projects!$C$5:$C$2426='MDOT FTA Detail'!$C$4)*(Projects!$L$5:$L$2426='MDOT FTA Detail'!$A97)*(Projects!$J$5:$J$2426<>'MDOT FTA Detail'!$A$171)*(Projects!$K$5:$K$2426)) -> 0 | K97: 0 | L97: =SUMPRODUCT((Projects!$A$5:$A$2426='MDOT FTA Detail'!$J$3)*(Projects!$C$5:$C$2426='MDOT FTA Detail'!$C$4)*(Projects!$L$5:$L$2426='MDOT FTA Detail'!$A97)*(Projects!$J$5:$J$2426<>'MDOT FTA Detail'!$A$171)*(Projects!$Q$5:$Q$2426)) -> 0 | M97: =SUMPRODUCT((Projects!$A$5:$A$2426='MDOT FTA Detail'!$M$3)*(Projects!$C$5:$C$2426='MDOT FTA Detail'!$C$4)*(Projects!$L$5:$L$2426='MDOT FTA Detail'!$A97)*(Projects!$J$5:$J$2426<>'MDOT FTA Detail'!$A$171)*(Projects!$K$5:$K$2426)) -> 0 | N97: 0 | O97: =SUMPRODUCT((Projects!$A$5:$A$2426='MDOT FTA Detail'!$M$3)*(Projects!$C$5:$C$2426='MDOT FTA Detail'!$C$4)*(Projects!$L$5:$L$2426='MDOT FTA Detail'!$A97)*(Projects!$J$5:$J$2426<>'MDOT FTA Detail'!$A$171)*(Projects!$Q$5:$Q$2426)) -> 0
A98: TA | B98: Transportation Alternatives Program Flex | C98: MDOT FA | D98: =SUMPRODUCT((Projects!$A$5:$A$2426='MDOT FTA Detail'!$D$3)*(Projects!$C$5:$C$2426='MDOT FTA Detail'!$C$4)*(Projects!$L$5:$L$2426='MDOT FTA Detail'!$A98)*(Projects!$J$5:$J$2426<>'MDOT FTA Detail'!$A$171)*(Projects!$K$5:K$2426)) -> 0 | E98: 0 | F98: =SUMPRODUCT((Projects!$A$5:$A$2426='MDOT FTA Detail'!$D$3)*(Projects!$C$5:$C$2426='MDOT FTA Detail'!$C$4)*(Projects!$L$5:$L$2426='MDOT FTA Detail'!$A98)*(Projects!$J$5:$J$2426<>'MDOT FTA Detail'!$A$171)*(Projects!$Q$5:Q$2426)) -> 0 | G98: =SUMPRODUCT((Projects!$A$5:$A$2426='MDOT FTA Detail'!$G$3)*(Projects!$C$5:$C$2426='MDOT FTA Detail'!$C$4)*(Projects!$L$5:$L$2426='MDOT FTA Detail'!$A98)*(Projects!$J$5:$J$2426<>'MDOT FTA Detail'!$A$171)*(Projects!$K$5:K$2426)) -> 0 | H98: 0 | I98: =SUMPRODUCT((Projects!$A$5:$A$2426='MDOT FTA Detail'!$G$3)*(Projects!$C$5:$C$2426='MDOT FTA Detail'!$C$4)*(Projects!$L$5:$L$2426='MDOT FTA Detail'!$A98)*(Projects!$J$5:$J$2426<>'MDOT FTA Detail'!$A$171)*(Projects!$Q$5:Q$2426)) -> 0 | J98: =SUMPRODUCT((Projects!$A$5:$A$2426='MDOT FTA Detail'!$J$3)*(Projects!$C$5:$C$2426='MDOT FTA Detail'!$C$4)*(Projects!$L$5:$L$2426='MDOT FTA Detail'!$A98)*(Projects!$J$5:$J$2426<>'MDOT FTA Detail'!$A$171)*(Projects!$K$5:$K$2426)) -> 0 | K98: 0 | L98: =SUMPRODUCT((Projects!$A$5:$A$2426='MDOT FTA Detail'!$J$3)*(Projects!$C$5:$C$2426='MDOT FTA Detail'!$C$4)*(Projects!$L$5:$L$2426='MDOT FTA Detail'!$A98)*(Projects!$J$5:$J$2426<>'MDOT FTA Detail'!$A$171)*(Projects!$Q$5:$Q$2426)) -> 0 | M98: =SUMPRODUCT((Projects!$A$5:$A$2426='MDOT FTA Detail'!$M$3)*(Projects!$C$5:$C$2426='MDOT FTA Detail'!$C$4)*(Projects!$L$5:$L$2426='MDOT FTA Detail'!$A98)*(Projects!$J$5:$J$2426<>'MDOT FTA Detail'!$A$171)*(Projects!$K$5:$K$2426)) -> 0 | N98: 0 | O98: =SUMPRODUCT((Projects!$A$5:$A$2426='MDOT FTA Detail'!$M$3)*(Projects!$C$5:$C$2426='MDOT FTA Detail'!$C$4)*(Projects!$L$5:$L$2426='MDOT FTA Detail'!$A98)*(Projects!$J$5:$J$2426<>'MDOT FTA Detail'!$A$171)*(Projects!$Q$5:$Q$2426)) -> 0
A99: TAL | B99: Transportation Alternatives Rural | C99: MDOT FA | D99: =SUMPRODUCT((Projects!$A$5:$A$2426='MDOT FTA Detail'!$D$3)*(Projects!$C$5:$C$2426='MDOT FTA Detail'!$C$4)*(Projects!$L$5:$L$2426='MDOT FTA Detail'!$A99)*(Projects!$J$5:$J$2426<>'MDOT FTA Detail'!$A$171)*(Projects!$K$5:K$2426)) -> 0 | E99: 0 | F99: =SUMPRODUCT((Projects!$A$5:$A$2426='MDOT FTA Detail'!$D$3)*(Projects!$C$5:$C$2426='MDOT FTA Detail'!$C$4)*(Projects!$L$5:$L$2426='MDOT FTA Detail'!$A99)*(Projects!$J$5:$J$2426<>'MDOT FTA Detail'!$A$171)*(Projects!$Q$5:Q$2426)) -> 0 | G99: =SUMPRODUCT((Projects!$A$5:$A$2426='MDOT FTA Detail'!$G$3)*(Projects!$C$5:$C$2426='MDOT FTA Detail'!$C$4)*(Projects!$L$5:$L$2426='MDOT FTA Detail'!$A99)*(Projects!$J$5:$J$2426<>'MDOT FTA Detail'!$A$171)*(Projects!$K$5:K$2426)) -> 0 | H99: 0 | I99: =SUMPRODUCT((Projects!$A$5:$A$2426='MDOT FTA Detail'!$G$3)*(Projects!$C$5:$C$2426='MDOT FTA Detail'!$C$4)*(Projects!$L$5:$L$2426='MDOT FTA Detail'!$A99)*(Projects!$J$5:$J$2426<>'MDOT FTA Detail'!$A$171)*(Projects!$Q$5:Q$2426)) -> 0 | J99: =SUMPRODUCT((Projects!$A$5:$A$2426='MDOT FTA Detail'!$J$3)*(Projects!$C$5:$C$2426='MDOT FTA Detail'!$C$4)*(Projects!$L$5:$L$2426='MDOT FTA Detail'!$A99)*(Projects!$J$5:$J$2426<>'MDOT FTA Detail'!$A$171)*(Projects!$K$5:$K$2426)) -> 0 | K99: 0 | L99: =SUMPRODUCT((Projects!$A$5:$A$2426='MDOT FTA Detail'!$J$3)*(Projects!$C$5:$C$2426='MDOT FTA Detail'!$C$4)*(Projects!$L$5:$L$2426='MDOT FTA Detail'!$A99)*(Projects!$J$5:$J$2426<>'MDOT FTA Detail'!$A$171)*(Projects!$Q$5:$Q$2426)) -> 0 | M99: =SUMPRODUCT((Projects!$A$5:$A$2426='MDOT FTA Detail'!$M$3)*(Projects!$C$5:$C$2426='MDOT FTA Detail'!$C$4)*(Projects!$L$5:$L$2426='MDOT FTA Detail'!$A99)*(Projects!$J$5:$J$2426<>'MDOT FTA Detail'!$A$171)*(Projects!$K$5:$K$2426)) -> 0 | N99: 0 | O99: =SUMPRODUCT((Projects!$A$5:$A$2426='MDOT FTA Detail'!$M$3)*(Projects!$C$5:$C$2426='MDOT FTA Detail'!$C$4)*(Projects!$L$5:$L$2426='MDOT FTA Detail'!$A99)*(Projects!$J$5:$J$2426<>'MDOT FTA Detail'!$A$171)*(Projects!$Q$5:$Q$2426)) -> 0
A100: TAU | B100: Transportation Alternatives Urban Areas > 200,000 Population | C100: MDOT FA | D100: =SUMPRODUCT((Projects!$A$5:$A$2426='MDOT FTA Detail'!$D$3)*(Projects!$C$5:$C$2426='MDOT FTA Detail'!$C$4)*(Projects!$L$5:$L$2426='MDOT FTA Detail'!$A100)*(Projects!$J$5:$J$2426<>'MDOT FTA Detail'!$A$171)*(Projects!$K$5:K$2426)) -> 0 | E100: 0 | F100: =SUMPRODUCT((Projects!$A$5:$A$2426='MDOT FTA Detail'!$D$3)*(Projects!$C$5:$C$2426='MDOT FTA Detail'!$C$4)*(Projects!$L$5:$L$2426='MDOT FTA Detail'!$A100)*(Projects!$J$5:$J$2426<>'MDOT FTA Detail'!$A$171)*(Projects!$Q$5:Q$2426)) -> 0 | G100: =SUMPRODUCT((Projects!$A$5:$A$2426='MDOT FTA Detail'!$G$3)*(Projects!$C$5:$C$2426='MDOT FTA Detail'!$C$4)*(Projects!$L$5:$L$2426='MDOT FTA Detail'!$A100)*(Projects!$J$5:$J$2426<>'MDOT FTA Detail'!$A$171)*(Projects!$K$5:K$2426)) -> 0 | H100: 0 | I100: =SUMPRODUCT((Projects!$A$5:$A$2426='MDOT FTA Detail'!$G$3)*(Projects!$C$5:$C$2426='MDOT FTA Detail'!$C$4)*(Projects!$L$5:$L$2426='MDOT FTA Detail'!$A100)*(Projects!$J$5:$J$2426<>'MDOT FTA Detail'!$A$171)*(Projects!$Q$5:Q$2426)) -> 0 | J100: =SUMPRODUCT((Projects!$A$5:$A$2426='MDOT FTA Detail'!$J$3)*(Projects!$C$5:$C$2426='MDOT FTA Detail'!$C$4)*(Projects!$L$5:$L$2426='MDOT FTA Detail'!$A100)*(Projects!$J$5:$J$2426<>'MDOT FTA Detail'!$A$171)*(Projects!$K$5:$K$2426)) -> 0 | K100: 0 | L100: =SUMPRODUCT((Projects!$A$5:$A$2426='MDOT FTA Detail'!$J$3)*(Projects!$C$5:$C$2426='MDOT FTA Detail'!$C$4)*(Projects!$L$5:$L$2426='MDOT FTA Detail'!$A100)*(Projects!$J$5:$J$2426<>'MDOT FTA Detail'!$A$171)*(Projects!$Q$5:$Q$2426)) -> 0 | M100: =SUMPRODUCT((Projects!$A$5:$A$2426='MDOT FTA Detail'!$M$3)*(Projects!$C$5:$C$2426='MDOT FTA Detail'!$C$4)*(Projects!$L$5:$L$2426='MDOT FTA Detail'!$A100)*(Projects!$J$5:$J$2426<>'MDOT FTA Detail'!$A$171)*(Projects!$K$5:$K$2426)) -> 0 | N100: 0 | O100: =SUMPRODUCT((Projects!$A$5:$A$2426='MDOT FTA Detail'!$M$3)*(Projects!$C$5:$C$2426='MDOT FTA Detail'!$C$4)*(Projects!$L$5:$L$2426='MDOT FTA Detail'!$A100)*(Projects!$J$5:$J$2426<>'MDOT FTA Detail'!$A$171)*(Projects!$Q$5:$Q$2426)) -> 0
A101: TAUL | B101: Transporation Alternatives Urban Areas < 200,000 Population | C101: MDOT FA | D101: =SUMPRODUCT((Projects!$A$5:$A$2426='MDOT FTA Detail'!$D$3)*(Projects!$C$5:$C$2426='MDOT FTA Detail'!$C$4)*(Projects!$L$5:$L$2426='MDOT FTA Detail'!$A101)*(Projects!$J$5:$J$2426<>'MDOT FTA Detail'!$A$171)*(Projects!$K$5:K$2426)) -> 0 | E101: 0 | F101: =SUMPRODUCT((Projects!$A$5:$A$2426='MDOT FTA Detail'!$D$3)*(Projects!$C$5:$C$2426='MDOT FTA Detail'!$C$4)*(Projects!$L$5:$L$2426='MDOT FTA Detail'!$A101)*(Projects!$J$5:$J$2426<>'MDOT FTA Detail'!$A$171)*(Projects!$Q$5:Q$2426)) -> 0 | G101: =SUMPRODUCT((Projects!$A$5:$A$2426='MDOT FTA Detail'!$G$3)*(Projects!$C$5:$C$2426='MDOT FTA Detail'!$C$4)*(Projects!$L$5:$L$2426='MDOT FTA Detail'!$A101)*(Projects!$J$5:$J$2426<>'MDOT FTA Detail'!$A$171)*(Projects!$K$5:K$2426)) -> 0 | H101: 0 | I101: =SUMPRODUCT((Projects!$A$5:$A$2426='MDOT FTA Detail'!$G$3)*(Projects!$C$5:$C$2426='MDOT FTA Detail'!$C$4)*(Projects!$L$5:$L$2426='MDOT FTA Detail'!$A101)*(Projects!$J$5:$J$2426<>'MDOT FTA Detail'!$A$171)*(Projects!$Q$5:Q$2426)) -> 0 | J101: =SUMPRODUCT((Projects!$A$5:$A$2426='MDOT FTA Detail'!$J$3)*(Projects!$C$5:$C$2426='MDOT FTA Detail'!$C$4)*(Projects!$L$5:$L$2426='MDOT FTA Detail'!$A101)*(Projects!$J$5:$J$2426<>'MDOT FTA Detail'!$A$171)*(Projects!$K$5:$K$2426)) -> 0 | K101: 0 | L101: =SUMPRODUCT((Projects!$A$5:$A$2426='MDOT FTA Detail'!$J$3)*(Projects!$C$5:$C$2426='MDOT FTA Detail'!$C$4)*(Projects!$L$5:$L$2426='MDOT FTA Detail'!$A101)*(Projects!$J$5:$J$2426<>'MDOT FTA Detail'!$A$171)*(Projects!$Q$5:$Q$2426)) -> 0 | M101: =SUMPRODUCT((Projects!$A$5:$A$2426='MDOT FTA Detail'!$M$3)*(Projects!$C$5:$C$2426='MDOT FTA Detail'!$C$4)*(Projects!$L$5:$L$2426='MDOT FTA Detail'!$A101)*(Projects!$J$5:$J$2426<>'MDOT FTA Detail'!$A$171)*(Projects!$K$5:$K$2426)) -> 0 | N101: 0 | O101: =SUMPRODUCT((Projects!$A$5:$A$2426='MDOT FTA Detail'!$M$3)*(Projects!$C$5:$C$2426='MDOT FTA Detail'!$C$4)*(Projects!$L$5:$L$2426='MDOT FTA Detail'!$A101)*(Projects!$J$5:$J$2426<>'MDOT FTA Detail'!$A$171)*(Projects!$Q$5:$Q$2426)) -> 0
A102: TBR | B102: Timber Bridge Fund | C102: MDOT FA | D102: =SUMPRODUCT((Projects!$A$5:$A$2426='MDOT FTA Detail'!$D$3)*(Projects!$C$5:$C$2426='MDOT FTA Detail'!$C$4)*(Projects!$L$5:$L$2426='MDOT FTA Detail'!$A102)*(Projects!$J$5:$J$2426<>'MDOT FTA Detail'!$A$171)*(Projects!$K$5:K$2426)) -> 0 | E102: 0 | F102: =SUMPRODUCT((Projects!$A$5:$A$2426='MDOT FTA Detail'!$D$3)*(Projects!$C$5:$C$2426='MDOT FTA Detail'!$C$4)*(Projects!$L$5:$L$2426='MDOT FTA Detail'!$A102)*(Projects!$J$5:$J$2426<>'MDOT FTA Detail'!$A$171)*(Projects!$Q$5:Q$2426)) -> 0 | G102: =SUMPRODUCT((Projects!$A$5:$A$2426='MDOT FTA Detail'!$G$3)*(Projects!$C$5:$C$2426='MDOT FTA Detail'!$C$4)*(Projects!$L$5:$L$2426='MDOT FTA Detail'!$A102)*(Projects!$J$5:$J$2426<>'MDOT FTA Detail'!$A$171)*(Projects!$K$5:K$2426)) -> 0 | H102: 0 | I102: =SUMPRODUCT((Projects!$A$5:$A$2426='MDOT FTA Detail'!$G$3)*(Projects!$C$5:$C$2426='MDOT FTA Detail'!$C$4)*(Projects!$L$5:$L$2426='MDOT FTA Detail'!$A102)*(Projects!$J$5:$J$2426<>'MDOT FTA Detail'!$A$171)*(Projects!$Q$5:Q$2426)) -> 0 | J102: =SUMPRODUCT((Projects!$A$5:$A$2426='MDOT FTA Detail'!$J$3)*(Projects!$C$5:$C$2426='MDOT FTA Detail'!$C$4)*(Projects!$L$5:$L$2426='MDOT FTA Detail'!$A102)*(Projects!$J$5:$J$2426<>'MDOT FTA Detail'!$A$171)*(Projects!$K$5:$K$2426)) -> 0 | K102: 0 | L102: =SUMPRODUCT((Projects!$A$5:$A$2426='MDOT FTA Detail'!$J$3)*(Projects!$C$5:$C$2426='MDOT FTA Detail'!$C$4)*(Projects!$L$5:$L$2426='MDOT FTA Detail'!$A102)*(Projects!$J$5:$J$2426<>'MDOT FTA Detail'!$A$171)*(Projects!$Q$5:$Q$2426)) -> 0 | M102: =SUMPRODUCT((Projects!$A$5:$A$2426='MDOT FTA Detail'!$M$3)*(Projects!$C$5:$C$2426='MDOT FTA Detail'!$C$4)*(Projects!$L$5:$L$2426='MDOT FTA Detail'!$A102)*(Projects!$J$5:$J$2426<>'MDOT FTA Detail'!$A$171)*(Projects!$K$5:$K$2426)) -> 0 | N102: 0 | O102: =SUMPRODUCT((Projects!$A$5:$A$2426='MDOT FTA Detail'!$M$3)*(Projects!$C$5:$C$2426='MDOT FTA Detail'!$C$4)*(Projects!$L$5:$L$2426='MDOT FTA Detail'!$A102)*(Projects!$J$5:$J$2426<>'MDOT FTA Detail'!$A$171)*(Projects!$Q$5:$Q$2426)) -> 0
A103: TCP | B103: Tax Compliance Program | C103: MDOT FA | D103: =SUMPRODUCT((Projects!$A$5:$A$2426='MDOT FTA Detail'!$D$3)*(Projects!$C$5:$C$2426='MDOT FTA Detail'!$C$4)*(Projects!$L$5:$L$2426='MDOT FTA Detail'!$A103)*(Projects!$J$5:$J$2426<>'MDOT FTA Detail'!$A$171)*(Projects!$K$5:K$2426)) -> 0 | E103: 0 | F103: =SUMPRODUCT((Projects!$A$5:$A$2426='MDOT FTA Detail'!$D$3)*(Projects!$C$5:$C$2426='MDOT FTA Detail'!$C$4)*(Projects!$L$5:$L$2426='MDOT FTA Detail'!$A103)*(Projects!$J$5:$J$2426<>'MDOT FTA Detail'!$A$171)*(Projects!$Q$5:Q$2426)) -> 0 | G103: =SUMPRODUCT((Projects!$A$5:$A$2426='MDOT FTA Detail'!$G$3)*(Projects!$C$5:$C$2426='MDOT FTA Detail'!$C$4)*(Projects!$L$5:$L$2426='MDOT FTA Detail'!$A103)*(Projects!$J$5:$J$2426<>'MDOT FTA Detail'!$A$171)*(Projects!$K$5:K$2426)) -> 0 | H103: 0 | I103: =SUMPRODUCT((Projects!$A$5:$A$2426='MDOT FTA Detail'!$G$3)*(Projects!$C$5:$C$2426='MDOT FTA Detail'!$C$4)*(Projects!$L$5:$L$2426='MDOT FTA Detail'!$A103)*(Projects!$J$5:$J$2426<>'MDOT FTA Detail'!$A$171)*(Projects!$Q$5:Q$2426)) -> 0 | J103: =SUMPRODUCT((Projects!$A$5:$A$2426='MDOT FTA Detail'!$J$3)*(Projects!$C$5:$C$2426='MDOT FTA Detail'!$C$4)*(Projects!$L$5:$L$2426='MDOT FTA Detail'!$A103)*(Projects!$J$5:$J$2426<>'MDOT FTA Detail'!$A$171)*(Projects!$K$5:$K$2426)) -> 0 | K103: 0 | L103: =SUMPRODUCT((Projects!$A$5:$A$2426='MDOT FTA Detail'!$J$3)*(Projects!$C$5:$C$2426='MDOT FTA Detail'!$C$4)*(Projects!$L$5:$L$2426='MDOT FTA Detail'!$A103)*(Projects!$J$5:$J$2426<>'MDOT FTA Detail'!$A$171)*(Projects!$Q$5:$Q$2426)) -> 0 | M103: =SUMPRODUCT((Projects!$A$5:$A$2426='MDOT FTA Detail'!$M$3)*(Projects!$C$5:$C$2426='MDOT FTA Detail'!$C$4)*(Projects!$L$5:$L$2426='MDOT FTA Detail'!$A103)*(Projects!$J$5:$J$2426<>'MDOT FTA Detail'!$A$171)*(Projects!$K$5:$K$2426)) -> 0 | N103: 0 | O103: =SUMPRODUCT((Projects!$A$5:$A$2426='MDOT FTA Detail'!$M$3)*(Projects!$C$5:$C$2426='MDOT FTA Detail'!$C$4)*(Projects!$L$5:$L$2426='MDOT FTA Detail'!$A103)*(Projects!$J$5:$J$2426<>'MDOT FTA Detail'!$A$171)*(Projects!$Q$5:$Q$2426)) -> 0
A104: TCSP | B104: Transportation, Community and System Preservation | C104: MDOT FA | D104: =SUMPRODUCT((Projects!$A$5:$A$2426='MDOT FTA Detail'!$D$3)*(Projects!$C$5:$C$2426='MDOT FTA Detail'!$C$4)*(Projects!$L$5:$L$2426='MDOT FTA Detail'!$A104)*(Projects!$J$5:$J$2426<>'MDOT FTA Detail'!$A$171)*(Projects!$K$5:K$2426)) -> 0 | E104: 0 | F104: =SUMPRODUCT((Projects!$A$5:$A$2426='MDOT FTA Detail'!$D$3)*(Projects!$C$5:$C$2426='MDOT FTA Detail'!$C$4)*(Projects!$L$5:$L$2426='MDOT FTA Detail'!$A104)*(Projects!$J$5:$J$2426<>'MDOT FTA Detail'!$A$171)*(Projects!$Q$5:Q$2426)) -> 0 | G104: =SUMPRODUCT((Projects!$A$5:$A$2426='MDOT FTA Detail'!$G$3)*(Projects!$C$5:$C$2426='MDOT FTA Detail'!$C$4)*(Projects!$L$5:$L$2426='MDOT FTA Detail'!$A104)*(Projects!$J$5:$J$2426<>'MDOT FTA Detail'!$A$171)*(Projects!$K$5:K$2426)) -> 0 | H104: 0 | I104: =SUMPRODUCT((Projects!$A$5:$A$2426='MDOT FTA Detail'!$G$3)*(Projects!$C$5:$C$2426='MDOT FTA Detail'!$C$4)*(Projects!$L$5:$L$2426='MDOT FTA Detail'!$A104)*(Projects!$J$5:$J$2426<>'MDOT FTA Detail'!$A$171)*(Projects!$Q$5:Q$2426)) -> 0 | J104: =SUMPRODUCT((Projects!$A$5:$A$2426='MDOT FTA Detail'!$J$3)*(Projects!$C$5:$C$2426='MDOT FTA Detail'!$C$4)*(Projects!$L$5:$L$2426='MDOT FTA Detail'!$A104)*(Projects!$J$5:$J$2426<>'MDOT FTA Detail'!$A$171)*(Projects!$K$5:$K$2426)) -> 0 | K104: 0 | L104: =SUMPRODUCT((Projects!$A$5:$A$2426='MDOT FTA Detail'!$J$3)*(Projects!$C$5:$C$2426='MDOT FTA Detail'!$C$4)*(Projects!$L$5:$L$2426='MDOT FTA Detail'!$A104)*(Projects!$J$5:$J$2426<>'MDOT FTA Detail'!$A$171)*(Projects!$Q$5:$Q$2426)) -> 0 | M104: =SUMPRODUCT((Projects!$A$5:$A$2426='MDOT FTA Detail'!$M$3)*(Projects!$C$5:$C$2426='MDOT FTA Detail'!$C$4)*(Projects!$L$5:$L$2426='MDOT FTA Detail'!$A104)*(Projects!$J$5:$J$2426<>'MDOT FTA Detail'!$A$171)*(Projects!$K$5:$K$2426)) -> 0 | N104: 0 | O104: =SUMPRODUCT((Projects!$A$5:$A$2426='MDOT FTA Detail'!$M$3)*(Projects!$C$5:$C$2426='MDOT FTA Detail'!$C$4)*(Projects!$L$5:$L$2426='MDOT FTA Detail'!$A104)*(Projects!$J$5:$J$2426<>'MDOT FTA Detail'!$A$171)*(Projects!$Q$5:$Q$2426)) -> 0
A105: TG | B105: Transportation Grant (100% Fed) | C105: MDOT FA | D105: =SUMPRODUCT((Projects!$A$5:$A$2426='MDOT FTA Detail'!$D$3)*(Projects!$C$5:$C$2426='MDOT FTA Detail'!$C$4)*(Projects!$L$5:$L$2426='MDOT FTA Detail'!$A105)*(Projects!$J$5:$J$2426<>'MDOT FTA Detail'!$A$171)*(Projects!$K$5:K$2426)) -> 0 | E105: 0 | F105: =SUMPRODUCT((Projects!$A$5:$A$2426='MDOT FTA Detail'!$D$3)*(Projects!$C$5:$C$2426='MDOT FTA Detail'!$C$4)*(Projects!$L$5:$L$2426='MDOT FTA Detail'!$A105)*(Projects!$J$5:$J$2426<>'MDOT FTA Detail'!$A$171)*(Projects!$Q$5:Q$2426)) -> 0 | G105: =SUMPRODUCT((Projects!$A$5:$A$2426='MDOT FTA Detail'!$G$3)*(Projects!$C$5:$C$2426='MDOT FTA Detail'!$C$4)*(Projects!$L$5:$L$2426='MDOT FTA Detail'!$A105)*(Projects!$J$5:$J$2426<>'MDOT FTA Detail'!$A$171)*(Projects!$K$5:K$2426)) -> 0 | H105: 0 | I105: =SUMPRODUCT((Projects!$A$5:$A$2426='MDOT FTA Detail'!$G$3)*(Projects!$C$5:$C$2426='MDOT FTA Detail'!$C$4)*(Projects!$L$5:$L$2426='MDOT FTA Detail'!$A105)*(Projects!$J$5:$J$2426<>'MDOT FTA Detail'!$A$171)*(Projects!$Q$5:Q$2426)) -> 0 | J105: =SUMPRODUCT((Projects!$A$5:$A$2426='MDOT FTA Detail'!$J$3)*(Projects!$C$5:$C$2426='MDOT FTA Detail'!$C$4)*(Projects!$L$5:$L$2426='MDOT FTA Detail'!$A105)*(Projects!$J$5:$J$2426<>'MDOT FTA Detail'!$A$171)*(Projects!$K$5:$K$2426)) -> 0 | K105: 0 | L105: =SUMPRODUCT((Projects!$A$5:$A$2426='MDOT FTA Detail'!$J$3)*(Projects!$C$5:$C$2426='MDOT FTA Detail'!$C$4)*(Projects!$L$5:$L$2426='MDOT FTA Detail'!$A105)*(Projects!$J$5:$J$2426<>'MDOT FTA Detail'!$A$171)*(Projects!$Q$5:$Q$2426)) -> 0 | M105: =SUMPRODUCT((Projects!$A$5:$A$2426='MDOT FTA Detail'!$M$3)*(Projects!$C$5:$C$2426='MDOT FTA Detail'!$C$4)*(Projects!$L$5:$L$2426='MDOT FTA Detail'!$A105)*(Projects!$J$5:$J$2426<>'MDOT FTA Detail'!$A$171)*(Projects!$K$5:$K$2426)) -> 0 | N105: 0 | O105: =SUMPRODUCT((Projects!$A$5:$A$2426='MDOT FTA Detail'!$M$3)*(Projects!$C$5:$C$2426='MDOT FTA Detail'!$C$4)*(Projects!$L$5:$L$2426='MDOT FTA Detail'!$A105)*(Projects!$J$5:$J$2426<>'MDOT FTA Detail'!$A$171)*(Projects!$Q$5:$Q$2426)) -> 0
A106: TGR2 | B106: TIGER II Discretionary Grant | C106: MDOT FA | D106: =SUMPRODUCT((Projects!$A$5:$A$2426='MDOT FTA Detail'!$D$3)*(Projects!$C$5:$C$2426='MDOT FTA Detail'!$C$4)*(Projects!$L$5:$L$2426='MDOT FTA Detail'!$A106)*(Projects!$J$5:$J$2426<>'MDOT FTA Detail'!$A$171)*(Projects!$K$5:K$2426)) -> 0 | E106: =F106-D106 -> 0 | F106: =SUMPRODUCT((Projects!$A$5:$A$2426='MDOT FTA Detail'!$D$3)*(Projects!$C$5:$C$2426='MDOT FTA Detail'!$C$4)*(Projects!$L$5:$L$2426='MDOT FTA Detail'!$A106)*(Projects!$J$5:$J$2426<>'MDOT FTA Detail'!$A$171)*(Projects!$Q$5:Q$2426)) -> 0 | G106: =SUMPRODUCT((Projects!$A$5:$A$2426='MDOT FTA Detail'!$G$3)*(Projects!$C$5:$C$2426='MDOT FTA Detail'!$C$4)*(Projects!$L$5:$L$2426='MDOT FTA Detail'!$A106)*(Projects!$J$5:$J$2426<>'MDOT FTA Detail'!$A$171)*(Projects!$K$5:K$2426)) -> 0 | H106: =I106-G106 -> 0 | I106: =SUMPRODUCT((Projects!$A$5:$A$2426='MDOT FTA Detail'!$G$3)*(Projects!$C$5:$C$2426='MDOT FTA Detail'!$C$4)*(Projects!$L$5:$L$2426='MDOT FTA Detail'!$A106)*(Projects!$J$5:$J$2426<>'MDOT FTA Detail'!$A$171)*(Projects!$Q$5:Q$2426)) -> 0 | J106: =SUMPRODUCT((Projects!$A$5:$A$2426='MDOT FTA Detail'!$J$3)*(Projects!$C$5:$C$2426='MDOT FTA Detail'!$C$4)*(Projects!$L$5:$L$2426='MDOT FTA Detail'!$A106)*(Projects!$J$5:$J$2426<>'MDOT FTA Detail'!$A$171)*(Projects!$K$5:$K$2426)) -> 0 | K106: =L106-J106 -> 0 | L106: =SUMPRODUCT((Projects!$A$5:$A$2426='MDOT FTA Detail'!$J$3)*(Projects!$C$5:$C$2426='MDOT FTA Detail'!$C$4)*(Projects!$L$5:$L$2426='MDOT FTA Detail'!$A106)*(Projects!$J$5:$J$2426<>'MDOT FTA Detail'!$A$171)*(Projects!$Q$5:$Q$2426)) -> 0 | M106: =SUMPRODUCT((Projects!$A$5:$A$2426='MDOT FTA Detail'!$M$3)*(Projects!$C$5:$C$2426='MDOT FTA Detail'!$C$4)*(Projects!$L$5:$L$2426='MDOT FTA Detail'!$A106)*(Projects!$J$5:$J$2426<>'MDOT FTA Detail'!$A$171)*(Projects!$K$5:$K$2426)) -> 0 | N106: =O106-M106 -> 0 | O106: =SUMPRODUCT((Projects!$A$5:$A$2426='MDOT FTA Detail'!$M$3)*(Projects!$C$5:$C$2426='MDOT FTA Detail'!$C$4)*(Projects!$L$5:$L$2426='MDOT FTA Detail'!$A106)*(Projects!$J$5:$J$2426<>'MDOT FTA Detail'!$A$171)*(Projects!$Q$5:$Q$2426)) -> 0
A107: TGR3 | B107: TIGER III Discretionary Grant | C107: MDOT FA | D107: =SUMPRODUCT((Projects!$A$5:$A$2426='MDOT FTA Detail'!$D$3)*(Projects!$C$5:$C$2426='MDOT FTA Detail'!$C$4)*(Projects!$L$5:$L$2426='MDOT FTA Detail'!$A107)*(Projects!$J$5:$J$2426<>'MDOT FTA Detail'!$A$171)*(Projects!$K$5:K$2426)) -> 0 | E107: =F107-D107 -> 0 | F107: =SUMPRODUCT((Projects!$A$5:$A$2426='MDOT FTA Detail'!$D$3)*(Projects!$C$5:$C$2426='MDOT FTA Detail'!$C$4)*(Projects!$L$5:$L$2426='MDOT FTA Detail'!$A107)*(Projects!$J$5:$J$2426<>'MDOT FTA Detail'!$A$171)*(Projects!$Q$5:Q$2426)) -> 0 | G107: =SUMPRODUCT((Projects!$A$5:$A$2426='MDOT FTA Detail'!$G$3)*(Projects!$C$5:$C$2426='MDOT FTA Detail'!$C$4)*(Projects!$L$5:$L$2426='MDOT FTA Detail'!$A107)*(Projects!$J$5:$J$2426<>'MDOT FTA Detail'!$A$171)*(Projects!$K$5:K$2426)) -> 0 | H107: =I107-G107 -> 0 | I107: =SUMPRODUCT((Projects!$A$5:$A$2426='MDOT FTA Detail'!$G$3)*(Projects!$C$5:$C$2426='MDOT FTA Detail'!$C$4)*(Projects!$L$5:$L$2426='MDOT FTA Detail'!$A107)*(Projects!$J$5:$J$2426<>'MDOT FTA Detail'!$A$171)*(Projects!$Q$5:Q$2426)) -> 0 | J107: =SUMPRODUCT((Projects!$A$5:$A$2426='MDOT FTA Detail'!$J$3)*(Projects!$C$5:$C$2426='MDOT FTA Detail'!$C$4)*(Projects!$L$5:$L$2426='MDOT FTA Detail'!$A107)*(Projects!$J$5:$J$2426<>'MDOT FTA Detail'!$A$171)*(Projects!$K$5:$K$2426)) -> 0 | K107: =L107-J107 -> 0 | L107: =SUMPRODUCT((Projects!$A$5:$A$2426='MDOT FTA Detail'!$J$3)*(Projects!$C$5:$C$2426='MDOT FTA Detail'!$C$4)*(Projects!$L$5:$L$2426='MDOT FTA Detail'!$A107)*(Projects!$J$5:$J$2426<>'MDOT FTA Detail'!$A$171)*(Projects!$Q$5:$Q$2426)) -> 0 | M107: =SUMPRODUCT((Projects!$A$5:$A$2426='MDOT FTA Detail'!$M$3)*(Projects!$C$5:$C$2426='MDOT FTA Detail'!$C$4)*(Projects!$L$5:$L$2426='MDOT FTA Detail'!$A107)*(Projects!$J$5:$J$2426<>'MDOT FTA Detail'!$A$171)*(Projects!$K$5:$K$2426)) -> 0 | N107: =O107-M107 -> 0 | O107: =SUMPRODUCT((Projects!$A$5:$A$2426='MDOT FTA Detail'!$M$3)*(Projects!$C$5:$C$2426='MDOT FTA Detail'!$C$4)*(Projects!$L$5:$L$2426='MDOT FTA Detail'!$A107)*(Projects!$J$5:$J$2426<>'MDOT FTA Detail'!$A$171)*(Projects!$Q$5:$Q$2426)) -> 0
A108: TIP | B108: Transportation Improvements Projects SAFETEA-LU | C108: MDOT FA | D108: =SUMPRODUCT((Projects!$A$5:$A$2426='MDOT FTA Detail'!$D$3)*(Projects!$C$5:$C$2426='MDOT FTA Detail'!$C$4)*(Projects!$L$5:$L$2426='MDOT FTA Detail'!$A108)*(Projects!$J$5:$J$2426<>'MDOT FTA Detail'!$A$171)*(Projects!$K$5:K$2426)) -> 0 | E108: =F108-D108 -> 0 | F108: =SUMPRODUCT((Projects!$A$5:$A$2426='MDOT FTA Detail'!$D$3)*(Projects!$C$5:$C$2426='MDOT FTA Detail'!$C$4)*(Projects!$L$5:$L$2426='MDOT FTA Detail'!$A108)*(Projects!$J$5:$J$2426<>'MDOT FTA Detail'!$A$171)*(Projects!$Q$5:Q$2426)) -> 0 | G108: =SUMPRODUCT((Projects!$A$5:$A$2426='MDOT FTA Detail'!$G$3)*(Projects!$C$5:$C$2426='MDOT FTA Detail'!$C$4)*(Projects!$L$5:$L$2426='MDOT FTA Detail'!$A108)*(Projects!$J$5:$J$2426<>'MDOT FTA Detail'!$A$171)*(Projects!$K$5:K$2426)) -> 0 | H108: =I108-G108 -> 0 | I108: =SUMPRODUCT((Projects!$A$5:$A$2426='MDOT FTA Detail'!$G$3)*(Projects!$C$5:$C$2426='MDOT FTA Detail'!$C$4)*(Projects!$L$5:$L$2426='MDOT FTA Detail'!$A108)*(Projects!$J$5:$J$2426<>'MDOT FTA Detail'!$A$171)*(Projects!$Q$5:Q$2426)) -> 0 | J108: =SUMPRODUCT((Projects!$A$5:$A$2426='MDOT FTA Detail'!$J$3)*(Projects!$C$5:$C$2426='MDOT FTA Detail'!$C$4)*(Projects!$L$5:$L$2426='MDOT FTA Detail'!$A108)*(Projects!$J$5:$J$2426<>'MDOT FTA Detail'!$A$171)*(Projects!$K$5:$K$2426)) -> 0 | K108: =L108-J108 -> 0 | L108: =SUMPRODUCT((Projects!$A$5:$A$2426='MDOT FTA Detail'!$J$3)*(Projects!$C$5:$C$2426='MDOT FTA Detail'!$C$4)*(Projects!$L$5:$L$2426='MDOT FTA Detail'!$A108)*(Projects!$J$5:$J$2426<>'MDOT FTA Detail'!$A$171)*(Projects!$Q$5:$Q$2426)) -> 0 | M108: =SUMPRODUCT((Projects!$A$5:$A$2426='MDOT FTA Detail'!$M$3)*(Projects!$C$5:$C$2426='MDOT FTA Detail'!$C$4)*(Projects!$L$5:$L$2426='MDOT FTA Detail'!$A108)*(Projects!$J$5:$J$2426<>'MDOT FTA Detail'!$A$171)*(Projects!$K$5:$K$2426)) -> 0 | N108: =O108-M108 -> 0 | O108: =SUMPRODUCT((Projects!$A$5:$A$2426='MDOT FTA Detail'!$M$3)*(Projects!$C$5:$C$2426='MDOT FTA Detail'!$C$4)*(Projects!$L$5:$L$2426='MDOT FTA Detail'!$A108)*(Projects!$J$5:$J$2426<>'MDOT FTA Detail'!$A$171)*(Projects!$Q$5:$Q$2426)) -> 0
A109: TPFD | B109: Truck Parking Faciilities Discretionary | C109: MDOT FA | D109: =SUMPRODUCT((Projects!$A$5:$A$2426='MDOT FTA Detail'!$D$3)*(Projects!$C$5:$C$2426='MDOT FTA Detail'!$C$4)*(Projects!$L$5:$L$2426='MDOT FTA Detail'!$A109)*(Projects!$J$5:$J$2426<>'MDOT FTA Detail'!$A$171)*(Projects!$K$5:K$2426)) -> 0 | E109: 0 | F109: =SUMPRODUCT((Projects!$A$5:$A$2426='MDOT FTA Detail'!$D$3)*(Projects!$C$5:$C$2426='MDOT FTA Detail'!$C$4)*(Projects!$L$5:$L$2426='MDOT FTA Detail'!$A109)*(Projects!$J$5:$J$2426<>'MDOT FTA Detail'!$A$171)*(Projects!$Q$5:Q$2426)) -> 0 | G109: =SUMPRODUCT((Projects!$A$5:$A$2426='MDOT FTA Detail'!$G$3)*(Projects!$C$5:$C$2426='MDOT FTA Detail'!$C$4)*(Projects!$L$5:$L$2426='MDOT FTA Detail'!$A109)*(Projects!$J$5:$J$2426<>'MDOT FTA Detail'!$A$171)*(Projects!$K$5:K$2426)) -> 0 | H109: 0 | I109: =SUMPRODUCT((Projects!$A$5:$A$2426='MDOT FTA Detail'!$G$3)*(Projects!$C$5:$C$2426='MDOT FTA Detail'!$C$4)*(Projects!$L$5:$L$2426='MDOT FTA Detail'!$A109)*(Projects!$J$5:$J$2426<>'MDOT FTA Detail'!$A$171)*(Projects!$Q$5:Q$2426)) -> 0 | J109: =SUMPRODUCT((Projects!$A$5:$A$2426='MDOT FTA Detail'!$J$3)*(Projects!$C$5:$C$2426='MDOT FTA Detail'!$C$4)*(Projects!$L$5:$L$2426='MDOT FTA Detail'!$A109)*(Projects!$J$5:$J$2426<>'MDOT FTA Detail'!$A$171)*(Projects!$K$5:$K$2426)) -> 0 | K109: 0 | L109: =SUMPRODUCT((Projects!$A$5:$A$2426='MDOT FTA Detail'!$J$3)*(Projects!$C$5:$C$2426='MDOT FTA Detail'!$C$4)*(Projects!$L$5:$L$2426='MDOT FTA Detail'!$A109)*(Projects!$J$5:$J$2426<>'MDOT FTA Detail'!$A$171)*(Projects!$Q$5:$Q$2426)) -> 0 | M109: =SUMPRODUCT((Projects!$A$5:$A$2426='MDOT FTA Detail'!$M$3)*(Projects!$C$5:$C$2426='MDOT FTA Detail'!$C$4)*(Projects!$L$5:$L$2426='MDOT FTA Detail'!$A109)*(Projects!$J$5:$J$2426<>'MDOT FTA Detail'!$A$171)*(Projects!$K$5:$K$2426)) -> 0 | N109: 0 | O109: =SUMPRODUCT((Projects!$A$5:$A$2426='MDOT FTA Detail'!$M$3)*(Projects!$C$5:$C$2426='MDOT FTA Detail'!$C$4)*(Projects!$L$5:$L$2426='MDOT FTA Detail'!$A109)*(Projects!$J$5:$J$2426<>'MDOT FTA Detail'!$A$171)*(Projects!$Q$5:$Q$2426)) -> 0
A110: CTF | B110: CTF - Comprehensive Transportation Fund | C110: Transit | D110: =SUMPRODUCT((Projects!$A$5:$A$2426='MDOT FTA Detail'!$D$3)*(Projects!$L$5:$L$2426='MDOT FTA Detail'!$A110)*(Projects!$K$5:$K$2426)) -> 0 | E110: =F110-D110 -> 0 | F110: =SUMPRODUCT((Projects!$A$5:$A$2426='MDOT FTA Detail'!$D$3)*(Projects!$L$5:$L$2426='MDOT FTA Detail'!$A110)*(Projects!$Q$5:$Q$2426)) -> 0 | G110: =SUMPRODUCT((Projects!$A$5:$A$2426='MDOT FTA Detail'!$G$3)*(Projects!$L$5:$L$2426='MDOT FTA Detail'!$A110)*(Projects!$K$5:$K$2426)) -> 0 | H110: =I110-G110 -> 0 | I110: =SUMPRODUCT((Projects!$A$5:$A$2426='MDOT FTA Detail'!$G$3)*(Projects!$L$5:$L$2426='MDOT FTA Detail'!$A110)*(Projects!$Q$5:$Q$2426)) -> 0 | J110: =SUMPRODUCT((Projects!$A$5:$A$2426='MDOT FTA Detail'!$J$3)*(Projects!$L$5:$L$2426='MDOT FTA Detail'!$A110)*(Projects!$K$5:$K$2426)) -> 0 | K110: =L110-J110 -> 0 | L110: =SUMPRODUCT((Projects!$A$5:$A$2426='MDOT FTA Detail'!$J$3)*(Projects!$L$5:$L$2426='MDOT FTA Detail'!$A110)*(Projects!$Q$5:$Q$2426)) -> 0 | M110: =SUMPRODUCT((Projects!$A$5:$A$2426='MDOT FTA Detail'!$M$3)*(Projects!$L$5:$L$2426='MDOT FTA Detail'!$A110)*(Projects!$K$5:$K$2426)) -> 0 | N110: =O110-M110 -> 0 | O110: =SUMPRODUCT((Projects!$A$5:$A$2426='MDOT FTA Detail'!$M$3)*(Projects!$L$5:$L$2426='MDOT FTA Detail'!$A110)*(Projects!$Q$5:$Q$2426)) -> 0
A111: 3038 | B111: Section 3038 - Over the Road Bus Program | C111: Transit | D111: =SUMPRODUCT((Projects!$A$5:$A$2426='MDOT FTA Detail'!$D$3)*(Projects!$L$5:$L$2426='MDOT FTA Detail'!$A111)*(Projects!$K$5:$K$2426)) -> 0 | E111: =F111-D111 -> 0 | F111: =SUMPRODUCT((Projects!$A$5:$A$2426='MDOT FTA Detail'!$D$3)*(Projects!$L$5:$L$2426='MDOT FTA Detail'!$A111)*(Projects!$Q$5:$Q$2426)) -> 0 | G111: =SUMPRODUCT((Projects!$A$5:$A$2426='MDOT FTA Detail'!$G$3)*(Projects!$L$5:$L$2426='MDOT FTA Detail'!$A111)*(Projects!$K$5:$K$2426)) -> 0 | H111: =I111-G111 -> 0 | I111: =SUMPRODUCT((Projects!$A$5:$A$2426='MDOT FTA Detail'!$G$3)*(Projects!$L$5:$L$2426='MDOT FTA Detail'!$A111)*(Projects!$Q$5:$Q$2426)) -> 0 | J111: =SUMPRODUCT((Projects!$A$5:$A$2426='MDOT FTA Detail'!$J$3)*(Projects!$L$5:$L$2426='MDOT FTA Detail'!$A111)*(Projects!$K$5:$K$2426)) -> 0 | K111: =L111-J111 -> 0 | L111: =SUMPRODUCT((Projects!$A$5:$A$2426='MDOT FTA Detail'!$J$3)*(Projects!$L$5:$L$2426='MDOT FTA Detail'!$A111)*(Projects!$Q$5:$Q$2426)) -> 0 | M111: =SUMPRODUCT((Projects!$A$5:$A$2426='MDOT FTA Detail'!$M$3)*(Projects!$L$5:$L$2426='MDOT FTA Detail'!$A111)*(Projects!$K$5:$K$2426)) -> 0 | N111: =O111-M111 -> 0 | O111: =SUMPRODUCT((Projects!$A$5:$A$2426='MDOT FTA Detail'!$M$3)*(Projects!$L$5:$L$2426='MDOT FTA Detail'!$A111)*(Projects!$Q$5:$Q$2426)) -> 0
A112: 3045 | B112: Section 3045 - National Fuel Cell Technology Development Program | C112: Transit | D112: =SUMPRODUCT((Projects!$A$5:$A$2426='MDOT FTA Detail'!$D$3)*(Projects!$L$5:$L$2426='MDOT FTA Detail'!$A112)*(Projects!$K$5:$K$2426)) -> 0 | E112: =F112-D112 -> 0 | F112: =SUMPRODUCT((Projects!$A$5:$A$2426='MDOT FTA Detail'!$D$3)*(Projects!$L$5:$L$2426='MDOT FTA Detail'!$A112)*(Projects!$Q$5:$Q$2426)) -> 0 | G112: =SUMPRODUCT((Projects!$A$5:$A$2426='MDOT FTA Detail'!$G$3)*(Projects!$L$5:$L$2426='MDOT FTA Detail'!$A112)*(Projects!$K$5:$K$2426)) -> 0 | H112: =I112-G112 -> 0 | I112: =SUMPRODUCT((Projects!$A$5:$A$2426='MDOT FTA Detail'!$G$3)*(Projects!$L$5:$L$2426='MDOT FTA Detail'!$A112)*(Projects!$Q$5:$Q$2426)) -> 0 | J112: =SUMPRODUCT((Projects!$A$5:$A$2426='MDOT FTA Detail'!$J$3)*(Projects!$L$5:$L$2426='MDOT FTA Detail'!$A112)*(Projects!$K$5:$K$2426)) -> 0 | K112: =L112-J112 -> 0 | L112: =SUMPRODUCT((Projects!$A$5:$A$2426='MDOT FTA Detail'!$J$3)*(Projects!$L$5:$L$2426='MDOT FTA Detail'!$A112)*(Projects!$Q$5:$Q$2426)) -> 0 | M112: =SUMPRODUCT((Projects!$A$5:$A$2426='MDOT FTA Detail'!$M$3)*(Projects!$L$5:$L$2426='MDOT FTA Detail'!$A112)*(Projects!$K$5:$K$2426)) -> 0 | N112: =O112-M112 -> 0 | O112: =SUMPRODUCT((Projects!$A$5:$A$2426='MDOT FTA Detail'!$M$3)*(Projects!$L$5:$L$2426='MDOT FTA Detail'!$A112)*(Projects!$Q$5:$Q$2426)) -> 0
A113: 5303 | B113: Section 5303 - Metropolitan Transportation Planning | C113: Transit | D113: =SUMPRODUCT((Projects!$A$5:$A$2426='MDOT FTA Detail'!$D$3)*(Projects!$L$5:$L$2426='MDOT FTA Detail'!$A113)*(Projects!$K$5:$K$2426)) -> 0 | E113: =F113-D113 -> 0 | F113: =SUMPRODUCT((Projects!$A$5:$A$2426='MDOT FTA Detail'!$D$3)*(Projects!$L$5:$L$2426='MDOT FTA Detail'!$A113)*(Projects!$Q$5:$Q$2426)) -> 0 | G113: =SUMPRODUCT((Projects!$A$5:$A$2426='MDOT FTA Detail'!$G$3)*(Projects!$L$5:$L$2426='MDOT FTA Detail'!$A113)*(Projects!$K$5:$K$2426)) -> 0 | H113: 0 | I113: =SUMPRODUCT((Projects!$A$5:$A$2426='MDOT FTA Detail'!$G$3)*(Projects!$L$5:$L$2426='MDOT FTA Detail'!$A113)*(Projects!$Q$5:$Q$2426)) -> 0 | J113: =SUMPRODUCT((Projects!$A$5:$A$2426='MDOT FTA Detail'!$J$3)*(Projects!$L$5:$L$2426='MDOT FTA Detail'!$A113)*(Projects!$K$5:$K$2426)) -> 0 | K113: 0 | L113: =SUMPRODUCT((Projects!$A$5:$A$2426='MDOT FTA Detail'!$J$3)*(Projects!$L$5:$L$2426='MDOT FTA Detail'!$A113)*(Projects!$Q$5:$Q$2426)) -> 0 | M113: =SUMPRODUCT((Projects!$A$5:$A$2426='MDOT FTA Detail'!$M$3)*(Projects!$L$5:$L$2426='MDOT FTA Detail'!$A113)*(Projects!$K$5:$K$2426)) -> 0 | N113: 0 | O113: =SUMPRODUCT((Projects!$A$5:$A$2426='MDOT FTA Detail'!$M$3)*(Projects!$L$5:$L$2426='MDOT FTA Detail'!$A113)*(Projects!$Q$5:$Q$2426)) -> 0
A114: 5304 | B114: Section 5304 - Statewide Transportation Planning | C114: Transit | D114: =SUMPRODUCT((Projects!$A$5:$A$2426='MDOT FTA Detail'!$D$3)*(Projects!$L$5:$L$2426='MDOT FTA Detail'!$A114)*(Projects!$K$5:$K$2426)) -> 0 | E114: 0 | F114: =SUMPRODUCT((Projects!$A$5:$A$2426='MDOT FTA Detail'!$D$3)*(Projects!$L$5:$L$2426='MDOT FTA Detail'!$A114)*(Projects!$Q$5:$Q$2426)) -> 0 | G114: =SUMPRODUCT((Projects!$A$5:$A$2426='MDOT FTA Detail'!$G$3)*(Projects!$L$5:$L$2426='MDOT FTA Detail'!$A114)*(Projects!$K$5:$K$2426)) -> 0 | H114: 0 | I114: =SUMPRODUCT((Projects!$A$5:$A$2426='MDOT FTA Detail'!$G$3)*(Projects!$L$5:$L$2426='MDOT FTA Detail'!$A114)*(Projects!$Q$5:$Q$2426)) -> 0 | J114: =SUMPRODUCT((Projects!$A$5:$A$2426='MDOT FTA Detail'!$J$3)*(Projects!$L$5:$L$2426='MDOT FTA Detail'!$A114)*(Projects!$K$5:$K$2426)) -> 0 | K114: 0 | L114: =SUMPRODUCT((Projects!$A$5:$A$2426='MDOT FTA Detail'!$J$3)*(Projects!$L$5:$L$2426='MDOT FTA Detail'!$A114)*(Projects!$Q$5:$Q$2426)) -> 0 | M114: =SUMPRODUCT((Projects!$A$5:$A$2426='MDOT FTA Detail'!$M$3)*(Projects!$L$5:$L$2426='MDOT FTA Detail'!$A114)*(Projects!$K$5:$K$2426)) -> 0 | N114: 0 | O114: =SUMPRODUCT((Projects!$A$5:$A$2426='MDOT FTA Detail'!$M$3)*(Projects!$L$5:$L$2426='MDOT FTA Detail'!$A114)*(Projects!$Q$5:$Q$2426)) -> 0
